Workbook

Sheet Markowitz
A1: Date | B1: TSLA | C1: NVDA | D1: MCD | E1: DPZ | F1: TSLA | G1: NVDA | H1: MCD | I1: DPZ | M1: TSLA | N1: NVDA | O1: MCD | P1: DPZ | S1: Método analítico
A2: 2023-09-05 | B2: 256.48999 | C2: 48.53347 | D2: 274.147491 | E2: 385.136169 | L2: RT | M2: =AVERAGE(F3:F251) -> -0.0001469392577 | N2: =AVERAGE(G3:G251) -> 0.004116286621 | O2: 0.0002682356005 | P2: 0.0004529910039
A3: 2023-09-06 | B3: 251.919998 | C3: 47.050789 | D3: 270.494263 | E3: 379.752594 | F3: =B3/B2-1 -> -0.01781742827 | G3: =C3/C2-1 -> -0.03054965985 | H3: -0.0133257758 | I3: -0.01397836774 | L3: Var | M3: =_xlfn.STDEV.S(F3:F251) -> 0.03414927207 | N3: =_xlfn.STDEV.S(G3:G251) -> 0.03173366261 | O3: 0.01106868539 | P3: 0.01776484842
A4: 2023-09-07 | B4: 251.490005 | C4: 46.230965 | D4: 273.332397 | E4: 384.602753 | F4: =B4/B3-1 -> -0.001706863303 | G4: =C4/C3-1 -> -0.0174242349 | H4: =D4/D3-1 -> 0.01049239998 | I4: =E4/E3-1 -> 0.01277189169 | L4: Pesos | M4: 0 | N4: 0.5776782056 | O4: 0.4223217927 | P4: 0 | Q4: =SUM(M4:P4) -> 0.9999999983
A5: 2023-09-08 | B5: 248.5 | C5: 45.562115 | D5: 274.20639 | E5: 382.646912 | F5: -0.01188916037 | G5: -0.01446757601 | H5: 0.003197546319 | I5: -0.005085353614 | L5: IMPORTANTE
A6: 2023-09-11 | B6: 273.579987 | C6: 45.168201 | D6: 274.736694 | E6: 390.085083 | F6: 0.100925501 | G6: -0.008645647815 | H6: 0.001933959307 | I6: 0.01943873259 | L6: Rentabilidad | M6: =SUMPRODUCT(M2:P2,M4:P4) -> 0.002491170809 | O6: Ratio sharpe modificado | Q6: =M6/M7 -> 0.1342657959
A7: 2023-09-12 | B7: 267.480011 | C7: 44.860264 | D7: 275.669617 | E7: 388.791046 | F7: -0.02229686487 | G7: -0.006817561762 | H7: 0.003395698574 | I7: -0.003317319878 | L7: desvport | M7: =SQRT(N23) -> 0.01855402407
A8: 2023-09-13 | B8: 271.299988 | C8: 45.475136 | D8: 276.710571 | E8: 391.626038 | F8: 0.01428135503 | G8: 0.01370638389 | H8: 0.003776092597 | I8: 0.00729181402 | M8: Matriz Var- Covar
A9: 2023-09-14 | B9: 276.040009 | C9: 45.571117 | D9: 279.646912 | E9: 395.411011 | F9: 0.01747151201 | G9: 0.002110625903 | H9: 0.01061159676 | I9: 0.009664763404 | N9: TSLA | O9: NVDA | P9: MCD | Q9: DPZ
A10: 2023-09-15 | B10: 274.390015 | C10: 43.890476 | D10: 273.234192 | E10: 384.918152 | F10: -0.00597737265 | G10: -0.03687952174 | H10: -0.02293148869 | I10: -0.02653658777 | M10: TSLA | N10: =CovarMatrix(F3:I251) -> 0.001161489358 | O10: 0.000283602514 | P10: 3.200221066e-05 | Q10: 0.0001502005997
A11: 2023-09-18 | B11: 265.279999 | C11: 43.956459 | D11: 272.733307 | E11: 380.786346 | F11: -0.0332009749 | G11: 0.001503355762 | H11: -0.001833171011 | I11: -0.01073424565 | M11: NVDA | N11: 0.000283602514 | O11: 0.001002981064 | P11: -2.504190351e-05 | Q11: 9.947706445e-05
A12: 2023-09-19 | B12: 266.5 | C12: 43.510559 | D12: 273.135986 | E12: 379.319916 | F12: 0.004598918142 | G12: -0.01014412922 | H12: 0.001476456999 | I12: -0.003851057202 | M12: MCD | N12: 3.200221066e-05 | O12: -2.504190351e-05 | P12: 0.000122023765 | Q12: 3.755647403e-05
A13: 2023-09-20 | B13: 262.589996 | C13: 42.229839 | D13: 272.222656 | E13: 381.311493 | F13: -0.0146716848 | G13: -0.02943469423 | H13: -0.003343865499 | I13: 0.005250388698 | M13: DPZ | N13: 0.0001502005997 | O13: 9.947706445e-05 | P13: 3.755647403e-05 | Q13: 0.0003143224104
A14: 2023-09-21 | B14: 255.699997 | C14: 41.008102 | D14: 266.350006 | E14: 374.58374 | F14: -0.02623861954 | G14: -0.0289306573 | H14: -0.02157296562 | I14: -0.01764371944
A15: 2023-09-22 | B15: 244.880005 | C15: 41.600971 | D15: 267.332092 | E15: 377.853485 | F15: -0.04231518235 | G15: 0.0144573626 | H15: 0.003687200968 | I15: 0.008729009433
A16: 2023-09-25 | B16: 246.990005 | C16: 42.212841 | D16: 264.935913 | E16: 379.597321 | F16: 0.008616465032 | G16: 0.01470807016 | H16: -0.008963304712 | I16: 0.004615111595 | M16: VaR | N16: Value at Risk
A17: 2023-09-26 | B17: 244.119995 | C17: 41.901909 | D17: 262.912872 | E17: 375.743011 | F17: -0.01161994389 | G17: -0.007365815535 | H17: -0.007635963645 | I17: -0.01015368072 | M17: var | N17: variación
A18: 2023-09-27 | B18: 240.5 | C18: 42.458786 | D18: 258.906158 | E18: 376.723969 | F18: -0.01482875256 | G18: 0.01329001502 | H18: -0.01523970268 | I18: 0.002610715226 | M18: Var | N18: Varianza
A19: 2023-09-28 | B19: 246.380005 | C19: 43.079651 | D19: 260.821106 | E19: 378.804688 | F19: 0.02444908524 | G19: 0.01462276854 | H19: 0.007396301482 | I19: 0.0055231925 | M19: VAR | N19: Vector Autorregresivo
A20: 2023-09-29 | B20: 250.220001 | C20: 43.489563 | D20: 258.709747 | E20: 375.316956 | F20: 0.0155856641 | G20: 0.009515211718 | H20: -0.008095046572 | I20: -0.009207203898
A21: 2023-10-02 | B21: 251.600006 | C21: 44.772285 | D21: 253.121918 | E21: 377.050934 | F21: 0.005515166631 | G21: 0.02949493882 | H21: -0.02159883447 | I21: 0.004620036405
A22: 2023-10-03 | B22: 246.529999 | C22: 43.507557 | D22: 249.920441 | E22: 360.840881 | F22: -0.02015106073 | G22: -0.02824801102 | H22: -0.01264796437 | I22: -0.04299167974
A23: 2023-10-04 | B23: 261.160004 | C23: 44.031448 | D23: 251.216736 | E23: 367.598389 | F23: 0.05934371095 | G23: 0.01204137939 | H23: 0.005186830636 | I23: 0.01872711313 | M23: Varp= | N23: =MMULT(MMULT(M4:P4,_xlfn.ANCHORARRAY(N10)),TRANSPOSE(M4:P4)) -> 0.0003442518093
A24: 2023-10-05 | B24: 260.049988 | C24: 44.678307 | D24: 247.701019 | E24: 359.899658 | F24: -0.004250329235 | G24: 0.01469084096 | H24: -0.0139947563 | I24: -0.02094332084
A25: 2023-10-06 | B25: 260.529999 | C25: 45.752071 | D25: 243.763016 | E25: 338.428284 | F25: 0.00184584127 | G25: 0.02403322937 | H25: -0.01589821074 | I25: -0.05965933427
A26: 2023-10-09 | B26: 259.670013 | C26: 45.263176 | D26: 245.432495 | E26: 346.929657 | F26: -0.003300909697 | G26: -0.01068574579 | H26: 0.006848778898 | I26: 0.02512016106
A27: 2023-10-10 | B27: 263.619995 | C27: 45.788067 | D27: 247.003784 | E27: 352.3396 | F27: 0.01521154466 | G27: 0.01159642443 | H27: 0.006402122914 | I27: 0.01559377497 | M27: TSLA | N27: NVDA | O27: MCD | P27: DPZ | Q27: Rentabilidad | R27: desvport | S27: M. Sharpe
A28: 2023-10-11 | B28: 262.98999 | C28: 46.795845 | D28: 246.414551 | E28: 350.803802 | F28: -0.002389822517 | G28: 0.02200962098 | H28: -0.002385522159 | I28: -0.004358857193 | K28: 1er caso | L28: Min varianza | M28: 0.0159291889 | N28: 0.08889878935 | O28: 0.7217096648 | P28: 0.173462357 | Q28: 0.0006357573866 | R28: 0.009636593624 | S28: =Q28/R28 -> 0.06597324858
A29: 2023-10-12 | B29: 258.869995 | C29: 46.934814 | D29: 241.76947 | E29: 346.959381 | F29: -0.01566597649 | G29: 0.002969686732 | H29: -0.01885067656 | I29: -0.01095889206 | K29: 2do caso | L29: máx retorno | M29: 0 | N29: 0.9999999717 | O29: 0 | P29: 0 | Q29: 0.004116286505 | R29: 0.03166987539 | S29: =Q29/R29 -> 0.1299748248
A30: 2023-10-13 | B30: 251.119995 | C30: 45.451134 | D30: 243.85141 | E30: 343.630188 | F30: -0.0299378072 | G30: -0.03161150271 | H30: 0.008611260967 | I30: -0.009595339346 | K30: 3er caso | L30: desv 2% | M30: 0 | N30: 0.6273698267 | O30: 0.3726301733 | P30: 0 | Q30: 0.002682386703 | R30: 0.02 | S30: 0.1341193351
A31: 2023-10-16 | B31: 253.919998 | C31: 46.085003 | D31: 245.452148 | E31: 348.455505 | F31: 0.01115005995 | G31: 0.01394616469 | H31: 0.006564399197 | I31: 0.01404218014 | K31: 4to caso | L31: ret 0.3% | M31: 0 | N31: 0.7099092675 | O31: 0.2900907345 | P31: 0 | Q31: 0.003 | R31: 0.02248172582 | S31: 0.1334417128
A32: 2023-10-17 | B32: 254.850006 | C32: 43.928467 | D32: 246.6306 | E32: 347.276428 | F32: 0.003662602423 | G32: -0.04679474579 | H32: 0.004801147636 | I32: -0.003383723268 | K32: 5to caso | M32: 0 | N32: 0.5776782056 | O32: 0.4223217927 | P32: 0 | Q32: 0.002491170809 | R32: 0.01855402407 | S32: 0.1342657959
A33: 2023-10-18 | B33: 242.679993 | C33: 42.186844 | D33: 251.432785 | E33: 341.955658 | F33: -0.04775363042 | G33: -0.03964679669 | H33: 0.01947116457 | I33: -0.01532142573
A34: 2023-10-19 | B34: 220.110001 | C34: 42.091869 | D34: 253.740585 | E34: 341.153076 | F34: -0.09300310141 | G34: -0.002251294266 | H34: 0.00917859618 | I34: -0.002347035299 | L34: desvport | M34: Rentabilidad
A35: 2023-10-20 | B35: 211.990005 | C35: 41.378021 | D35: 253.475449 | E35: 344.502136 | F35: -0.03689062725 | G35: -0.01695928494 | H35: -0.001044909706 | I35: 0.009816883492 | L35: 0.009636593624 | M35: 0.0006357573866
A36: 2023-10-23 | B36: 212.080002 | C36: 42.965679 | D36: 250.175766 | E36: 345.106537 | F36: 0.0004245341661 | G36: 0.03836959723 | H36: -0.01301776173 | I36: 0.00175441873 | L36: 0.03166987539 | M36: 0.004116286505
A37: 2023-10-24 | B37: 216.520004 | C37: 43.653526 | D37: 252.650513 | E37: 350.348022 | F37: 0.02093550527 | G37: 0.01600921982 | H37: 0.009892033268 | I37: 0.01518802004 | L37: 0.02 | M37: 0.002682386703
A38: 2023-10-25 | B38: 212.419998 | C38: 41.769932 | D38: 253.396851 | E38: 346.701752 | F38: -0.01893592243 | G38: -0.04314872526 | H38: 0.002954033187 | I38: -0.01040756554 | L38: 0.02248172582 | M38: 0.003
A39: 2023-10-26 | B39: 205.759995 | C39: 40.317253 | D39: 251.236389 | E39: 342.768158 | F39: -0.03135299436 | G39: -0.03477810306 | H39: -0.008526001769 | I39: -0.01134575749 | L39: 0.01855402407 | M39: 0.002491170809
A40: 2023-10-27 | B40: 207.300003 | C40: 40.491215 | D40: 251.167633 | E40: 337.477142 | F40: 0.007484486963 | G40: 0.004314827699 | H40: -0.000273670547 | I40: -0.01543613628
A41: 2023-10-30 | B41: 197.360001 | C41: 41.152069 | D41: 255.47879 | E41: 335.604431 | F41: -0.04794984012 | G41: 0.01632092295 | H41: 0.01716446084 | I41: -0.005549149163
A42: 2023-10-31 | B42: 200.839996 | C42: 40.771152 | D42: 257.462524 | E42: 335.881866 | F42: 0.01763272691 | G42: -0.00925632682 | H42: 0.007764769827 | I42: 0.0008266726371
A43: 2023-11-01 | B43: 205.660004 | C43: 42.315823 | D43: 257.266144 | E43: 340.974762 | F43: 0.02399924366 | G43: 0.03788637123 | H43: -0.000762751786 | I43: 0.01516275964
A44: 2023-11-02 | B44: 218.509995 | C44: 43.496559 | D44: 262.058502 | E44: 345.185791 | F44: 0.06248172104 | G44: 0.02790294307 | H44: 0.0186280166 | I44: 0.01234997269
A45: 2023-11-03 | B45: 219.960007 | C45: 44.995239 | D45: 263.060181 | E45: 358.62146 | F45: 0.006635906975 | G45: 0.03445513931 | H45: 0.003822348798 | I45: 0.03892300712
A46: 2023-11-06 | B46: 219.270004 | C46: 45.741077 | D46: 264.081543 | E46: 364.873596 | F46: -0.003136947527 | G46: 0.01657593151 | H46: 0.003882617263 | I46: 0.01743380332
A47: 2023-11-07 | B47: 222.179993 | C47: 45.945034 | D47: 263.845825 | E47: 368.291962 | F47: 0.01327125894 | G47: 0.004458946168 | H47: -0.0008925955117 | I47: 0.009368630774
A48: 2023-11-08 | B48: 222.110001 | C48: 46.563896 | D48: 262.687012 | E48: 368.430664 | F48: -0.0003150238645 | G48: 0.01346961676 | H48: -0.004392008098 | I48: 0.0003766088167
A49: 2023-11-09 | B49: 209.979996 | C49: 46.939816 | D49: 262.117432 | E49: 366.300385 | F49: -0.05461260162 | G49: 0.00807320762 | H49: -0.002168283828 | I49: -0.005782035015
A50: 2023-11-10 | B50: 214.649994 | C50: 48.324512 | D50: 262.981628 | E50: 375.039551 | F50: 0.02224020425 | G50: 0.02949939131 | H50: 0.003296980263 | I50: 0.02385792196 | L50: Monte Carlo- Portafolio Markowitzk
A51: 2023-11-13 | B51: 223.710007 | C51: 48.609451 | D51: 264.366302 | E51: 371.115845 | F51: 0.04220830773 | G51: 0.005896365803 | H51: 0.005265287961 | I51: -0.01046211257 | M51: TSLA | N51: NVDA | O51: MCD | P51: DPZ
A52: 2023-11-14 | B52: 237.410004 | C52: 49.645226 | D52: 266.615173 | E52: 378.903778 | F52: 0.06123998289 | G52: 0.02130809912 | H52: 0.008506647719 | I52: 0.02098518052 | L52: Dist. Uniforme | M52: =RAND() -> 0.7363613314 | N52: =RAND() -> 0.9147537978 | O52: 0.2009164458 | P52: 0.6612456675 | Q52: =SUM(M52:P52) -> 2.513277242
A53: 2023-11-15 | B53: 242.839996 | C53: 48.877392 | D53: 265.534973 | E53: 377.932739 | F53: 0.02287179103 | G53: -0.01546642169 | H53: -0.004051532356 | I53: -0.002562758823 | L53: DU* | M53: =M52/$Q$52 -> 0.2929885008 | N53: =N52/$Q$52 -> 0.3639685198 | O53: 0.07994201453 | P53: 0.2631009649 | Q53: =SUM(M53:P53) -> 1
A54: 2023-11-16 | B54: 233.589996 | C54: 49.469269 | D54: 271.162079 | E54: 371.304077 | F54: -0.03809092469 | G54: 0.0121094227 | H54: 0.02119158142 | I54: -0.01753926378
A55: 2023-11-17 | B55: 234.300003 | C55: 49.287308 | D55: 270.798706 | E55: 369.005371 | F55: 0.003039543697 | G55: -0.003678263368 | H55: -0.00134005832 | I55: -0.006190898895
A56: 2023-11-20 | B56: 235.600006 | C56: 50.398064 | D56: 274.019836 | E56: 365.121307 | F56: 0.005548454901 | G56: 0.02253634952 | H56: 0.0118949239 | I56: -0.01052576549
A57: 2023-11-21 | B57: 241.199997 | C57: 49.933167 | D57: 275.43396 | E57: 365.923859 | F57: 0.02376906136 | G57: -0.009224501163 | H57: 0.005160662894 | I57: 0.002198042088
A58: 2023-11-22 | B58: 234.210007 | C58: 48.705429 | D58: 276.867737 | E58: 366.102234 | F58: -0.0289800584 | G58: -0.0245876253 | H58: 0.005205520046 | I58: 0.000487464798
A59: 2023-11-24 | B59: 235.449997 | C59: 47.765636 | D59: 277.466797 | E59: 366.924622 | F59: 0.005294351065 | G59: -0.01929544651 | H59: 0.002163704614 | I59: 0.002246334285
A60: 2023-11-27 | B60: 236.080002 | C60: 48.231533 | D60: 276.779358 | E60: 383.521057 | F60: 0.002675748601 | G60: 0.009753811296 | H60: -0.002477554098 | I60: 0.04523118375
A61: 2023-11-28 | B61: 246.720001 | C61: 47.810623 | D61: 277.024872 | E61: 384.710022 | F61: 0.04506946336 | G61: -0.008726863399 | H61: 0.0008870386931 | I61: 0.003100129649
A62: 2023-11-29 | B62: 244.139999 | C62: 48.129555 | D62: 275.345551 | E62: 385.294617 | F62: -0.01045720651 | G62: 0.006670735079 | H62: -0.006061986376 | I62: 0.001519573098 | M62: TSLA | N62: NVDA | O62: MCD | P62: DPZ | Q62: desvport | R62: Rentabilidad | S62: M. Sharpe
A63: 2023-11-30 | B63: 240.080002 | C63: 46.759853 | D63: 278.437775 | E63: 389.287689 | F63: -0.01662979035 | G63: -0.02845864667 | H63: 0.01123033944 | I63: 0.01036368489 | L63: 1 | M63: 0.05540576568 | N63: 0.4615400636 | O63: 0.295936373 | P63: 0.1871177977 | Q63: =SQRT(MMULT(MMULT(M63:P63,_xlfn.ANCHORARRAY($N$10)),TRANSPOSE(M63:P63))) -> 0.01649487702 | R63: =SUMPRODUCT(M63:P63,$M$2:$P$2) -> 0.002055833257 | S63: =R63/Q63 -> 0.124634652
A64: 2023-12-01 | B64: 238.830002 | C64: 46.754852 | D64: 282.508026 | E64: 393.53833 | F64: -0.005206597757 | G64: -0.0001069507212 | H64: 0.01461817097 | I64: 0.01091902241 | L64: 2 | M64: 0.2433100668 | N64: 0.2939644921 | O64: 0.1772183614 | P64: 0.2855070798 | Q64: =SQRT(MMULT(MMULT(M64:P64,_xlfn.ANCHORARRAY($N$10)),TRANSPOSE(M64:P64))) -> 0.01633930416 | R64: =SUMPRODUCT(M64:P64,$M$2:$P$2) -> 0.001351158718 | S64: =R64/Q64 -> 0.08269377352
A65: 2023-12-04 | B65: 235.580002 | C65: 45.500122 | D65: 282.675995 | E65: 396.154144 | F65: -0.01360800558 | G65: -0.02683635914 | H65: 0.0005945636391 | I65: 0.006646910353 | L65: 3 | M65: 0.4262849249 | N65: 0.1843974363 | O65: 0.2299064928 | P65: 0.159411146 | Q65: =SQRT(MMULT(MMULT(M65:P65,_xlfn.ANCHORARRAY($N$10)),TRANSPOSE(M65:P65))) -> 0.01836724093 | R65: 0.000830275631 | S65: 0.04520415637
A66: 2023-12-05 | B66: 238.720001 | C66: 46.55999 | D66: 283.081055 | E66: 390.437012 | F66: 0.01332880114 | G66: 0.02329373974 | H66: 0.001432947994 | I66: -0.01443158449 | L66: 4 | M66: 0.3456058843 | N66: 0.1313740154 | O66: 0.3642958191 | P66: 0.1587242811 | Q66: =SQRT(MMULT(MMULT(M66:P66,_xlfn.ANCHORARRAY($N$10)),TRANSPOSE(M66:P66))) -> 0.01537988561 | R66: 0.0006596078092 | S66: 0.04288769278
A67: 2023-12-06 | B67: 239.369995 | C67: 45.497128 | D67: 283.397186 | E67: 388.940887 | F67: 0.002722830082 | G67: -0.022827797 | H67: 0.001116750819 | I67: -0.003831924111 | L67: 5 | M67: 0.09296312008 | N67: 0.2967389918 | O67: 0.400007132 | P67: 0.2102907561 | Q67: =SQRT(MMULT(MMULT(M67:P67,_xlfn.ANCHORARRAY($N$10)),TRANSPOSE(M67:P67))) -> 0.01297947709 | R67: 0.001410358784 | S67: 0.1086606783 | V67: 1. Posibilidad que la combinación optada por la CIA esté por debajo de la frontera eficiente de Markowitz clásico
A68: 2023-12-07 | B68: 242.639999 | C68: 46.589989 | D68: 283.328033 | E68: 398.314178 | F68: =B68/B67-1 -> 0.01366087675 | G68: =C68/C67-1 -> 0.02402043927 | H68: =D68/D67-1 -> -0.0002440144201 | I68: =E68/E67-1 -> 0.02409952595 | L68: 6 | M68: 0.03149133384 | N68: 0.1639777176 | O68: 0.7188668124 | P68: 0.08566413614 | Q68: =SQRT(MMULT(MMULT(M68:P68,_xlfn.ANCHORARRAY($N$10)),TRANSPOSE(M68:P68))) -> 0.010009507 | R68: 0.000901982726 | S68: 0.09011260257 | V68: 2. Frontera eficiente vs frontera ineficiente
A69: 2023-12-08 | B69: 243.839996 | C69: 47.49987 | D69: 282.083252 | E69: 391.279266 | F69: 0.004945586074 | G69: 0.01952953885 | H69: -0.004393426894 | I69: -0.01766171627 | L69: 7 | M69: 0.3020021394 | N69: 0.1624752027 | O69: 0.2195885905 | P69: 0.3159340674 | Q69: =SQRT(MMULT(MMULT(M69:P69,_xlfn.ANCHORARRAY($N$10)),TRANSPOSE(M69:P69))) -> 0.01562189272 | R69: 0.0008264353007 | S69: 0.05290237971 | V69: 3. La CIA puede estar usando un modelo modificado de de Markowitz con prospectivas macroeconómicos,
A70: 2023-12-11 | B70: 239.740005 | C70: 46.620983 | D70: 285.659515 | E70: 393.835602 | F70: -0.01681426783 | G70: -0.01850293485 | H70: 0.01267804088 | I70: 0.006533277437 | L70: 8 | M70: 0.5069049254 | N70: 0.1731597392 | O70: 0.1367002882 | P70: 0.1832350472 | Q70: =SQRT(MMULT(MMULT(M70:P70,_xlfn.ANCHORARRAY($N$10)),TRANSPOSE(M70:P70))) -> 0.02074819276 | R70: 0.0007579625962 | S70: 0.03653149963 | V70: restando importancia al enfoque frecuentista que castiga históricamente el modelo convencional
A71: 2023-12-12 | B71: 237.009995 | C71: 47.650852 | D71: 287.902161 | E71: 393.171753 | F71: -0.01138737776 | G71: 0.02209024636 | H71: 0.007850765972 | I71: -0.001685599262 | L71: 9 | M71: 0.290298651 | N71: 0.2414301914 | O71: 0.2550323171 | P71: 0.2132388405 | Q71: =SQRT(MMULT(MMULT(M71:P71,_xlfn.ANCHORARRAY($N$10)),TRANSPOSE(M71:P71))) -> 0.01590300504 | R71: 0.001116143622 | S71: 0.07018444747
A72: 2023-12-13 | B72: 239.289993 | C72: 48.081799 | D72: 292.357666 | E72: 399.106812 | F72: 0.009619839028 | G72: 0.009043846687 | H72: 0.01547576088 | I72: 0.01509533418 | L72: 10 | M72: 0.3426950811 | N72: 0.2395411322 | O72: 0.119717233 | P72: 0.2980465537 | Q72: =SQRT(MMULT(MMULT(M72:P72,_xlfn.ANCHORARRAY($N$10)),TRANSPOSE(M72:P72))) -> 0.01785903632 | R72: 0.001102789428 | S72: 0.06174966042
A73: 2023-12-14 | B73: 251.050003 | C73: 48.343758 | D73: 286.519043 | E73: 400.359039 | F73: 0.04914543167 | G73: 0.005448194648 | H73: -0.01997082231 | I73: 0.003137573608 | L73: 11 | M73: 0.1443629818 | N73: 0.2966619107 | O73: 0.2222330351 | P73: 0.3367420724 | Q73: =SQRT(MMULT(MMULT(M73:P73,_xlfn.ANCHORARRAY($N$10)),TRANSPOSE(M73:P73))) -> 0.01474072223 | R73: 0.001412084806 | S73: 0.09579481818
A74: 2023-12-15 | B74: 253.5 | C74: 48.88369 | D74: 283.802216 | E74: 397.576324 | F74: 0.009759000083 | G74: 0.01116859802 | H74: -0.009482186495 | I74: -0.006950548705 | L74: 12 | M74: 0.1752072259 | N74: 0.1313393739 | O74: 0.4501444449 | P74: 0.2433089553 | Q74: =SQRT(MMULT(MMULT(M74:P74,_xlfn.ANCHORARRAY($N$10)),TRANSPOSE(M74:P74))) -> 0.01178216036 | R74: 0.0007458472214 | S74: 0.06330309542
A75: 2023-12-18 | B75: 252.080002 | C75: 50.070538 | D75: 286.726501 | E75: 400.547852 | F75: -0.00560157002 | G75: 0.02427901822 | H75: 0.01030395407 | I75: 0.007474107035 | L75: 13 | M75: 0.3810391527 | N75: 0.2888655436 | O75: 0.08781297058 | P75: 0.2422823331 | Q75: =SQRT(MMULT(MMULT(M75:P75,_xlfn.ANCHORARRAY($N$10)),TRANSPOSE(M75:P75))) -> 0.01944940846 | R75: 0.001266370045 | S75: 0.06511097998
A76: 2023-12-19 | B76: 257.220001 | C76: 49.597599 | D76: 287.22049 | E76: 404.036133 | F76: 0.02039034814 | G76: -0.00944545473 | H76: 0.001722857839 | I76: 0.008708774701 | L76: 14 | M76: 0.2760515231 | N76: 0.3120476354 | O76: 0.1547786619 | P76: 0.2571221795 | Q76: =SQRT(MMULT(MMULT(M76:P76,_xlfn.ANCHORARRAY($N$10)),TRANSPOSE(M76:P76))) -> 0.01730110441 | R76: 0.001401905883 | S76: 0.08102984925
A77: 2023-12-20 | B77: 247.139999 | C77: 48.10479 | D77: 285.501434 | E77: 400.756561 | F77: -0.03918825115 | G77: -0.03009841263 | H77: -0.005985144026 | I77: -0.008117026504 | L77: 15 | M77: 0.1894823055 | N77: 0.3104400341 | O77: 0.2896042102 | P77: 0.2104734502 | Q77: =SQRT(MMULT(MMULT(M77:P77,_xlfn.ANCHORARRAY($N$10)),TRANSPOSE(M77:P77))) -> 0.0149817445 | R77: 0.001423042509 | S77: 0.09498510062
A78: 2023-12-21 | B78: 254.5 | C78: 48.983681 | D78: 287.872498 | E78: 406.272217 | F78: 0.02978069527 | G78: 0.01827034272 | H78: 0.008304911001 | I78: 0.01376310842 | L78: 16 | M78: 0.3661588079 | N78: 0.009602258537 | O78: 0.3651117831 | P78: 0.2591271504 | Q78: =SQRT(MMULT(MMULT(M78:P78,_xlfn.ANCHORARRAY($N$10)),TRANSPOSE(M78:P78))) -> 0.0154812071 | R78: 0.0002010407914 | S78: 0.01298611859
A79: 2023-12-22 | B79: 252.539993 | C79: 48.823704 | D79: 288.178741 | E79: 407.305786 | F79: -0.00770140275 | G79: -0.003265924421 | H79: 0.001063814717 | I79: 0.002544030718 | L79: 17 | M79: 0.5840457162 | N79: 0.3460193493 | O79: 0.03734502989 | P79: 0.03258990457 | Q79: =SQRT(MMULT(MMULT(M79:P79,_xlfn.ANCHORARRAY($N$10)),TRANSPOSE(M79:P79))) -> 0.02530245049 | R79: 0.001363275774 | S79: 0.05387919938
A80: 2023-12-26 | B80: 256.609985 | C80: 49.27264 | D80: 289.324738 | E80: 408.796539 | F80: 0.01611622758 | G80: 0.009195041818 | H80: 0.003976688204 | I80: 0.003660033938 | L80: 18 | M80: 0.4995678473 | N80: 0.01967098607 | O80: 0.01854134523 | P80: 0.4622198214 | Q80: =SQRT(MMULT(MMULT(M80:P80,_xlfn.ANCHORARRAY($N$10)),TRANSPOSE(M80:P80))) -> 0.02086675913 | R80: 0.0002219201579 | S80: 0.01063510421
A81: 2023-12-27 | B81: 261.440002 | C81: 49.410622 | D81: 290.994324 | E81: 411.291016 | F81: 0.01882240475 | G81: 0.002800377654 | H81: 0.005770629956 | I81: 0.00610200127 | L81: 19 | M81: 0.2005869241 | N81: 0.1565161095 | O81: 0.4292965236 | P81: 0.2136004428 | Q81: =SQRT(MMULT(MMULT(M81:P81,_xlfn.ANCHORARRAY($N$10)),TRANSPOSE(M81:P81))) -> 0.01242964561 | R81: 0.0008267027636 | S81: 0.0665105659
A82: 2023-12-28 | B82: 253.179993 | C82: 49.51561 | D82: 292.268768 | E82: 408.667328 | F82: -0.03159428143 | G82: 0.002124806282 | H82: 0.004379618071 | I82: -0.006379152225 | L82: 20 | M82: 0.2634532476 | N82: 0.2534178597 | O82: 0.1576031316 | P82: 0.3255257611 | Q82: =SQRT(MMULT(MMULT(M82:P82,_xlfn.ANCHORARRAY($N$10)),TRANSPOSE(M82:P82))) -> 0.01630710608 | R82: 0.001194163933 | S82: 0.07322966609
A83: 2023-12-29 | B83: 248.479996 | C83: 49.51561 | D83: 292.930695 | E83: 409.68103 | F83: -0.01856385627 | G83: 0 | H83: 0.002264788689 | I83: 0.002480506589 | L83: 21 | M83: 0.3976357821 | N83: 0.1027425075 | O83: 0.09030122531 | P83: 0.409320485 | Q83: =SQRT(MMULT(MMULT(M83:P83,_xlfn.ANCHORARRAY($N$10)),TRANSPOSE(M83:P83))) -> 0.01824653379 | R83: 0.0005741298034 | S83: 0.03146514347
A84: 2024-01-02 | B84: 248.419998 | C84: 48.161785 | D84: 293.454315 | E84: 410.585419 | F84: -0.0002414600812 | G84: -0.0273413778 | H84: 0.001787521789 | I84: 0.002207544245 | L84: 22 | M84: 0.5883519137 | N84: 0.09353012041 | O84: 0.1391518067 | P84: 0.1789661592 | Q84: =SQRT(MMULT(MMULT(M84:P84,_xlfn.ANCHORARRAY($N$10)),TRANSPOSE(M84:P84))) -> 0.02226870563 | R84: 0.0004169403184 | S84: 0.01872315012
A85: 2024-01-03 | B85: 238.449997 | C85: 47.562862 | D85: 290.836304 | E85: 397.983795 | F85: -0.04013364898 | G85: -0.01243564789 | H85: -0.008921357997 | I85: -0.0306918449 | L85: 23 | M85: 0.4226903146 | N85: 0.0483386193 | O85: 0.3919978939 | P85: 0.1369731722 | Q85: =SQRT(MMULT(MMULT(M85:P85,_xlfn.ANCHORARRAY($N$10)),TRANSPOSE(M85:P85))) -> 0.01668829925 | R85: 0.0003040612161 | S85: 0.0182200242
A86: 2024-01-04 | B86: 237.929993 | C86: 47.99181 | D86: 288.218262 | E86: 398.788788 | F86: -0.002180767484 | G86: 0.009018548968 | H86: -0.009001771663 | I86: 0.002022677833 | L86: 24 | M86: 0.01644035805 | N86: 0.4775566051 | O86: 0.3418419579 | P86: 0.164161079 | Q86: =SQRT(MMULT(MMULT(M86:P86,_xlfn.ANCHORARRAY($N$10)),TRANSPOSE(M86:P86))) -> 0.01640255694 | R86: 0.002129401805 | S86: 0.1298213329
A87: 2024-01-05 | B87: 237.490005 | C87: 49.090664 | D87: 285.501434 | E87: 397.556458 | F87: -0.001849233022 | G87: 0.02289669842 | H87: -0.009426286805 | I87: -0.003090182164 | L87: 25 | M87: 0.2250292385 | N87: 0.2043843111 | O87: 0.2551357824 | P87: 0.3154506679 | Q87: =SQRT(MMULT(MMULT(M87:P87,_xlfn.ANCHORARRAY($N$10)),TRANSPOSE(M87:P87))) -> 0.01439725644 | R87: 0.001019571591 | S87: 0.07081707509
A88: 2024-01-08 | B88: 240.449997 | C88: 52.246258 | D88: 288.376312 | E88: 400.200012 | F88: 0.01246364873 | G88: 0.06428093945 | H88: 0.01006957464 | I88: 0.006649505867 | L88: 26 | M88: 0.4374502663 | N88: 0.05640542358 | O88: 0.01671413766 | P88: 0.4894301724 | Q88: =SQRT(MMULT(MMULT(M88:P88,_xlfn.ANCHORARRAY($N$10)),TRANSPOSE(M88:P88))) -> 0.01963730627 | R88: 0.000394093065 | S88: 0.02006859085
A89: 2024-01-09 | B89: 234.960007 | C89: 53.133144 | D89: 287.358765 | E89: 407.603973 | F89: -0.02283214834 | G89: 0.01697511045 | H89: -0.00352853878 | I89: 0.01850065162 | L89: 27 | M89: 0.04940775851 | N89: 0.3560032206 | O89: 0.2955877416 | P89: 0.2990012792 | Q89: =SQRT(MMULT(MMULT(M89:P89,_xlfn.ANCHORARRAY($N$10)),TRANSPOSE(M89:P89))) -> 0.01437390729 | R89: 0.0016728834 | S89: 0.1163833442
A90: 2024-01-10 | B90: 233.940002 | C90: 54.342987 | D90: 290.539886 | E90: 411.569275 | F90: -0.004341185604 | G90: 0.02277002468 | H90: 0.01107020696 | I90: 0.009728320288 | L90: 28 | M90: 0.0386342373 | N90: 0.138262585 | O90: 0.6440094303 | P90: 0.1790937473 | Q90: =SQRT(MMULT(MMULT(M90:P90,_xlfn.ANCHORARRAY($N$10)),TRANSPOSE(M90:P90))) -> 0.009870622054 | R90: 0.0008173256556 | S90: 0.08280386496
A91: 2024-01-11 | B91: 227.220001 | C91: 54.814926 | D91: 290.599182 | E91: 409.253693 | F91: -0.02872531821 | G91: 0.008684450857 | H91: 0.0002040890179 | I91: -0.005626226593 | L91: 29 | M91: 0.07789480256 | N91: 0.3596856158 | O91: 0.1830115766 | P91: 0.3794080051 | Q91: =SQRT(MMULT(MMULT(M91:P91,_xlfn.ANCHORARRAY($N$10)),TRANSPOSE(M91:P91))) -> 0.01552070804 | R91: 0.001690081917 | S91: 0.1088920629
A92: 2024-01-12 | B92: 218.889999 | C92: 54.702938 | D92: 289.927368 | E92: 408.756744 | F92: -0.03666051388 | G92: -0.00204302018 | H92: -0.002311823438 | I92: -0.00121428104 | L92: 30 | M92: 0.07646629979 | N92: 0.4992893105 | O92: 0.02701104056 | P92: 0.3972333492 | Q92: =SQRT(MMULT(MMULT(M92:P92,_xlfn.ANCHORARRAY($N$10)),TRANSPOSE(M92:P92))) -> 0.01941683915 | R92: 0.002231170464 | S92: 0.114909046
A93: 2024-01-16 | B93: 219.910004 | C93: 56.374725 | D93: 287.576111 | E93: 423.306244 | F93: 0.004659897687 | G93: 0.03056119216 | H93: -0.008109813903 | I93: 0.03559451976 | L93: 31 | M93: 0.3012163767 | N93: 0.09159100904 | O93: 0.3095248372 | P93: 0.297667777 | Q93: =SQRT(MMULT(MMULT(M93:P93,_xlfn.ANCHORARRAY($N$10)),TRANSPOSE(M93:P93))) -> 0.01458815577 | R93: 0.0005506207401 | S93: 0.03774436939
A94: 2024-01-17 | B94: 215.550003 | C94: 56.045769 | D94: 287.645294 | E94: 419.788147 | F94: -0.01982629676 | G94: -0.005835168154 | H94: 0.000240572834 | I94: -0.00831099718 | L94: 32 | M94: 0.4574037134 | N94: 0.01807761417 | O94: 0.513653894 | P94: 0.0108647784 | Q94: =SQRT(MMULT(MMULT(M94:P94,_xlfn.ANCHORARRAY($N$10)),TRANSPOSE(M94:P94))) -> 0.0172272502 | R94: 0.0001499039868 | S94: 0.008701562066
A95: 2024-01-18 | B95: 211.880005 | C95: 57.099628 | D95: 290.80661 | E95: 423.296295 | F95: -0.0170262025 | G95: 0.01880354251 | H95: 0.01099032755 | I95: 0.008356948678 | L95: 33 | M95: 0.1811096346 | N95: 0.270368479 | O95: 0.2500648965 | P95: 0.2984569899 | Q95: =SQRT(MMULT(MMULT(M95:P95,_xlfn.ANCHORARRAY($N$10)),TRANSPOSE(M95:P95))) -> 0.01456805942 | R95: 0.001288576677 | S95: 0.0884521843
A96: 2024-01-19 | B96: 212.190002 | C96: 59.483326 | D96: 296.902161 | E96: 424.131104 | F96: 0.001463078123 | G96: 0.04174629649 | H96: 0.02096084061 | I96: 0.001972162312 | L96: 34 | M96: 0.365530411 | N96: 0.3220470289 | O96: 0.0792143473 | P96: 0.2332082128 | Q96: =SQRT(MMULT(MMULT(M96:P96,_xlfn.ANCHORARRAY($N$10)),TRANSPOSE(M96:P96))) -> 0.01965595759 | R96: 0.00139881644 | S96: 0.07116501108
A97: 2024-01-22 | B97: 208.800003 | C97: 59.646305 | D97: 294.807739 | E97: 425.363464 | F97: -0.01597624284 | G97: 0.002739910677 | H97: -0.007054249767 | I97: 0.002905610997 | L97: 35 | M97: 0.2979755975 | N97: 0.237440486 | O97: 0.2049453064 | P97: 0.2596386101 | Q97: =SQRT(MMULT(MMULT(M97:P97,_xlfn.ANCHORARRAY($N$10)),TRANSPOSE(M97:P97))) -> 0.01634299816 | R97: 0.001106176365 | S97: 0.06768503269
A98: 2024-01-23 | B98: 209.139999 | C98: 59.865276 | D98: 296.427948 | E98: 423.077667 | F98: 0.00162833331 | G98: 0.003671157836 | H98: 0.005495815698 | I98: -0.005373750201 | L98: 36 | M98: 0.3617900087 | N98: 0.03459539456 | O98: 0.3477457935 | P98: 0.2558688032 | Q98: =SQRT(MMULT(MMULT(M98:P98,_xlfn.ANCHORARRAY($N$10)),TRANSPOSE(M98:P98))) -> 0.01547147223 | R98: 0.0002984274723 | S98: 0.01928888652
A99: 2024-01-24 | B99: 207.830002 | C99: 61.354084 | D99: 296.813232 | E99: 419.162048 | F99: -0.006263732458 | G99: 0.02486930821 | H99: 0.001299755987 | I99: -0.009255083181 | L99: 37 | M99: 0.1623243159 | N99: 0.1894447837 | O99: 0.2026248855 | P99: 0.445606015 | Q99: =SQRT(MMULT(MMULT(M99:P99,_xlfn.ANCHORARRAY($N$10)),TRANSPOSE(M99:P99))) -> 0.01403406572 | R99: 0.001012163938 | S99: 0.07212193234
A100: 2024-01-25 | B100: 182.630005 | C100: 61.609047 | D100: 293.622223 | E100: 415.494843 | F100: -0.1212529315 | G100: 0.004155599487 | H100: -0.01075089873 | I100: -0.008748895606 | L100: 38 | M100: 0.2943352922 | N100: 0.06444757917 | O100: 0.2025281306 | P100: 0.438688998 | Q100: =SQRT(MMULT(MMULT(M100:P100,_xlfn.ANCHORARRAY($N$10)),TRANSPOSE(M100:P100))) -> 0.01533926988 | R100: 0.0004750827229 | S100: 0.03097166466
A101: 2024-01-26 | B101: 183.25 | C101: 61.023125 | D101: 288.731995 | E101: 416.528412 | F101: 0.00339481456 | G101: -0.009510324028 | H101: -0.01665482929 | I101: 0.00248756156 | L101: 39 | M101: 0.4136294957 | N101: 0.3932191903 | O101: 0.02074254864 | P101: 0.1724087654 | Q101: =SQRT(MMULT(MMULT(M101:P101,_xlfn.ANCHORARRAY($N$10)),TRANSPOSE(M101:P101))) -> 0.02215334035 | R101: 0.001641487991 | S101: 0.07409663578
A102: 2024-01-29 | B102: 190.929993 | C102: 62.45694 | D102: 288.781403 | E102: 430.759857 | F102: 0.04190992087 | G102: 0.02349625654 | H102: 0.0001711206269 | I102: 0.03416680493 | L102: 40 | M102: 0.01742019008 | N102: 0.2447741486 | O102: 0.3813278917 | P102: 0.3564777696 | Q102: =SQRT(MMULT(MMULT(M102:P102,_xlfn.ANCHORARRAY($N$10)),TRANSPOSE(M102:P102))) -> 0.01207215624 | R102: 0.001268767782 | S102: 0.105098688
A103: 2024-01-30 | B103: 191.589996 | C103: 62.765896 | D103: 291.09314 | E103: 432.051819 | F103: 0.003456780098 | G103: 0.004946704081 | H103: 0.008005144985 | I103: 0.002999262766 | L103: 41 | M103: 0.3396402193 | N103: 0.3160322998 | O103: 0.2043347745 | P103: 0.1399927063 | Q103: =SQRT(MMULT(MMULT(M103:P103,_xlfn.ANCHORARRAY($N$10)),TRANSPOSE(M103:P103))) -> 0.01824108495 | R103: 0.001369198344 | S103: 0.07506123388
A104: 2024-01-31 | B104: 187.289993 | C104: 61.519058 | D104: 289.186432 | E104: 423.584503 | F104: -0.02244377624 | G104: -0.01986489606 | H104: -0.006550164666 | I104: -0.01959791772 | L104: 42 | M104: 0.2531515327 | N104: 0.2075119151 | O104: 0.07823372968 | P104: 0.4611028225 | Q104: =SQRT(MMULT(MMULT(M104:P104,_xlfn.ANCHORARRAY($N$10)),TRANSPOSE(M104:P104))) -> 0.01650042419 | R104: 0.001046841124 | S104: 0.06344328557
A105: 2024-02-01 | B105: 188.860001 | C105: 63.018867 | D105: 294.48172 | E105: 430.849304 | F105: 0.00838276501 | G105: 0.02437958332 | H105: 0.01831098355 | I105: 0.01715077145 | L105: 43 | M105: 0.3221744426 | N105: 0.2825658371 | O105: 0.08234070822 | P105: 0.3129190121 | Q105: =SQRT(MMULT(MMULT(M105:P105,_xlfn.ANCHORARRAY($N$10)),TRANSPOSE(M105:P105))) -> 0.018281828 | R105: 0.001279618108 | S105: 0.06999399121
A106: 2024-02-02 | B106: 187.910004 | C106: 66.151466 | D106: 293.464172 | E106: 419.450226 | F106: -0.005030165175 | G106: 0.04970890702 | H106: -0.003455385957 | I106: -0.02645722737 | L106: 44 | M106: 0.02718807544 | N106: 0.4091035485 | O106: 0.2617831317 | P106: 0.3019252443 | Q106: =SQRT(MMULT(MMULT(M106:P106,_xlfn.ANCHORARRAY($N$10)),TRANSPOSE(M106:P106))) -> 0.01549570128 | R106: 0.001886981443 | S106: 0.1217745108
A107: 2024-02-05 | B107: 181.059998 | C107: 69.323059 | D107: 282.517944 | E107: 415.465027 | F107: -0.03645365257 | G107: 0.04794440988 | H107: -0.03730004902 | I107: -0.009501005728 | L107: 45 | M107: 0.01306607848 | N107: 0.4500970199 | O107: 0.2736188454 | P107: 0.2632180562 | Q107: =SQRT(MMULT(MMULT(M107:P107,_xlfn.ANCHORARRAY($N$10)),TRANSPOSE(M107:P107))) -> 0.01617753891 | R107: 0.002043438148 | S107: 0.1263132891
A108: 2024-02-06 | B108: 185.100006 | C108: 68.214203 | D108: 281.213867 | E108: 418.973175 | F108: 0.02231308983 | G108: -0.01599548572 | H108: -0.004615908574 | I108: 0.00844390688 | L108: 46 | M108: 0.3559910765 | N108: 0.02402610133 | O108: 0.3378872987 | P108: 0.2820955235 | Q108: =SQRT(MMULT(MMULT(M108:P108,_xlfn.ANCHORARRAY($N$10)),TRANSPOSE(M108:P108))) -> 0.01541224248 | R108: 0.0002650093918 | S108: 0.01719473283
A109: 2024-02-07 | B109: 187.580002 | C109: 70.089951 | D109: 283.861481 | E109: 419.340942 | F109: 0.01339814111 | G109: 0.02749790978 | H109: 0.009414948232 | I109: 0.0008777817339 | L109: 47 | M109: 0.5328299089 | N109: 0.05502266062 | O109: 0.3331413944 | P109: 0.07900603613 | Q109: =SQRT(MMULT(MMULT(M109:P109,_xlfn.ANCHORARRAY($N$10)),TRANSPOSE(M109:P109))) -> 0.01977010488 | R109: 0.0002733448161 | S109: 0.01382616925
A110: 2024-02-08 | B110: 189.559998 | C110: 69.632011 | D110: 288.405975 | E110: 423.942261 | F110: 0.01055547488 | G110: -0.006533604225 | H110: 0.01600954798 | I110: 0.01097273969 | L110: 48 | M110: 0.2844064547 | N110: 0.1218982946 | O110: 0.3915668412 | P110: 0.2021284095 | Q110: =SQRT(MMULT(MMULT(M110:P110,_xlfn.ANCHORARRAY($N$10)),TRANSPOSE(M110:P110))) -> 0.0138896222 | R110: 0.000656572364 | S110: 0.0472707144
A111: 2024-02-09 | B111: 193.570007 | C111: 72.123695 | D111: 285.975677 | E111: 422.461487 | F111: 0.02115429965 | G111: 0.03578359959 | H111: -0.008426656209 | I111: -0.003492867157 | L111: 49 | M111: 0.5061563183 | N111: 0.4840992081 | O111: 0.006799382527 | P111: 0.002945091075 | Q111: =SQRT(MMULT(MMULT(M111:P111,_xlfn.ANCHORARRAY($N$10)),TRANSPOSE(M111:P111))) -> 0.02593060818 | R111: 0.001921474796 | S111: 0.07410064517
A112: 2024-02-12 | B112: 188.130005 | C112: 72.238678 | D112: 285.946014 | E112: 424.647919 | F112: -0.02810353776 | G112: 0.001594247217 | H112: -0.0001037256046 | I112: 0.005175458751 | L112: 50 | M112: 0.06719457943 | N112: 0.2424990226 | O112: 0.07928148262 | P112: 0.6110249153 | Q112: =SQRT(MMULT(MMULT(M112:P112,_xlfn.ANCHORARRAY($N$10)),TRANSPOSE(M112:P112))) -> 0.0153758761 | R112: 0.001286376867 | S112: 0.08366202083
A113: 2024-02-13 | B113: 184.020004 | C113: 72.11869 | D113: 283.644165 | E113: 418.893707 | F113: -0.02184660017 | G113: -0.001660993852 | H113: -0.008049942602 | I113: -0.01355054798 | L113: 51 | M113: 0.02200085223 | N113: 0.3298921663 | O113: 0.2390507958 | P113: 0.4090561857 | Q113: =SQRT(MMULT(MMULT(M113:P113,_xlfn.ANCHORARRAY($N$10)),TRANSPOSE(M113:P113))) -> 0.01437647472 | R113: 0.001604118628 | S113: 0.1115794142
A114: 2024-02-14 | B114: 188.710007 | C114: 73.890465 | D114: 284.691376 | E114: 421.855286 | F114: 0.02548637593 | G114: 0.02456748729 | H114: 0.003691988517 | I114: 0.007070001173 | L114: 52 | M114: 0.006963156754 | N114: 0.3819919148 | O114: 0.1674349821 | P114: 0.4436099464 | Q114: =SQRT(MMULT(MMULT(M114:P114,_xlfn.ANCHORARRAY($N$10)),TRANSPOSE(M114:P114))) -> 0.01582043929 | R114: 0.001817228385 | S114: 0.1148658613
A115: 2024-02-15 | B115: 200.449997 | C115: 72.648621 | D115: 288.336823 | E115: 422.093781 | F115: 0.06221180417 | G115: -0.01680655278 | H115: 0.01280490843 | I115: 0.0005653478999 | L115: 53 | M115: 0.2182992217 | N115: 0.3023197911 | O115: 0.1836663501 | P115: 0.2957146372 | Q115: =SQRT(MMULT(MMULT(M115:P115,_xlfn.ANCHORARRAY($N$10)),TRANSPOSE(M115:P115))) -> 0.01603433216 | R115: 0.00139558011 | S115: 0.08703699635
A116: 2024-02-16 | B116: 199.949997 | C116: 72.60363 | D116: 288.494873 | E116: 419.241547 | F116: -0.002494387665 | G116: -0.0006192959946 | H116: 0.0005481436549 | I116: -0.006757346657 | L116: 54 | M116: 0.3742371538 | N116: 0.353754034 | O116: 0.1349329597 | P116: 0.1370758524 | Q116: =SQRT(MMULT(MMULT(M116:P116,_xlfn.ANCHORARRAY($N$10)),TRANSPOSE(M116:P116))) -> 0.01996729309 | R116: 0.001499450819 | S116: 0.07509534783
A117: 2024-02-20 | B117: 193.759995 | C117: 69.443039 | D117: 289.117279 | E117: 414.570587 | F117: -0.0309577499 | G117: -0.04353213469 | H117: 0.002157424822 | I117: -0.01114145302 | L117: 55 | M117: 0.3559117906 | N117: 0.2617854739 | O117: 0.03341543438 | P117: 0.3488873011 | Q117: =SQRT(MMULT(MMULT(M117:P117,_xlfn.ANCHORARRAY($N$10)),TRANSPOSE(M117:P117))) -> 0.01907305617 | R117: 0.001192292647 | S117: 0.06251188255
A118: 2024-02-21 | B118: 194.770004 | C118: 67.463295 | D118: 290.362061 | E118: 418.158295 | F118: 0.00521268077 | G118: -0.02850889057 | H118: 0.004305456956 | I118: 0.008654034108 | L118: 56 | M118: 0.4652926378 | N118: 0.02562829663 | O118: 0.415043174 | P118: 0.09403589158 | Q118: =SQRT(MMULT(MMULT(M118:P118,_xlfn.ANCHORARRAY($N$10)),TRANSPOSE(M118:P118))) -> 0.01763699442 | R118: 0.0001910504277 | S118: 0.01083236878
A119: 2024-02-22 | B119: 197.410004 | C119: 78.527863 | D119: 292.347809 | E119: 425.363464 | F119: 0.01355444856 | G119: 0.1640087102 | H119: 0.006838868663 | I119: 0.0172307212 | L119: 57 | M119: 0.22989078 | N119: 0.2964422237 | O119: 0.02647963844 | P119: 0.4471873579 | Q119: =SQRT(MMULT(MMULT(M119:P119,_xlfn.ANCHORARRAY($N$10)),TRANSPOSE(M119:P119))) -> 0.01758591923 | R119: 0.001396135811 | S119: 0.07938941336
A120: 2024-02-23 | B120: 191.970001 | C120: 78.806824 | D120: 294.155731 | E120: 430.968567 | F120: -0.02755687599 | G120: 0.00355238242 | H120: 0.006184147595 | I120: 0.01317720837 | L120: 58 | M120: 0.2654400753 | N120: 0.2004708196 | O120: 0.2594972612 | P120: 0.2745918439 | Q120: =SQRT(MMULT(MMULT(M120:P120,_xlfn.ANCHORARRAY($N$10)),TRANSPOSE(M120:P120))) -> 0.01497490556 | R120: 0.0009801858239 | S120: 0.06545522576
A121: 2024-02-26 | B121: 199.399994 | C121: 79.081802 | D121: 293.533325 | E121: 456.161835 | F121: 0.0387039275 | G121: 0.003489266361 | H121: -0.002115906421 | I121: 0.05845732132 | L121: 59 | M121: 0.3211437383 | N121: 0.12445695 | O121: 0.4358186036 | P121: 0.1185807081 | Q121: =SQRT(MMULT(MMULT(M121:P121,_xlfn.ANCHORARRAY($N$10)),TRANSPOSE(M121:P121))) -> 0.01449449173 | R121: 0.0006357299146 | S121: 0.04386010399
A122: 2024-02-27 | B122: 199.729996 | C122: 78.690842 | D122: 290.213898 | E122: 443.510529 | F122: 0.001654974975 | G122: -0.004943741671 | H122: -0.01130851838 | I122: -0.02773424918 | L122: 60 | M122: 0.3896670758 | N122: 0.2223403049 | O122: 0.1209462184 | P122: 0.2670464009 | Q122: =SQRT(MMULT(MMULT(M122:P122,_xlfn.ANCHORARRAY($N$10)),TRANSPOSE(M122:P122))) -> 0.01861327761 | R122: 0.00101137073 | S122: 0.0543359827
A123: 2024-02-28 | B123: 202.039993 | C123: 77.652985 | D123: 291.626617 | E123: 443.609924 | F123: 0.01156559879 | G123: -0.01318904429 | H123: 0.004867854399 | I123: 0.0002241096738 | L123: 61 | M123: 0.01436558479 | N123: 0.07408605446 | O123: 0.5978586068 | P123: 0.3136897539 | Q123: =SQRT(MMULT(MMULT(M123:P123,_xlfn.ANCHORARRAY($N$10)),TRANSPOSE(M123:P123))) -> 0.009964403961 | R123: 0.0006053141654 | S123: 0.06074765413
A124: 2024-02-29 | B124: 201.880005 | C124: 79.101791 | D124: 290.394623 | E124: 445.577667 | F124: -0.0007918630249 | G124: 0.01865744118 | H124: -0.004224559516 | I124: 0.00443575063 | L124: 62 | M124: 0.3684235169 | N124: 0.08420364811 | O124: 0.2408365991 | P124: 0.3065362359 | Q124: =SQRT(MMULT(MMULT(M124:P124,_xlfn.ANCHORARRAY($N$10)),TRANSPOSE(M124:P124))) -> 0.01637821623 | R124: 0.0004959295791 | S124: 0.03027982854
A125: 2024-03-01 | B125: 202.639999 | C125: 82.268379 | D125: 288.854645 | E125: 444.4646 | F125: 0.003764582827 | G125: 0.04003181167 | H125: -0.005303052736 | I125: -0.002498031393 | L125: 63 | M125: 0.387156126 | N125: 0.2196530692 | O125: 0.2726163615 | P125: 0.1205744432 | Q125: =SQRT(MMULT(MMULT(M125:P125,_xlfn.ANCHORARRAY($N$10)),TRANSPOSE(M125:P125))) -> 0.01760335003 | R125: 0.000975011108 | S125: 0.05538781575
A126: 2024-03-04 | B126: 188.139999 | C126: 85.225998 | D126: 289.063263 | E126: 447.20752 | F126: -0.07155546818 | G126: 0.03595086029 | H126: 0.0007222248408 | I126: 0.006171290132 | L126: 64 | M126: 0.2900101634 | N126: 0.2845221206 | O126: 0.2547259925 | P126: 0.1707417235 | Q126: =SQRT(MMULT(MMULT(M126:P126,_xlfn.ANCHORARRAY($N$10)),TRANSPOSE(M126:P126))) -> 0.01648244477 | R126: 0.001274231765 | S126: 0.0773084201
A127: 2024-03-05 | B127: 180.740005 | C127: 85.95694 | D127: 290.652954 | E127: 446.809998 | F127: -0.03933238035 | G127: 0.008576514411 | H127: 0.005499457051 | I127: -0.0008888982904 | L127: 65 | M127: 0.1679035541 | N127: 0.3473993723 | O127: 0.1960153943 | P127: 0.2886816792 | Q127: =SQRT(MMULT(MMULT(M127:P127,_xlfn.ANCHORARRAY($N$10)),TRANSPOSE(M127:P127))) -> 0.01597554331 | R127: 0.001588672276 | S127: 0.09944402172
A128: 2024-03-06 | B128: 176.539993 | C128: 88.692711 | D128: 291.040405 | E128: 444.474518 | F128: -0.02323786591 | G128: 0.03182722652 | H128: 0.001333036512 | I128: -0.005227009267 | L128: 66 | M128: 0.3456655291 | N128: 0.06251895307 | O128: 0.3972989018 | P128: 0.1945166161 | Q128: =SQRT(MMULT(MMULT(M128:P128,_xlfn.ANCHORARRAY($N$10)),TRANSPOSE(M128:P128))) -> 0.0149023653 | R128: =SUMPRODUCT(M128:P128,$M$2:$P$2) -> 0.0004012380806 | S128: =R128/Q128 -> 0.02692445613
A129: 2024-03-07 | B129: 178.649994 | C129: 92.661385 | D129: 289.232147 | E129: 444.603729 | F129: 0.0119519717 | G129: 0.04474633772 | H129: -0.006213082338 | I129: 0.0002907050793 | L129: 67 | M129: 0.2307721808 | N129: 0.087575528 | O129: 0.3263703998 | P129: 0.3552818914 | Q129: =SQRT(MMULT(MMULT(M129:P129,_xlfn.ANCHORARRAY($N$10)),TRANSPOSE(M129:P129))) -> 0.01328921899 | R129: 0.0005750601422 | S129: 0.0432726816
A130: 2024-03-08 | B130: 175.339996 | C130: 87.520813 | D130: 290.662872 | E130: 442.258331 | F130: -0.01852783717 | G130: -0.05547696055 | H130: 0.004946632022 | I130: -0.0052752549 | L130: 68 | M130: 0.2429501225 | N130: 0.1294540263 | O130: 0.3603319295 | P130: 0.2672639217 | Q130: =SQRT(MMULT(MMULT(M130:P130,_xlfn.ANCHORARRAY($N$10)),TRANSPOSE(M130:P130))) -> 0.01335624065 | R130: 0.0007148929695 | S130: 0.05352501414
A131: 2024-03-11 | B131: 177.770004 | C131: 85.76696 | D131: 292.918243 | E131: 441.155182 | F131: 0.01385883458 | G131: -0.02003926769 | H131: 0.007759405198 | I131: -0.002494354369 | L131: 69 | M131: 0.1767229197 | N131: 0.6113412592 | O131: 0.09431081185 | P131: 0.1176250092 | Q131: =SQRT(MMULT(MMULT(M131:P131,_xlfn.ANCHORARRAY($N$10)),TRANSPOSE(M131:P131))) -> 0.02230255707 | R131: 0.0025690689 | S131: 0.1151916748
A132: 2024-03-12 | B132: 177.539993 | C132: 91.905449 | D132: 292.41153 | E132: 449.781494 | F132: =B132/B131-1 -> -0.001293868453 | G132: =C132/C131-1 -> 0.07157172179 | H132: =D132/D131-1 -> -0.0017298786 | I132: =E132/E131-1 -> 0.01955391742 | L132: 70 | M132: 0.4669915336 | N132: 0.08914404791 | O132: 0.1182687263 | P132: 0.3255956922 | Q132: =SQRT(MMULT(MMULT(M132:P132,_xlfn.ANCHORARRAY($N$10)),TRANSPOSE(M132:P132))) -> 0.01942320198 | R132: 0.0004775388648 | S132: 0.02458600108
A133: 2024-03-13 | B133: 169.479996 | C133: 90.880539 | D133: 281.03537 | E133: 449.682159 | F133: -0.04539820501 | G133: -0.01115178709 | H133: -0.03890462185 | I133: -0.0002208516832 | L133: 71 | M133: 0.1825801288 | N133: 0.1810858085 | O133: 0.3527554235 | P133: 0.2835786392 | Q133: =SQRT(MMULT(MMULT(M133:P133,_xlfn.ANCHORARRAY($N$10)),TRANSPOSE(M133:P133))) -> 0.01284640122 | R133: 0.0009416530377 | S133: 0.07330092078
A134: 2024-03-14 | B134: 162.5 | C134: 87.936775 | D134: 279.912689 | E134: 442.393005 | F134: -0.04118477794 | G134: -0.03239157726 | H134: -0.003994803216 | I134: -0.01620956903 | L134: 72 | M134: 0.1588546725 | N134: 0.09678643944 | O134: 0.2906822074 | P134: 0.4536766807 | Q134: =SQRT(MMULT(MMULT(M134:P134,_xlfn.ANCHORARRAY($N$10)),TRANSPOSE(M134:P134))) -> 0.01281674571 | R134: 0.0006585415097 | S134: 0.05138133538
A135: 2024-03-15 | B135: 163.570007 | C135: 87.829781 | D135: 277.339386 | E135: 439.959961 | F135: 0.006584658462 | G135: -0.001216715077 | H135: -0.009193234538 | I135: -0.005499734337 | L135: 73 | M135: 0.340292353 | N135: 0.07004472301 | O135: 0.5145112744 | P135: 0.07515164964 | Q135: =SQRT(MMULT(MMULT(M135:P135,_xlfn.ANCHORARRAY($N$10)),TRANSPOSE(M135:P135))) -> 0.0144240258 | R135: 0.0004103751124 | S135: 0.02845080272
A136: 2024-03-18 | B136: 173.800003 | C136: 88.447739 | D136: 276.78299 | E136: 441.525513 | F136: 0.0625420038 | G136: 0.007035859511 | H136: -0.002006191793 | I136: 0.003558396533 | L136: 74 | M136: 0.3343050653 | N136: 0.07729330988 | O136: 0.2752232469 | P136: 0.3131783779 | Q136: =SQRT(MMULT(MMULT(M136:P136,_xlfn.ANCHORARRAY($N$10)),TRANSPOSE(M136:P136))) -> 0.01543027019 | R136: 0.00048473054 | S136: 0.03141426131
A137: 2024-03-19 | B137: 171.320007 | C137: 89.390663 | D137: 281.045319 | E137: 443.629456 | F137: -0.01426925177 | G137: 0.01066080389 | H137: 0.01539953376 | I137: 0.004765167443 | L137: 75 | M137: 0.2147082682 | N137: 0.06662382269 | O137: 0.1536238464 | P137: 0.5650440627 | Q137: =SQRT(MMULT(MMULT(M137:P137,_xlfn.ANCHORARRAY($N$10)),TRANSPOSE(M137:P137))) -> 0.01487944359 | R137: 0.0005398609384 | S137: 0.03628233376
A138: 2024-03-20 | B138: 175.660004 | C138: 90.364578 | D138: 282.615143 | E138: 450.429993 | F138: 0.02533269217 | G138: 0.01089504169 | H138: 0.005585661436 | I138: 0.01532931799 | L138: 76 | M138: 0.1154705548 | N138: 0.2682794177 | O138: 0.4926695456 | P138: 0.1235804818 | Q138: =SQRT(MMULT(MMULT(M138:P138,_xlfn.ANCHORARRAY($N$10)),TRANSPOSE(M138:P138))) -> 0.0123345849 | R138: 0.001275480178 | S138: 0.1034068182
A139: 2024-03-21 | B139: 172.820007 | C139: 91.42749 | D139: 281.70105 | E139: 454.568146 | F139: -0.01616757905 | G139: 0.01176248507 | H139: -0.003234409134 | I139: 0.009187116898 | L139: 77 | M139: 0.170681734 | N139: 0.1768563689 | O139: 0.3819752721 | P139: 0.2704866249 | Q139: =SQRT(MMULT(MMULT(M139:P139,_xlfn.ANCHORARRAY($N$10)),TRANSPOSE(M139:P139))) -> 0.01245258061 | R139: 0.0009278990323 | S139: 0.0745145975
A140: 2024-03-22 | B140: 170.830002 | C140: 94.281258 | D140: 280.806885 | E140: 457.11087 | F140: -0.01151489943 | G140: 0.0312134567 | H140: -0.003174162823 | I140: 0.005593713555 | L140: 78 | M140: 0.361974816 | N140: 0.2986430085 | O140: 0.08646093832 | P140: 0.2529212372 | Q140: =SQRT(MMULT(MMULT(M140:P140,_xlfn.ANCHORARRAY($N$10)),TRANSPOSE(M140:P140))) -> 0.01920560913 | R140: 0.001313874857 | S140: 0.06841099638
A141: 2024-03-25 | B141: 172.630005 | C141: 94.994194 | D141: 276.822723 | E141: 463.781738 | F141: 0.0105368084 | G141: 0.007561799822 | H141: -0.01418826323 | I141: 0.01459354489 | L141: 79 | M141: 0.003365803533 | N141: 0.3303765792 | O141: 0.287180076 | P141: 0.3790775413 | Q141: =SQRT(MMULT(MMULT(M141:P141,_xlfn.ANCHORARRAY($N$10)),TRANSPOSE(M141:P141))) -> 0.01393329325 | R141: 0.00160818076 | S141: 0.1154200038
A142: 2024-03-26 | B142: 177.669998 | C142: 92.553398 | D142: 276.822723 | E142: 481.620667 | F142: 0.02919534759 | G142: -0.02569415979 | H142: 0 | I142: 0.03846406087 | L142: 80 | M142: 0.3382822786 | N142: 0.3126653085 | O142: 0.1440498534 | P142: 0.2050025595 | Q142: =SQRT(MMULT(MMULT(M142:P142,_xlfn.ANCHORARRAY($N$10)),TRANSPOSE(M142:P142))) -> 0.01853015445 | R142: 0.001368816694 | S142: 0.07386968614
A143: 2024-03-27 | B143: 179.830002 | C143: 90.242584 | D143: 280.200806 | E143: 490.724579 | F143: 0.01215739306 | G143: -0.02496735992 | H143: 0.01220305531 | I143: 0.01890266059 | L143: 81 | M143: 0.2654037347 | N143: 0.2751828889 | O143: 0.2715456647 | P143: 0.1878677117 | Q143: =SQRT(MMULT(MMULT(M143:P143,_xlfn.ANCHORARRAY($N$10)),TRANSPOSE(M143:P143))) -> 0.0157876087 | R143: 0.001251674014 | S143: 0.079282052
A144: 2024-03-28 | B144: 175.789993 | C144: 90.348579 | D144: 280.131256 | E144: 495.461029 | F144: -0.02246571181 | G144: 0.001174556349 | H144: -0.0002482148463 | I144: 0.009651951833 | L144: 82 | M144: 0.213802377 | N144: 0.02331966045 | O144: 0.2974931042 | P144: 0.4653848584 | Q144: =SQRT(MMULT(MMULT(M144:P144,_xlfn.ANCHORARRAY($N$10)),TRANSPOSE(M144:P144))) -> 0.01347275329 | R144: 0.0003551878394 | S144: 0.02636341896
A145: 2024-04-01 | B145: 175.220001 | C145: 90.355576 | D145: 278.412415 | E145: 492.509491 | F145: -0.003242459882 | G145: 7.744449417e-05 | H145: -0.00613584155 | I145: -0.005957154705 | L145: 83 | M145: 0.2367560632 | N145: 0.2866275316 | O145: 0.3286959632 | P145: 0.1479204421 | Q145: =SQRT(MMULT(MMULT(M145:P145,_xlfn.ANCHORARRAY($N$10)),TRANSPOSE(M145:P145))) -> 0.01513036048 | R145: 0.001300226902 | S145: 0.08593495863
A146: 2024-04-02 | B146: 166.630005 | C146: 89.444656 | D146: 275.948395 | E146: 495.839935 | F146: -0.0490240609 | G146: -0.01008150288 | H146: -0.008850251883 | I146: 0.006762192528 | L146: 84 | M146: 0.2679447225 | N146: 0.05145112754 | O146: 0.3025533059 | P146: 0.378050844 | Q146: =SQRT(MMULT(MMULT(M146:P146,_xlfn.ANCHORARRAY($N$10)),TRANSPOSE(M146:P146))) -> 0.01404480962 | R146: 0.0004248251884 | S146: 0.03024784243
A147: 2024-04-03 | B147: 168.380005 | C147: 88.956688 | D147: 273.762604 | E147: 504.415375 | F147: 0.01050231019 | G147: -0.005455529954 | H147: -0.007921013637 | I147: 0.01729477477 | L147: 85 | M147: 0.281477969 | N147: 0.1159441709 | O147: 0.4224953286 | P147: 0.1800825315 | Q147: =SQRT(MMULT(MMULT(M147:P147,_xlfn.ANCHORARRAY($N$10)),TRANSPOSE(M147:P147))) -> 0.01364727428 | R147: 0.0006308033305 | S147: 0.0462219281
A148: 2024-04-04 | B148: 171.110001 | C148: 85.897942 | D148: 268.347748 | E148: 481.481049 | F148: 0.01621330276 | G148: -0.03438466594 | H148: -0.01977938521 | I148: -0.04546714303 | L148: 86 | M148: 0.3539286123 | N148: 0.0665403436 | O148: 0.3377964324 | P148: 0.2417346117 | Q148: =SQRT(MMULT(MMULT(M148:P148,_xlfn.ANCHORARRAY($N$10)),TRANSPOSE(M148:P148))) -> 0.01539954705 | R148: 0.0004220057519 | S148: 0.02740377691
A149: 2024-04-05 | B149: 164.899994 | C149: 88.000778 | D149: 264.969696 | E149: 491.791534 | F149: -0.03629248415 | G149: 0.02448063308 | H149: -0.01258833743 | I149: 0.02141410347 | L149: 87 | M149: 0.1884252351 | N149: 0.6131563192 | O149: 0.08624433755 | P149: 0.1121741082 | Q149: =SQRT(MMULT(MMULT(M149:P149,_xlfn.ANCHORARRAY($N$10)),TRANSPOSE(M149:P149))) -> 0.02253586331 | R149: 0.002570187753 | S149: 0.1140487816
A150: 2024-04-08 | B150: 172.979996 | C150: 87.125847 | D150: 265.834076 | E150: 500.546478 | F150: 0.04899940748 | G150: -0.009942309828 | H150: 0.003262184367 | I150: 0.0178021446 | L150: 88 | M150: 0.05394939592 | N150: 0.1075404796 | O150: 0.09653916464 | P150: 0.7419709599 | Q150: =SQRT(MMULT(MMULT(M150:P150,_xlfn.ANCHORARRAY($N$10)),TRANSPOSE(M150:P150))) -> 0.01501806878 | R150: 0.0007967415639 | S150: 0.05305219836
A151: 2024-04-09 | B151: 176.880005 | C151: 85.346985 | D151: 267.701965 | E151: 497.02655 | F151: 0.02254601162 | G151: -0.02041715589 | H151: 0.007026522063 | I151: -0.007032170147 | L151: 89 | M151: 0.1847310557 | N151: 0.3291398251 | O151: 0.1593309877 | P151: 0.3267981315 | Q151: =SQRT(MMULT(MMULT(M151:P151,_xlfn.ANCHORARRAY($N$10)),TRANSPOSE(M151:P151))) -> 0.01619104125 | R151: 0.001518464471 | S151: 0.0937842383
A152: 2024-04-10 | B152: 171.759995 | C152: 87.031853 | D152: 266.93692 | E152: 505.382599 | F152: -0.02894623392 | G152: 0.01974138864 | H152: -0.002857823625 | I152: 0.01681207775 | L152: 90 | M152: 0.2848014645 | N152: 0.1296802227 | O152: 0.3041387246 | P152: 0.2813795882 | Q152: =SQRT(MMULT(MMULT(M152:P152,_xlfn.ANCHORARRAY($N$10)),TRANSPOSE(M152:P152))) -> 0.01447513884 | R152: 0.0007009957054 | S152: 0.04842756349
A153: 2024-04-11 | B153: 174.600006 | C153: 90.608551 | D153: 266.887238 | E153: 503.079193 | F153: 0.0165347641 | G153: 0.04109642478 | H153: -0.0001861188778 | I153: -0.004557746952 | L153: 91 | M153: 0.2549119263 | N153: 0.02838862691 | O153: 0.3263626781 | P153: 0.3903367687 | Q153: =SQRT(MMULT(MMULT(M153:P153,_xlfn.ANCHORARRAY($N$10)),TRANSPOSE(M153:P153))) -> 0.01370398592 | R153: 0.0003437602896 | S153: 0.02508469372
A154: 2024-04-12 | B154: 171.050003 | C154: 88.178757 | D154: 265.665192 | E154: 493.895508 | F154: -0.02033220434 | G154: -0.02681638734 | H154: -0.00457888511 | I154: -0.01825494898 | L154: 92 | M154: 0.3290925512 | N154: 0.2155255535 | O154: 0.1540986003 | P154: 0.301283295 | Q154: =SQRT(MMULT(MMULT(M154:P154,_xlfn.ANCHORARRAY($N$10)),TRANSPOSE(M154:P154))) -> 0.01708258018 | R154: 0.00101662169 | S154: 0.05951218608
A155: 2024-04-15 | B155: 161.479996 | C155: 85.993935 | D155: 264.512665 | E155: 486.626312 | F155: -0.055948593 | G155: -0.02477719208 | H155: -0.004338268748 | I155: -0.01471808486 | L155: 93 | M155: 0.0876393016 | N155: 0.2420064137 | O155: 0.2719596779 | P155: 0.3983946067 | Q155: =SQRT(MMULT(MMULT(M155:P155,_xlfn.ANCHORARRAY($N$10)),TRANSPOSE(M155:P155))) -> 0.01321531272 | R155: 0.00123670855 | S155: 0.09358148205
A156: 2024-04-16 | B156: 157.110001 | C156: 87.407822 | D156: 263.717804 | E156: 485.260223 | F156: -0.02706214459 | G156: 0.01644170603 | H156: -0.00300500167 | I156: -0.002807264972 | L156: 94 | M156: 0.3737397687 | N156: 0.3957629212 | O156: 0.1180838544 | P156: 0.1124134556 | Q156: =SQRT(MMULT(MMULT(M156:P156,_xlfn.ANCHORARRAY($N$10)),TRANSPOSE(M156:P156))) -> 0.02078117264 | R156: 0.001656753151 | S156: 0.07972375671
A157: 2024-04-17 | B157: 155.449997 | C157: 84.028099 | D157: 268.208679 | E157: 480.67337 | F157: -0.01056587098 | G157: -0.03866613906 | H157: 0.01702909296 | I157: -0.009452357277 | L157: 95 | M157: 0.4720363382 | N157: 0.07389519366 | O157: 0.03330268088 | P157: 0.4207657873 | Q157: =SQRT(MMULT(MMULT(M157:P157,_xlfn.ANCHORARRAY($N$10)),TRANSPOSE(M157:P157))) -> 0.02018992287 | R157: 0.0004343492089 | S157: 0.02151316832
A158: 2024-04-18 | B158: 149.929993 | C158: 84.66404 | D158: 269.232025 | E158: 480.284485 | F158: -0.03550983665 | G158: 0.007568194539 | H158: 0.003815484286 | I158: -0.0008090421152 | L158: 96 | M158: 0.2089265215 | N158: 0.1618032198 | O158: 0.2761703686 | P158: 0.3530998901 | Q158: =SQRT(MMULT(MMULT(M158:P158,_xlfn.ANCHORARRAY($N$10)),TRANSPOSE(M158:P158))) -> 0.013672455 | R158: 0.0008693587192 | S158: 0.06358468315
A159: 2024-04-19 | B159: 147.050003 | C159: 76.193741 | D159: 270.235504 | E159: 472.197632 | F159: -0.01920889838 | G159: -0.1000460054 | H159: 0.00372719033 | I159: -0.01683763114 | L159: 97 | M159: 0.07322306425 | N159: 0.1428995093 | O159: 0.5819763681 | P159: 0.2019010584 | Q159: =SQRT(MMULT(MMULT(M159:P159,_xlfn.ANCHORARRAY($N$10)),TRANSPOSE(M159:P159))) -> 0.01021543298 | R159: 0.0008250221393 | S159: 0.08076232705
A160: 2024-04-22 | B160: 142.050003 | C160: 79.511467 | D160: 273.802338 | E160: 469.934143 | F160: -0.03400203943 | G160: 0.04354328789 | H160: 0.01319898365 | I160: -0.004793520438 | L160: 98 | M160: 0.2720902671 | N160: 0.1002223301 | O160: 0.3956600395 | P160: 0.2320273633 | Q160: =SQRT(MMULT(MMULT(M160:P160,_xlfn.ANCHORARRAY($N$10)),TRANSPOSE(M160:P160))) -> 0.01352577924 | R160: 0.0005837995113 | S160: 0.04316198727
A161: 2024-04-23 | B161: 144.679993 | C161: 82.416229 | D161: 275.093964 | E161: 479.785919 | F161: 0.01851453674 | G161: 0.03653261736 | H161: 0.004717366584 | I161: 0.02096416306 | L161: 99 | M161: 0.1216410484 | N161: 0.3396992442 | O161: 0.5361939726 | P161: 0.002465734886 | Q161: =SQRT(MMULT(MMULT(M161:P161,_xlfn.ANCHORARRAY($N$10)),TRANSPOSE(M161:P161))) -> 0.01366951549 | R161: 0.001525368877 | S161: 0.111589096
A162: 2024-04-24 | B162: 162.130005 | C162: 79.670456 | D162: 274.964813 | E162: 486.3172 | F162: 0.1206110924 | G162: -0.03331592616 | H162: -0.0004694795848 | I162: 0.0136129068 | L162: 100 | M162: 0.2105885336 | N162: 0.2879993235 | O162: 0.2379826794 | P162: 0.2634294634 | Q162: =SQRT(MMULT(MMULT(M162:P162,_xlfn.ANCHORARRAY($N$10)),TRANSPOSE(M162:P162))) -> 0.01529924608 | R162: 0.001337710643 | S162: 0.08743637669
A163: 2024-04-25 | B163: 170.179993 | C163: 82.625214 | D163: 273.822235 | E163: 493.357025 | F163: 0.04965143867 | G163: 0.0370872485 | H163: -0.004155360781 | I163: 0.01447578864 | L163: 101 | M163: 0.03497700689 | N163: 0.2487072905 | O163: 0.1988359548 | P163: 0.5174797479 | Q163: =SQRT(MMULT(MMULT(M163:P163,_xlfn.ANCHORARRAY($N$10)),TRANSPOSE(M163:P163))) -> 0.01393304963 | R163: 0.001306359549 | S163: 0.09375977149
A164: 2024-04-26 | B164: 168.289993 | C164: 87.727791 | D164: 271.3284 | E164: 497.644775 | F164: -0.01110588834 | G164: 0.06175568877 | H164: -0.009107496329 | I164: 0.008690967763 | L164: 102 | M164: 0.1694178729 | N164: 0.2687356004 | O164: 0.09596800345 | P164: 0.4658785232 | Q164: =SQRT(MMULT(MMULT(M164:P164,_xlfn.ANCHORARRAY($N$10)),TRANSPOSE(M164:P164))) -> 0.01589550186 | R164: 0.001318079435 | S164: 0.08292153633
A165: 2024-04-29 | B165: 194.050003 | C165: 87.749794 | D165: 271.785431 | E165: 525.624634 | F165: 0.1530691727 | G165: 0.0002508099172 | H165: 0.001684420061 | I165: 0.05622456098 | L165: 103 | M165: 0.4586327154 | N165: 0.08373024305 | O165: 0.005144306505 | P165: 0.452492735 | Q165: =SQRT(MMULT(MMULT(M165:P165,_xlfn.ANCHORARRAY($N$10)),TRANSPOSE(M165:P165))) -> 0.02019083529 | R165: 0.000483621553 | S165: 0.02395252826
A166: 2024-04-30 | B166: 183.279999 | C166: 86.394905 | D166: 271.278748 | E166: 527.758545 | F166: -0.05550117925 | G166: -0.01544036673 | H166: -0.001864275793 | I166: 0.004059762161 | L166: 104 | M166: 0.2921134087 | N166: 0.276167701 | O166: 0.1486986392 | P166: 0.283020251 | Q166: =SQRT(MMULT(MMULT(M166:P166,_xlfn.ANCHORARRAY($N$10)),TRANSPOSE(M166:P166))) -> 0.01713212469 | R166: 0.001261954382 | S166: 0.07366012125
A167: 2024-05-01 | B167: 179.990005 | C167: 83.03418 | D167: 272.65976 | E167: 514.94519 | F167: -0.01795064392 | G167: -0.038899574 | H167: 0.005090748944 | I167: -0.02427882054 | L167: 105 | M167: 0.4012317229 | N167: 0.006503864841 | O167: 0.4272711664 | P167: 0.1649932458 | Q167: =SQRT(MMULT(MMULT(M167:P167,_xlfn.ANCHORARRAY($N$10)),TRANSPOSE(M167:P167))) -> 0.01598653978 | R167: 0.0001571648743 | S167: 0.00983107517
A168: 2024-05-02 | B168: 180.009995 | C168: 85.809952 | D168: 271.517181 | E168: 511.23584 | F168: 0.0001110617226 | G168: 0.03342926973 | H168: -0.004190493676 | I168: -0.007203387996 | L168: 106 | M168: 0.2362832933 | N168: 0.344992059 | O168: 0.3619110388 | P168: 0.05681360884 | Q168: =SQRT(MMULT(MMULT(M168:P168,_xlfn.ANCHORARRAY($N$10)),TRANSPOSE(M168:P168))) -> 0.01600468655 | R168: 0.001508180384 | S168: 0.09423367206
A169: 2024-05-03 | B169: 181.190002 | C169: 88.781708 | D169: 268.576294 | E169: 512.861206 | F169: 0.006555230447 | G169: 0.03463183385 | H169: -0.01083131089 | I169: 0.003179288056 | L169: 107 | M169: 0.2102998526 | N169: 0.1166322077 | O169: 0.3459254422 | P169: 0.3271424975 | Q169: =SQRT(MMULT(MMULT(M169:P169,_xlfn.ANCHORARRAY($N$10)),TRANSPOSE(M169:P169))) -> 0.01290578587 | R169: 0.0006901724191 | S169: 0.05347775223
A170: 2024-05-06 | B170: 184.759995 | C170: 92.132431 | D170: 267.562836 | E170: 520.888184 | F170: 0.01970303527 | G170: 0.03774114145 | H170: -0.00377344547 | I170: 0.01565136514 | L170: 108 | M170: 0.4334058119 | N170: 0.1710825671 | O170: 0.06829266375 | P170: 0.3272189572 | Q170: =SQRT(MMULT(MMULT(M170:P170,_xlfn.ANCHORARRAY($N$10)),TRANSPOSE(M170:P170))) -> 0.01950745742 | R170: 0.0008070863213 | S170: 0.04137321968
A171: 2024-05-07 | B171: 177.809998 | C171: 90.546562 | D171: 265.774475 | E171: 515.752869 | F171: -0.03761635196 | G171: -0.01721292907 | H171: -0.00668389163 | I171: -0.009858766541 | L171: 109 | M171: 0.4833143112 | N171: 0.04341117064 | O171: 0.002653209037 | P171: 0.4706213091 | Q171: =SQRT(MMULT(MMULT(M171:P171,_xlfn.ANCHORARRAY($N$10)),TRANSPOSE(M171:P171))) -> 0.02067094781 | R171: 0.0003215738792 | S171: 0.01555680379
A172: 2024-05-08 | B172: 174.720001 | C172: 90.404579 | D172: 266.758057 | E172: 515.194458 | F172: -0.01737808354 | G172: -0.001568066162 | H172: 0.003700814384 | I172: -0.00108271041 | L172: 110 | M172: 0.3434680367 | N172: 0.4227163819 | O172: 0.1703244857 | P172: 0.06349109574 | Q172: =SQRT(MMULT(MMULT(M172:P172,_xlfn.ANCHORARRAY($N$10)),TRANSPOSE(M172:P172))) -> 0.02040204746 | R172: 0.001764000835 | S172: 0.08646195138
A173: 2024-05-09 | B173: 171.970001 | C173: 88.739716 | D173: 266.221588 | E173: 515.782837 | F173: -0.01573946877 | G173: -0.0184156933 | H173: -0.002011069529 | I173: 0.00114205227 | L173: 111 | M173: 0.04873570256 | N173: 0.3001630412 | O173: 0.42756276 | P173: 0.2235384962 | Q173: =SQRT(MMULT(MMULT(M173:P173,_xlfn.ANCHORARRAY($N$10)),TRANSPOSE(M173:P173))) -> 0.01257550972 | R173: 0.001444344404 | S173: 0.1148537464
A174: 2024-05-10 | B174: 168.470001 | C174: 89.870613 | D174: 273.226074 | E174: 517.168884 | F174: -0.02035238693 | G174: 0.01274397813 | H174: 0.0263107363 | I174: 0.002687268557 | L174: 112 | M174: 0.06422780492 | N174: 0.4544489398 | O174: 0.2700014354 | P174: 0.2113218199 | Q174: =SQRT(MMULT(MMULT(M174:P174,_xlfn.ANCHORARRAY($N$10)),TRANSPOSE(M174:P174))) -> 0.01654850532 | R174: 0.002029355386 | S174: 0.1226307359
A175: 2024-05-13 | B175: 171.889999 | C175: 90.391579 | D175: 269.569824 | E175: 508.782867 | F175: 0.02030033822 | G175: 0.005796844848 | H175: -0.01338177556 | I175: -0.01621523889 | L175: 113 | M175: 0.07756562426 | N175: 0.04103571438 | O175: 0.2258305503 | P175: 0.6555681111 | Q175: =SQRT(MMULT(MMULT(M175:P175,_xlfn.ANCHORARRAY($N$10)),TRANSPOSE(M175:P175))) -> 0.01357189941 | R175: 0.0005150595769 | S175: 0.03795044168
A176: 2024-05-14 | B176: 177.550003 | C176: 91.348495 | D176: 268.914093 | E176: 509.251526 | F176: 0.03292805883 | G176: 0.01058634013 | H176: -0.002432508915 | I176: 0.0009211375429 | L176: 114 | M176: 0.432269089 | N176: 0.1265988949 | O176: 0.1146937348 | P176: 0.3264382814 | Q176: =SQRT(MMULT(MMULT(M176:P176,_xlfn.ANCHORARRAY($N$10)),TRANSPOSE(M176:P176))) -> 0.01884454591 | R176: 0.0006362385858 | S176: 0.03376247901
A177: 2024-05-15 | B177: 173.990005 | C177: 94.622223 | D177: 272.103363 | E177: 516.201599 | F177: -0.02005067834 | G177: 0.03583778802 | H177: 0.01185980982 | I177: 0.01364762332 | L177: 115 | M177: 0.3502412634 | N177: 0.2228586963 | O177: 0.06250625133 | P177: 0.3643937889 | Q177: =SQRT(MMULT(MMULT(M177:P177,_xlfn.ANCHORARRAY($N$10)),TRANSPOSE(M177:P177))) -> 0.01832181553 | R177: 0.001047719589 | S177: 0.05718426689
A178: 2024-05-16 | B178: 174.839996 | C178: 94.35125 | D178: 271.745697 | E178: 511.834106 | F178: 0.00488528637 | G178: -0.002863735298 | H178: -0.001314449024 | I178: -0.008460828111 | L178: 116 | M178: 0.3986511901 | N178: 0.006626229909 | O178: 0.1083409486 | P178: 0.4863816314 | Q178: =SQRT(MMULT(MMULT(M178:P178,_xlfn.ANCHORARRAY($N$10)),TRANSPOSE(M178:P178))) -> 0.01809681037 | R178: 0.0002180853545 | S178: 0.01205103828
A179: 2024-05-17 | B179: 177.460007 | C179: 92.471397 | D179: 270.622986 | E179: 511.564941 | F179: 0.01498519252 | G179: -0.01992398617 | H179: -0.004131476643 | I179: -0.000525883283 | L179: 117 | M179: 0.4205743698 | N179: 0.06679939033 | O179: 0.449547484 | P179: 0.06307875584 | Q179: =SQRT(MMULT(MMULT(M179:P179,_xlfn.ANCHORARRAY($N$10)),TRANSPOSE(M179:P179))) -> 0.01653190279 | R179: 0.0003623252993 | S179: 0.02191673299
A180: 2024-05-20 | B180: 174.949997 | C180: 94.772217 | D180: 266.14209 | E180: 514.606201 | F180: -0.01414408825 | G180: 0.0248814236 | H180: -0.01655770659 | I180: 0.005945012561 | L180: 118 | M180: 0.1560804701 | N180: 0.3082927915 | O180: 0.3366355369 | P180: 0.1989912015 | Q180: =SQRT(MMULT(MMULT(M180:P180,_xlfn.ANCHORARRAY($N$10)),TRANSPOSE(M180:P180))) -> 0.01420995042 | R180: 0.001426526004 | S180: 0.1003892316
A181: 2024-05-21 | B181: 186.600006 | C181: 95.378166 | D181: 264.154968 | E181: 512.25293 | F181: 0.066590507 | G181: 0.0063937409 | H181: -0.007466395112 | I181: -0.004572955 | L181: 119 | M181: 0.1994416325 | N181: 0.2681173419 | O181: 0.3165560579 | P181: 0.2158849678 | Q181: =SQRT(MMULT(MMULT(M181:P181,_xlfn.ANCHORARRAY($N$10)),TRANSPOSE(M181:P181))) -> 0.01431373057 | R181: 0.001257047575 | S181: 0.08782110075
A182: 2024-05-22 | B182: 180.110001 | C182: 94.9422 | D182: 264.055603 | E182: 510.458069 | F182: -0.03478030435 | G182: -0.004570920351 | H182: -0.0003761617688 | I182: -0.003503856972 | L182: 120 | M182: 0.2848039651 | N182: 0.3558997782 | O182: 0.1897910413 | P182: 0.1695052154 | Q182: =SQRT(MMULT(MMULT(M182:P182,_xlfn.ANCHORARRAY($N$10)),TRANSPOSE(M182:P182))) -> 0.01792125211 | R182: 0.001550829664 | S182: 0.08653578749
A183: 2024-05-23 | B183: 173.740005 | C183: 103.790482 | D183: 256.266205 | E183: 500.696045 | F183: -0.03536725315 | G183: 0.09319651325 | H183: -0.02949908243 | I183: -0.0191240468 | L183: 121 | M183: 0.07125230288 | N183: 0.3903144873 | O183: 0.3445592578 | P183: 0.1938739521 | Q183: =SQRT(MMULT(MMULT(M183:P183,_xlfn.ANCHORARRAY($N$10)),TRANSPOSE(M183:P183))) -> 0.01482667628 | R183: 0.001776422757 | S183: 0.1198126083
A184: 2024-05-24 | B184: 179.240005 | C184: 106.460258 | D184: 256.445038 | E184: 500.725952 | F184: 0.0316564973 | G184: 0.02572274402 | H184: 0.0006978407473 | I184: 5.973084928e-05 | L184: 122 | M184: 0.04777345576 | N184: 0.1371987859 | O184: 0.3492226799 | P184: 0.4658050784 | Q184: =SQRT(MMULT(MMULT(M184:P184,_xlfn.ANCHORARRAY($N$10)),TRANSPOSE(M184:P184))) -> 0.01177353278 | R184: 0.0008624091961 | S184: 0.07324982333
A185: 2024-05-28 | B185: 176.75 | C185: 113.891647 | D185: 251.90451 | E185: 507.62616 | F185: -0.0138920159 | G185: 0.06980434896 | H185: -0.01770565746 | I185: 0.01378040817 | L185: 123 | M185: 0.2507129223 | N185: 0.127124427 | O185: 0.2419673141 | P185: 0.3801953367 | Q185: =SQRT(MMULT(MMULT(M185:P185,_xlfn.ANCHORARRAY($N$10)),TRANSPOSE(M185:P185))) -> 0.01440054518 | R185: 0.0007235703223 | S185: 0.05024603674
A186: 2024-05-29 | B186: 176.190002 | C186: 114.815567 | D186: 247.761414 | E186: 508.553528 | F186: -0.003168305516 | G186: 0.008112271833 | H186: -0.01644708941 | I186: 0.001826871964 | L186: 124 | M186: 0.4071516699 | N186: 0.192804592 | O186: 0.1432176405 | P186: 0.2568260975 | Q186: =SQRT(MMULT(MMULT(M186:P186,_xlfn.ANCHORARRAY($N$10)),TRANSPOSE(M186:P186))) -> 0.01854628395 | R186: 0.0008885683799 | S186: 0.04791085818
A187: 2024-05-30 | B187: 178.789993 | C187: 110.490921 | D187: 250.444 | E187: 507.646118 | F187: 0.01475674539 | G187: -0.03766602485 | H187: 0.01082729533 | I187: -0.001784295949 | L187: 125 | M187: 0.148559156 | N187: 0.4083985118 | O187: 0.07250853148 | P187: 0.3705338007 | Q187: =SQRT(MMULT(MMULT(M187:P187,_xlfn.ANCHORARRAY($N$10)),TRANSPOSE(M187:P187))) -> 0.01786049245 | R187: 0.001846554006 | S187: 0.1033876312
A188: 2024-05-31 | B188: 178.080002 | C188: 109.624001 | D188: 257.220032 | E188: 507.127594 | F188: -0.003971089143 | G188: -0.00784607452 | H188: 0.02705607641 | I188: -0.001021428081 | L188: 126 | M188: 0.2447875687 | N188: 0.03304689491 | O188: 0.3258904969 | P188: 0.3962750394 | Q188: =SQRT(MMULT(MMULT(M188:P188,_xlfn.ANCHORARRAY($N$10)),TRANSPOSE(M188:P188))) -> 0.01355035511 | R188: 0.0003669860488 | S188: 0.02708313146
A189: 2024-06-03 | B189: 176.289993 | C189: 114.990555 | D189: 259.75 | E189: 521.48645 | F189: -0.0100517126 | G189: 0.04895418842 | H189: 0.009835812477 | I189: 0.02831408933 | L189: 127 | M189: 0.1171606113 | N189: 0.289641016 | O189: 0.2017689274 | P189: 0.3914294453 | Q189: =SQRT(MMULT(MMULT(M189:P189,_xlfn.ANCHORARRAY($N$10)),TRANSPOSE(M189:P189))) -> 0.01460518443 | R189: 0.001406465573 | S189: 0.0962990628
A190: 2024-06-04 | B190: 174.770004 | C190: 116.427429 | D190: 262.720001 | E190: 519.492188 | F190: -0.008622094619 | G190: 0.01249558279 | H190: 0.01143407507 | I190: -0.00382418757 | L190: 128 | M190: 0.1235477975 | N190: 0.06964442186 | O190: 0.4493551569 | P190: 0.3574526237 | Q190: =SQRT(MMULT(MMULT(M190:P190,_xlfn.ANCHORARRAY($N$10)),TRANSPOSE(M190:P190))) -> 0.01115998436 | R190: 0.0005509782535 | S190: 0.04937088044
A191: 2024-06-05 | B191: 175 | C191: 122.429947 | D191: 259.98999 | E191: 515.62323 | F191: 0.001315992417 | G191: 0.05155587521 | H191: -0.01039133294 | I191: -0.007447576863 | L191: 129 | M191: 0.1700284395 | N191: 0.5732228744 | O191: 0.1431542447 | P191: 0.1135944415 | Q191: =SQRT(MMULT(MMULT(M191:P191,_xlfn.ANCHORARRAY($N$10)),TRANSPOSE(M191:P191))) -> 0.02103348366 | R191: 0.002424422121 | S191: 0.1152648872
A192: 2024-06-06 | B192: 177.940002 | C192: 120.98806 | D192: 260.720001 | E192: 512.223022 | F192: 0.01680001143 | G192: -0.01177724107 | H192: 0.002807842717 | I192: -0.006594365425 | L192: 130 | M192: 0.6061137304 | N192: 0.2127272311 | O192: 0.01909648679 | P192: 0.1620625517 | Q192: =SQRT(MMULT(MMULT(M192:P192,_xlfn.ANCHORARRAY($N$10)),TRANSPOSE(M192:P192))) -> 0.0243034753 | R192: =SUMPRODUCT(M192:P192,$M$2:$P$2) -> 0.0008651195894 | S192: =R192/Q192 -> 0.0355965383
A193: 2024-06-07 | B193: 177.479996 | C193: 120.878075 | D193: 256.209991 | E193: 512.083374 | F193: -0.002585174749 | G193: -0.0009090566458 | H193: -0.01729828929 | I193: -0.0002726312446 | L193: 131 | M193: 0.1376057124 | N193: 0.130209442 | O193: 0.3873153383 | P193: 0.3448695072 | Q193: =SQRT(MMULT(MMULT(M193:P193,_xlfn.ANCHORARRAY($N$10)),TRANSPOSE(M193:P193))) -> 0.01178807327 | R193: 0.0007758742497 | S193: 0.06581858051
A194: 2024-06-10 | B194: 173.789993 | C194: 121.779999 | D194: 253.809998 | E194: 525.046265 | F194: -0.02079109242 | G194: 0.007461435831 | H194: -0.009367288881 | I194: 0.02531402435 | L194: 132 | M194: 0.3109299536 | N194: 0.1042431132 | O194: 0.2868984299 | P194: 0.2979285032 | Q194: =SQRT(MMULT(MMULT(M194:P194,_xlfn.ANCHORARRAY($N$10)),TRANSPOSE(M194:P194))) -> 0.01497181787 | R194: 0.0005953220202 | S194: 0.03976284145
A195: 2024-06-11 | B195: 170.660004 | C195: 120.910004 | D195: 254.279999 | E195: 526.442322 | F195: -0.01801017968 | G195: -0.007143989219 | H195: 0.001851782844 | I195: 0.002658921876 | L195: 133 | M195: 0.09511903914 | N195: 0.1435851026 | O195: 0.3775888316 | P195: 0.3837070266 | Q195: =SQRT(MMULT(MMULT(M195:P195,_xlfn.ANCHORARRAY($N$10)),TRANSPOSE(M195:P195))) -> 0.01161896221 | R195: 0.0008521593142 | S195: 0.07334211944
A196: 2024-06-12 | B196: 177.289993 | C196: 125.199997 | D196: 254.479996 | E196: 529.882446 | F196: =B196/B195-1 -> 0.03884910843 | G196: =C196/C195-1 -> 0.03548087717 | H196: =D196/D195-1 -> 0.0007865227339 | I196: =E196/E195-1 -> 0.00653466459 | L196: 134 | M196: 0.2626735589 | N196: 0.2766368483 | O196: 0.2787277989 | P196: 0.1819617938 | Q196: =SQRT(MMULT(MMULT(M196:P196,_xlfn.ANCHORARRAY($N$10)),TRANSPOSE(M196:P196))) -> 0.01571641968 | R196: 0.001257311274 | S196: 0.07999985364
A197: 2024-06-13 | B197: 182.470001 | C197: 129.610001 | D197: 253.699997 | E197: 527.23999 | F197: 0.02921771225 | G197: 0.03522367497 | H197: -0.003065069995 | I197: -0.004986872126 | L197: 135 | M197: 0.3487110468 | N197: 0.3362447426 | O197: 0.08092556903 | P197: 0.2341186416 | Q197: =SQRT(MMULT(MMULT(M197:P197,_xlfn.ANCHORARRAY($N$10)),TRANSPOSE(M197:P197))) -> 0.01952487407 | R197: 0.00146060115 | S197: 0.07480719953
A198: 2024-06-14 | B198: 178.009995 | C198: 131.880005 | D198: 253.580002 | E198: 521.409973 | F198: -0.02444240684 | G198: 0.01751411143 | H198: -0.0004729799031 | I198: -0.01105761534 | L198: 136 | M198: 0.1946314253 | N198: 0.3425871699 | O198: 0.3528586057 | P198: 0.1099227991 | Q198: =SQRT(MMULT(MMULT(M198:P198,_xlfn.ANCHORARRAY($N$10)),TRANSPOSE(M198:P198))) -> 0.01528724336 | R198: 0.001526031266 | S198: 0.09982383545
A199: 2024-06-17 | B199: 187.440002 | C199: 130.979996 | D199: 253.509995 | E199: 532.159973 | F199: 0.0529745928 | G199: -0.00682445379 | H199: -0.0002760746094 | I199: 0.02061717373 | L199: 137 | M199: 0.009745463784 | N199: 0.2202047219 | O199: 0.2487718306 | P199: 0.5212779837 | Q199: =SQRT(MMULT(MMULT(M199:P199,_xlfn.ANCHORARRAY($N$10)),TRANSPOSE(M199:P199))) -> 0.01320760105 | R199: 0.001207857458 | S199: 0.09145169159
A200: 2024-06-18 | B200: 184.860001 | C200: 135.580002 | D200: 250.789993 | E200: 533.640015 | F200: -0.0137644098 | G200: 0.03511991251 | H200: -0.01072936789 | I200: 0.002781197525 | L200: 138 | M200: 0.3055375533 | N200: 0.1106056835 | O200: 0.1501981673 | P200: 0.433658596 | Q200: =SQRT(MMULT(MMULT(M200:P200,_xlfn.ANCHORARRAY($N$10)),TRANSPOSE(M200:P200))) -> 0.0160647017 | R200: 0.0006471211722 | S200: 0.04028217792
... 62 more rows

Sheet Var_aprox
A1: Hay dos tipos de fondos | E1: Suponiendo una distribución normal
E2: 1 desv | F2: 2 desv | G2: 3 desv
I3: VaR
G4: =D7+D8*3 -> 0.23 | I4: 0.99 | J4: =NORMSINV(I4) -> 2.326347874 | K4: =$D$7-J4*D8 -> 0.1767365213
F5: =D7+D8*2 -> 0.22 | I5: 0.95 | J5: =NORMSINV(I5) -> 1.644853627 | K5: =D7-J5*D8 -> 0.1835514637
E6: =D7+D8 -> 0.21 | I6: 0.9 | J6: 1.281551566 | K6: =D7-J6*D8 -> 0.1871844843
C7: R(P) | D7: 0.2
B8: A | C8: D(p) | D8: 0.01
E9: =$D$7-D8*1 -> 0.19
F10: =$D$7-D8*2 -> 0.18
G11: =$D$7-D8*3 -> 0.17
E14: 1 desv | F14: 2 desv | G14: 3 desv | I14: VaR
G15: =D18+D19*3 -> 0.35 | I15: 0.99 | J15: =NORMSINV(I15) -> 2.326347874 | K15: =$D$7-J15*D19 -> 0.0836826063
F16: =D18+D19*2 -> 0.3 | I16: 0.95 | J16: =NORMSINV(I16) -> 1.644853627 | K16: =D18-J16*D19 -> 0.1177573187
E17: =D18+D19 -> 0.25 | I17: 0.9 | J17: 1.281551566 | K17: =D18-J17*D19 -> 0.1359224217
B18: B | C18: R(P) | D18: 0.2
C19: D(p) | D19: 0.05
E20: =$D$7-D19*1 -> 0.15
F21: =$D$7-D19*2 -> 0.1
G22: =$D$7-D19*3 -> 0.05

Sheet VaR_P_H_MC
A1: Date | B1: TSLA | C1: Retornos | F1: SIMULADO | H1: 1 | I1: TSLA | O1: Complemento de Ingeniería Financiera | Y1: VaR de un portafolio | Z1: VaR de un portafolio | AR1: VaR Histórico | AY1: Uso del | AZ1: TSLA | BA1: NVDA | BB1: MCD | BC1: DPZ | BD1: TSLA | BE1: NVDA | BF1: MCD | BG1: DPZ
A2: 2023-09-05 | B2: 256.48999 | E2: 1 | F2: -0.00594949157 | H2: media | I2: =AVERAGE(C3:C251) -> -0.0001469392577 | O2: CVaR | P2: Conditional Value at Risk | AA2: Date | AB2: TSLA | AC2: NVDA | AD2: MCD | AE2: DPZ | AF2: TSLA | AG2: NVDA | AH2: MCD | AI2: DPZ | AK2: STEP 1 | AS2: Nueva medición | AT2: TSLA | AU2: NVDA | AV2: MCD | AW2: DPZ | AY2: último precio | AZ2: Simulación | BD2: P/L | BE2: P/L | BF2: P/L | BG2: P/L | BH2: Portafolio
A3: 2023-09-06 | B3: 251.919998 | C3: =B3/B2-1 -> -0.01781742827 | E3: 2 | F3: 0.02485623906 | H3: desv | I3: =_xlfn.STDEV.S(C3:C251) -> 0.03414927207 | AA3: 2023-09-05 | AB3: 256.48999 | AC3: 48.53347 | AD3: 274.147491 | AE3: 385.136169 | AS3: EaR | AT3: =PERCENTILE(AF4:AF252,1-AL7) -> 0.1014700521 | AU3: =PERCENTILE(AG4:AG252,1-AM7) -> 0.08281661335 | AV3: 0.02834989729 | AW3: 0.04220325897 | AY3: 1 | AZ3: =$AT$21*(1+AF4) -> 218.152571 | BA3: =$AU$21*(1+AG4) -> 103.1979887 | BB3: =$AV$21*(1+AH4) -> 287.5958029 | BC3: =$AW$21*(1+AI4) -> 412.6401929 | BD3: =AZ3*$AT$23-$AT$22 -> -359.3376807 | BE3: =BA3*$AU$23-$AU$22 -> -956.5908913 | BF3: =BB3*$AV$23-$AV$22 -> -259.3368647 | BG3: =BC3*$AW$23-$AW$22 -> -406.1874335 | BH3: =SUM(BD3:BG3) -> -1981.45287
A4: 2023-09-07 | B4: 251.490005 | C4: =B4/B3-1 -> -0.001706863303 | E4: 3 | F4: -0.01580504864 | H4: Significancia | I4: 0.99 | L4: t (días) | M4: 5 | O4: CVaR | P4: =-I3*EXP(-(I5^2/2))/((1-I4)*SQRT(2*PI())) -> -0.09101512553 | R4: Cuánto esperarías en promedio perder al superar | AA4: 2023-09-06 | AB4: 251.919998 | AC4: 47.050789 | AD4: 270.494263 | AE4: 379.752594 | AF4: =AB4/AB3-1 -> -0.01781742827 | AG4: =AC4/AC3-1 -> -0.03054965985 | AH4: -0.0133257758 | AI4: -0.01397836774 | AL4: TSLA | AM4: NVDA | AN4: MCD | AO4: DPZ | AS4: VaR Histórico | AT4: =PERCENTILE(AF4:AF252,AL7) -> -0.08889342492 | AU4: =PERCENTILE(AG4:AG252,AM7) -> -0.0674598706 | AV4: -0.02964546354 | AW4: -0.04522866834 | AY4: 2 | AZ4: =$AT$21*(1+AF5) -> 221.7308886 | BA4: =$AU$21*(1+AG5) -> 104.5951902 | BB4: =$AV$21*(1+AH5) -> 294.5383247 | BC4: =$AW$21*(1+AI5) -> 423.834909 | BD4: =AZ4*$AT$23-$AT$22 -> -34.42361554 | BE4: =BA4*$AU$23-$AU$22 -> -545.5990174 | BF4: =BB4*$AV$23-$AV$22 -> 204.1956998 | BG4: =BC4*$AW$23-$AW$22 -> 371.1293052 | BH4: =SUM(BD4:BG4) -> -4.697627919
A5: 2023-09-08 | B5: 248.5 | C5: -0.01188916037 | E5: 4 | F5: -0.04317242884 | H5: Z | I5: =_xlfn.NORM.S.INV(1-I4) -> -2.326347874 | K5: Inv.normal.est | R5: el VaR paramétrico. | AA5: 2023-09-07 | AB5: 251.490005 | AC5: 46.230965 | AD5: 273.332397 | AE5: 384.602753 | AF5: =AB5/AB4-1 -> -0.001706863303 | AG5: -0.0174242349 | AH5: 0.01049239998 | AI5: 0.01277189169 | AK5: Medio | AL5: =AVERAGE(AF4:AF252) -> -0.0001469392577 | AM5: =AVERAGE(AG4:AG252) -> 0.004116286621 | AN5: 0.0002682356005 | AO5: 0.0004529910039 | AS5: EaR/ VaR | AT5: =ABS(AT3/AT4) -> 1.141479836 | AU5: =ABS(AU3/AU4) -> 1.227642636 | AV5: 0.9562979933 | AW5: 0.9331085906 | AY5: 3 | AZ5: 219.4692986 | BA5: 104.9099265 | BB5: 292.4120208 | BC5: 416.3618304 | BD5: -239.7777752 | BE5: -453.0181839 | BF5: 62.22839481 | BG5: -147.7716691 | BH5: -778.3392335
A6: 2023-09-11 | B6: 273.579987 | C6: 0.100925501 | E6: 5 | F6: -0.01794532812 | H6: Var Paramétrico | J6: =NORMINV(1-I4,I2,I3) -> -0.07959002574 | L6: Var Paramétrico (1 día) | M6: =I5*I3 -> -0.07944308648 | AA6: 2023-09-08 | AB6: 248.5 | AC6: 45.562115 | AD6: 274.20639 | AE6: 382.646912 | AF6: -0.01188916037 | AG6: -0.01446757601 | AH6: 0.003197546319 | AI6: -0.005085353614 | AK6: Desv. Est | AL6: =_xlfn.STDEV.S(AF4:AF252) -> 0.03414927207 | AM6: =_xlfn.STDEV.S(AG4:AG252) -> 0.03173366261 | AN6: 0.01106868539 | AO6: 0.01776484842 | AY6: 4 | AZ6: 244.526563 | BA6: 105.5296708 | BB6: 292.0437105 | BC6: 426.6249152 | BD6: 2035.441642 | BE6: -270.718168 | BF6: 37.63735417 | BG6: 564.8562872 | BH6: 2367.217115
A7: 2023-09-12 | B7: 267.480011 | C7: -0.02229686487 | E7: 6 | F7: 0.04191745263 | L7: Var Paramétrico (Ajuste en t) | M7: =M6*SQRT(M4) -> -0.1776401417 | AA7: 2023-09-11 | AB7: 273.579987 | AC7: 45.168201 | AD7: 274.736694 | AE7: 390.085083 | AF7: 0.100925501 | AG7: -0.008645647815 | AH7: 0.001933959307 | AI7: 0.01943873259 | AK7: Alpha | AL7: 0.01 | AM7: 0.01 | AN7: 0.01 | AO7: 0.01 | AR7: VaR Histórico del portafolio | AY7: 5 | AZ7: 217.1576433 | BA7: 105.7242706 | BB7: 292.4697782 | BC7: 417.1017348 | BD7: -449.6778988 | BE7: -213.4759442 | BF7: 66.08469445 | BG7: -96.39563591 | BH7: -693.4647844
A8: 2023-09-13 | B8: 271.299988 | C8: 0.01428135503 | E8: 7 | F8: -0.03073653557 | H8: Comentario: | AA8: 2023-09-12 | AB8: 267.480011 | AC8: 44.860264 | AD8: 275.669617 | AE8: 388.791046 | AF8: -0.02229686487 | AG8: -0.006817561762 | AH8: 0.003395698574 | AI8: -0.003317319878 | AK8: Z | AL8: =_xlfn.NORM.S.INV(AL7) -> -2.326347874 | AM8: =_xlfn.NORM.S.INV(AM7) -> -2.326347874 | AN8: -2.326347874 | AO8: -2.326347874 | AT8: TSLA | AU8: NVDA | AV8: MCD | AW8: DPZ | AY8: 6 | AZ8: 225.2820318 | BA8: 107.9090446 | BB8: 292.5806555 | BC8: 421.5415512 | BD8: 288.0229915 | BE8: 429.1832397 | BF8: 73.48765506 | BG8: 211.8876307 | BH8: 1002.581517
A9: 2023-09-14 | B9: 276.040009 | C9: 0.01747151201 | E9: 8 | F9: 0.002740663495 | I9: A un nivel de 99% de significancia, tu máximo nivel de pérdida diaria es de 7.96% | AA9: 2023-09-13 | AB9: 271.299988 | AC9: 45.475136 | AD9: 276.710571 | AE9: 391.626038 | AF9: 0.01428135503 | AG9: 0.01370638389 | AH9: 0.003776092597 | AI9: 0.00729181402 | AS9: Pesos | AT9: 0.2016776356 | AU9: 0.3131265277 | AV9: 0.1946129582 | AW9: 0.2905828785 | AX9: =SUM(AT9:AW9) -> 1 | AY9: 7 | AZ9: 225.9905975 | BA9: 106.6746761 | BB9: 294.5730682 | BC9: 422.5346068 | BD9: 352.3613234 | BE9: 66.08929604 | BF9: 206.5154237 | BG9: 280.841477 | BH9: 905.8075201
A10: 2023-09-15 | B10: 274.390015 | C10: -0.00597737265 | E10: 9 | F10: -0.03933586903 | I10: Dificultad de liquidar tu posición ante una cantidad grande | AA10: 2023-09-14 | AB10: 276.040009 | AC10: 45.571117 | AD10: 279.646912 | AE10: 395.411011 | AF10: 0.01747151201 | AG10: 0.002110625903 | AH10: 0.01061159676 | AI10: 0.009664763404 | AK10: STEP 2 | AY10: 8 | AZ10: 220.7823658 | BA10: 102.5241749 | BB10: 284.7959297 | BC10: 407.3847034 | BD10: -120.5502383 | BE10: -1154.795659 | BF10: -446.2764849 | BG10: -771.1078061 | BH10: -2492.730188
A11: 2023-09-18 | B11: 265.279999 | C11: -0.0332009749 | E11: 10 | F11: -0.05513375661 | AA11: 2023-09-15 | AB11: 274.390015 | AC11: 43.890476 | AD11: 273.234192 | AE11: 384.918152 | AF11: -0.00597737265 | AG11: -0.03687952174 | AH11: -0.02293148869 | AI11: -0.02653658777 | AK11: VaR | AL11: =AL5+AL8*AL6 -> -0.07959002574 | AM11: =AM5+AM8*AM6 -> -0.06970725193 | AN11: -0.02548137713 | AO11: -0.04087422636 | AS11: VaR Histórico del Portafolio | AT11: =PERCENTILE(BH3:BH251,1%) -> -3409.094585 | AY11: 9 | AZ11: 214.7357315 | BA11: 106.6100322 | BB11: 290.9456673 | BC11: 413.9978255 | BD11: -669.5894117 | BE11: 47.07405697 | BF11: -35.67588333 | BG11: -311.9188001 | BH11: -970.1100381
A12: 2023-09-19 | B12: 266.5 | C12: 0.004598918142 | E12: 11 | F12: -0.0150400506 | H12: 2 | AA12: 2023-09-18 | AB12: 265.279999 | AC12: 43.956459 | AD12: 272.733307 | AE12: 380.786346 | AF12: -0.0332009749 | AG12: 0.001503355762 | AH12: -0.001833171011 | AI12: -0.01073424565 | AS12: EaR Histórico del Portafolio | AT12: =PERCENTILE(BH3:BH251,99%) -> 4163.931784 | AY12: 10 | AZ12: 223.1314657 | BA12: 105.3701574 | BB12: 291.9103577 | BC12: 416.8783711 | BD12: 92.74989372 | BE12: -317.6395958 | BF12: 28.73376642 | BG12: -111.9051287 | BH12: -308.0610644
A13: 2023-09-20 | B13: 262.589996 | C13: -0.0146716848 | E13: 12 | F13: -0.004966564346 | J13: TSLA | AA13: 2023-09-19 | AB13: 266.5 | AC13: 43.510559 | AD13: 273.135986 | AE13: 379.319916 | AF13: 0.004598918142 | AG13: -0.01014412922 | AH13: 0.001476456999 | AI13: -0.003851057202 | AK13: STEP 3 | AY13: 11 | AZ13: 218.8512721 | BA13: 103.3166768 | BB13: 290.5053301 | BC13: 420.6872352 | BD13: -295.8950702 | BE13: -921.6783599 | BF13: -65.07595564 | BG13: 152.5673061 | BH13: -1130.08208
A14: 2023-09-21 | B14: 255.699997 | C14: -0.02623861954 | E14: 13 | F14: -0.06601221266 | H14: Var Histórico | J14: =PERCENTILE(C3:C251,1-I4) -> -0.08889342492 | AA14: 2023-09-20 | AB14: 262.589996 | AC14: 42.229839 | AD14: 272.222656 | AE14: 381.311493 | AF14: -0.0146716848 | AG14: -0.02943469423 | AH14: -0.003343865499 | AI14: 0.005250388698 | AK14: CVaR | AL14: =-AL6*EXP(-(AL8^2/2))/(AL7*SQRT(2*PI())) -> -0.09101512553 | AM14: =-AM6*EXP(-(AM8^2/2))/(AM7*SQRT(2*PI())) -> -0.08457700886 | AN14: -0.02950041771 | AO14: -0.04734712664 | AS14: EaR/ VaR | AT14: =ABS(AT12/AT11) -> 1.221418673 | AV14: Mediante Solver | AY14: 12 | AZ14: 216.2821402 | BA14: 103.3703315 | BB14: 285.191912 | BC14: 411.1062799 | BD14: -529.1742751 | BE14: -905.8956265 | BF14: -419.8378656 | BG14: -512.6962781 | BH14: -2367.604045
A15: 2023-09-22 | B15: 244.880005 | C15: -0.04231518235 | E15: 14 | F15: 0.0006232315771 | AA15: 2023-09-21 | AB15: 255.699997 | AC15: 41.008102 | AD15: 266.350006 | AE15: 374.58374 | AF15: -0.02623861954 | AG15: -0.0289306573 | AH15: -0.02157296562 | AI15: -0.01764371944 | AY15: 13 | AZ15: 212.7113748 | BA15: 107.9889862 | BB15: 292.5547453 | BC15: 422.1430032 | BD15: -853.4025927 | BE15: 452.698375 | BF15: 71.75770877 | BG15: 253.6500688 | BH15: -75.29644019
A16: 2023-09-25 | B16: 246.990005 | C16: 0.008616465032 | E16: 15 | F16: 0.04955797767 | AA16: 2023-09-22 | AB16: 244.880005 | AC16: 41.600971 | AD16: 267.332092 | AE16: 377.853485 | AF16: -0.04231518235 | AG16: 0.0144573626 | AH16: 0.003687200968 | AI16: 0.008729009433 | AK16: STEP 4 | AL16: Matriz de correlación | AY16: 14 | AZ16: 224.023803 | BA16: 108.0156741 | BB16: 288.8673759 | BC16: 420.4213781 | BD16: 173.7748295 | BE16: 460.5486937 | BF16: -174.4375245 | BG16: 134.1072412 | BH16: 593.9932399
A17: 2023-09-26 | B17: 244.119995 | C17: -0.01161994389 | E17: 16 | F17: -0.02058524071 | AA17: 2023-09-25 | AB17: 246.990005 | AC17: 42.212841 | AD17: 264.935913 | AE17: 379.597321 | AF17: 0.008616465032 | AG17: 0.01470807016 | AH17: -0.008963304712 | AI17: 0.004615111595 | AS17: Ejemplo | AY17: 15 | AZ17: 219.5290943 | BA17: 105.6659089 | BB17: 289.2542693 | BC17: 414.2407862 | BD17: -234.348281 | BE17: -230.6432242 | BF17: -148.6057473 | BG17: -295.0485771 | BH17: -908.6458297
A18: 2023-09-27 | B18: 240.5 | C18: -0.01482875256 | E18: 17 | F18: -0.01920652376 | AA18: 2023-09-26 | AB18: 244.119995 | AC18: 41.901909 | AD18: 262.912872 | AE18: 375.743011 | AF18: -0.01161994389 | AG18: -0.007365815535 | AH18: -0.007635963645 | AI18: -0.01015368072 | AL18: TSLA | AM18: NVDA | AN18: MCD | AO18: DPZ | AS18: Monto de la inversión | AT18: 100000 | AY18: 16 | AZ18: 218.8163858 | BA18: 107.8647221 | BB18: 287.0379315 | BC18: 419.5825582 | BD18: -299.0627755 | BE18: 416.1456257 | BF18: -296.584362 | BG18: 75.86291454 | BH18: -103.6385973
A19: 2023-09-28 | B19: 246.380005 | C19: 0.02444908524 | E19: 18 | F19: 0.02259175022 | AA19: 2023-09-27 | AB19: 240.5 | AC19: 42.458786 | AD19: 258.906158 | AE19: 376.723969 | AF19: -0.01482875256 | AG19: 0.01329001502 | AH19: -0.01523970268 | AI19: 0.002610715226 | AK19: TSLA | AL19: =VBAProject.Módulo1.CorrMatrix(AF4:AI252) -> 1 | AM19: 0.2627580873 | AN19: 0.08500611178 | AO19: 0.2485858339 | AY19: 17 | AZ19: 227.5403863 | BA19: 108.0065937 | BB19: 293.635874 | BC19: 420.8014008 | BD19: 493.0833704 | BE19: 457.8776737 | BF19: 143.9416111 | BG19: 160.4945175 | BH19: 1255.397173
A20: 2023-09-29 | B20: 250.220001 | C20: 0.0155856641 | E20: 19 | F20: -0.003566616092 | AA20: 2023-09-28 | AB20: 246.380005 | AC20: 43.079651 | AD20: 260.821106 | AE20: 378.804688 | AF20: 0.02444908524 | AG20: 0.01462276854 | AH20: 0.007396301482 | AI20: 0.0055231925 | AK20: NVDA | AL20: 0.2627580873 | AM20: 1 | AN20: -0.07158116468 | AO20: 0.1771694842 | AS20: 2024-09-10 | AT20: TSLA | AU20: NVDA | AV20: MCD | AW20: DPZ | AY20: 18 | AZ20: 225.5717319 | BA20: 107.4628943 | BB20: 289.1204558 | BC20: 414.6368772 | BD20: 314.3279886 | BE20: 297.9465206 | BF20: -157.540096 | BG20: -267.5455812 | BH20: 187.188832
A21: 2023-10-02 | B21: 251.600006 | C21: 0.005515166631 | E21: 20 | F21: -0.01047715154 | AA21: 2023-09-29 | AB21: 250.220001 | AC21: 43.489563 | AD21: 258.709747 | AE21: 375.316956 | AF21: 0.0155856641 | AG21: 0.009515211718 | AH21: -0.008095046572 | AI21: -0.009207203898 | AK21: MCD | AL21: 0.08500611178 | AM21: -0.07158116468 | AN21: 1 | AO21: 0.1917674655 | AS21: Precio actual | AT21: 222.11 | AU21: 106.45 | AV21: 291.48 | AW21: 418.49 | AY21: 19 | AZ21: 223.3349737 | BA21: 109.5897362 | BB21: 285.1843717 | BC21: 420.423439 | BD21: 111.2285766 | BE21: 923.5647778 | BF21: -420.3413068 | BG21: 134.2503477 | BH21: 748.7023954
A22: 2023-10-03 | B22: 246.529999 | C22: -0.02015106073 | E22: 21 | F22: -0.03908079319 | AA22: 2023-10-02 | AB22: 251.600006 | AC22: 44.772285 | AD22: 253.121918 | AE22: 377.050934 | AF22: 0.005515166631 | AG22: 0.02949493882 | AH22: -0.02159883447 | AI22: 0.004620036405 | AK22: DPZ | AL22: 0.2485858339 | AM22: 0.1771694842 | AN22: 0.1917674655 | AO22: 1 | AS22: Tota invertido | AT22: =$AT$18*AT9 -> 20167.76356 | AU22: =$AT$18*AU9 -> 31312.65277 | AV22: 19461.29582 | AW22: 29058.28785 | AY22: 20 | AZ22: 217.6342479 | BA22: 103.4429992 | BB22: 287.7933713 | BC22: 400.4984119 | BD22: -406.4018283 | BE22: -884.5201605 | BF22: -246.1457761 | BG22: -1249.264605 | BH22: -2786.33237
A23: 2023-10-04 | B23: 261.160004 | C23: 0.05934371095 | E23: 22 | F23: -0.01376062478 | AA23: 2023-10-03 | AB23: 246.529999 | AC23: 43.507557 | AD23: 249.920441 | AE23: 360.840881 | AF23: -0.02015106073 | AG23: -0.02824801102 | AH23: -0.01264796437 | AI23: -0.04299167974 | AS23: Número de acciones inv. | AT23: =AT22/AT21 -> 90.80079043 | AU23: =AU22/AU21 -> 294.1536193 | AV23: 66.76717379 | AW23: 69.43603874 | AY23: 21 | AZ23: 235.2908316 | BA23: 107.7318048 | BB23: 292.9918574 | BC23: 426.3271096 | BD23: 1196.829931 | BE23: 377.0475316 | BF23: 100.9424454 | BG23: 544.1778439 | BH23: 2218.997752
A24: 2023-10-05 | B24: 260.049988 | C24: -0.004250329235 | E24: 23 | F24: 0.0195698317 | AA24: 2023-10-04 | AB24: 261.160004 | AC24: 44.031448 | AD24: 251.216736 | AE24: 367.598389 | AF24: 0.05934371095 | AG24: 0.01204137939 | AH24: 0.005186830636 | AI24: 0.01872711313 | AY24: 22 | AZ24: 221.1659594 | BA24: 108.01384 | BB24: 287.4008084 | BC24: 409.7254297 | BD24: -85.71963507 | BE24: 460.009202 | BF24: -272.3560923 | BG24: -608.5770454 | BH24: -506.6435708
A25: 2023-10-06 | B25: 260.529999 | C25: 0.00184584127 | E25: 24 | F25: 0.04498690256 | H25: 3 | AA25: 2023-10-05 | AB25: 260.049988 | AC25: 44.678307 | AD25: 247.701019 | AE25: 359.899658 | AF25: -0.004250329235 | AG25: 0.01469084096 | AH25: -0.0139947563 | AI25: -0.02094332084 | AK25: STEP 5 | AY25: 23 | AZ25: 222.5199798 | BA25: 109.0083373 | BB25: 286.8459895 | BC25: 393.5231652 | BD25: 37.2264903 | BE25: 752.5441663 | BF25: -309.3997821 | BG25: -1733.598108 | BH25: -1253.227234
A26: 2023-10-09 | B26: 259.670013 | C26: -0.003300909697 | E26: 25 | F26: 0.0008617100883 | AA26: 2023-10-06 | AB26: 260.529999 | AC26: 45.752071 | AD26: 243.763016 | AE26: 338.428284 | AF26: 0.00184584127 | AG26: 0.02403322937 | AH26: -0.01589821074 | AI26: -0.05965933427 | AS26: Nota importante: | AY26: 24 | AZ26: 221.3768349 | BA26: 105.3125024 | BB26: 293.4762821 | BC26: 429.0025362 | BD26: -66.5719663 | BE26: -334.5990475 | BF26: 133.2861121 | BG26: 729.9488708 | BH26: 462.0639691
A27: 2023-10-10 | B27: 263.619995 | C27: 0.01521154466 | E27: 26 | F27: -0.0369200667 | H27: Paso 1 | I27: U(0,1) | J27: =RAND() -> 0.4820144278 | AA27: 2023-10-09 | AB27: 259.670013 | AC27: 45.263176 | AD27: 245.432495 | AE27: 346.929657 | AF27: -0.003300909697 | AG27: -0.01068574579 | AH27: 0.006848778898 | AI27: 0.02512016106 | AL27: TSLA | AM27: NVDA | AN27: MCD | AO27: DPZ | AS27: En el VaR Histórico no se introduce la correlación debido a que su empleo es directo | AY27: 25 | AZ27: 225.4886362 | BA27: 107.6844394 | BB27: 293.3460908 | BC27: 425.0158389 | BD27: 306.7828361 | BE27: 363.1148116 | BF27: 124.5936079 | BG27: 453.1284016 | BH27: 1247.619657
A28: 2023-10-11 | B28: 262.98999 | C28: -0.002389822517 | E28: 27 | F28: -2.431536842e-06 | H28: Paso 2 | I28: Normal | AA28: 2023-10-10 | AB28: 263.619995 | AC28: 45.788067 | AD28: 247.003784 | AE28: 352.3396 | AF28: 0.01521154466 | AG28: 0.01159642443 | AH28: 0.006402122914 | AI28: 0.01559377497 | AK28: Pesos | AL28: 0.25 | AM28: 0.25 | AN28: 0.25 | AO28: 0.25 | AP28: =SUM(AL28:AO28) -> 1 | AS28: mediante simulaciones históricas y su evolución conjunta. | AY28: 26 | AZ28: 221.5791965 | BA28: 108.7929242 | BB28: 290.784668 | BC28: 416.6658619 | BD28: -48.19737548 | BE28: 689.1796193 | BF28: -46.4253524 | BG28: -126.660927 | BH28: 467.8959644
A29: 2023-10-12 | B29: 258.869995 | C29: -0.01566597649 | E29: 28 | F29: -0.00345471972 | H29: Paso 3 | I29: N(u,d) | J29: =NORMINV(J27,I2,I3) -> -0.001687017699 | AA29: 2023-10-11 | AB29: 262.98999 | AC29: 46.795845 | AD29: 246.414551 | AE29: 350.803802 | AF29: -0.002389822517 | AG29: 0.02200962098 | AH29: -0.002385522159 | AI29: -0.004358857193 | AK29: C | AL29: =AL28*AL11 -> -0.01989750643 | AM29: =AM28*AM11 -> -0.01742681298 | AN29: -0.006370344283 | AO29: -0.01021855659 | AY29: 27 | AZ29: 218.63043 | BA29: 106.7661232 | BB29: 285.9854048 | BC29: 413.9038133 | BD29: -315.9477098 | BE29: 92.98876947 | BF29: -366.8585928 | BG29: -318.44664 | BH29: -908.2641731
A30: 2023-10-13 | B30: 251.119995 | C30: -0.0299378072 | E30: 29 | F30: 0.02100240958 | AA30: 2023-10-12 | AB30: 258.869995 | AC30: 46.934814 | AD30: 241.76947 | AE30: 346.959381 | AF30: -0.01566597649 | AG30: 0.002969686732 | AH30: -0.01885067656 | AI30: -0.01095889206 | AY30: 28 | AZ30: 215.4605136 | BA30: 103.0849555 | BB30: 293.9900103 | BC30: 414.4744464 | BD30: -603.7786171 | BE30: -989.840008 | BF30: 167.586297 | BG30: -278.8241327 | BH30: -1704.856461
A31: 2023-10-16 | B31: 253.919998 | C31: 0.01115005995 | E31: 30 | F31: 0.01332296554 | AA31: 2023-10-13 | AB31: 251.119995 | AC31: 45.451134 | AD31: 243.85141 | AE31: 343.630188 | AF31: -0.0299378072 | AG31: -0.03161150271 | AH31: 0.008611260967 | AI31: -0.009595339346 | AK31: STEP 6 | AY31: 29 | AZ31: 224.5865398 | BA31: 107.9345692 | BB31: 293.3933911 | BC31: 424.366512 | BD31: 224.8717729 | BE31: 436.6914124 | BF31: 127.7517146 | BG31: 408.0417124 | BH31: 1197.356612
A32: 2023-10-17 | B32: 254.850006 | C32: 0.003662602423 | E32: 31 | F32: -0.01339603799 | AA32: 2023-10-16 | AB32: 253.919998 | AC32: 46.085003 | AD32: 245.452148 | AE32: 348.455505 | AF32: 0.01115005995 | AG32: 0.01394616469 | AH32: 0.006564399197 | AI32: 0.01404218014 | AY32: 30 | AZ32: 222.9235006 | BA32: 101.4686993 | BB32: 292.8794385 | BC32: 417.0739456 | BD32: 73.86649969 | BE32: -1465.267626 | BF32: 93.43655439 | BG32: -98.32520472 | BH32: -1396.289777
A33: 2023-10-18 | B33: 242.679993 | C33: -0.04775363042 | E33: 32 | F33: -0.08808150309 | AA33: 2023-10-17 | AB33: 254.850006 | AC33: 43.928467 | AD33: 246.6306 | AE33: 347.276428 | AF33: 0.003662602423 | AG33: -0.04679474579 | AH33: 0.004801147636 | AI33: -0.003383723268 | AK33: VaR del | AL33: =-SQRT(MMULT(AL29:AO29,MMULT(_xlfn.ANCHORARRAY(AL19),TRANSPOSE(AL29:AO29)))) -> -0.0349519246 | AY33: 31 | AZ33: 211.5034411 | BA33: 102.2295985 | BB33: 297.155455 | BC33: 412.0781365 | BD33: -963.0839276 | BE33: -1241.446378 | BF33: 378.9340935 | BG33: -445.2143992 | BH33: -2270.810612
A34: 2023-10-19 | B34: 220.110001 | C34: -0.09300310141 | E34: 33 | F34: -0.02225345427 | AA34: 2023-10-18 | AB34: 242.679993 | AC34: 42.186844 | AD34: 251.432785 | AE34: 341.955658 | AF34: -0.04775363042 | AG34: -0.03964679669 | AH34: 0.01947116457 | AI34: -0.01532142573 | AK34: Portafolio | AY34: 32 | AZ34: 201.4530811 | BA34: 106.2103497 | BB34: 294.1553772 | BC34: 417.5077892 | BD34: -1875.66456 | BE34: -70.49399564 | BF34: 178.6273754 | BG34: -68.20082731 | BH34: -1835.732007
A35: 2023-10-20 | B35: 211.990005 | C35: -0.03689062725 | E35: 34 | F35: -0.0008618028836 | AA35: 2023-10-19 | AB35: 220.110001 | AC35: 42.091869 | AD35: 253.740585 | AE35: 341.153076 | AF35: -0.09300310141 | AG35: -0.002251294266 | AH35: 0.00917859618 | AI35: -0.002347035299 | AK35: EaR | AY35: 33 | AZ35: 213.9162228 | BA35: 104.6446841 | BB35: 291.1754297 | BC35: 422.5982676 | BD35: -744.0014479 | BE35: -531.0402006 | BF35: -20.33529688 | BG35: 285.2618263 | BH35: -1010.115119
A36: 2023-10-23 | B36: 212.080002 | C36: 0.0004245341661 | E36: 35 | F36: 0.002658958462 | AA36: 2023-10-20 | AB36: 211.990005 | AC36: 41.378021 | AD36: 253.475449 | AE36: 344.502136 | AF36: -0.03689062725 | AG36: -0.01695928494 | AH36: -0.001044909706 | AI36: 0.009816883492 | AY36: 34 | AZ36: 222.2042933 | BA36: 110.5344436 | BB36: 287.6855828 | BC36: 419.2242067 | BD36: 8.561904686 | BE36: 1201.453875 | BF36: -253.3425119 | BG36: 50.98040447 | BH36: 1007.653672
A37: 2023-10-24 | B37: 216.520004 | C37: 0.02093550527 | E37: 36 | F37: 0.07264956346 | AA37: 2023-10-23 | AB37: 212.080002 | AC37: 42.965679 | AD37: 250.175766 | AE37: 345.106537 | AF37: 0.0004245341661 | AG37: 0.03836959723 | AH37: -0.01301776173 | AI37: 0.00175441873 | AY37: 35 | AZ37: 226.7599851 | BA37: 108.1541815 | BB37: 294.3633299 | BC37: 424.8460345 | BD37: 422.2223204 | BE37: 501.2911415 | BF37: 192.5117856 | BG37: 441.3378582 | BH37: 1557.363106
A38: 2023-10-25 | B38: 212.419998 | C38: -0.01893592243 | E38: 37 | F38: 0.001601647064 | AA38: 2023-10-24 | AB38: 216.520004 | AC38: 43.653526 | AD38: 252.650513 | AE38: 350.348022 | AF38: 0.02093550527 | AG38: 0.01600921982 | AH38: 0.009892033268 | AI38: 0.01518802004 | AY38: 36 | AZ38: 217.9041423 | BA38: 101.8568182 | BB38: 292.3410416 | BC38: 414.1345379 | BD38: -381.8952064 | BE38: -1351.101052 | BF38: 57.48931369 | BG38: -302.4260352 | BH38: -1977.93298
A39: 2023-10-26 | B39: 205.759995 | C39: -0.03135299436 | E39: 38 | F39: 0.002771234428 | AA39: 2023-10-25 | AB39: 212.419998 | AC39: 41.769932 | AD39: 253.396851 | AE39: 346.701752 | AF39: -0.01893592243 | AG39: -0.04314872526 | AH39: 0.002954033187 | AI39: -0.01040756554 | AY39: 37 | AZ39: 215.1461864 | BA39: 102.7478709 | BB39: 288.994841 | BC39: 413.7419139 | BD39: -632.3197773 | BE39: -1088.994665 | BF39: -165.9270426 | BG39: -329.6882871 | BH39: -2216.929772
A40: 2023-10-27 | B40: 207.300003 | C40: 0.007484486963 | E40: 39 | F40: -0.003745789551 | AA40: 2023-10-26 | AB40: 205.759995 | AC40: 40.317253 | AD40: 251.236389 | AE40: 342.768158 | AF40: -0.03135299436 | AG40: -0.03477810306 | AH40: -0.008526001769 | AI40: -0.01134575749 | AY40: 38 | AZ40: 223.7723794 | BA40: 106.9093134 | BB40: 291.4002305 | BC40: 412.0301313 | BD40: 150.9453634 | BE40: 135.1087015 | BF40: -5.325983471 | BG40: -448.5476914 | BH40: -167.8196099
A41: 2023-10-30 | B41: 197.360001 | C41: -0.04794984012 | E41: 40 | F41: 0.01613861009 | AA41: 2023-10-27 | AB41: 207.300003 | AC41: 40.491215 | AD41: 251.167633 | AE41: 337.477142 | AF41: 0.007484486963 | AG41: 0.004314827699 | AH41: -0.000273670547 | AI41: -0.01543613628 | AY41: 39 | AZ41: 211.459861 | BA41: 108.1873622 | BB41: 296.483097 | BC41: 416.1677366 | BD41: -967.0410383 | BE41: 511.0513931 | BF41: 334.0426499 | BG41: -161.2487737 | BH41: -283.195769
A42: 2023-10-31 | B42: 200.839996 | C42: 0.01763272691 | E42: 41 | F42: -0.04727627905 | AA42: 2023-10-30 | AB42: 197.360001 | AC42: 41.152069 | AD42: 255.47879 | AE42: 335.604431 | AF42: -0.04794984012 | AG42: 0.01632092295 | AH42: 0.01716446084 | AI42: -0.005549149163 | AY42: 40 | AZ42: 226.026405 | BA42: 105.464664 | BB42: 293.7432751 | BC42: 418.8359542 | BD42: 355.6126672 | BE42: -289.8401477 | BF42: 151.1124825 | BG42: 24.02169145 | BH42: 240.9066935
A43: 2023-11-01 | B43: 205.660004 | C43: 0.02399924366 | E43: 42 | F43: 0.0603079604 | AA43: 2023-10-31 | AB43: 200.839996 | AC43: 40.771152 | AD43: 257.462524 | AE43: 335.881866 | AF43: 0.01763272691 | AG43: -0.00925632682 | AH43: 0.007764769827 | AI43: 0.0008266726371 | AY43: 41 | AZ43: 227.440472 | BA43: 110.4830042 | BB43: 291.2576731 | BC43: 424.8354633 | BD43: 484.0110717 | BE43: 1186.322787 | BF43: -14.84413814 | BG43: 440.6038341 | BH43: 2096.093555
A44: 2023-11-02 | B44: 218.509995 | C44: 0.06248172104 | E44: 43 | F44: 0.031628345 | AA44: 2023-11-01 | AB44: 205.660004 | AC44: 42.315823 | AD44: 257.266144 | AE44: 340.974762 | AF44: 0.02399924366 | AG44: 0.03788637123 | AH44: -0.000762751786 | AI44: 0.01516275964 | AY44: 42 | AZ44: 235.9878151 | BA44: 109.4202683 | BB44: 296.9096943 | BC44: 423.6583401 | BD44: 1260.116577 | BE44: 873.7151676 | BF44: 362.5253414 | BG44: 358.8690615 | BH44: 2855.226147
A45: 2023-11-03 | B45: 219.960007 | C45: 0.006635906975 | E45: 44 | F45: 0.009801381243 | H45: VaR MC | I45: =PERCENTILE(F2:F1001,1-I4) -> -0.08808185692 | AA45: 2023-11-02 | AB45: 218.509995 | AC45: 43.496559 | AD45: 262.058502 | AE45: 345.185791 | AF45: 0.06248172104 | AG45: 0.02790294307 | AH45: 0.0186280166 | AI45: 0.01234997269 | AY45: 43 | AZ45: 223.5839013 | BA45: 110.1177496 | BB45: 292.5941382 | BC45: 434.7788892 | BD45: 133.8314029 | BE45: 1078.881814 | BF45: 74.38786066 | BG45: 1131.035945 | BH45: 2418.137022
A46: 2023-11-06 | B46: 219.270004 | C46: -0.003136947527 | E46: 45 | F46: -0.02587066046 | AA46: 2023-11-03 | AB46: 219.960007 | AC46: 44.995239 | AD46: 263.060181 | AE46: 358.62146 | AF46: 0.006635906975 | AG46: 0.03445513931 | AH46: 0.003822348798 | AI46: 0.03892300712 | AY46: 44 | AZ46: 221.4132526 | BA46: 108.2145079 | BB46: 292.6117053 | BC46: 425.7858724 | BD46: -63.26521603 | BE46: 519.0363878 | BF46: 75.5607631 | BG46: 506.5964752 | BH46: 1037.92841
A47: 2023-11-07 | B47: 222.179993 | C47: 0.01327125894 | E47: 46 | F47: -0.04195381603 | AA47: 2023-11-06 | AB47: 219.270004 | AC47: 45.741077 | AD47: 264.081543 | AE47: 364.873596 | AF47: -0.003136947527 | AG47: 0.01657593151 | AH47: 0.003882617263 | AI47: 0.01743380332 | AY47: 45 | AZ47: 225.0576793 | BA47: 106.9246548 | BB47: 291.2198263 | BC47: 422.4106783 | BD47: 267.6516124 | BE47: 139.6214331 | BF47: -17.3710653 | BG47: 272.2363698 | BH47: 662.13835
A48: 2023-11-08 | B48: 222.110001 | C48: -0.0003150238645 | E48: 47 | F48: 0.01325365685 | AA48: 2023-11-07 | AB48: 222.179993 | AC48: 45.945034 | AD48: 263.845825 | AE48: 368.291962 | AF48: 0.01327125894 | AG48: 0.004458946168 | AH48: -0.0008925955117 | AI48: 0.009368630774 | AY48: 46 | AZ48: 222.04003 | BA48: 107.8838407 | BB48: 290.1998175 | BC48: 418.647607 | BD48: -6.353326815 | BE48: 421.7694326 | BF48: -85.47416882 | BG48: 10.9436074 | BH48: 340.8855443
A49: 2023-11-09 | B49: 209.979996 | C49: -0.05461260162 | E49: 48 | F49: 0.001379751423 | J49: Uso según el ámbito | AA49: 2023-11-08 | AB49: 222.110001 | AC49: 46.563896 | AD49: 262.687012 | AE49: 368.430664 | AF49: -0.0003150238645 | AG49: 0.01346961676 | AH49: -0.004392008098 | AI49: 0.0003766088167 | AY49: 47 | AZ49: 209.9799951 | BA49: 107.309393 | BB49: 290.8479886 | BC49: 416.0702762 | BD49: -1101.414037 | BE49: 252.793547 | BF49: -42.19761299 | BG49: -168.0160378 | BH49: -1058.834141
A50: 2023-11-10 | B50: 214.649994 | C50: 0.02224020425 | E50: 49 | F50: -0.01572271996 | H50: Conclusiones | J50: Académico | K50: Laboral | AA50: 2023-11-09 | AB50: 209.979996 | AC50: 46.939816 | AD50: 262.117432 | AE50: 366.300385 | AF50: -0.05461260162 | AG50: 0.00807320762 | AH50: -0.002168283828 | AI50: -0.005782035015 | AY50: 48 | AZ50: 227.0497718 | BA50: 109.5902102 | BB50: 292.4410038 | BC50: 428.4743018 | BD50: 448.5351809 | BE50: 923.7041969 | BF50: 64.1635082 | BG50: 693.2703639 | BH50: 2129.67325
A51: 2023-11-13 | B51: 223.710007 | C51: 0.04220830773 | E51: 50 | F51: 0.0639896828 | H51: Var Paramétrico | I51: -0.07959002574 | J51: 2 | K51: 2 | AA51: 2023-11-10 | AB51: 214.649994 | AC51: 48.324512 | AD51: 262.981628 | AE51: 375.039551 | AF51: 0.02224020425 | AG51: 0.02949939131 | AH51: 0.003296980263 | AI51: 0.02385792196 | AY51: 49 | AZ51: 231.4848872 | BA51: 107.0776681 | BB51: 293.0147261 | BC51: 414.1117105 | BD51: 851.2471705 | BE51: 184.630855 | BF51: 102.4693266 | BG51: -304.0110785 | BH51: 834.3362736
A52: 2023-11-14 | B52: 237.410004 | C52: 0.06123998289 | E52: 51 | F52: -0.02473622727 | H52: Var Histórico | I52: -0.08889342492 | J52: 3 | K52: 1 | AA52: 2023-11-13 | AB52: 223.710007 | AC52: 48.609451 | AD52: 264.366302 | AE52: 371.115845 | AF52: 0.04220830773 | AG52: 0.005896365803 | AH52: 0.005265287961 | AI52: -0.01046211257 | AY52: 50 | AZ52: 235.7120126 | BA52: 108.7182472 | BB52: 293.9595177 | BC52: 427.2720882 | BD52: 1235.073495 | BE52: 667.2131089 | BF52: 165.5503877 | BG52: 609.7934161 | BH52: 2677.630408
A53: 2023-11-15 | B53: 242.839996 | C53: 0.02287179103 | E53: 52 | F53: 0.02010066994 | H53: VaR MC | I53: -0.08808185692 | J53: 1 | K53: 3 | AA53: 2023-11-14 | AB53: 237.410004 | AC53: 49.645226 | AD53: 266.615173 | AE53: 378.903778 | AF53: 0.06123998289 | AG53: 0.02130809912 | AH53: 0.008506647719 | AI53: 0.02098518052 | AY53: 51 | AZ53: 227.1900535 | BA53: 104.8035994 | BB53: 290.2990593 | BC53: 417.4175111 | BD53: 461.2728737 | BE53: -484.2946919 | BF53: -78.84806969 | BG53: -74.46938356 | BH53: -176.3392714
A54: 2023-11-16 | B54: 233.589996 | C54: -0.03809092469 | E54: 53 | F54: 0.03361513153 | AA54: 2023-11-15 | AB54: 242.839996 | AC54: 48.877392 | AD54: 265.534973 | AE54: 377.932739 | AF54: 0.02287179103 | AG54: -0.01546642169 | AH54: -0.004051532356 | AI54: -0.002562758823 | AY54: 52 | AZ54: 213.6496247 | BA54: 107.739048 | BB54: 297.6569222 | BC54: 411.1499935 | BD54: -768.208763 | BE54: 379.1781481 | BF54: 412.4156348 | BG54: -509.6609756 | BH54: -486.2759557
A55: 2023-11-17 | B55: 234.300003 | C55: 0.003039543697 | E55: 54 | F55: -0.03591444054 | AA55: 2023-11-16 | AB55: 233.589996 | AC55: 49.469269 | AD55: 271.162079 | AE55: 371.304077 | AF55: -0.03809092469 | AG55: 0.0121094227 | AH55: 0.02119158142 | AI55: -0.01753926378 | AY55: 53 | AZ55: 222.7851131 | BA55: 106.0584489 | BB55: 291.0893998 | BC55: 415.8991707 | BD55: 61.30079861 | BE55: -115.1761836 | BF55: -26.07927137 | BG55: -179.8969221 | BH55: -259.8515785
A56: 2023-11-20 | B56: 235.600006 | C56: 0.005548454901 | E56: 55 | F56: 0.06784494736 | AA56: 2023-11-17 | AB56: 234.300003 | AC56: 49.287308 | AD56: 270.798706 | AE56: 369.005371 | AF56: 0.003039543697 | AG56: -0.003678263368 | AH56: -0.00134005832 | AI56: -0.006190898895 | AY56: 54 | AZ56: 223.3423673 | BA56: 108.8489944 | BB56: 294.9471324 | BC56: 414.0850724 | BD56: 111.8999266 | BE56: 705.6728873 | BF56: 231.4906327 | BG56: -305.8607235 | BH56: 743.2027231
A57: 2023-11-21 | B57: 241.199997 | C57: 0.02376906136 | E57: 56 | F57: -0.01606320109 | AA57: 2023-11-20 | AB57: 235.600006 | AC57: 50.398064 | AD57: 274.019836 | AE57: 365.121307 | AF57: 0.005548454901 | AG57: 0.02253634952 | AH57: 0.0118949239 | AI57: -0.01052576549 | AY57: 55 | AZ57: 227.3893462 | BA57: 105.4680519 | BB57: 292.98423 | BC57: 419.4098586 | BD57: 479.3688097 | BE57: -288.8436019 | BF57: 100.4331872 | BG57: 63.8713397 | BH57: 354.8297346
A58: 2023-11-22 | B58: 234.210007 | C58: -0.0289800584 | E58: 57 | F58: -0.01624312443 | AA58: 2023-11-21 | AB58: 241.199997 | AC58: 49.933167 | AD58: 275.43396 | AE58: 365.923859 | AF58: 0.02376906136 | AG58: -0.009224501163 | AH58: 0.005160662894 | AI58: 0.002198042088 | AY58: 56 | AZ58: 215.6732392 | BA58: 103.8326473 | BB58: 292.997305 | BC58: 418.6939991 | BD58: -584.4629659 | BE58: -769.9037734 | BF58: 101.3061655 | BG58: 14.16489242 | BH58: -1238.895681
A59: 2023-11-24 | B59: 235.449997 | C59: 0.005294351065 | E59: 58 | F59: 0.0175333744 | AA59: 2023-11-22 | AB59: 234.210007 | AC59: 48.705429 | AD59: 276.867737 | AE59: 366.102234 | AF59: -0.0289800584 | AG59: -0.0245876253 | AH59: 0.005205520046 | AI59: 0.000487464798 | AY59: 57 | AZ59: 223.2859283 | BA59: 104.3959997 | BB59: 292.1106766 | BC59: 419.4300684 | BD59: 106.7752205 | BE59: -604.1916166 | BF59: 42.10849555 | BG59: 65.27462826 | BH59: -390.0332723
A60: 2023-11-27 | B60: 236.080002 | C60: 0.002675748601 | E60: 59 | F60: 0.005570053557 | AA60: 2023-11-24 | AB60: 235.449997 | AC60: 47.765636 | AD60: 277.466797 | AE60: 366.924622 | AF60: 0.005294351065 | AG60: -0.01929544651 | AH60: 0.002163704614 | AI60: 0.002246334285 | AY60: 58 | AZ60: 222.7043105 | BA60: 107.4882932 | BB60: 290.7578425 | BC60: 437.4187981 | BD60: 53.96386513 | BE60: 305.4177063 | BF60: -48.2164132 | BG60: 1314.340757 | BH60: 1625.505915
A61: 2023-11-28 | B61: 246.720001 | C61: 0.04506946336 | E61: 60 | F61: 0.03846443608 | AA61: 2023-11-27 | AB61: 236.080002 | AC61: 48.231533 | AD61: 276.779358 | AE61: 383.521057 | AF61: 0.002675748601 | AG61: 0.009753811296 | AH61: -0.002477554098 | AI61: 0.04523118375 | AY61: 59 | AZ61: 232.1203785 | BA61: 105.5210254 | BB61: 291.738554 | BC61: 419.7873733 | BD61: 908.9502809 | BE61: -273.2612434 | BF61: 17.26292241 | BG61: 90.08445973 | BH61: 743.0364196
A62: 2023-11-29 | B62: 244.139999 | C62: -0.01045720651 | E62: 61 | F62: -0.03123880311 | AA62: 2023-11-28 | AB62: 246.720001 | AC62: 47.810623 | AD62: 277.024872 | AE62: 384.710022 | AF62: 0.04506946336 | AG62: -0.008726863399 | AH62: 0.0008870386931 | AI62: 0.003100129649 | AY62: 60 | AZ62: 219.7873499 | BA62: 107.1600997 | BB62: 289.7130522 | BC62: 419.1259261 | BD62: -210.8984684 | BE62: 208.8784113 | BF62: -117.9741101 | BG62: 44.1561925 | BH62: -75.8379747
A63: 2023-11-30 | B63: 240.080002 | C63: -0.01662979035 | E63: 62 | F63: -0.07525899082 | AA63: 2023-11-29 | AB63: 244.139999 | AC63: 48.129555 | AD63: 275.345551 | AE63: 385.294617 | AF63: -0.01045720651 | AG63: 0.006670735079 | AH63: -0.006061986376 | AI63: 0.001519573098 | AY63: 61 | AZ63: 218.4163573 | BA63: 103.4205771 | BB63: 294.7534193 | BC63: 422.8270985 | BD63: -335.3856799 | BE63: -891.1157215 | BF63: 218.5569579 | BG63: 301.1509387 | BH63: -706.7935048
A64: 2023-12-01 | B64: 238.830002 | C64: -0.005206597757 | E64: 63 | F64: -0.01647547651 | AA64: 2023-11-30 | AB64: 240.080002 | AC64: 46.759853 | AD64: 278.437775 | AE64: 389.287689 | AF64: -0.01662979035 | AG64: -0.02845864667 | AH64: 0.01123033944 | AI64: 0.01036368489 | AY64: 62 | AZ64: 220.9535626 | BA64: 106.4386151 | BB64: 295.7409045 | BC64: 423.0595017 | BD64: -105.0054325 | BE64: -3.348910796 | BF64: 284.4885496 | BG64: 317.2880962 | BH64: 493.4223025
A65: 2023-12-04 | B65: 235.580002 | C65: -0.01360800558 | E65: 64 | F65: -0.04852611735 | AA65: 2023-12-01 | AB65: 238.830002 | AC65: 46.754852 | AD65: 282.508026 | AE65: 393.53833 | AF65: -0.005206597757 | AG65: -0.0001069507212 | AH65: 0.01461817097 | AI65: 0.01091902241 | AY65: 63 | AZ65: 219.0875259 | BA65: 103.5932696 | BB65: 291.6533034 | BC65: 421.2716655 | BD65: -274.4430391 | BE65: -840.3175955 | BF65: 11.57097886 | BG65: 193.1478344 | BH65: -910.0418214
A66: 2023-12-05 | B66: 238.720001 | C66: 0.01332880114 | E66: 65 | F66: -0.01162464562 | AA66: 2023-12-04 | AB66: 235.580002 | AC66: 45.500122 | AD66: 282.675995 | AE66: 396.154144 | AF66: -0.01360800558 | AG66: -0.02683635914 | AH66: 0.0005945636391 | AI66: 0.006646910353 | AY66: 64 | AZ66: 225.07046 | BA66: 108.9296186 | BB66: 291.8976757 | BC66: 412.4505262 | BD66: 268.81211 | BE66: 729.3887842 | BF66: 27.8870248 | BG66: -419.3571362 | BH66: 606.7307828
A67: 2023-12-06 | B67: 239.369995 | C67: 0.002722830082 | E67: 66 | F67: -0.04297347625 | AA67: 2023-12-05 | AB67: 238.720001 | AC67: 46.55999 | AD67: 283.081055 | AE67: 390.437012 | AF67: 0.01332880114 | AG67: 0.02329373974 | AH67: 0.001432947994 | AI67: -0.01443158449 | AY67: 65 | AZ67: 222.7147678 | BA67: 104.019981 | BB67: 291.8055105 | BC67: 416.8863781 | BD67: 54.91339332 | BE67: -714.798881 | BF67: 21.73341804 | BG67: -111.3491538 | BH67: -749.5012235
A68: 2023-12-07 | B68: 242.639999 | C68: =B68/B67-1 -> 0.01366087675 | E68: 67 | F68: 0.0260841623 | AA68: 2023-12-06 | AB68: 239.369995 | AC68: 45.497128 | AD68: 283.397186 | AE68: 388.940887 | AF68: 0.002722830082 | AG68: -0.022827797 | AH68: 0.001116750819 | AI68: -0.003831924111 | AY68: 66 | AZ68: =$AT$21*(1+AF69) -> 225.1442173 | BA68: =$AU$21*(1+AG69) -> 109.0069758 | BB68: =$AV$21*(1+AH69) -> 291.4088747 | BC68: =$AW$21*(1+AI69) -> 428.5754106 | BD68: =AZ68*$AT$23-$AT$22 -> 275.5093324 | BE68: =BA68*$AU$23-$AU$22 -> 752.1436742 | BF68: =BB68*$AV$23-$AV$22 -> -4.748836813 | BG68: =BC68*$AW$23-$AW$22 -> 700.2909622 | BH68: =SUM(BD68:BG68) -> 1723.195132
A69: 2023-12-08 | B69: 243.839996 | C69: 0.004945586074 | E69: 68 | F69: -0.03263809993 | AA69: 2023-12-07 | AB69: 242.639999 | AC69: 46.589989 | AD69: 283.328033 | AE69: 398.314178 | AF69: =AB69/AB68-1 -> 0.01366087675 | AG69: 0.02402043927 | AH69: -0.0002440144201 | AI69: 0.02409952595 | AY69: 67 | AZ69: 223.2084641 | BA69: 108.5289194 | BB69: 290.1994039 | BC69: 411.0987484 | BD69: 99.74141061 | BE69: 611.5216687 | BF69: -85.50178043 | BG69: -513.2192355 | BH69: 112.5420634
A70: 2023-12-11 | B70: 239.740005 | C70: -0.01681426783 | E70: 69 | F70: -0.02244776036 | AA70: 2023-12-08 | AB70: 243.839996 | AC70: 47.49987 | AD70: 282.083252 | AE70: 391.279266 | AF70: 0.004945586074 | AG70: 0.01952953885 | AH70: -0.004393426894 | AI70: -0.01766171627 | AY70: 68 | AZ70: 218.375383 | BA70: 104.4803626 | BB70: 295.1753954 | BC70: 421.2241113 | BD70: -339.106178 | BE70: -579.3759742 | BF70: 246.7311039 | BG70: 189.8458564 | BH70: -481.905192
A71: 2023-12-12 | B71: 237.009995 | C71: -0.01138737776 | E71: 70 | F71: 0.02625173127 | AA71: 2023-12-11 | AB71: 239.740005 | AC71: 46.620983 | AD71: 285.659515 | AE71: 393.835602 | AF71: -0.01681426783 | AG71: -0.01850293485 | AH71: 0.01267804088 | AI71: 0.006533277437 | AY71: 69 | AZ71: 219.5807495 | BA71: 108.8015067 | BB71: 293.7683413 | BC71: 417.7845936 | BD71: -229.6579422 | BE71: 691.7042139 | BF71: 152.786079 | BG71: -48.98062855 | BH71: 565.8517222
A72: 2023-12-13 | B72: 239.289993 | C72: 0.009619839028 | E72: 71 | F72: 0.005787230124 | AA72: 2023-12-12 | AB72: 237.009995 | AC72: 47.650852 | AD72: 287.902161 | AE72: 393.171753 | AF72: -0.01138737776 | AG72: 0.02209024636 | AH72: 0.007850765972 | AI72: -0.001685599262 | AY72: 70 | AZ72: 224.2466624 | BA72: 107.4127175 | BB72: 295.9908748 | BC72: 424.8072464 | BD72: 194.010639 | BE72: 283.186831 | BF72: 301.1783604 | BG72: 438.6445657 | BH72: 1217.020396
A73: 2023-12-14 | B73: 251.050003 | C73: 0.04914543167 | E73: 72 | F73: -0.004119549709 | AA73: 2023-12-13 | AB73: 239.289993 | AC73: 48.081799 | AD73: 292.357666 | AE73: 399.106812 | AF73: 0.009619839028 | AG73: 0.009043846687 | AH73: 0.01547576088 | AI73: 0.01509533418 | AY73: 71 | AZ73: 233.0256918 | BA73: 107.0299603 | BB73: 285.6589047 | BC73: 419.8030432 | BD73: 991.153446 | BE73: 170.5974273 | BF73: -388.6580807 | BG73: 91.17251705 | BH73: 864.2653096
A74: 2023-12-15 | B74: 253.5 | C74: 0.009759000083 | E74: 73 | F74: -0.02797506982 | AA74: 2023-12-14 | AB74: 251.050003 | AC74: 48.343758 | AD74: 286.519043 | AE74: 400.359039 | AF74: 0.04914543167 | AG74: 0.005448194648 | AH74: -0.01997082231 | AI74: 0.003137573608 | AY74: 72 | AZ74: 224.2775715 | BA74: 107.6388973 | BB74: 288.7161323 | BC74: 415.5812649 | BD74: 196.8172063 | BE74: 349.7184318 | BF74: -184.5356364 | BG74: -201.971045 | BH74: 160.0289567
A75: 2023-12-18 | B75: 252.080002 | C75: -0.00560157002 | E75: 74 | F75: 0.0557007767 | AA75: 2023-12-15 | AB75: 253.5 | AC75: 48.88369 | AD75: 283.802216 | AE75: 397.576324 | AF75: 0.009759000083 | AG75: 0.01116859802 | AH75: -0.009482186495 | AI75: -0.006950548705 | AY75: 73 | AZ75: 220.8658353 | BA75: 109.0345015 | BB75: 294.4833965 | BC75: 421.6178391 | BD75: -112.9711397 | BE75: 760.2404671 | BF75: 200.5282983 | BG75: 217.1847536 | BH75: 1064.982379
A76: 2023-12-19 | B76: 257.220001 | C76: 0.02039034814 | E76: 75 | F76: -0.009382288299 | AA76: 2023-12-18 | AB76: 252.080002 | AC76: 50.070538 | AD76: 286.726501 | AE76: 400.547852 | AF76: -0.00560157002 | AG76: 0.02427901822 | AH76: 0.01030395407 | AI76: 0.007474107035 | AY76: 74 | AZ76: 226.6389002 | BA76: 105.4445313 | BB76: 291.9821786 | BC76: 422.1345351 | BD76: 411.2277202 | BE76: -295.7622442 | BF76: 33.52904606 | BG76: 253.0620821 | BH76: 402.0566041
A77: 2023-12-20 | B77: 247.139999 | C77: -0.03918825115 | E77: 76 | F77: -0.05436105332 | AA77: 2023-12-19 | AB77: 257.220001 | AC77: 49.597599 | AD77: 287.22049 | AE77: 404.036133 | AF77: 0.02039034814 | AG77: -0.00944545473 | AH77: 0.001722857839 | AI77: 0.008708774701 | AY77: 75 | AZ77: 213.4058975 | BA77: 103.246024 | BB77: 289.7354502 | BC77: 415.0931056 | BD77: -790.3393836 | BE77: -942.4611436 | BF77: -116.4786584 | BG77: -235.8668926 | BH77: -2085.146078
A78: 2023-12-21 | B78: 254.5 | C78: 0.02978069527 | E78: 77 | F78: 0.03003811036 | AA78: 2023-12-20 | AB78: 247.139999 | AC78: 48.10479 | AD78: 285.501434 | AE78: 400.756561 | AF78: -0.03918825115 | AG78: -0.03009841263 | AH78: -0.005985144026 | AI78: -0.008117026504 | AY78: 76 | AZ78: 228.7245902 | BA78: 108.394878 | BB78: 293.9007155 | BC78: 424.2497232 | BD78: 600.610021 | BE78: 572.0928978 | BF78: 161.6243297 | BG78: 399.9323663 | BH78: 1734.259615
A79: 2023-12-22 | B79: 252.539993 | C79: -0.00770140275 | E79: 78 | F79: -0.003513867038 | AA79: 2023-12-21 | AB79: 254.5 | AC79: 48.983681 | AD79: 287.872498 | AE79: 406.272217 | AF79: 0.02978069527 | AG79: 0.01827034272 | AH79: 0.008304911001 | AI79: 0.01376310842 | AY79: 77 | AZ79: 220.3994414 | BA79: 106.1023423 | BB79: 291.7900807 | BC79: 419.5546514 | BD79: -155.3200698 | BE79: -102.2647574 | BF79: 20.7032129 | BG79: 73.92517691 | BH79: -162.9564373
A80: 2023-12-26 | B80: 256.609985 | C80: 0.01611622758 | E80: 79 | F80: 0.0007570759056 | AA80: 2023-12-22 | AB80: 252.539993 | AC80: 48.823704 | AD80: 288.178741 | AE80: 407.305786 | AF80: -0.00770140275 | AG80: -0.003265924421 | AH80: 0.001063814717 | AI80: 0.002544030718 | AY80: 78 | AZ80: 225.6895753 | BA80: 107.4288122 | BB80: 292.6391251 | BC80: 420.0216876 | BD80: 325.0282673 | BE80: 287.9211517 | BF80: 77.39150551 | BG80: 106.3543197 | BH80: 796.6952442
A81: 2023-12-27 | B81: 261.440002 | C81: 0.01882240475 | E81: 80 | F81: -0.01050460755 | AA81: 2023-12-26 | AB81: 256.609985 | AC81: 49.27264 | AD81: 289.324738 | AE81: 408.796539 | AF81: 0.01611622758 | AG81: 0.009195041818 | AH81: 0.003976688204 | AI81: 0.003660033938 | AY81: 79 | AZ81: 226.2906443 | BA81: 106.7481002 | BB81: 293.1620232 | BC81: 421.0436265 | BD81: 379.6058086 | BE81: 87.6872531 | BF81: 112.3039366 | BG81: 177.3137094 | BH81: 756.9107077
A82: 2023-12-28 | B82: 253.179993 | C82: -0.03159428143 | E82: 81 | F82: -0.003017315554 | AA82: 2023-12-27 | AB82: 261.440002 | AC82: 49.410622 | AD82: 290.994324 | AE82: 411.291016 | AF82: 0.01882240475 | AG82: 0.002800377654 | AH82: 0.005770629956 | AI82: 0.00610200127 | AY82: 80 | AZ82: 215.0925942 | BA82: 106.6761856 | BB82: 292.7565711 | BC82: 415.8203886 | BD82: -637.1859978 | BE82: 66.5333213 | BF82: 85.23304284 | BG82: -185.3672416 | BH82: -670.7868752
A83: 2023-12-29 | B83: 248.479996 | C83: -0.01856385627 | E83: 82 | F83: -0.004691268793 | AA83: 2023-12-28 | AB83: 253.179993 | AC83: 49.51561 | AD83: 292.268768 | AE83: 408.667328 | AF83: -0.03159428143 | AG83: 0.002124806282 | AH83: 0.004379618071 | AI83: -0.006379152225 | AY83: 81 | AZ83: 217.9867819 | BA83: 106.45 | BB83: 292.1401406 | BC83: 419.5280672 | BD83: -374.391464 | BE83: 0 | BF83: 44.07572264 | BG83: 72.07927449 | BH83: -258.2364669
A84: 2024-01-02 | B84: 248.419998 | C84: -0.0002414600812 | E84: 83 | F84: 0.006840729157 | AA84: 2023-12-29 | AB84: 248.479996 | AC84: 49.51561 | AD84: 292.930695 | AE84: 409.68103 | AF84: -0.01856385627 | AG84: 0 | AH84: 0.002264788689 | AI84: 0.002480506589 | AY84: 82 | AZ84: 222.0563693 | BA84: 103.5395103 | BB84: 292.0010269 | BC84: 419.4138352 | BD84: -4.869709826 | BE84: -856.1310694 | BF84: 34.78749031 | BG84: 64.14745611 | BH84: -762.0658328
A85: 2024-01-03 | B85: 238.449997 | C85: -0.04013364898 | E85: 84 | F85: 0.06830296455 | AA85: 2024-01-02 | AB85: 248.419998 | AC85: 48.161785 | AD85: 293.454315 | AE85: 410.585419 | AF85: -0.0002414600812 | AG85: -0.0273413778 | AH85: 0.001787521789 | AI85: 0.002207544245 | AY85: 83 | AZ85: 213.1959152 | BA85: 105.1262253 | BB85: 288.8796026 | BC85: 405.6457698 | BD85: -809.4059435 | BE85: -389.3931244 | BF85: -173.6211871 | BG85: -891.8524639 | BH85: -2264.272719
A86: 2024-01-04 | B86: 237.929993 | C86: -0.002180767484 | E86: 85 | F86: 0.01622049571 | AA86: 2024-01-03 | AB86: 238.449997 | AC86: 47.562862 | AD86: 290.836304 | AE86: 397.983795 | AF86: -0.04013364898 | AG86: -0.01243564789 | AH86: -0.008921357997 | AI86: -0.0306918449 | AY86: 84 | AZ86: 221.6256297 | BA86: 107.4100245 | BB86: 288.8561636 | BC86: 419.3364704 | BD86: -43.981203 | BE86: 282.3946923 | BF86: -175.1861412 | BG86: 58.7755547 | BH86: 122.0029028
A87: 2024-01-05 | B87: 237.490005 | C87: -0.001849233022 | E87: 86 | F87: -0.0296011481 | AA87: 2024-01-04 | AB87: 237.929993 | AC87: 47.99181 | AD87: 288.218262 | AE87: 398.788788 | AF87: -0.002180767484 | AG87: 0.009018548968 | AH87: -0.009001771663 | AI87: 0.002022677833 | AY87: 85 | AZ87: 221.6992669 | BA87: 108.8873535 | BB87: 288.7324259 | BC87: 417.1967897 | BD87: -37.29489436 | BE87: 716.9563671 | BF87: -183.447756 | BG87: -89.79540284 | BH87: 406.418314
A88: 2024-01-08 | B88: 240.449997 | C88: 0.01246364873 | E88: 87 | F88: -0.03714420122 | AA88: 2024-01-05 | AB88: 237.490005 | AC88: 49.090664 | AD88: 285.501434 | AE88: 397.556458 | AF88: -0.001849233022 | AG88: 0.02289669842 | AH88: -0.009426286805 | AI88: -0.003090182164 | AY88: 86 | AZ88: 224.878301 | BA88: 113.292706 | BB88: 294.4150796 | BC88: 421.2727517 | BD88: 251.3639208 | BE88: 2012.806737 | BF88: 195.9669708 | BG88: 193.2232556 | BH88: 2653.360884
A89: 2024-01-09 | B89: 234.960007 | C89: -0.02283214834 | E89: 88 | F89: 0.02840886433 | AA89: 2024-01-08 | AB89: 240.449997 | AC89: 52.246258 | AD89: 288.376312 | AE89: 400.200012 | AF89: 0.01246364873 | AG89: 0.06428093945 | AH89: 0.01006957464 | AI89: 0.006649505867 | AY89: 87 | AZ89: 217.0387515 | BA89: 108.2570005 | BB89: 290.4515015 | BC89: 426.2323377 | BD89: -460.4733693 | BE89: 531.5357392 | BF89: -68.66993699 | BG89: 537.5972602 | BH89: 539.9896931
A90: 2024-01-10 | B90: 233.940002 | C90: -0.004341185604 | E90: 89 | F90: -0.006837419588 | AA90: 2024-01-09 | AB90: 234.960007 | AC90: 53.133144 | AD90: 287.358765 | AE90: 407.603973 | AF90: -0.02283214834 | AG90: 0.01697511045 | AH90: -0.00352853878 | AI90: 0.01850065162 | AY90: 88 | AZ90: 221.1457793 | BA90: 108.8738691 | BB90: 294.7067439 | BC90: 422.5612048 | BD90: -87.55200485 | BE90: 712.9898763 | BF90: 215.4405724 | BG90: 282.6883312 | BH90: 1123.566775
A91: 2024-01-11 | B91: 227.220001 | C91: -0.02872531821 | E91: 90 | F91: 0.01022478803 | AA91: 2024-01-10 | AB91: 233.940002 | AC91: 54.342987 | AD91: 290.539886 | AE91: 411.569275 | AF91: -0.004341185604 | AG91: 0.02277002468 | AH91: 0.01107020696 | AI91: 0.009728320288 | AY91: 89 | AZ91: 215.7298196 | BA91: 107.3744598 | BB91: 291.5394879 | BC91: 416.1354804 | BD91: -579.3254259 | BE91: 271.9331942 | BF91: 3.97183675 | BG91: -163.4885119 | BH91: -466.9089069
A92: 2024-01-12 | B92: 218.889999 | C92: -0.03666051388 | E92: 91 | F92: 0.05437540739 | AA92: 2024-01-11 | AB92: 227.220001 | AC92: 54.814926 | AD92: 290.599182 | AE92: 409.253693 | AF92: -0.02872531821 | AG92: 0.008684450857 | AH92: 0.0002040890179 | AI92: -0.005626226593 | AY92: 90 | AZ92: 213.9673333 | BA92: 106.2325205 | BB92: 290.8061497 | BC92: 417.9818355 | BD92: -739.3605759 | BE92: -63.97238151 | BF92: -44.9910798 | BG92: -35.284928 | BH92: -883.6089652
A93: 2024-01-16 | B93: 219.910004 | C93: 0.004659897687 | E93: 92 | F93: -0.01711645146 | AA93: 2024-01-12 | AB93: 218.889999 | AC93: 54.702938 | AD93: 289.927368 | AE93: 408.756744 | AF93: -0.03666051388 | AG93: -0.00204302018 | AH93: -0.002311823438 | AI93: -0.00121428104 | AY93: 91 | AZ93: 223.1450099 | BA93: 109.7032389 | BB93: 289.1161514 | BC93: 433.3859506 | BD93: 93.97971477 | BE93: 956.9519984 | BF93: -157.8274874 | BG93: 1034.315801 | BH93: 1927.420027
A94: 2024-01-17 | B94: 215.550003 | C94: -0.01982629676 | E94: 93 | F94: -0.01455811764 | AA94: 2024-01-16 | AB94: 219.910004 | AC94: 56.374725 | AD94: 287.576111 | AE94: 423.306244 | AF94: 0.004659897687 | AG94: 0.03056119216 | AH94: -0.008109813903 | AI94: 0.03559451976 | AY94: 92 | AZ94: 217.7063812 | BA94: 105.8288464 | BB94: 291.5501222 | BC94: 415.0119308 | BD94: -399.8520654 | BE94: -182.7145943 | BF94: 4.681859087 | BG94: -241.5033484 | BH94: -819.3881489
A95: 2024-01-18 | B95: 211.880005 | C95: -0.0170262025 | E95: 94 | F95: -0.09035992178 | AA95: 2024-01-17 | AB95: 215.550003 | AC95: 56.045769 | AD95: 287.645294 | AE95: 419.788147 | AF95: -0.01982629676 | AG95: -0.005835168154 | AH95: 0.000240572834 | AI95: -0.00831099718 | AY95: 93 | AZ95: 218.3283102 | BA95: 108.4516371 | BB95: 294.6834607 | BC95: 421.9872995 | BD95: -343.3804264 | BE95: 588.7887976 | BF95: 213.8860156 | BG95: 242.8386202 | BH95: 702.133007
A96: 2024-01-19 | B96: 212.190002 | C96: 0.001463078123 | E96: 95 | F96: -0.04037903571 | AA96: 2024-01-18 | AB96: 211.880005 | AC96: 57.099628 | AD96: 290.80661 | AE96: 423.296295 | AF96: -0.0170262025 | AG96: 0.01880354251 | AH96: 0.01099032755 | AI96: 0.008356948678 | AY96: 94 | AZ96: 222.4349643 | BA96: 110.8938933 | BB96: 297.5896658 | BC96: 419.3153302 | BD96: 29.50701366 | BE96: 1307.187287 | BF96: 407.9251196 | BG96: 57.30766016 | BH96: 1801.92708
A97: 2024-01-22 | B97: 208.800003 | C97: -0.01597624284 | E97: 96 | F97: -0.0371519039 | AA97: 2024-01-19 | AB97: 212.190002 | AC97: 59.483326 | AD97: 296.902161 | AE97: 424.131104 | AF97: 0.001463078123 | AG97: 0.04174629649 | AH97: 0.02096084061 | AI97: 0.001972162312 | AY97: 95 | AZ97: 218.5615167 | BA97: 106.7416635 | BB97: 289.4238273 | BC97: 419.7059691 | BD97: -322.2050882 | BE97: 85.79387165 | BF97: -137.2848415 | BG97: 84.43208074 | BH97: -289.2639773
A98: 2024-01-23 | B98: 209.139999 | C98: 0.00162833331 | E98: 97 | F98: -0.06577253304 | AA98: 2024-01-22 | AB98: 208.800003 | AC98: 59.646305 | AD98: 294.807739 | AE98: 425.363464 | AF98: -0.01597624284 | AG98: 0.002739910677 | AH98: -0.007054249767 | AI98: 0.002905610997 | AY98: 96 | AZ98: 222.4716691 | BA98: 106.8407948 | BB98: 293.0819204 | BC98: 416.2411393 | BD98: 32.83984119 | BE98: 114.9536906 | BF98: 106.9556951 | BG98: -156.1519802 | BH98: 98.59724668
A99: 2024-01-24 | B99: 207.830002 | C99: -0.006263732458 | E99: 98 | F99: 0.0345315423 | AA99: 2024-01-23 | AB99: 209.139999 | AC99: 59.865276 | AD99: 296.427948 | AE99: 423.077667 | AF99: 0.00162833331 | AG99: 0.003671157836 | AH99: 0.005495815698 | AI99: -0.005373750201 | AY99: 97 | AZ99: 220.7187624 | BA99: 109.0973379 | BB99: 291.8588529 | BC99: 414.6168402 | BD99: -126.3254752 | BE99: 778.7240127 | BF99: 25.29493574 | BG99: -268.9368712 | BH99: 408.7566021
A100: 2024-01-25 | B100: 182.630005 | C100: -0.1212529315 | E100: 99 | F100: -0.06957277443 | AA100: 2024-01-24 | AB100: 207.830002 | AC100: 61.354084 | AD100: 296.813232 | AE100: 419.162048 | AF100: -0.006263732458 | AG100: 0.02486930821 | AH100: 0.001299755987 | AI100: -0.009255083181 | AY100: 98 | AZ100: 195.1785114 | BA100: 106.8923636 | BB100: 288.346328 | BC100: 414.8286747 | BD100: -2445.400454 | BE100: 130.1228438 | BF100: -209.2264205 | BG100: -254.2279269 | BH100: -2778.731958
A101: 2024-01-26 | B101: 183.25 | C101: 0.00339481456 | E101: 100 | F101: -0.008167607806 | AA101: 2024-01-25 | AB101: 182.630005 | AC101: 61.609047 | AD101: 293.622223 | AE101: 415.494843 | AF101: -0.1212529315 | AG101: 0.004155599487 | AH101: -0.01075089873 | AI101: -0.008748895606 | AY101: 99 | AZ101: 222.8640223 | BA101: 105.437626 | BB101: 286.6254504 | BC101: 419.5310196 | BD101: 68.46581737 | BE101: -297.793474 | BF101: -324.1245596 | BG101: 72.28427987 | BH101: -481.1679364
A102: 2024-01-29 | B102: 190.929993 | C102: 0.04190992087 | E102: 101 | F102: -0.06671441171 | AA102: 2024-01-26 | AB102: 183.25 | AC102: 61.023125 | AD102: 288.731995 | AE102: 416.528412 | AF102: 0.00339481456 | AG102: -0.009510324028 | AH102: -0.01665482929 | AI102: 0.00248756156 | AY102: 100 | AZ102: 231.4186125 | BA102: 108.9511765 | BB102: 291.5298782 | BC102: 432.7884662 | BD102: 845.2293751 | BE102: 735.7301225 | BF102: 3.330229141 | BG102: 992.8288526 | BH102: 2577.118579
A103: 2024-01-30 | B103: 191.589996 | C103: 0.003456780098 | E103: 102 | F103: -0.004926831376 | AA103: 2024-01-29 | AB103: 190.929993 | AC103: 62.45694 | AD103: 288.781403 | AE103: 430.759857 | AF103: 0.04190992087 | AG103: 0.02349625654 | AH103: 0.0001711206269 | AI103: 0.03416680493 | AY103: 101 | AZ103: 222.8777854 | BA103: 106.9765766 | BB103: 293.8133397 | BC103: 419.7451615 | BD103: 69.71552371 | BE103: 154.8944273 | BF103: 155.7904946 | BG103: 87.15344078 | BH103: 467.5538864
A104: 2024-01-31 | B104: 187.289993 | C104: -0.02244377624 | E104: 103 | F104: -0.04541696282 | AA104: 2024-01-30 | AB104: 191.589996 | AC104: 62.765896 | AD104: 291.09314 | AE104: 432.051819 | AF104: 0.003456780098 | AG104: 0.004946704081 | AH104: 0.008005144985 | AI104: 0.002999262766 | AY104: 102 | AZ104: 217.1250129 | BA104: 104.3353818 | BB104: 289.570758 | BC104: 410.2884674 | BD104: -452.6407726 | BE104: -622.0225926 | BF104: -127.4746922 | BG104: -569.4819344 | BH104: -1771.619992
A105: 2024-02-01 | B105: 188.860001 | C105: 0.00838276501 | E105: 104 | F105: 0.05150453542 | AA105: 2024-01-31 | AB105: 187.289993 | AC105: 61.519058 | AD105: 289.186432 | AE105: 423.584503 | AF105: -0.02244377624 | AG105: -0.01986489606 | AH105: -0.006550164666 | AI105: -0.01959791772 | AY105: 103 | AZ105: 223.9718959 | BA105: 109.0452066 | BB105: 296.8172855 | BC105: 425.6674263 | BD105: 169.0616227 | BE105: 763.3894271 | BF105: 356.3554676 | BG105: 498.3720536 | BH105: 1787.178571
A106: 2024-02-02 | B106: 187.910004 | C106: -0.005030165175 | E106: 105 | F106: -0.02217924593 | AA106: 2024-02-01 | AB106: 188.860001 | AC106: 63.018867 | AD106: 294.48172 | AE106: 430.849304 | AF106: 0.00838276501 | AG106: 0.02437958332 | AH106: 0.01831098355 | AI106: 0.01715077145 | AY106: 104 | AZ106: 220.99275 | BA106: 111.7415132 | BB106: 290.4728241 | BC106: 407.4179149 | BD106: -101.4471819 | BE106: 1556.517745 | BF106: -67.24628827 | BG106: -768.8017288 | BH106: 619.0225461
A107: 2024-02-05 | B107: 181.059998 | C107: -0.03645365257 | E107: 106 | F107: 0.02781951776 | AA107: 2024-02-02 | AB107: 187.910004 | AC107: 66.151466 | AD107: 293.464172 | AE107: 419.450226 | AF107: -0.005030165175 | AG107: 0.04970890702 | AH107: -0.003455385957 | AI107: -0.02645722737 | AY107: 105 | AZ107: 214.0132792 | BA107: 111.5536824 | BB107: 280.6077817 | BC107: 414.5139241 | BD107: -735.188646 | BE107: 1501.266659 | BF107: -725.9072878 | BG107: -276.0829593 | BH107: -235.9122342
A108: 2024-02-06 | B108: 185.100006 | C108: 0.02231308983 | E108: 107 | F108: -0.0126809965 | AA108: 2024-02-05 | AB108: 181.059998 | AC108: 69.323059 | AD108: 282.517944 | AE108: 415.465027 | AF108: -0.03645365257 | AG108: 0.04794440988 | AH108: -0.03730004902 | AI108: -0.009501005728 | AY108: 106 | AZ108: 227.0659604 | BA108: 104.7472805 | BB108: 290.134555 | BC108: 422.0236906 | BD108: 450.00512 | BE108: -500.8610901 | BF108: -89.83156222 | BG108: 245.3654767 | BH108: 104.6779444
A109: 2024-02-07 | B109: 187.580002 | C109: 0.01339814111 | E109: 108 | F109: -0.01950089374 | AA109: 2024-02-06 | AB109: 185.100006 | AC109: 68.214203 | AD109: 281.213867 | AE109: 418.973175 | AF109: 0.02231308983 | AG109: -0.01599548572 | AH109: -0.004615908574 | AI109: 0.00844390688 | AY109: 107 | AZ109: 225.0858611 | BA109: 109.3771525 | BB109: 294.2242691 | BC109: 418.8573429 | BD109: 270.2105421 | BE109: 861.032501 | BF109: 183.2270926 | BG109: 25.50683429 | BH109: 1339.97697
A110: 2024-02-08 | B110: 189.559998 | C110: 0.01055547488 | E110: 109 | F110: 0.03227165757 | AA110: 2024-02-07 | AB110: 187.580002 | AC110: 70.089951 | AD110: 283.861481 | AE110: 419.340942 | AF110: 0.01339814111 | AG110: 0.02749790978 | AH110: 0.009414948232 | AI110: 0.0008777817339 | AY110: 108 | AZ110: 224.4544765 | BA110: 105.7544978 | BB110: 296.146463 | BC110: 423.0819818 | BD110: 212.8803218 | BE110: -204.5844805 | BF110: 311.5665491 | BG110: 318.8490286 | BH110: 638.711419
A111: 2024-02-09 | B111: 193.570007 | C111: 0.02115429965 | E111: 110 | F111: -0.01653593717 | AA111: 2024-02-08 | AB111: 189.559998 | AC111: 69.632011 | AD111: 288.405975 | AE111: 423.942261 | AF111: 0.01055547488 | AG111: -0.006533604225 | AH111: 0.01600954798 | AI111: 0.01097273969 | AY111: 109 | AZ111: 226.8085815 | BA111: 110.2591642 | BB111: 289.0237982 | BC111: 417.02827 | BD111: 426.6349137 | BE111: 1120.479429 | BF111: -163.9936492 | BG111: -101.4967393 | BH111: 1281.623954
A112: 2024-02-12 | B112: 188.130005 | C112: -0.02810353776 | E112: 111 | F112: -0.03152483903 | AA112: 2024-02-09 | AB112: 193.570007 | AC112: 72.123695 | AD112: 285.975677 | AE112: 422.461487 | AF112: 0.02115429965 | AG112: 0.03578359959 | AH112: -0.008426656209 | AI112: -0.003492867157 | AY112: 110 | AZ112: 215.8679232 | BA112: 106.6197076 | BB112: 291.4497661 | BC112: 420.6558777 | BD112: -566.7855047 | BE112: 49.92010952 | BF112: -2.018634675 | BG112: 150.3899702 | BH112: -368.4940597
A113: 2024-02-13 | B113: 184.020004 | C113: -0.02184660017 | E113: 112 | F113: 0.02393941377 | AA113: 2024-02-12 | AB113: 188.130005 | AC113: 72.238678 | AD113: 285.946014 | AE113: 424.647919 | AF113: -0.02810353776 | AG113: 0.001594247217 | AH113: -0.0001037256046 | AI113: 0.005175458751 | AY113: 111 | AZ113: 217.2576516 | BA113: 106.2731872 | BB113: 289.1336027 | BC113: 412.8192312 | BD113: -440.5970669 | BE113: -52.01012373 | BF113: -156.6623143 | BG113: -393.7557237 | BH113: -1043.025229
A114: 2024-02-14 | B114: 188.710007 | C114: 0.02548637593 | E114: 113 | F114: -0.04158035157 | AA114: 2024-02-13 | AB114: 184.020004 | AC114: 72.11869 | AD114: 283.644165 | AE114: 418.893707 | AF114: -0.02184660017 | AG114: -0.001660993852 | AH114: -0.008049942602 | AI114: -0.01355054798 | AY114: 112 | AZ114: 227.770779 | BA114: 109.065209 | BB114: 292.5561408 | BC114: 421.4487248 | BD114: 514.0032037 | BE114: 769.273199 | BF114: 71.85088067 | BG114: 205.4421292 | BH114: 1560.569413
A115: 2024-02-15 | B115: 200.449997 | C115: 0.06221180417 | E115: 114 | F115: -0.02880495883 | AA115: 2024-02-14 | AB115: 188.710007 | AC115: 73.890465 | AD115: 284.691376 | AE115: 421.855286 | AF115: 0.02548637593 | AG115: 0.02456748729 | AH115: 0.003691988517 | AI115: 0.007070001173 | AY115: 113 | AZ115: 235.9278638 | BA115: 104.6609425 | BB115: 295.2123747 | BC115: 418.7265924 | BD115: 1254.672957 | BE115: -526.2577515 | BF115: 249.2001108 | BG115: 16.42804201 | BH115: 994.0433585
A116: 2024-02-16 | B116: 199.949997 | C116: -0.002494387665 | E116: 115 | F116: -0.05501028405 | AA116: 2024-02-15 | AB116: 200.449997 | AC116: 72.648621 | AD116: 288.336823 | AE116: 422.093781 | AF116: 0.06221180417 | AG116: -0.01680655278 | AH116: 0.01280490843 | AI116: 0.0005653478999 | AY116: 114 | AZ116: 221.5559716 | BA116: 106.3840759 | BB116: 291.6397729 | BC116: 415.662118 | BD116: -50.30622066 | BE116: -19.39180044 | BF116: 10.66758582 | BG116: -196.3569243 | BH116: -255.3873596
A117: 2024-02-20 | B117: 193.759995 | C117: -0.0309577499 | E117: 116 | F117: 0.07062788003 | AA117: 2024-02-16 | AB117: 199.949997 | AC117: 72.60363 | AD117: 288.494873 | AE117: 419.241547 | AF117: -0.002494387665 | AG117: -0.0006192959946 | AH117: 0.0005481436549 | AI117: -0.006757346657 | AY117: 115 | AZ117: 215.2339742 | BA117: 101.8160043 | BB117: 292.1088462 | BC117: 413.8274133 | BD117: -624.3485804 | BE117: -1363.106618 | BF117: 41.98628266 | BG117: -323.7515489 | BH117: -2269.220465
A118: 2024-02-21 | B118: 194.770004 | C118: 0.00521268077 | E118: 117 | F118: -0.03557362339 | AA118: 2024-02-20 | AB118: 193.759995 | AC118: 69.443039 | AD118: 289.117279 | AE118: 414.570587 | AF118: -0.0309577499 | AG118: -0.04353213469 | AH118: 0.002157424822 | AI118: -0.01114145302 | AY118: 116 | AZ118: 223.2677885 | BA118: 103.4152286 | BB118: 292.7349546 | BC118: 422.1116267 | BD118: 105.1281133 | BE118: -892.6889915 | BF118: 83.78977144 | BG118: 251.4714142 | BH118: -452.2996925
A119: 2024-02-22 | B119: 197.410004 | C119: 0.01355444856 | E119: 118 | F119: -0.02827201386 | AA119: 2024-02-21 | AB119: 194.770004 | AC119: 67.463295 | AD119: 290.362061 | AE119: 418.158295 | AF119: 0.00521268077 | AG119: -0.02850889057 | AH119: 0.004305456956 | AI119: 0.008654034108 | AY119: 117 | AZ119: 225.1205786 | BA119: 123.9087272 | BB119: 293.4733934 | BC119: 425.7008845 | BD119: 273.3629137 | BE119: 5135.547795 | BF119: 133.0932461 | BG119: 500.6952566 | BH119: 6042.699211
A120: 2024-02-23 | B120: 191.970001 | C120: -0.02755687599 | E120: 119 | F120: -0.01355652996 | AA120: 2024-02-22 | AB120: 197.410004 | AC120: 78.527863 | AD120: 292.347809 | AE120: 425.363464 | AF120: 0.01355444856 | AG120: 0.1640087102 | AH120: 0.006838868663 | AI120: 0.0172307212 | AY120: 118 | AZ120: 215.9893423 | BA120: 106.8281511 | BB120: 293.2825553 | BC120: 424.0045299 | BD120: -555.7605595 | BE120: 111.2345172 | BF120: 120.3515257 | BG120: 382.907114 | BH120: 58.73259744
A121: 2024-02-26 | B121: 199.399994 | C121: 0.0387039275 | E121: 120 | F121: -0.01994357441 | AA121: 2024-02-23 | AB121: 191.970001 | AC121: 78.806824 | AD121: 294.155731 | AE121: 430.968567 | AF121: -0.02755687599 | AG121: 0.00355238242 | AH121: 0.006184147595 | AI121: 0.01317720837 | AY121: 119 | AZ121: 230.7065293 | BA121: 106.8214324 | BB121: 290.8632556 | BC121: 442.9538044 | BD121: 780.5716586 | BE121: 109.258186 | BF121: -41.17828078 | BG121: 1698.66967 | BH121: 2547.321234
A122: 2024-02-27 | B122: 199.729996 | C122: 0.001654974975 | E122: 121 | F122: 0.01134151865 | AA122: 2024-02-26 | AB122: 199.399994 | AC122: 79.081802 | AD122: 293.533325 | AE122: 456.161835 | AF122: 0.0387039275 | AG122: 0.003489266361 | AH122: -0.002115906421 | AI122: 0.05845732132 | AY122: 120 | AZ122: 222.4775865 | BA122: 105.9237387 | BB122: 288.1837931 | BC122: 406.8834941 | BD122: 33.37714399 | BE122: -154.8016664 | BF122: -220.0784214 | BG122: -805.9097961 | BH122: -1147.41274
A123: 2024-02-28 | B123: 202.039993 | C123: 0.01156559879 | E123: 122 | F123: 0.04943225744 | AA123: 2024-02-27 | AB123: 199.729996 | AC123: 78.690842 | AD123: 290.213898 | AE123: 443.510529 | AF123: 0.001654974975 | AG123: -0.004943741671 | AH123: -0.01130851838 | AI123: -0.02773424918 | AY123: 121 | AZ123: 224.6788351 | BA123: 105.0460262 | BB123: 292.8988822 | BC123: 418.5837877 | BD123: 233.2522618 | BE123: -412.9839641 | BF123: 94.73475444 | BG123: 6.512243413 | BH123: -78.48470441
A124: 2024-02-29 | B124: 201.880005 | C124: -0.0007918630249 | E124: 123 | F124: 0.03775992331 | AA124: 2024-02-28 | AB124: 202.039993 | AC124: 77.652985 | AD124: 291.626617 | AE124: 443.609924 | AF124: 0.01156559879 | AG124: -0.01318904429 | AH124: 0.004867854399 | AI124: 0.0002241096738 | AY124: 122 | AZ124: 221.9341193 | BA124: 108.4360846 | BB124: 290.2486254 | BC124: 420.3463173 | BD124: -15.97010626 | BE124: 584.2139772 | BF124: -82.21540243 | BG124: 128.8953187 | BH124: 614.9237872
A125: 2024-03-01 | B125: 202.639999 | C125: 0.003764582827 | E125: 124 | F125: -0.0424722165 | AA125: 2024-02-29 | AB125: 201.880005 | AC125: 79.101791 | AD125: 290.394623 | AE125: 445.577667 | AF125: -0.0007918630249 | AG125: 0.01865744118 | AH125: -0.004224559516 | AI125: 0.00443575063 | AY125: 123 | AZ125: 222.9461515 | BA125: 110.7113864 | BB125: 289.9342662 | BC125: 417.4445988 | BD125: 75.92321637 | BE125: 1253.502219 | BF125: -103.204278 | BG125: -72.58851527 | BH125: 1153.632642
A126: 2024-03-04 | B126: 188.139999 | C126: -0.07155546818 | E126: 125 | F126: -0.03199084037 | AA126: 2024-03-01 | AB126: 202.639999 | AC126: 82.268379 | AD126: 288.854645 | AE126: 444.4646 | AF126: 0.003764582827 | AG126: 0.04003181167 | AH126: -0.005303052736 | AI126: -0.002498031393 | AY126: 124 | AZ126: 206.216815 | BA126: 110.2769691 | BB126: 291.6905141 | BC126: 421.0726232 | BD126: -1443.113764 | BE126: 1125.716805 | BF126: 14.05543127 | BG126: 179.3271251 | BH126: -124.0144022
A127: 2024-03-05 | B127: 180.740005 | C127: -0.03933238035 | E127: 126 | F127: 0.0831642759 | AA127: 2024-03-04 | AB127: 188.139999 | AC127: 85.225998 | AD127: 289.063263 | AE127: 447.20752 | AF127: -0.07155546818 | AG127: 0.03595086029 | AH127: 0.0007222248408 | AI127: 0.006171290132 | AY127: 125 | AZ127: 213.373885 | BA127: 107.36297 | BB127: 293.0829817 | BC127: 418.118005 | BD127: -793.2461472 | BE127: 268.5534177 | BF127: 107.0265605 | BG127: -25.82986239 | BH127: -443.4960314
A128: 2024-03-06 | B128: 176.539993 | C128: -0.02323786591 | E128: 127 | F128: -0.06523191311 | AA128: 2024-03-05 | AB128: 180.740005 | AC128: 85.95694 | AD128: 290.652954 | AE128: 446.809998 | AF128: -0.03933238035 | AG128: 0.008576514411 | AH128: 0.005499457051 | AI128: -0.0008888982904 | AY128: 126 | AZ128: 216.9486376 | BA128: 109.8380083 | BB128: 291.8685535 | BC128: 416.3025489 | BD128: -468.6557853 | BE128: 996.5948926 | BF128: 25.94261789 | BG128: -151.8879399 | BH128: 401.9937853
A129: 2024-03-07 | B129: 178.649994 | C129: 0.0119519717 | E129: 128 | F129: -0.02354001819 | AA129: 2024-03-06 | AB129: 176.539993 | AC129: 88.692711 | AD129: 291.040405 | AE129: 444.474518 | AF129: -0.02323786591 | AG129: 0.03182722652 | AH129: 0.001333036512 | AI129: -0.005227009267 | AY129: 127 | AZ129: 224.7646524 | BA129: 111.2132477 | BB129: 289.6690108 | BC129: 418.6116572 | BD129: 241.0445393 | BE129: 1401.126536 | BF129: -120.9146333 | BG129: 8.447391874 | BH129: 1529.703834
A130: 2024-03-08 | B130: 175.339996 | C130: -0.01852783717 | E130: 129 | F130: 0.04724356494 | AA130: 2024-03-07 | AB130: 178.649994 | AC130: 92.661385 | AD130: 289.232147 | AE130: 444.603729 | AF130: 0.0119519717 | AG130: 0.04474633772 | AH130: -0.006213082338 | AI130: 0.0002907050793 | AY130: 128 | AZ130: 217.9947821 | BA130: 100.5444775 | BB130: 292.9218443 | BC130: 416.2823586 | BD130: -373.6650394 | BE130: -1737.130802 | BF130: 96.26786906 | BG130: -153.2898754 | BH130: -2167.817848
A131: 2024-03-11 | B131: 177.770004 | C131: 0.01385883458 | E131: 130 | F131: -0.01148846113 | AA131: 2024-03-08 | AB131: 175.339996 | AC131: 87.520813 | AD131: 290.662872 | AE131: 442.258331 | AF131: -0.01852783717 | AG131: -0.05547696055 | AH131: 0.004946632022 | AI131: -0.0052752549 | AY131: 129 | AZ131: 225.1881857 | BA131: 104.31682 | BB131: 293.7417114 | BC131: 417.4461376 | BD131: 279.5016991 | BE131: -627.4826309 | BF131: 151.0080799 | BG131: -72.48166725 | BH131: -269.4545192
A132: 2024-03-12 | B132: 177.539993 | C132: =B132/B131-1 -> -0.001293868453 | E132: 131 | F132: -0.01571410533 | AA132: 2024-03-11 | AB132: 177.770004 | AC132: 85.76696 | AD132: 292.918243 | AE132: 441.155182 | AF132: 0.01385883458 | AG132: -0.02003926769 | AH132: 0.007759405198 | AI132: =AE132/AE131-1 -> -0.002494354369 | AY132: 130 | AZ132: =$AT$21*(1+AF133) -> 221.8226189 | BA132: =$AU$21*(1+AG133) -> 114.0688098 | BB132: =$AV$21*(1+AH133) -> 290.975775 | BC132: =$AW$21*(1+AI133) -> 426.6731189 | BD132: =AZ132*$AT$23-$AT$22 -> -26.09443303 | BE132: =BA132*$AU$23-$AU$22 -> 2241.100473 | BF132: =BB132*$AV$23-$AV$22 -> -33.66567915 | BG132: =BC132*$AW$23-$AW$22 -> 568.2033611 | BH132: =SUM(BD132:BG132) -> 2749.543722
A133: 2024-03-13 | B133: 169.479996 | C133: -0.04539820501 | E133: 132 | F133: -0.02910106365 | AA133: 2024-03-12 | AB133: 177.539993 | AC133: 91.905449 | AD133: 292.41153 | AE133: 449.781494 | AF133: =AB133/AB132-1 -> -0.001293868453 | AG133: 0.07157172179 | AH133: -0.0017298786 | AI133: 0.01955391742 | AY133: 131 | AZ133: 212.0266047 | BA133: 105.2628923 | BB133: 280.1400808 | BC133: 418.3975758 | BD133: -915.5802648 | BE133: -349.1920371 | BF133: -757.1343545 | BG133: -6.417571781 | BH133: -2028.324228
A134: 2024-03-14 | B134: 162.5 | C134: -0.04118477794 | E134: 133 | F134: -0.008115528133 | AA134: 2024-03-13 | AB134: 169.479996 | AC134: 90.880539 | AD134: 281.03537 | AE134: 449.682159 | AF134: -0.04539820501 | AG134: -0.01115178709 | AH134: -0.03890462185 | AI134: -0.0002208516832 | AY134: 132 | AZ134: 212.962449 | BA134: 103.0019166 | BB134: 290.3155948 | BC134: 411.7064575 | BD134: -830.6048638 | BE134: -1014.266211 | BF134: -77.74404712 | BG134: -471.022323 | BH134: -2393.637445
A135: 2024-03-15 | B135: 163.570007 | C135: 0.006584658462 | E135: 134 | F135: -0.03134085501 | AA135: 2024-03-14 | AB135: 162.5 | AC135: 87.936775 | AD135: 279.912689 | AE135: 442.393005 | AF135: -0.04118477794 | AG135: -0.03239157726 | AH135: -0.003994803216 | AI135: -0.01620956903 | AY135: 133 | AZ135: 223.5725185 | BA135: 106.3204807 | BB135: 288.800356 | BC135: 416.1884162 | BD135: 132.797835 | BE135: -38.09857674 | BF135: -178.9122568 | BG135: -159.8128635 | BH135: -244.0258621
A136: 2024-03-18 | B136: 173.800003 | C136: 0.0625420038 | E136: 135 | F136: 0.004027749938 | AA136: 2024-03-15 | AB136: 163.570007 | AC136: 87.829781 | AD136: 277.339386 | AE136: 439.959961 | AF136: 0.006584658462 | AG136: -0.001216715077 | AH136: -0.009193234538 | AI136: -0.005499734337 | AY136: 134 | AZ136: 236.0012045 | BA136: 107.1989672 | BB136: 290.8952352 | BC136: 419.9791534 | BD136: 1261.332345 | BE136: 220.3114258 | BF136: -39.04309194 | BG136: 103.4009108 | BH136: 1546.00159
A137: 2024-03-19 | B137: 171.320007 | C137: -0.01426925177 | E137: 136 | F137: 0.02290792653 | AA137: 2024-03-18 | AB137: 173.800003 | AC137: 88.447739 | AD137: 276.78299 | AE137: 441.525513 | AF137: 0.0625420038 | AG137: 0.007035859511 | AH137: -0.002006191793 | AI137: 0.003558396533 | AY137: 135 | AZ137: 218.9406565 | BA137: 107.5848426 | BB137: 295.9686561 | BC137: 420.4841749 | BD137: -287.7788958 | BE137: 333.8180505 | BF137: 299.694882 | BG137: 138.4676072 | BH137: 484.2016439
A138: 2024-03-20 | B138: 175.660004 | C138: 0.02533269217 | E138: 137 | F138: -0.01521310992 | AA138: 2024-03-19 | AB138: 171.320007 | AC138: 89.390663 | AD138: 281.045319 | AE138: 443.629456 | AF138: -0.01426925177 | AG138: 0.01066080389 | AH138: 0.01539953376 | AI138: 0.004765167443 | AY138: 136 | AZ138: 227.7366443 | BA138: 107.6097772 | BB138: 293.1081086 | BC138: 424.9051663 | BD138: 510.9037461 | BE138: 341.1526573 | BF138: 108.7042095 | BG138: 445.4437347 | BH138: 1406.204348
A139: 2024-03-21 | B139: 172.820007 | C139: -0.01616757905 | E139: 138 | F139: -0.03047594446 | AA139: 2024-03-20 | AB139: 175.660004 | AC139: 90.364578 | AD139: 282.615143 | AE139: 450.429993 | AF139: 0.02533269217 | AG139: 0.01089504169 | AH139: 0.005585661436 | AI139: 0.01532931799 | AY139: 137 | AZ139: 218.519019 | BA139: 107.7021165 | BB139: 290.5372344 | BC139: 422.3347166 | BD139: -326.0639116 | BE139: 368.3146109 | BF139: -62.94579295 | BG139: 266.9618873 | BH139: 246.2667937
A140: 2024-03-22 | B140: 170.830002 | C140: -0.01151489943 | E140: 139 | F140: -0.01806745143 | AA140: 2024-03-21 | AB140: 172.820007 | AC140: 91.42749 | AD140: 281.70105 | AE140: 454.568146 | AF140: -0.01616757905 | AG140: 0.01176248507 | AH140: -0.003234409134 | AI140: 0.009187116898 | AY140: 138 | AZ140: 219.5524257 | BA140: 109.7726725 | BB140: 290.554795 | BC140: 420.8309132 | BD140: -232.2297691 | BE140: 977.3761314 | BF140: -61.77332166 | BG140: 162.5437386 | BH140: 845.9167792
A141: 2024-03-25 | B141: 172.630005 | C141: 0.0105368084 | E141: 140 | F141: -0.001593683499 | AA141: 2024-03-22 | AB141: 170.830002 | AC141: 94.281258 | AD141: 280.806885 | AE141: 457.11087 | AF141: -0.01151489943 | AG141: 0.0312134567 | AH141: -0.003174162823 | AI141: 0.005593713555 | AY141: 139 | AZ141: 224.4503305 | BA141: 107.2549536 | BB141: 287.344405 | BC141: 424.5972526 | BD141: 212.5038605 | BE141: 236.7800122 | BF141: -276.1219877 | BG141: 424.0634281 | BH141: 597.225313
A142: 2024-03-26 | B142: 177.669998 | C142: 0.02919534759 | E142: 141 | F142: -0.01009866216 | AA142: 2024-03-25 | AB142: 172.630005 | AC142: 94.994194 | AD142: 276.822723 | AE142: 463.781738 | AF142: 0.0105368084 | AG142: 0.007561799822 | AH142: -0.01418826323 | AI142: 0.01459354489 | AY142: 140 | AZ142: 228.5945787 | BA142: 103.7148567 | BB142: 291.48 | BC142: 434.5868248 | BD142: 588.8048672 | BE142: -804.5523038 | BF142: 0 | BG142: 1117.699753 | BH142: 901.952316
A143: 2024-03-27 | B143: 179.830002 | C143: 0.01215739306 | E143: 142 | F143: 0.02195714398 | AA143: 2024-03-26 | AB143: 177.669998 | AC143: 92.553398 | AD143: 276.822723 | AE143: 481.620667 | AF143: 0.02919534759 | AG143: -0.02569415979 | AH143: 0 | AI143: 0.03846406087 | AY143: 141 | AZ143: 224.8102786 | BA143: 103.7922245 | BB143: 295.0369466 | BC143: 426.4005744 | BD143: 245.1874287 | BE143: -781.7942719 | BF143: 237.4872693 | BG143: 549.2789525 | BH143: 250.1593785
A144: 2024-03-28 | B144: 175.789993 | C144: -0.02246571181 | E144: 143 | F144: -0.03951701142 | AA144: 2024-03-27 | AB144: 179.830002 | AC144: 90.242584 | AD144: 280.200806 | AE144: 490.724579 | AF144: 0.01215739306 | AG144: -0.02496735992 | AH144: 0.01220305531 | AI144: 0.01890266059 | AY144: 142 | AZ144: 217.1201407 | BA144: 106.5750315 | BB144: 291.4076503 | BC144: 422.5292453 | BD144: -453.0831641 | BE144: 36.77847512 | BF144: -4.83058255 | BG144: 280.4691947 | BH144: -140.6660768
A145: 2024-04-01 | B145: 175.220001 | C145: -0.003242459882 | E145: 144 | F145: -0.0518990768 | AA145: 2024-03-28 | AB145: 175.789993 | AC145: 90.348579 | AD145: 280.131256 | AE145: 495.461029 | AF145: -0.02246571181 | AG145: 0.001174556349 | AH145: -0.0002482148463 | AI145: 0.009651951833 | AY145: 143 | AZ145: 221.3898172 | BA145: 106.458244 | BB145: 289.6915249 | BC145: 415.9969903 | BD145: -65.39316426 | BE145: 2.424992555 | BF145: -119.4114275 | BG145: -173.1047162 | BH145: -355.4843154
A146: 2024-04-02 | B146: 166.630005 | C146: -0.0490240609 | E146: 145 | F146: 0.006650132722 | AA146: 2024-04-01 | AB146: 175.220001 | AC146: 90.355576 | AD146: 278.412415 | AE146: 492.509491 | AF146: -0.003242459882 | AG146: 7.744449417e-05 | AH146: -0.00613584155 | AI146: -0.005957154705 | AY146: 144 | AZ146: 211.2212658 | BA146: 105.376824 | BB146: 288.9003286 | BC146: 421.31991 | BD146: -988.7056691 | BE146: -315.6785992 | BF146: -172.2373699 | BG146: 196.497737 | BH146: -1280.123901
A147: 2024-04-03 | B147: 168.380005 | C147: 0.01050231019 | E147: 146 | F147: 0.009137413447 | AA147: 2024-04-02 | AB147: 166.630005 | AC147: 89.444656 | AD147: 275.948395 | AE147: 495.839935 | AF147: -0.0490240609 | AG147: -0.01008150288 | AH147: -0.008850251883 | AI147: 0.006762192528 | AY147: 145 | AZ147: 224.4426681 | BA147: 105.8692588 | BB147: 289.1711829 | BC147: 425.7276903 | BD147: 211.8081088 | BE147: -170.8271151 | BF147: -154.1531896 | BG147: 502.5565437 | BH147: 389.3843479
A148: 2024-04-04 | B148: 171.110001 | C148: 0.01621330276 | E148: 147 | F148: -0.0126733986 | AA148: 2024-04-03 | AB148: 168.380005 | AC148: 88.956688 | AD148: 273.762604 | AE148: 504.415375 | AF148: 0.01050231019 | AG148: -0.005455529954 | AH148: -0.007921013637 | AI148: 0.01729477477 | AY148: 146 | AZ148: 225.7111367 | BA148: 102.7897523 | BB148: 285.7147048 | BC148: 399.4624553 | BD148: 326.9860566 | BE148: -1076.675105 | BF148: -384.9324666 | BG148: -1321.19733 | BH148: -2455.818845
A149: 2024-04-05 | B149: 164.899994 | C149: -0.03629248415 | E149: 148 | F149: 0.02258001366 | AA149: 2024-04-04 | AB149: 171.110001 | AC149: 85.897942 | AD149: 268.347748 | AE149: 481.481049 | AF149: 0.01621330276 | AG149: -0.03438466594 | AH149: -0.01977938521 | AI149: -0.04546714303 | AY149: 147 | AZ149: 214.0490763 | BA149: 109.0559634 | BB149: 287.8107514 | BC149: 427.4515882 | BD149: -731.9382395 | BE149: 766.5535631 | BF149: -244.9853585 | BG149: 622.2571826 | BH149: 411.8871477
A150: 2024-04-08 | B150: 172.979996 | C150: 0.04899940748 | E150: 149 | F150: -0.0215766116 | AA150: 2024-04-05 | AB150: 164.899994 | AC150: 88.000778 | AD150: 264.969696 | AE150: 491.791534 | AF150: -0.03629248415 | AG150: 0.02448063308 | AH150: -0.01258833743 | AI150: 0.02141410347 | AY150: 148 | AZ150: 232.9932584 | BA150: 105.3916411 | BB150: 292.4308615 | BC150: 425.9400195 | BD150: 988.2084648 | BE150: -311.3200954 | BF150: 63.48633497 | BG150: 517.2998421 | BH150: 1257.674546
A151: 2024-04-09 | B151: 176.880005 | C151: 0.02254601162 | E151: 150 | F151: 0.023476957 | AA151: 2024-04-08 | AB151: 172.979996 | AC151: 87.125847 | AD151: 265.834076 | AE151: 500.546478 | AF151: 0.04899940748 | AG151: -0.009942309828 | AH151: 0.003262184367 | AI151: 0.0178021446 | AY151: 149 | AZ151: 227.1176946 | BA151: 104.2765938 | BB151: 293.5280907 | BC151: 415.5471071 | BD151: 454.7026316 | BE151: -639.3153129 | BF151: 136.7452244 | BG151: -204.3428244 | BH151: -252.2102812
A152: 2024-04-10 | B152: 171.759995 | C152: -0.02894623392 | E152: 151 | F152: 0.0119465637 | AA152: 2024-04-09 | AB152: 176.880005 | AC152: 85.346985 | AD152: 267.701965 | AE152: 497.02655 | AF152: 0.02254601162 | AG152: -0.02041715589 | AH152: 0.007026522063 | AI152: -0.007032170147 | AY152: 150 | AZ152: 215.680752 | BA152: 108.5514708 | BB152: 290.6470016 | BC152: 425.5256864 | BD152: -583.7808016 | BE152: 618.1552477 | BF152: -55.61695095 | BG152: 488.5301945 | BH152: 467.2876896
A153: 2024-04-11 | B153: 174.600006 | C153: 0.0165347641 | E153: 152 | F153: 0.06955783644 | AA153: 2024-04-10 | AB153: 171.759995 | AC153: 87.031853 | AD153: 266.93692 | AE153: 505.382599 | AF153: -0.02894623392 | AG153: 0.01974138864 | AH153: -0.002857823625 | AI153: 0.01681207775 | AY153: 151 | AZ153: 225.7825365 | BA153: 110.8247144 | BB153: 291.4257501 | BC153: 416.5826285 | BD153: 333.469213 | BE153: 1286.838079 | BF153: -3.622114538 | BG153: -132.4403229 | BH153: 1484.244855
A154: 2024-04-12 | B154: 171.050003 | C154: -0.02033220434 | E154: 153 | F154: 0.02663901681 | AA154: 2024-04-11 | AB154: 174.600006 | AC154: 90.608551 | AD154: 266.887238 | AE154: 503.079193 | AF154: 0.0165347641 | AG154: 0.04109642478 | AH154: -0.0001861188778 | AI154: -0.004557746952 | AY154: 152 | AZ154: 217.5940141 | BA154: 103.5953956 | BB154: 290.1453466 | BC154: 410.8504864 | BD154: -410.0550898 | BE154: -839.6922254 | BF154: -89.11103762 | BG154: -530.4575621 | BH154: -1869.315915
A155: 2024-04-15 | B155: 161.479996 | C155: -0.055948593 | E155: 154 | F155: -0.02937116095 | AA155: 2024-04-12 | AB155: 171.050003 | AC155: 88.178757 | AD155: 265.665192 | AE155: 493.895508 | AF155: -0.02033220434 | AG155: -0.02681638734 | AH155: -0.00457888511 | AI155: -0.01825494898 | AY155: 153 | AZ155: 209.683258 | BA155: 103.8124679 | BB155: 290.2154814 | BC155: 412.3306287 | BD155: -1128.357995 | BE155: -775.8396124 | BF155: -84.42833144 | BG155: -427.6823466 | BH155: -2416.308286
A156: 2024-04-16 | B156: 157.110001 | C156: -0.02706214459 | E156: 155 | F156: -0.003279253734 | AA156: 2024-04-15 | AB156: 161.479996 | AC156: 85.993935 | AD156: 264.512665 | AE156: 486.626312 | AF156: -0.055948593 | AG156: -0.02477719208 | AH156: -0.004338268748 | AI156: -0.01471808486 | AY156: 154 | AZ156: 216.0992271 | BA156: 108.2002196 | BB156: 290.6041021 | BC156: 417.3151877 | BD156: -545.7829335 | BE156: 514.833432 | BF156: -58.48122642 | BG156: -81.57431362 | BH156: -171.0050416
A157: 2024-04-17 | B157: 155.449997 | C157: -0.01056587098 | E157: 156 | F157: 0.01238072623 | AA157: 2024-04-16 | AB157: 157.110001 | AC157: 87.407822 | AD157: 263.717804 | AE157: 485.260223 | AF157: -0.02706214459 | AG157: 0.01644170603 | AH157: -0.00300500167 | AI157: -0.002807264972 | AY157: 155 | AZ157: 219.7632144 | BA157: 102.3339895 | BB157: 296.44364 | BC157: 414.534283 | BD157: -213.0899877 | BE157: -1210.739386 | BF157: 331.4082156 | BG157: -274.6693186 | BH157: -1367.090477
A158: 2024-04-18 | B158: 149.929993 | C158: -0.03550983665 | E158: 157 | F158: 0.01951803088 | AA158: 2024-04-17 | AB158: 155.449997 | AC158: 84.028099 | AD158: 268.208679 | AE158: 480.67337 | AF158: -0.01056587098 | AG158: -0.03866613906 | AH158: 0.01702909296 | AI158: -0.009452357277 | AY158: 156 | AZ158: 214.2229102 | BA158: 107.2556343 | BB158: 292.5921374 | BC158: 418.151424 | BD158: -716.1539896 | BE158: 236.9802477 | BF158: 74.25426836 | BG158: -23.50937867 | BH158: -428.4288522
A159: 2024-04-19 | B159: 147.050003 | C159: -0.01920889838 | E159: 158 | F159: -0.03910619575 | AA159: 2024-04-18 | AB159: 149.929993 | AC159: 84.66404 | AD159: 269.232025 | AE159: 480.284485 | AF159: -0.03550983665 | AG159: 0.007568194539 | AH159: 0.003815484286 | AI159: -0.0008090421152 | AY159: 157 | AZ159: 217.8435116 | BA159: 95.80010273 | BB159: 292.5664014 | BC159: 411.4436197 | BD159: -387.4005209 | BE159: -3132.705827 | BF159: 72.53595357 | BG159: -489.2727324 | BH159: -3936.843127
A160: 2024-04-22 | B160: 142.050003 | C160: -0.03400203943 | E160: 159 | F160: -0.007962082418 | AA160: 2024-04-19 | AB160: 147.050003 | AC160: 76.193741 | AD160: 270.235504 | AE160: 472.197632 | AF160: -0.01920889838 | AG160: -0.1000460054 | AH160: 0.00372719033 | AI160: -0.01683763114 | AY160: 158 | AZ160: 214.557807 | BA160: 111.085183 | BB160: 295.3272398 | BC160: 416.4839596 | BD160: -685.7450918 | BE160: 1363.455854 | BF160: 256.8693254 | BG160: -139.2914967 | BH160: 795.2885912
A161: 2024-04-23 | B161: 144.679993 | C161: 0.01851453674 | E161: 160 | F161: -0.02760613015 | AA161: 2024-04-22 | AB161: 142.050003 | AC161: 79.511467 | AD161: 273.802338 | AE161: 469.934143 | AF161: -0.03400203943 | AG161: 0.04354328789 | AH161: 0.01319898365 | AI161: -0.004793520438 | AY161: 159 | AZ161: 226.2222638 | BA161: 110.3388971 | BB161: 292.855018 | BC161: 427.2632926 | BD161: 373.3967995 | BE161: 1143.933162 | BF161: 91.80606657 | BG161: 609.1826847 | BH161: 2218.318713
A162: 2024-04-24 | B162: 162.130005 | C162: 0.1206110924 | E162: 161 | F162: 0.0578552661 | AA162: 2024-04-23 | AB162: 144.679993 | AC162: 82.416229 | AD162: 275.093964 | AE162: 479.785919 | AF162: 0.01851453674 | AG162: 0.03653261736 | AH162: 0.004717366584 | AI162: 0.02096416306 | AY162: 160 | AZ162: 248.8989297 | BA162: 102.9035197 | BB162: 291.3431561 | BC162: 424.1868654 | BD162: 2432.455994 | BE162: -1043.210028 | BF162: -9.136681079 | BG162: 395.5677643 | BH162: 1775.677049
A163: 2024-04-25 | B163: 170.179993 | C163: 0.04965143867 | E163: 162 | F163: 0.02233794466 | AA163: 2024-04-24 | AB163: 162.130005 | AC163: 79.670456 | AD163: 274.964813 | AE163: 486.3172 | AF163: 0.1206110924 | AG163: -0.03331592616 | AH163: -0.0004694795848 | AI163: 0.0136129068 | AY163: 161 | AZ163: 233.138081 | BA163: 110.3979376 | BB163: 290.2687954 | BC163: 424.5479728 | BD163: 1001.358476 | BE163: 1161.300135 | BF163: -80.86870537 | BG163: 420.6416332 | BH163: 2502.431538
A164: 2024-04-26 | B164: 168.289993 | C164: -0.01110588834 | E164: 163 | F164: 0.00513096012 | AA164: 2024-04-25 | AB164: 170.179993 | AC164: 82.625214 | AD164: 273.822235 | AE164: 493.357025 | AF164: 0.04965143867 | AG164: 0.0370872485 | AH164: -0.004155360781 | AI164: 0.01447578864 | AY164: 162 | AZ164: 219.6432711 | BA164: 113.0238931 | BB164: 288.825347 | BC164: 422.1270831 | BD164: -223.9809302 | BE164: 1933.734439 | BF164: -177.2436802 | BG164: 252.544643 | BH164: 1785.054472
A165: 2024-04-29 | B165: 194.050003 | C165: 0.1530691727 | E165: 164 | F165: -0.02684706364 | AA165: 2024-04-26 | AB165: 168.289993 | AC165: 87.727791 | AD165: 271.3284 | AE165: 497.644775 | AF165: -0.01110588834 | AG165: 0.06175568877 | AH165: -0.009107496329 | AI165: 0.008690967763 | AY165: 163 | AZ165: 256.1081939 | BA165: 106.4766987 | BB165: 291.9709748 | BC165: 442.0194165 | BD165: 3087.062883 | BE165: 7.85352385 | BF165: 32.78099708 | BG165: 1633.789477 | BH165: 4761.486882
A166: 2024-04-30 | B166: 183.279999 | C166: -0.05550117925 | E166: 165 | F166: 0.003710072595 | AA166: 2024-04-29 | AB166: 194.050003 | AC166: 87.749794 | AD166: 271.785431 | AE166: 525.624634 | AF166: 0.1530691727 | AG166: 0.0002508099172 | AH166: 0.001684420061 | AI166: 0.05622456098 | AY166: 164 | AZ166: 209.7826331 | BA166: 104.806373 | BB166: 290.9366009 | BC166: 420.1889699 | BD166: -1119.334661 | BE166: -483.4788421 | BF166: -36.2812227 | BG166: 117.9697375 | BH166: -1521.124988
A167: 2024-05-01 | B167: 179.990005 | C167: -0.01795064392 | E167: 166 | F167: -0.04364963163 | AA167: 2024-04-30 | AB167: 183.279999 | AC167: 86.394905 | AD167: 271.278748 | AE167: 527.758545 | AF167: -0.05550117925 | AG167: -0.01544036673 | AH167: -0.001864275793 | AI167: 0.004059762161 | AY167: 165 | AZ167: 218.1229825 | BA167: 102.3091403 | BB167: 292.9638515 | BC167: 408.3295564 | BD167: -362.0243424 | BE167: -1218.048854 | BF167: 99.07257113 | BG167: -705.5009558 | BH167: -2186.501581
A168: 2024-05-02 | B168: 180.009995 | C168: 0.0001110617226 | E168: 167 | F168: 0.0124228562 | AA168: 2024-05-01 | AB168: 179.990005 | AC168: 83.03418 | AD168: 272.65976 | AE168: 514.94519 | AF168: -0.01795064392 | AG168: -0.038899574 | AH168: 0.005090748944 | AI168: -0.02427882054 | AY168: 166 | AZ168: 222.1346679 | BA168: 110.0085458 | BB168: 290.2585549 | BC168: 415.4754542 | BD168: 2.239866561 | BE168: 1046.759115 | BF168: -81.55243704 | BG168: -209.3181219 | BH168: 758.1284231
A169: 2024-05-03 | B169: 181.190002 | C169: 0.006555230447 | E169: 168 | F169: 0.04502722616 | AA169: 2024-05-02 | AB169: 180.009995 | AC169: 85.809952 | AD169: 271.517181 | AE169: 511.23584 | AF169: 0.0001110617226 | AG169: 0.03342926973 | AH169: -0.004190493676 | AI169: -0.007203387996 | AY169: 167 | AZ169: 223.5659822 | BA169: 110.1365587 | BB169: 288.3228895 | BC169: 419.8205003 | BD169: 132.2043377 | BE169: 1084.414588 | BF169: -210.7913453 | BG169: 92.3846675 | BH169: 1098.212248
A170: 2024-05-06 | B170: 184.759995 | C170: 0.01970303527 | E170: 169 | F170: -0.04790070856 | AA170: 2024-05-03 | AB170: 181.190002 | AC170: 88.781708 | AD170: 268.576294 | AE170: 512.861206 | AF170: 0.006555230447 | AG170: 0.03463183385 | AH170: -0.01083131089 | AI170: 0.003179288056 | AY170: 168 | AZ170: 226.4862412 | BA170: 110.4675445 | BB170: 290.3801161 | BC170: 425.0399398 | BD170: 397.3661568 | BE170: 1181.775258 | BF170: -73.43613854 | BG170: 454.8018734 | BH170: 1960.507149
A171: 2024-05-07 | B171: 177.809998 | C171: -0.03761635196 | E171: 170 | F171: -0.03268874389 | AA171: 2024-05-06 | AB171: 184.759995 | AC171: 92.132431 | AD171: 267.562836 | AE171: 520.888184 | AF171: 0.01970303527 | AG171: 0.03774114145 | AH171: -0.00377344547 | AI171: 0.01565136514 | AY171: 169 | AZ171: 213.7550321 | BA171: 104.6176837 | BB171: 289.5317793 | BC171: 414.3642048 | BD171: -758.6376924 | BE171: -538.9824712 | BF171: -130.0771922 | BG171: -286.478876 | BH171: -1714.176232
A172: 2024-05-08 | B172: 174.720001 | C172: -0.01737808354 | E172: 171 | F172: -0.04187616288 | AA172: 2024-05-07 | AB172: 177.809998 | AC172: 90.546562 | AD172: 265.774475 | AE172: 515.752869 | AF172: -0.03761635196 | AG172: -0.01721292907 | AH172: -0.00668389163 | AI172: -0.009858766541 | AY172: 170 | AZ172: 218.2501539 | BA172: 106.2830794 | BB172: 292.5587134 | BC172: 418.0368965 | BD172: -350.47708 | BE172: -49.10031127 | BF172: 72.02264349 | BG172: -31.46171074 | BH172: -359.0164586
A173: 2024-05-09 | B173: 171.970001 | C173: -0.01573946877 | E173: 172 | F173: 0.0610512859 | AA173: 2024-05-08 | AB173: 174.720001 | AC173: 90.404579 | AD173: 266.758057 | AE173: 515.194458 | AF173: -0.01737808354 | AG173: -0.001568066162 | AH173: 0.003700814384 | AI173: -0.00108271041 | AY173: 171 | AZ173: 218.6141066 | BA173: 104.4896494 | BB173: 290.8938135 | BC173: 418.9679375 | BD173: -317.4298848 | BE173: -576.6442099 | BF173: -39.13801901 | BG173: 33.18608359 | BH173: -900.0260302
A174: 2024-05-10 | B174: 168.470001 | C174: -0.02035238693 | E174: 173 | F174: 0.01330718768 | AA174: 2024-05-09 | AB174: 171.970001 | AC174: 88.739716 | AD174: 266.221588 | AE174: 515.782837 | AF174: -0.01573946877 | AG174: -0.0184156933 | AH174: -0.002011069529 | AI174: 0.00114205227 | AY174: 172 | AZ174: 217.5895313 | BA174: 107.8065965 | BB174: 299.1490534 | BC174: 419.614595 | BD174: -410.4621274 | BE174: 399.0477621 | BF174: 512.0410223 | BG174: 78.08742326 | BH174: 578.7140803
A175: 2024-05-13 | B175: 171.889999 | C175: 0.02030033822 | E175: 174 | F175: 0.01693681976 | AA175: 2024-05-10 | AB175: 168.470001 | AC175: 89.870613 | AD175: 273.226074 | AE175: 517.168884 | AF175: -0.02035238693 | AG175: 0.01274397813 | AH175: 0.0263107363 | AI175: 0.002687268557 | AY175: 173 | AZ175: 226.6189081 | BA175: 107.0670741 | BB175: 287.5794801 | BC175: 411.7040847 | BD175: 409.4124214 | BE175: 181.5145899 | BF175: -260.4266928 | BG175: -471.1870792 | BH175: -140.6867606
A176: 2024-05-14 | B176: 177.550003 | C176: 0.03292805883 | E176: 175 | F176: 0.05586072966 | AA176: 2024-05-13 | AB176: 171.889999 | AC176: 90.391579 | AD176: 269.569824 | AE176: 508.782867 | AF176: 0.02030033822 | AG176: 0.005796844848 | AH176: -0.01338177556 | AI176: -0.01621523889 | AY176: 174 | AZ176: 229.4236511 | BA176: 107.5769159 | BB176: 290.7709723 | BC176: 418.8754869 | BD176: 664.0853051 | BE176: 331.4863926 | BF176: -47.33977556 | BG176: 26.76667987 | BH176: 974.998602
A177: 2024-05-15 | B177: 173.990005 | C177: -0.02005067834 | E177: 176 | F177: 0.01026892366 | AA177: 2024-05-14 | AB177: 177.550003 | AC177: 91.348495 | AD177: 268.914093 | AE177: 509.251526 | AF177: 0.03292805883 | AG177: 0.01058634013 | AH177: -0.002432508915 | AI177: 0.0009211375429 | AY177: 175 | AZ177: 217.6565438 | BA177: 110.2649325 | BB177: 294.9368974 | BC177: 424.2013939 | BD177: -404.3773401 | BE177: 1122.176212 | BF177: 230.8072672 | BG177: 396.5765668 | BH177: 1345.182706
A178: 2024-05-16 | B178: 174.839996 | C178: 0.00488528637 | E178: 177 | F178: 0.01294338739 | AA178: 2024-05-15 | AB178: 173.990005 | AC178: 94.622223 | AD178: 272.103363 | AE178: 516.201599 | AF178: -0.02005067834 | AG178: 0.03583778802 | AH178: 0.01185980982 | AI178: 0.01364762332 | AY178: 176 | AZ178: 223.195071 | BA178: 106.1451554 | BB178: 291.0968644 | BC178: 414.949228 | BD178: 98.52530045 | BE178: -89.67114902 | BF178: -25.5808813 | BG178: -245.8571787 | BH178: -262.5839086
A179: 2024-05-17 | B179: 177.460007 | C179: 0.01498519252 | E179: 178 | F179: -0.01985317724 | AA179: 2024-05-16 | AB179: 174.839996 | AC179: 94.35125 | AD179: 271.745697 | AE179: 511.834106 | AF179: 0.00488528637 | AG179: -0.002863735298 | AH179: -0.001314449024 | AI179: -0.008460828111 | AY179: 177 | AZ179: 225.4383611 | BA179: 104.3290917 | BB179: 290.2757572 | BC179: 418.2699231 | BD179: 302.2178196 | BE179: -623.8728607 | BF179: -80.40388911 | BG179: -15.28126781 | BH179: -417.340198
A180: 2024-05-20 | B180: 174.949997 | C180: -0.01414408825 | E180: 179 | F180: 0.01759204209 | AA180: 2024-05-17 | AB180: 177.460007 | AC180: 92.471397 | AD180: 270.622986 | AE180: 511.564941 | AF180: 0.01498519252 | AG180: -0.01992398617 | AH180: -0.004131476643 | AI180: -0.000525883283 | AY180: 178 | AZ180: 218.9684566 | BA180: 109.0986275 | BB180: 286.6537597 | BC180: 420.9779283 | BD180: -285.2546276 | BE180: 779.1033778 | BF180: -322.2344261 | BG180: 172.7518863 | BH180: 344.3662103
A181: 2024-05-21 | B181: 186.600006 | C181: 0.066590507 | E181: 180 | F181: -0.05770177061 | AA181: 2024-05-20 | AB181: 174.949997 | AC181: 94.772217 | AD181: 266.14209 | AE181: 514.606201 | AF181: -0.01414408825 | AG181: 0.0248814236 | AH181: -0.01655770659 | AI181: 0.005945012561 | AY181: 179 | AZ181: 236.9004175 | BA181: 107.1306137 | BB181: 289.3036952 | BC181: 416.5762641 | BD181: 1342.981601 | BE181: 200.2049887 | BF181: -145.305724 | BG181: -132.8822427 | BH181: 1264.998623
A182: 2024-05-22 | B182: 180.110001 | C182: -0.03478030435 | E182: 181 | F182: -0.01038103952 | AA182: 2024-05-21 | AB182: 186.600006 | AC182: 95.378166 | AD182: 264.154968 | AE182: 512.25293 | AF182: 0.066590507 | AG182: 0.0063937409 | AH182: -0.007466395112 | AI182: -0.004572955 | AY182: 180 | AZ182: 214.3849466 | BA182: 105.9634255 | BB182: 291.3703564 | BC182: 417.0236709 | BD182: -701.4409547 | BE182: -143.1276418 | BF182: -7.320595457 | BG182: -101.8160845 | BH182: -953.7052764
A183: 2024-05-23 | B183: 173.740005 | C183: -0.03536725315 | E183: 182 | F183: 0.02410964258 | AA183: 2024-05-22 | AB183: 180.110001 | AC183: 94.9422 | AD183: 264.055603 | AE183: 510.458069 | AF183: -0.03478030435 | AG183: -0.004570920351 | AH183: -0.0003761617688 | AI183: -0.003503856972 | AY183: 181 | AZ183: 214.2545794 | BA183: 116.3707688 | BB183: 282.8816075 | BC183: 410.4867777 | BD183: -713.2783993 | BE183: 2918.230059 | BF183: -574.0903695 | BG183: -555.7120567 | BH183: 1075.149233
A184: 2024-05-24 | B184: 179.240005 | C184: 0.0316564973 | E184: 183 | F184: -0.04543915941 | AA184: 2024-05-23 | AB184: 173.740005 | AC184: 103.790482 | AD184: 256.266205 | AE184: 500.696045 | AF184: -0.03536725315 | AG184: 0.09319651325 | AH184: -0.02949908243 | AI184: -0.0191240468 | AY184: 182 | AZ184: 229.1412246 | BA184: 109.1881861 | BB184: 291.6834066 | BC184: 418.5149968 | BD184: 638.4407528 | BE184: 805.4473518 | BF184: 13.58088522 | BG184: 1.735676212 | BH184: 1459.204666
A185: 2024-05-28 | B185: 176.75 | C185: -0.0138920159 | E185: 184 | F185: -0.05001907373 | AA185: 2024-05-24 | AB185: 179.240005 | AC185: 106.460258 | AD185: 256.445038 | AE185: 500.725952 | AF185: 0.0316564973 | AG185: 0.02572274402 | AH185: 0.0006978407473 | AI185: 5.973084928e-05 | AY185: 183 | AZ185: 219.0244443 | BA185: 113.8806729 | BB185: 286.319155 | BC185: 424.256963 | BD185: -280.1708921 | BE185: 2185.759341 | BF185: -344.5750374 | BG185: 400.4350673 | BH185: 1961.448479
A186: 2024-05-29 | B186: 176.190002 | C186: -0.003168305516 | E186: 185 | F186: 0.03733351437 | AA186: 2024-05-28 | AB186: 176.75 | AC186: 113.891647 | AD186: 251.90451 | AE186: 507.62616 | AF186: -0.0138920159 | AG186: 0.06980434896 | AH186: -0.01770565746 | AI186: 0.01378040817 | AY186: 184 | AZ186: 221.4062877 | BA186: 107.3135513 | BB186: 286.6860024 | BC186: 419.2545276 | BD186: -63.89763654 | BE186: 254.0167511 | BF186: -320.0816724 | BG186: 53.0857714 | BH186: -76.87678645
A187: 2024-05-30 | B187: 178.789993 | C187: 0.01475674539 | E187: 186 | F187: -0.02254890892 | AA187: 2024-05-29 | AB187: 176.190002 | AC187: 114.815567 | AD187: 247.761414 | AE187: 508.553528 | AF187: -0.003168305516 | AG187: 0.008112271833 | AH187: -0.01644708941 | AI187: 0.001826871964 | AY187: 185 | AZ187: 225.3876207 | BA187: 102.4404517 | BB187: 294.63594 | BC187: 417.74329 | BD187: 297.610552 | BE187: -1179.423157 | BF187: 210.7131972 | BG187: -51.84858531 | BH187: -722.9479936
A188: 2024-05-31 | B188: 178.080002 | C188: -0.003971089143 | E188: 187 | F188: -0.03997966199 | AA188: 2024-05-30 | AB188: 178.789993 | AC188: 110.490921 | AD188: 250.444 | AE188: 507.646118 | AF188: 0.01475674539 | AG188: -0.03766602485 | AH188: 0.01082729533 | AI188: -0.001784295949 | AY188: 186 | AZ188: 221.2279814 | BA188: 105.6147854 | BB188: 299.3663052 | BC188: 418.0625426 | BD188: -80.08798691 | BE188: -245.6814071 | BF188: 526.5463066 | BG188: -29.68095119 | BH188: 171.0959614
A189: 2024-06-03 | B189: 176.289993 | C189: -0.0100517126 | E189: 188 | F189: -0.01407552396 | AA189: 2024-05-31 | AB189: 178.080002 | AC189: 109.624001 | AD189: 257.220032 | AE189: 507.127594 | AF189: -0.003971089143 | AG189: -0.00784607452 | AH189: 0.02705607641 | AI189: -0.001021428081 | AY189: 187 | AZ189: 219.8774141 | BA189: 111.6611734 | BB189: 294.3469426 | BC189: 430.3391632 | BD189: -202.7205631 | BE189: 1532.885504 | BF189: 191.4176562 | BG189: 822.7589581 | BH189: 2344.341555
A190: 2024-06-04 | B190: 174.770004 | C190: -0.008622094619 | E190: 189 | F190: -0.04385909067 | AA190: 2024-06-03 | AB190: 176.289993 | AC190: 114.990555 | AD190: 259.75 | AE190: 521.48645 | AF190: -0.0100517126 | AG190: 0.04895418842 | AH190: 0.009835812477 | AI190: 0.02831408933 | AY190: 188 | AZ190: 220.1949466 | BA190: 107.7801548 | BB190: 294.8128042 | BC190: 416.8896157 | BD190: -173.8883657 | BE190: 391.2698451 | BF190: 222.5219174 | BG190: -111.1243432 | BH190: 328.7790535
A191: 2024-06-05 | B191: 175 | C191: 0.001315992417 | E191: 190 | F191: -0.008959565286 | AA191: 2024-06-04 | AB191: 174.770004 | AC191: 116.427429 | AD191: 262.720001 | AE191: 519.492188 | AF191: -0.008622094619 | AG191: 0.01249558279 | AH191: 0.01143407507 | AI191: -0.00382418757 | AY191: 189 | AZ191: 222.4022951 | BA191: 111.9381229 | BB191: 288.4511343 | BC191: 415.3732636 | BD191: 26.54062392 | BE191: 1614.351219 | BF191: -202.2288042 | BG191: -216.4138323 | BH191: 1222.249206
A192: 2024-06-06 | B192: 177.940002 | C192: 0.01680001143 | E192: 191 | F192: -0.03945040382 | AA192: 2024-06-05 | AB192: 175 | AC192: 122.429947 | AD192: 259.98999 | AE192: 515.62323 | AF192: 0.001315992417 | AG192: 0.05155587521 | AH192: -0.01039133294 | AI192: -0.007447576863 | AY192: 190 | AZ192: 225.8414505 | BA192: 105.1963127 | BB192: 292.29843 | BC192: 415.730324 | BD192: 338.8186583 | BE192: -368.7766602 | BF192: 54.64425773 | BG192: -191.6209687 | BH192: -166.9347129
A193: 2024-06-07 | B193: 177.479996 | C193: -0.002585174749 | E193: 192 | F193: 0.04785133939 | AA193: 2024-06-06 | AB193: 177.940002 | AC193: 120.98806 | AD193: 260.720001 | AE193: 512.223022 | AF193: 0.01680001143 | AG193: -0.01177724107 | AH193: 0.002807842717 | AI193: -0.006594365425 | AY193: 191 | AZ193: 221.5358068 | BA193: 106.3532309 | BB193: 286.4378946 | BC193: 418.3759066 | BD193: -52.1371931 | BE193: -28.4649751 | BF193: -336.6471249 | BG193: -7.922197183 | BH193: -425.1714903
A194: 2024-06-10 | B194: 173.789993 | C194: -0.02079109242 | E194: 193 | F194: 0.044257291 | AA194: 2024-06-07 | AB194: 177.479996 | AC194: 120.878075 | AD194: 256.209991 | AE194: 512.083374 | AF194: -0.002585174749 | AG194: -0.0009090566458 | AH194: -0.01729828929 | AI194: -0.0002726312446 | AY194: 192 | AZ194: 217.4920905 | BA194: 107.2442698 | BB194: 288.7496226 | BC194: 429.0836661 | BD194: -419.3098362 | BE194: 233.6373494 | BF194: -182.2995799 | BG194: 735.5822063 | BH194: 367.6101396
A195: 2024-06-11 | B195: 170.660004 | C195: -0.01801017968 | E195: 194 | F195: 0.002286127473 | AA195: 2024-06-10 | AB195: 173.789993 | AC195: 121.779999 | AD195: 253.809998 | AE195: 525.046265 | AF195: -0.02079109242 | AG195: 0.007461435831 | AH195: -0.009367288881 | AI195: 0.02531402435 | AY195: 193 | AZ195: 218.109759 | BA195: 105.6895223 | BB195: 292.0197577 | BC195: 419.6027322 | BD195: -363.2250454 | BE195: -223.6972538 | BF195: 36.03809372 | BG195: 77.26371725 | BH195: -473.6204883
A196: 2024-06-12 | B196: 177.289993 | C196: =B196/B195-1 -> 0.03884910843 | E196: 195 | F196: -0.02362385745 | AA196: 2024-06-11 | AB196: 170.660004 | AC196: 120.910004 | AD196: 254.279999 | AE196: 526.442322 | AF196: -0.01801017968 | AG196: -0.007143989219 | AH196: 0.001851782844 | AI196: 0.002658921876 | AY196: 194 | AZ196: =$AT$21*(1+AF197) -> 230.7387755 | BA196: =$AU$21*(1+AG197) -> 110.2269394 | BB196: =$AV$21*(1+AH197) -> 291.7092556 | BC196: =$AW$21*(1+AI197) -> 421.2246918 | BD196: =AZ196*$AT$23-$AT$22 -> 783.4996334 | BE196: =BA196*$AU$23-$AU$22 -> 1111.000387 | BF196: =BB196*$AV$23-$AV$22 -> 15.30675159 | BG196: =BC196*$AW$23-$AW$22 -> 189.8861647 | BH196: =SUM(BD196:BG196) -> 2099.692936
A197: 2024-06-13 | B197: 182.470001 | C197: 0.02921771225 | E197: 196 | F197: 0.01942055243 | AA197: 2024-06-12 | AB197: 177.289993 | AC197: 125.199997 | AD197: 254.479996 | AE197: 529.882446 | AF197: =AB197/AB196-1 -> 0.03884910843 | AG197: 0.03548087717 | AH197: 0.0007865227339 | AI197: 0.00653466459 | AY197: 195 | AZ197: 228.5995461 | BA197: 110.1995602 | BB197: 290.5865934 | BC197: 416.4030439 | BD197: 589.2559124 | BE197: 1102.946704 | BF197: -59.65023386 | BG197: -144.9099657 | BH197: 1487.642416
A198: 2024-06-14 | B198: 178.009995 | C198: -0.02444240684 | E198: 197 | F198: -0.04028577264 | AA198: 2024-06-13 | AB198: 182.470001 | AC198: 129.610001 | AD198: 253.699997 | AE198: 527.23999 | AF198: 0.02921771225 | AG198: 0.03522367497 | AH198: -0.003065069995 | AI198: -0.004986872126 | AY198: 196 | AZ198: 216.681097 | BA198: 108.3143772 | BB198: 291.3421358 | BC198: 413.8624986 | BD198: -492.948682 | BE198: 548.4132898 | BF198: -9.204801809 | BG198: -321.3153694 | BH198: -275.0555634
A199: 2024-06-17 | B199: 187.440002 | C199: 0.0529745928 | E199: 198 | F199: -0.003510931672 | AA199: 2024-06-14 | AB199: 178.009995 | AC199: 131.880005 | AD199: 253.580002 | AE199: 521.409973 | AF199: -0.02444240684 | AG199: 0.01751411143 | AH199: -0.0004729799031 | AI199: -0.01105761534 | AY199: 197 | AZ199: 233.8761868 | BA199: 105.7235369 | BB199: 291.3995298 | BC199: 427.118081 | BD199: 1068.379062 | BE199: -213.6917519 | BF199: -5.37276964 | BG199: 599.099769 | BH199: 1448.41431
A200: 2024-06-18 | B200: 184.860001 | C200: -0.0137644098 | E200: 199 | F200: -0.09774627015 | AA200: 2024-06-17 | AB200: 187.440002 | AC200: 130.979996 | AD200: 253.509995 | AE200: 532.159973 | AF200: 0.0529745928 | AG200: -0.00682445379 | AH200: -0.0002760746094 | AI200: 0.02061717373 | AY200: 198 | AZ200: 219.0527869 | BA200: 110.1885147 | BB200: 288.3526038 | BC200: 419.6539034 | BD200: -277.5973624 | BE200: 1099.697626 | BF200: -208.8074024 | BG200: 80.81683826 | BH200: 694.1096993
... 801 more rows

Sheet VaR_Bono
V3: Montecarlo univariado BONO 3 años | Z3: VP del FC | AA3: =$E$19 -> 890536.7833 | AP3: VP del FC | AQ3: =$K$23 -> 1490497.745 | BF3: VP del FC | BG3: =$Q$36 -> 1569145.386 | BQ3: Portafolio de Bonos
Z4: mu | AA4: =AVERAGE(X8:X508) -> -0.0002384703655 | AK4: Montecarlo univariado BONO 7 años | BA4: Montecarlo univariado BONO 20 años
B5: DURACIÓN DEL BONO | Z5: desv | AA5: =_xlfn.STDEV.S(X8:X508) -> 0.01058258799 | AP5: mu | AQ5: =AVERAGE(AM8:AM508) -> -9.982119875e-05 | BF5: mu | BG5: =AVERAGE(BC8:BC508) -> -2.484689327e-05 | BQ5: Monte Carlo con Cópula Gaussiana
V6: observation_date | W6: DGS3 | X6: Retorno | Z6: Paso 1 | AA6: U(0,1) | AB6: =RAND() -> 0.3718755815 | AK6: observation_date | AL6: DGS7 | AM6: Retorno | AP6: desv | AQ6: =_xlfn.STDEV.S(AM8:AM508) -> 0.009825243092 | AV6: Probabilidad | AW6: 0.99 | BA6: observation_date | BB6: DGS20
V7: 2005-11-01 | W7: 4.44 | Z7: Paso 2 | AA7: Distribucion | AB7: Normal | AK7: 2005-11-01 | AL7: 4.51 | AP7: Tasa t | AQ7: =$K$12 -> 0.0429 | BA7: 2005-11-01 | BB7: 4.85 | BF7: desv | BG7: =_xlfn.STDEV.S(BC8:BC508) -> 0.007977722978 | BR7: Bono 3Y | BS7: Bono 7Y | BT7: Bono 10Y
V8: 2005-11-02 | W8: 4.46 | X8: =LN(Tabla615[[#This Row],[DGS3]]/W7) -> 0.004494389588 | Z8: Paso 3 | AA8: N(mu,des) | AB8: =NORMINV(AB6,AA4,AA5) -> -0.00369781146 | AE8: Probabilidad | AF8: 0.99 | AK8: 2005-11-02 | AL8: 4.54 | AM8: =LN(Tabla102[[#This Row],[DGS7]]/AL7) -> 0.006629858539 | BA8: 2005-11-02 | BB8: 4.88 | BC8: =LN(Tabla83[[#This Row],[DGS20]]/BB7) -> 0.006166514916 | BF8: Tasa t | BG8: =$Q$12 -> 0.0479 | BL8: Probabilidad | BM8: 0.99 | BQ8: Media | BR8: =$AA$4 -> -0.0002384703655 | BS8: =$AQ$5 -> -9.982119875e-05 | BT8: =$BG$5 -> -2.484689327e-05
C9: Principal | D9: = | E9: 1000000 | F9: u.m | I9: Principal | J9: = | K9: 2000000 | L9: u.m | O9: Principal | P9: = | Q9: 4000000 | R9: u.m | V9: 2005-11-03 | W9: 4.50 | X9: =LN(Tabla615[[#This Row],[DGS3]]/W8) -> 0.008928630744 | Z9: Paso 4 | AA9: RNG de retorno | AK9: 2005-11-03 | AL9: 4.59 | AM9: =LN(Tabla102[[#This Row],[DGS7]]/AL8) -> 0.01095301202 | AP9: Escenarios | AQ9: RNG del retorno | AR9: Tasas t+1 | AS9: Precio t+1 | AT9: P/L | AV9: VaR_MC P/L | AW9: =PERCENTILE(AT10:AT609,1-AW6) -> -10045.59758 | BA9: 2005-11-03 | BB9: 4.94 | BC9: =LN(Tabla83[[#This Row],[DGS20]]/BB8) -> 0.01222011133 | BQ9: Desv_Est | BR9: =$AA$5 -> 0.01058258799 | BS9: =$AQ$6 -> 0.009825243092 | BT9: =$BG$7 -> 0.007977722978
C10: Madurez | D10: = | E10: 3 | F10: años | I10: Madurez | J10: = | K10: 7 | L10: años | O10: Madurez | P10: = | Q10: 20 | R10: años | V10: 2005-11-04 | W10: 4.50 | X10: =LN(Tabla615[[#This Row],[DGS3]]/W9) -> 0 | Z10: Escenarios | AA10: RNG de retorno | AB10: Tasa t+1 | AC10: Precio t+1 | AD10: P/L | AF10: VaR MC_P/L | AG10: =PERCENTILE(AD11:AD610,1-AF8) -> -2214.367776 | AK10: 2005-11-04 | AL10: 4.60 | AM10: =LN(Tabla102[[#This Row],[DGS7]]/AL9) -> 0.002176279423 | AP10: 1 | AQ10: =NORMINV(RAND(),$AQ$5,$AQ$6) -> 0.001785331508 | AR10: =$AQ$7*(1+AQ10) -> 0.04297659072 | AS10: =$J$16/(1+AR10)^$I$16 + $J$17/(1+AR10)^$I$17 + $J$18/(1+AR10)^$I$18 + $J$19/(1+AR10)^$I$19 + $J$20/(1+AR10)^$I$20 + $J$21/(1+AR10)^$I$21 + $J$22/(1+AR10)^$I$22 -> 1489731.734 | AT10: =AS10-$AQ$3 -> -766.011498 | AV10: VaR_MC Precio | AW10: =AQ3+AW9 -> 1480452.148 | BA10: 2005-11-04 | BB10: 4.95 | BC10: =LN(Tabla83[[#This Row],[DGS20]]/BB9) -> 0.002022245381
C11: Cupón | D11: = | E11: 0 | I11: Cupón | J11: = | K11: 0 | O11: Cupón | P11: = | Q11: 0 | V11: 2005-11-07 | W11: 4.50 | X11: =LN(Tabla615[[#This Row],[DGS3]]/W10) -> 0 | Z11: 1 | AA11: =NORMINV(RAND(),$AA$4,$AA$5) -> -0.01565968719 | AB11: =(1+AA11)*$E$12 -> 0.03878300832 | AC11: =$D$16/(1+AB11)^$C$16 + $D$17/(1+AB11)^$C$17 + $D$18/(1+AB11)^$C$18 -> 892124.5457 | AD11: =AC11-$AA$3 -> 1587.762392 | AF11: VaR MC_Precio | AG11: =AA3+AG10 -> 888322.4155 | AK11: 2005-11-07 | AL11: 4.59 | AM11: =LN(Tabla102[[#This Row],[DGS7]]/AL10) -> -0.002176279423 | AP11: 2 | AQ11: =NORMINV(RAND(),$AQ$5,$AQ$6) -> 0.008344404237 | AR11: =$AQ$7*(1+AQ11) -> 0.04325797494 | AS11: =$J$16/(1+AR11)^$I$16 + $J$17/(1+AR11)^$I$17 + $J$18/(1+AR11)^$I$18 + $J$19/(1+AR11)^$I$19 + $J$20/(1+AR11)^$I$20 + $J$21/(1+AR11)^$I$21 + $J$22/(1+AR11)^$I$22 -> 1486921.369 | AT11: =AS11-$AQ$3 -> -3576.37658 | BA11: 2005-11-07 | BB11: 4.93 | BC11: =LN(Tabla83[[#This Row],[DGS20]]/BB10) -> -0.004048588526 | BF11: Escenarios | BG11: RNG del retorno | BH11: Tasas t+1 | BI11: Precio t+1 | BJ11: P/L | BL11: VaR_MC P/L | BM11: =PERCENTILE(BJ12:BJ611,1-BM8) -> -25673.1331 | BQ11: Cópula Gaussiana
C12: Tasa de interés | D12: = | E12: =W508/100 -> 0.0394 | I12: Tasa de interés | J12: = | K12: ='FRED 7Y'!C511/100 -> 0.0429 | O12: Tasa de interés | P12: = | Q12: ='FRED 20Y'!C511/100 -> 0.0479 | V12: 2005-11-08 | W12: 4.47 | X12: =LN(Tabla615[[#This Row],[DGS3]]/W11) -> -0.006688988151 | Z12: 2 | AA12: =NORMINV(RAND(),$AA$4,$AA$5) -> 0.0175068215 | AB12: =(1+AA12)*$E$12 -> 0.04008976877 | AC12: =$D$16/(1+AB12)^$C$16 + $D$17/(1+AB12)^$C$17 + $D$18/(1+AB12)^$C$18 -> 888766.1943 | AD12: =AC12-$AA$3 -> -1770.589035 | AK12: 2005-11-08 | AL12: 4.52 | AM12: =LN(Tabla102[[#This Row],[DGS7]]/AL11) -> -0.01536803023 | AP12: 3 | AQ12: -0.01294399073 | AR12: 0.0423447028 | AS12: 1496064.956 | AT12: 5567.210507 | BA12: 2005-11-08 | BB12: 4.86 | BC12: =LN(Tabla83[[#This Row],[DGS20]]/BB11) -> -0.01430055014 | BF12: 1 | BG12: =NORMINV(RAND(),$BG$5,$BG$7) -> 0.005468567495 | BH12: =$BG$8*(1+BG12) -> 0.04816194438 | BI12: =$P$35/(1+BH12)^$O$35 -> 1561321.129 | BJ12: =BI12-$BG$3 -> -7824.257472 | BL12: VaR_MC Precio | BM12: =BG3+BM11 -> 1543472.253 | BP12: Paso 1 | BQ12: U(0,1) | BR12: =RAND() -> 0.6715684568 | BS12: =RAND() -> 0.9317471312 | BT12: 0.05335287114 | BU12: No correlacionadas
V13: 2005-11-09 | W13: 4.53 | X13: =LN(Tabla615[[#This Row],[DGS3]]/W12) -> 0.01333353087 | Z13: 3 | AA13: -0.009709308811 | AB13: 0.03901745323 | AC13: 891520.7824 | AD13: 983.999097 | AK13: 2005-11-09 | AL13: 4.58 | AM13: =LN(Tabla102[[#This Row],[DGS7]]/AL12) -> 0.01318700428 | AP13: 4 | AQ13: -0.00926236864 | AR13: 0.04250264439 | AS13: 1494479.076 | AT13: 3981.330078 | BA13: 2005-11-09 | BB13: 4.93 | BC13: =LN(Tabla83[[#This Row],[DGS20]]/BB12) -> 0.01430055014 | BF13: 2 | BG13: =NORMINV(RAND(),$BG$5,$BG$7) -> -0.003638392195 | BH13: =$BG$8*(1+BG13) -> 0.04772572101 | BI13: =$P$35/(1+BH13)^$O$35 -> 1574373.885 | BJ13: =BI13-$BG$3 -> 5228.498984 | BP13: Paso 2 | BQ13: N() | BR13: =NORMINV(BR12,0,1) -> 0.4442482847 | BS13: =NORMINV(BS12,0,1) -> 1.488930247 | BT13: -1.613178458 | BU13: No correlacionadas | BW13: Matriz de Correlacion | CA13: Cholesky
V14: 2005-11-10 | W14: 4.48 | X14: =LN(Tabla615[[#This Row],[DGS3]]/W13) -> -0.01109889307 | Z14: 4 | AA14: -0.01269646096 | AB14: 0.03889975944 | AC14: 891823.8097 | AD14: 1287.026459 | AF14: Resolución: | AK14: 2005-11-10 | AL14: 4.51 | AM14: =LN(Tabla102[[#This Row],[DGS7]]/AL13) -> -0.01540184461 | AP14: 5 | AQ14: 0.00298755613 | AR14: 0.04302816616 | AS14: 1489216.163 | AT14: -1281.582591 | BA14: 2005-11-10 | BB14: 4.85 | BC14: =LN(Tabla83[[#This Row],[DGS20]]/BB13) -> -0.01636028311 | BF14: 3 | BG14: 0.003439480467 | BH14: 0.04806475111 | BI14: 1564219.493 | BJ14: -4925.893254 | BP14: Paso 3 | BQ14: N()* | BR14: =MMULT(BR13:BT13,TRANSPOSE(_xlfn.ANCHORARRAY(CA14))) -> 0.4442482847 | BS14: 0.8822473449 | BT14: 0.4282779239 | BU14: Correlacionadas | BW14: =VBAProject.Módulo1.CorrMatrix(BQ30:BS530) -> 1 | BX14: 0.9511440994 | BY14: 0.822086586 | CA14: =VBAProject.Módulo1.Cholesky(_xlfn.ANCHORARRAY(BW14)) -> 1 | CB14: 0 | CC14: 0
C15: Año | D15: FC | E15: VP del FC | F15: t*VP del FC | I15: Año | J15: FC | K15: VP del FC | L15: t*VP del FC | O15: Año | P15: FC | Q15: VP del FC | R15: t*VP del FC | V15: 2005-11-14 | W15: 4.52 | X15: =LN(Tabla615[[#This Row],[DGS3]]/W14) -> 0.008888947417 | Z15: 5 | AA15: 0.01402804172 | AB15: 0.03995270484 | AC15: 889117.654 | AD15: -1419.12929 | AF15: Se espera que el valor del bono al 99% de | AK15: 2005-11-14 | AL15: 4.57 | AM15: =LN(Tabla102[[#This Row],[DGS7]]/AL14) -> 0.01321605139 | AP15: 6 | AQ15: -0.001182674459 | AR15: 0.04284926327 | AS15: 1491005.43 | AT15: 507.6842884 | BA15: 2005-11-14 | BB15: 4.90 | BC15: =LN(Tabla83[[#This Row],[DGS20]]/BB14) -> 0.01025650017 | BF15: 4 | BG15: 0.0008765452881 | BH15: 0.04794198652 | BI15: 1567888.487 | BJ15: -1256.899395 | BP15: Paso 4 | BQ15: U(0,1)* | BR15: =NORMSDIST(_xlfn.ANCHORARRAY(BR14)) -> 0.6715684568 | BS15: 0.811178468 | BT15: 0.6657756053 | BU15: Correlacionadas | BW15: 0.9511440994 | BX15: 1 | BY15: 0.9169509336 | CA15: 0.9511440994 | CB15: 0.3087473111 | CC15: 0
C16: 1 | D16: =$E$9*$E$11 -> 0 | E16: =D16/(1+$E$12)^C16 -> 0 | F16: =E16*C16 -> 0 | I16: 1 | J16: =$K$9*$K$11 -> 0 | K16: =J16/(1+$K$12)^I16 -> 0 | L16: =K16*I16 -> 0 | O16: 1 | P16: =$Q$9*$Q$11 -> 0 | Q16: =P16/(1+$Q$12)^O16 -> 0 | R16: =Q16*O16 -> 0 | V16: 2005-11-15 | W16: 4.50 | X16: =LN(Tabla615[[#This Row],[DGS3]]/W15) -> -0.004434597068 | Z16: 6 | AA16: -0.007710367258 | AB16: 0.03909621153 | AC16: 891318.0793 | AD16: 781.296009 | AF16: porbabilidad, su precio caiga hasta los 888k | AK16: 2005-11-15 | AL16: 4.52 | AM16: =LN(Tabla102[[#This Row],[DGS7]]/AL15) -> -0.01100121106 | AP16: 7 | AQ16: 0.004011261846 | AR16: 0.04307208313 | AS16: 1488777.31 | AT16: -1720.435543 | BA16: 2005-11-15 | BB16: 4.83 | BC16: =LN(Tabla83[[#This Row],[DGS20]]/BB15) -> -0.01438873745 | BF16: 5 | BG16: 0.001838638647 | BH16: 0.04798807079 | BI16: 1566510.135 | BJ16: -2635.251393 | BP16: Paso 5 | BQ16: N(mu,desv) | BR16: =NORMINV(BR15,BR8,BR9) -> 0.004462826198 | BS16: =NORMINV(BS15,BS8,BS9) -> 0.008568473432 | BT16: 0.003391835742 | BU16: RNG_Retorno | BW16: 0.822086586 | BX16: 0.9169509336 | BY16: 1 | CA16: 0.822086586 | CB16: 0.4373418753 | CC16: 0.3645623803
C17: 2 | D17: =$E$9*$E$11 -> 0 | E17: =D17/(1+$E$12)^C17 -> 0 | F17: =E17*C17 -> 0 | I17: 2 | J17: =$K$9*$K$11 -> 0 | K17: =J17/(1+$K$12)^I17 -> 0 | L17: =K17*I17 -> 0 | O17: 2 | P17: =$Q$9*$Q$11 -> 0 | Q17: =P17/(1+$Q$12)^O17 -> 0 | R17: =Q17*O17 -> 0 | V17: 2005-11-16 | W17: 4.43 | X17: =LN(Tabla615[[#This Row],[DGS3]]/W16) -> -0.01567781272 | Z17: 7 | AA17: -0.003327150515 | AB17: 0.03926891027 | AC17: 890873.8133 | AD17: 337.0300547 | AF17: Si tu umbral de riesgo puede admitir este suceso, | AK17: 2005-11-16 | AL17: 4.45 | AM17: =LN(Tabla102[[#This Row],[DGS7]]/AL16) -> -0.01560789767 | AP17: 8 | AQ17: -0.009852073422 | AR17: 0.04247734605 | AS17: 1494732.965 | AT17: 4235.21962 | BA17: 2005-11-16 | BB17: 4.77 | BC17: =LN(Tabla83[[#This Row],[DGS20]]/BB16) -> -0.01250016276 | BF17: 6 | BG17: 0.01013788729 | BH17: 0.0483856048 | BI17: 1554672.832 | BJ17: -14472.55369
C18: 3 | D18: =$E$9*$E$11+$E$9 -> 1000000 | E18: =D18/(1+$E$12)^C18 -> 890536.7833 | F18: =E18*C18 -> 2671610.35 | I18: 3 | J18: 0 | K18: 0 | L18: 0 | O18: 3 | P18: 0 | Q18: 0 | R18: 0 | V18: 2005-11-17 | W18: 4.39 | X18: =LN(Tabla615[[#This Row],[DGS3]]/W17) -> -0.00907035697 | Z18: 8 | AA18: -0.006237169234 | AB18: 0.03915425553 | AC18: 891168.7287 | AD18: 631.9453852 | AF18: adelante, manten la posición. | AK18: 2005-11-17 | AL18: 4.42 | AM18: =LN(Tabla102[[#This Row],[DGS7]]/AL17) -> -0.006764400089 | AP18: 9 | AQ18: 0.0026662844 | AR18: 0.0430143836 | AS18: 1489353.92 | AT18: -1143.825963 | BA18: 2005-11-17 | BB18: 4.75 | BC18: =LN(Tabla83[[#This Row],[DGS20]]/BB17) -> -0.004201686854 | BF18: 7 | BG18: 0.005410624407 | BH18: 0.04815916891 | BI18: 1561403.817 | BJ18: -7741.569362 | BP18: =BP530 -> 2007-10-31 | BQ18: Tasa actual | BR18: =$E$12 -> 0.0394 | BS18: =$K$12 -> 0.0429 | BT18: =$Q$12 -> 0.0479
C19: Suma | E19: =SUM(E16:E18) -> 890536.7833 | F19: =SUM(F16:F18) -> 2671610.35 | I19: 4 | J19: 0 | K19: 0 | L19: 0 | O19: 4 | P19: 0 | Q19: 0 | R19: 0 | V19: 2005-11-18 | W19: 4.41 | X19: =LN(Tabla615[[#This Row],[DGS3]]/W18) -> 0.004545462372 | Z19: 9 | AA19: -0.01093496456 | AB19: 0.0389691624 | AC19: 891645.1007 | AD19: 1108.317375 | AF19: De lo contrario, vende el activo. | AK19: 2005-11-18 | AL19: 4.45 | AM19: =LN(Tabla102[[#This Row],[DGS7]]/AL18) -> 0.006764400089 | AP19: 10 | AQ19: 0.01034570347 | AR19: 0.04334383068 | AS19: 1486065.079 | AT19: -4432.66624 | BA19: 2005-11-18 | BB19: 4.79 | BC19: =LN(Tabla83[[#This Row],[DGS20]]/BB18) -> 0.008385793376 | BF19: 8 | BG19: -0.01547308253 | BH19: 0.04715883935 | BI19: 1591507.648 | BJ19: 22362.26145 | BP19: =BP18+1 -> 2007-11-01 | BQ19: RNG_Nivel | BR19: =BR18*(1+BR16) -> 0.03957583535 | BS19: =BS18*(1+BS16) -> 0.04326758751 | BT19: 0.04806246893
C20: Duración | F20: =F19/E19 -> 3 | I20: 5 | J20: 0 | K20: 0 | L20: 0 | O20: 5 | P20: 0 | Q20: 0 | R20: 0 | V20: 2005-11-21 | W20: 4.39 | X20: =LN(Tabla615[[#This Row],[DGS3]]/W19) -> -0.004545462372 | Z20: 10 | AA20: -0.01039130678 | AB20: 0.03899058251 | AC20: 891589.9546 | AD20: 1053.171307 | AK20: 2005-11-21 | AL20: 4.42 | AM20: =LN(Tabla102[[#This Row],[DGS7]]/AL19) -> -0.006764400089 | AP20: 11 | AQ20: 0.005793288282 | AR20: 0.04314853207 | AS20: 1488013.725 | AT20: -2484.020882 | BA20: 2005-11-21 | BB20: 4.76 | BC20: =LN(Tabla83[[#This Row],[DGS20]]/BB19) -> -0.006282743179 | BF20: 9 | BG20: -0.003283554193 | BH20: 0.04774271775 | BI20: 1573863.166 | BJ20: 4717.78008 | BU20: Portafolio
B21: 100 pbs | C21: Duración mod. | F21: =-F20/(1+E12) -> -2.886280546 | H21: 100 pbs | I21: 6 | J21: 0 | K21: =J21/(1+$K$12)^I21 -> 0 | L21: 0 | O21: 6 | P21: 0 | Q21: 0 | R21: 0 | V21: 2005-11-22 | W21: 4.33 | X21: =LN(Tabla615[[#This Row],[DGS3]]/W20) -> -0.01376168507 | Z21: 11 | AA21: -0.007058007955 | AB21: 0.03912191449 | AC21: 891251.94 | AD21: 715.1566767 | AK21: 2005-11-22 | AL21: 4.37 | AM21: =LN(Tabla102[[#This Row],[DGS7]]/AL20) -> -0.01137668698 | AP21: 12 | AQ21: -0.001867432663 | AR21: 0.04281988714 | AS21: 1491299.465 | AT21: 801.7194033 | BA21: 2005-11-22 | BB21: 4.76 | BC21: =LN(Tabla83[[#This Row],[DGS20]]/BB20) -> 0 | BF21: 10 | BG21: 0.01289155472 | BH21: 0.04851750547 | BI21: 1550766.031 | BJ21: -18379.35558 | BQ21: Precio T | BR21: =E19 -> 890536.7833 | BS21: =K23 -> 1490497.745 | BT21: =Q36 -> 1569145.386 | BU21: =SUM(BR21:BT21) -> 3950179.915
D22: Precio | E22: =E19/E9 -> 0.8905367833 | I22: 7 | J22: =$K$9*$K$11+$K$9 -> 2000000 | K22: =J22/(1+$K$12)^I22 -> 1490497.745 | L22: =K22*I22 -> 10433484.22 | O22: 7 | P22: 0 | Q22: 0 | R22: 0 | V22: 2005-11-23 | W22: 4.36 | X22: =LN(Tabla615[[#This Row],[DGS3]]/W21) -> 0.006904515347 | Z22: 12 | AA22: -0.009855330554 | AB22: 0.03901169998 | AC22: 891535.5922 | AD22: 998.8088714 | AK22: 2005-11-23 | AL22: 4.41 | AM22: =LN(Tabla102[[#This Row],[DGS7]]/AL21) -> 0.009111680351 | AP22: 13 | AQ22: -0.003420314766 | AR22: 0.0427532685 | AS22: 1491966.518 | AT22: 1468.772428 | BA22: 2005-11-23 | BB22: 4.80 | BC22: =LN(Tabla83[[#This Row],[DGS20]]/BB21) -> 0.008368249671 | BF22: 11 | BG22: -0.001799033501 | BH22: 0.0478138263 | BI22: 1571728.379 | BJ22: 2582.99262 | BQ22: Precio T + 1 | BR22: =$D$16/(1+BR19)^$C$16 + $D$17/(1+BR19)^$C$17 + $D$18/(1+BR19)^$C$18 -> 890084.9797 | BS22: =$J$16/(1+BS19)^$I$16 + $J$17/(1+BS19)^$I$17 + $J$18/(1+BS19)^$I$18 + $J$19/(1+BS19)^$I$19 + $J$20/(1+BS19)^$I$20 + $J$21/(1+BS19)^$I$21 + $J$22/(1+BS19)^$I$22 -> 1486825.469 | BT22: =$P$35/(1+BT19)^$O$35 -> 1564287.617 | BU22: =SUM(BR22:BT22) -> 3941198.066
I23: Suma | K23: =SUM(K16:K22) -> 1490497.745 | L23: =SUM(L16:L22) -> 10433484.22 | O23: 8 | P23: 0 | Q23: 0 | R23: 0 | V23: 2005-11-25 | W23: 4.33 | X23: =LN(Tabla615[[#This Row],[DGS3]]/W22) -> -0.006904515347 | Z23: 13 | AA23: 0.01176408217 | AB23: 0.03986350484 | AC23: 889346.4805 | AD23: -1190.302805 | AK23: 2005-11-25 | AL23: 4.37 | AM23: =LN(Tabla102[[#This Row],[DGS7]]/AL22) -> -0.009111680351 | AP23: 14 | AQ23: 0.00425764328 | AR23: 0.0430826529 | AS23: 1488671.711 | AT23: -1826.034864 | BA23: 2005-11-25 | BB23: 4.76 | BC23: =LN(Tabla83[[#This Row],[DGS20]]/BB22) -> -0.008368249671 | BF23: 12 | BG23: -0.009291785643 | BH23: 0.04745492347 | BI23: 1582534.338 | BJ23: 13388.95143
I24: Duración | L24: =L23/K23 -> 7 | M24: años | O24: 9 | P24: 0 | Q24: 0 | R24: 0 | V24: 2005-11-28 | W24: 4.32 | X24: =LN(Tabla615[[#This Row],[DGS3]]/W23) -> -0.002312139758 | Z24: 14 | AA24: 0.0129052984 | AB24: 0.03990846876 | AC24: 889231.1239 | AD24: -1305.659422 | AK24: 2005-11-28 | AL24: 4.35 | AM24: =LN(Tabla102[[#This Row],[DGS7]]/AL23) -> -0.004587164007 | AP24: 15 | AQ24: 0.008080849213 | AR24: 0.04324666843 | AS24: 1487034.177 | AT24: -3463.5681 | BA24: 2005-11-28 | BB24: 4.71 | BC24: =LN(Tabla83[[#This Row],[DGS20]]/BB23) -> -0.01055976022 | BF24: 13 | BG24: 0.008829497964 | BH24: 0.04832293295 | BI24: 1556532.747 | BJ24: -12612.6387
I25: Duración mod. | L25: =-L24/(1+K12) -> -6.712052929 | M25: % | O25: 10 | P25: 0 | Q25: 0 | R25: 0 | V25: 2005-11-29 | W25: 4.40 | X25: =LN(Tabla615[[#This Row],[DGS3]]/W24) -> 0.01834913867 | Z25: 15 | AA25: 0.001039461336 | AB25: 0.03944095478 | AC25: 890431.5239 | AD25: -105.2593643 | AK25: 2005-11-29 | AL25: 4.42 | AM25: =LN(Tabla102[[#This Row],[DGS7]]/AL24) -> 0.01596385099 | AP25: 16 | AQ25: 0.005159560492 | AR25: 0.04312134515 | AS25: 1488285.221 | AT25: -2212.524438 | BA25: 2005-11-29 | BB25: 4.78 | BC25: =LN(Tabla83[[#This Row],[DGS20]]/BB24) -> 0.01475263848 | BF25: 14 | BG25: -0.01190216144 | BH25: 0.04732988647 | BI25: 1586317.29 | BJ25: 17171.90339 | BY25: Probabilidades | BZ25: 0.99
J26: Precio | K26: =K23/K9 -> 0.7452488727 | O26: 11 | P26: 0 | Q26: 0 | R26: 0 | V26: 2005-11-30 | W26: 4.41 | X26: =LN(Tabla615[[#This Row],[DGS3]]/W25) -> 0.002270148535 | Z26: 16 | AA26: 0.004430907931 | AB26: 0.03957457777 | AC26: 890088.2099 | AD26: -448.5733627 | AK26: 2005-11-30 | AL26: 4.45 | AM26: =LN(Tabla102[[#This Row],[DGS7]]/AL25) -> 0.006764400089 | AP26: 17 | AQ26: -0.004429704727 | AR26: 0.04270996567 | AS26: 1492400.292 | AT26: 1902.546884 | BA26: 2005-11-30 | BB26: 4.81 | BC26: =LN(Tabla83[[#This Row],[DGS20]]/BB25) -> 0.006256537614 | BF26: 15 | BG26: -0.01184949946 | BH26: 0.04733240898 | BI26: 1586240.878 | BJ26: 17095.49196
O27: 12 | P27: 0 | Q27: 0 | R27: 0 | V27: 2005-12-01 | W27: 4.44 | X27: =LN(Tabla615[[#This Row],[DGS3]]/W26) -> 0.006779686985 | Z27: 17 | AA27: 0.002673968199 | AB27: 0.03950535435 | AC27: 890266.0418 | AD27: -270.7414994 | AK27: 2005-12-01 | AL27: 4.47 | AM27: =LN(Tabla102[[#This Row],[DGS7]]/AL26) -> 0.004484312447 | AP27: 18 | AQ27: 0.01161655059 | AR27: 0.04339835002 | AS27: 1485521.618 | AT27: -4976.12707 | BA27: 2005-12-01 | BB27: 4.83 | BC27: =LN(Tabla83[[#This Row],[DGS20]]/BB26) -> 0.004149383547 | BF27: 16 | BG27: 0.002763653799 | BH27: 0.04803237902 | BI27: 1565186.103 | BJ27: -3959.28328
O28: 13 | P28: 0 | Q28: 0 | R28: 0 | V28: 2005-12-02 | W28: 4.43 | X28: =LN(Tabla615[[#This Row],[DGS3]]/W27) -> -0.002254792387 | Z28: 18 | AA28: -0.01060286738 | AB28: 0.03898224703 | AC28: 891611.4138 | AD28: 1074.63047 | AK28: 2005-12-02 | AL28: 4.48 | AM28: =LN(Tabla102[[#This Row],[DGS7]]/AL27) -> 0.002234637801 | AP28: 19 | AQ28: 0.002531010119 | AR28: 0.04300858033 | AS28: 1489411.928 | AT28: -1085.817969 | BA28: 2005-12-02 | BB28: 4.81 | BC28: =LN(Tabla83[[#This Row],[DGS20]]/BB27) -> -0.004149383547 | BF28: 17 | BG28: -0.01399082802 | BH28: 0.04722983934 | BI28: 1589351.019 | BJ28: 20205.63307 | BQ28: Retornos Bonos | BU28: Escenarios | BV28: Portafolio | BW28: P/L | BY28: VaR_ P/L | BZ28: =PERCENTILE(BW29:BW628,1-BZ25) -> -36164.57224
O29: 14 | P29: 0 | Q29: 0 | R29: 0 | V29: 2005-12-05 | W29: 4.48 | X29: =LN(Tabla615[[#This Row],[DGS3]]/W28) -> 0.01122346237 | Z29: 19 | AA29: 0.004974179064 | AB29: 0.03959598266 | AC29: 890033.2313 | AD29: -503.5519555 | AK29: 2005-12-05 | AL29: 4.53 | AM29: =LN(Tabla102[[#This Row],[DGS7]]/AL28) -> 0.01109889307 | AP29: 20 | AQ29: 0.009996133351 | AR29: 0.04332883412 | AS29: 1486214.608 | AT29: -4283.137395 | BA29: 2005-12-05 | BB29: 4.85 | BC29: =LN(Tabla83[[#This Row],[DGS20]]/BB28) -> 0.008281620832 | BF29: 18 | BG29: 0.0007233378268 | BH29: 0.04793464788 | BI29: 1568108.098 | BJ29: -1037.287788 | BQ29: Bono 3Y | BR29: Bono 7Y | BS29: Bono 20Y | BU29: 1 | BV29: 3933633.785 | BW29: =BV29-$BU$21 -> -16546.13007 | BY29: VaR_ Portafolio | BZ29: =PERCENTILE(BV29:BV628,1-BZ25) -> 3914015.343
O30: 15 | P30: 0 | Q30: 0 | R30: 0 | V30: 2005-12-06 | W30: 4.41 | X30: =LN(Tabla615[[#This Row],[DGS3]]/W29) -> -0.01574835697 | Z30: 20 | AA30: 0.008931072697 | AB30: 0.03975188426 | AC30: 889632.9335 | AD30: -903.8497879 | AK30: 2005-12-06 | AL30: 4.44 | AM30: =LN(Tabla102[[#This Row],[DGS7]]/AL29) -> -0.02006756305 | AP30: 21 | AQ30: 0.004187129496 | AR30: 0.04307962786 | AS30: 1488701.932 | AT30: -1795.813462 | BA30: 2005-12-06 | BB30: 4.79 | BC30: =LN(Tabla83[[#This Row],[DGS20]]/BB29) -> -0.01244829353 | BF30: 19 | BG30: 0.008727967009 | BH30: 0.04831806962 | BI30: 1556677.174 | BJ30: -12468.21173 | BP30: 2005-11-02 | BQ30: 0.004494389588 | BR30: 0.006629858539 | BS30: 0.006166514916 | BU30: 2 | BV30: 3924654.598 | BW30: =BV30-$BU$21 -> -25525.31705
O31: 16 | P31: 0 | Q31: 0 | R31: 0 | V31: 2005-12-07 | W31: 4.42 | X31: =LN(Tabla615[[#This Row],[DGS3]]/W30) -> 0.002265006631 | Z31: 21 | AA31: 0.01362907064 | AB31: 0.03993698538 | AC31: 889157.9737 | AD31: -1378.809555 | AK31: 2005-12-07 | AL31: 4.46 | AM31: =LN(Tabla102[[#This Row],[DGS7]]/AL30) -> 0.004494389588 | AP31: 22 | AQ31: -0.01161475596 | AR31: 0.04240172697 | AS31: 1495492.159 | AT31: 4994.41305 | BA31: 2005-12-07 | BB31: 4.80 | BC31: =LN(Tabla83[[#This Row],[DGS20]]/BB30) -> 0.002085506491 | BF31: 20 | BG31: 0.004481897324 | BH31: 0.04811468288 | BI31: 1562729.791 | BJ31: -6415.594853 | BP31: 2005-11-03 | BQ31: 0.008928630744 | BR31: 0.01095301202 | BS31: 0.01222011133 | BU31: 3 | BV31: 3952849.154 | BW31: 2669.238839
O32: 17 | P32: 0 | Q32: 0 | R32: 0 | V32: 2005-12-08 | W32: 4.36 | X32: =LN(Tabla615[[#This Row],[DGS3]]/W31) -> -0.01366763873 | Z32: 22 | AA32: 0.008455897646 | AB32: 0.03973316237 | AC32: 889680.9917 | AD32: -855.7915456 | AK32: 2005-12-08 | AL32: 4.39 | AM32: =LN(Tabla102[[#This Row],[DGS7]]/AL31) -> -0.01581953894 | AP32: 23 | AQ32: -0.01218372468 | AR32: 0.04237731821 | AS32: 1495737.309 | AT32: 5239.563908 | BA32: 2005-12-08 | BB32: 4.75 | BC32: =LN(Tabla83[[#This Row],[DGS20]]/BB31) -> -0.01047129987 | BF32: 21 | BG32: -0.006302023149 | BH32: 0.04759813309 | BI32: 1578213.214 | BJ32: 9067.82759 | BP32: 2005-11-04 | BQ32: 0 | BR32: 0.002176279423 | BS32: 0.002022245381 | BU32: 4 | BV32: 3919788.052 | BW32: -30391.86282
O33: 18 | P33: 0 | Q33: 0 | R33: 0 | V33: 2005-12-09 | W33: 4.43 | X33: =LN(Tabla615[[#This Row],[DGS3]]/W32) -> 0.0159275267 | Z33: 23 | AA33: 0.001312934314 | AB33: 0.03945172961 | AC33: 890403.8339 | AD33: -132.9494051 | AK33: 2005-12-09 | AL33: 4.47 | AM33: =LN(Tabla102[[#This Row],[DGS7]]/AL32) -> 0.01805918154 | AP33: 24 | AQ33: 0.01368873145 | AR33: 0.04348724658 | AS33: 1484635.965 | AT33: -5861.780538 | BA33: 2005-12-09 | BB33: 4.83 | BC33: =LN(Tabla83[[#This Row],[DGS20]]/BB32) -> 0.01670184962 | BF33: 22 | BG33: 0.01263371414 | BH33: 0.04850515491 | BI33: 1551131.408 | BJ33: -18013.97867 | BP33: 2005-11-07 | BQ33: 0 | BR33: -0.002176279423 | BS33: -0.004048588526 | BU33: 5 | BV33: 3938965.32 | BW33: -11214.59457
O34: 19 | P34: 0 | Q34: 0 | R34: 0 | V34: 2005-12-12 | W34: 4.45 | X34: =LN(Tabla615[[#This Row],[DGS3]]/W33) -> 0.004504512121 | Z34: 24 | AA34: 0.01615899385 | AB34: 0.04003666436 | AC34: 888902.3428 | AD34: -1634.440526 | AK34: 2005-12-12 | AL34: 4.49 | AM34: =LN(Tabla102[[#This Row],[DGS7]]/AL33) -> 0.004464293129 | AP34: 25 | AQ34: 0.009282725751 | AR34: 0.04329822893 | AS34: 1486519.822 | AT34: -3977.923473 | BA34: 2005-12-12 | BB34: 4.82 | BC34: =LN(Tabla83[[#This Row],[DGS20]]/BB33) -> -0.002072539602 | BF34: 23 | BG34: -0.007931581537 | BH34: 0.04752007724 | BI34: 1580566.887 | BJ34: 11421.50109 | BP34: 2005-11-08 | BQ34: -0.006688988151 | BR34: -0.01536803023 | BS34: -0.01430055014 | BU34: 6 | BV34: 3948202.696 | BW34: -1977.219026
O35: 20 | P35: =$Q$9*$Q$11+$Q$9 -> 4000000 | Q35: =P35/(1+$Q$12)^O35 -> 1569145.386 | R35: =Q35*O35 -> 31382907.72 | V35: 2005-12-13 | W35: 4.43 | X35: =LN(Tabla615[[#This Row],[DGS3]]/W34) -> -0.004504512121 | Z35: 25 | AA35: -0.02296307537 | AB35: 0.03849525483 | AC35: 892866.3394 | AD35: 2329.556133 | AK35: 2005-12-13 | AL35: 4.47 | AM35: =LN(Tabla102[[#This Row],[DGS7]]/AL34) -> -0.004464293129 | AP35: 26 | AQ35: -0.006264057952 | AR35: 0.04263127191 | AS35: 1493188.955 | AT35: 2691.20943 | BA35: 2005-12-13 | BB35: 4.81 | BC35: =LN(Tabla83[[#This Row],[DGS20]]/BB34) -> -0.002076843945 | BF35: 24 | BG35: -0.001052535216 | BH35: 0.04784958356 | BI35: 1570656.04 | BJ35: 1510.653652 | BP35: 2005-11-09 | BQ35: 0.01333353087 | BR35: 0.01318700428 | BS35: 0.01430055014 | BU35: 7 | BV35: 3945089.272 | BW35: -5090.64341
O36: Suma | Q36: =SUM(Q16:Q35) -> 1569145.386 | R36: =SUM(R16:R35) -> 31382907.72 | V36: 2005-12-14 | W36: 4.36 | X36: =LN(Tabla615[[#This Row],[DGS3]]/W35) -> -0.0159275267 | Z36: 26 | AA36: 0.02235241085 | AB36: 0.04028068499 | AC36: 888276.9549 | AD36: -2259.828372 | AK36: 2005-12-14 | AL36: 4.38 | AM36: =LN(Tabla102[[#This Row],[DGS7]]/AL35) -> -0.02033968424 | AP36: 27 | AQ36: 0.007303105358 | AR36: 0.04321330322 | AS36: 1487367.129 | AT36: -3130.616255 | BA36: 2005-12-14 | BB36: 4.73 | BC36: =LN(Tabla83[[#This Row],[DGS20]]/BB35) -> -0.01677188161 | BF36: 25 | BG36: -0.008767917668 | BH36: 0.04748001674 | BI36: 1581776.291 | BJ36: 12630.9048 | BP36: 2005-11-10 | BQ36: -0.01109889307 | BR36: -0.01540184461 | BS36: -0.01636028311 | BU36: 8 | BV36: 3953090.687 | BW36: 2910.772488
O37: Duración | R37: =R36/Q36 -> 20 | S37: años | V37: 2005-12-15 | W37: 4.37 | X37: =LN(Tabla615[[#This Row],[DGS3]]/W36) -> 0.002290951747 | Z37: 27 | AA37: 0.01372585857 | AB37: 0.03994079883 | AC37: 889148.1922 | AD37: -1388.591099 | AK37: 2005-12-15 | AL37: 4.41 | AM37: =LN(Tabla102[[#This Row],[DGS7]]/AL36) -> 0.00682596507 | AP37: 28 | AQ37: 0.002955576718 | AR37: 0.04302679424 | AS37: 1489229.875 | AT37: -1267.870938 | BA37: 2005-12-15 | BB37: 4.75 | BC37: =LN(Tabla83[[#This Row],[DGS20]]/BB36) -> 0.004219415543 | BF37: 26 | BG37: 0.0007163489732 | BH37: 0.04793431312 | BI37: 1568118.117 | BJ37: -1027.269011 | BP37: 2005-11-14 | BQ37: 0.008888947417 | BR37: 0.01321605139 | BS37: 0.01025650017 | BU37: 9 | BV37: 3966057.997 | BW37: 15878.08176
N38: 100 pbs | O38: Duración mod. | R38: =-R37/(1+Q12) -> -19.08579063 | S38: % | V38: 2005-12-16 | W38: 4.35 | X38: =LN(Tabla615[[#This Row],[DGS3]]/W37) -> -0.004587164007 | Z38: 28 | AA38: -0.009041461958 | AB38: 0.0390437664 | AC38: 891453.0524 | AD38: 916.2691099 | AK38: 2005-12-16 | AL38: 4.39 | AM38: =LN(Tabla102[[#This Row],[DGS7]]/AL37) -> -0.004545462372 | AP38: 29 | AQ38: 0.005075438131 | AR38: 0.0431177363 | AS38: 1488321.264 | AT38: -2176.481172 | BA38: 2005-12-16 | BB38: 4.72 | BC38: =LN(Tabla83[[#This Row],[DGS20]]/BB37) -> -0.006335818449 | BF38: 27 | BG38: -0.001947255609 | BH38: 0.04780672646 | BI38: 1571941.39 | BJ38: 2796.00398 | BP38: 2005-11-15 | BQ38: -0.004434597068 | BR38: -0.01100121106 | BS38: -0.01438873745 | BU38: 10 | BV38: 3980752.798 | BW38: 30572.8829
P39: Precio | Q39: =Q36/Q9 -> 0.3922863465 | V39: 2005-12-19 | W39: 4.37 | X39: =LN(Tabla615[[#This Row],[DGS3]]/W38) -> 0.004587164007 | Z39: 29 | AA39: 0.008966603278 | AB39: 0.03975328417 | AC39: 889629.3401 | AD39: -907.4431398 | AK39: 2005-12-19 | AL39: 4.39 | AM39: =LN(Tabla102[[#This Row],[DGS7]]/AL38) -> 0 | AP39: 30 | AQ39: -0.01114938444 | AR39: 0.04242169141 | AS39: 1495291.679 | AT39: 4793.933128 | BA39: 2005-12-19 | BB39: 4.72 | BC39: =LN(Tabla83[[#This Row],[DGS20]]/BB38) -> 0 | BF39: 28 | BG39: 0.009425487753 | BH39: 0.04835148086 | BI39: 1555685.24 | BJ39: -13460.14577 | BP39: 2005-11-16 | BQ39: -0.01567781272 | BR39: -0.01560789767 | BS39: -0.01250016276 | BU39: 11 | BV39: 3969010.418 | BW39: 18830.503
V40: 2005-12-20 | W40: 4.41 | X40: =LN(Tabla615[[#This Row],[DGS3]]/W39) -> 0.009111680351 | Z40: 30 | AA40: -0.00864951945 | AB40: 0.03905920893 | AC40: 891413.3066 | AD40: 876.52328 | AK40: 2005-12-20 | AL40: 4.41 | AM40: =LN(Tabla102[[#This Row],[DGS7]]/AL39) -> 0.004545462372 | AP40: 31 | AQ40: -0.007303871652 | AR40: 0.04258666391 | AS40: 1493636.224 | AT40: 3138.47886 | BA40: 2005-12-20 | BB40: 4.74 | BC40: =LN(Tabla83[[#This Row],[DGS20]]/BB39) -> 0.00422833611 | BF40: 29 | BG40: -0.002851866557 | BH40: 0.04776339559 | BI40: 1573242.072 | BJ40: 4096.685918 | BP40: 2005-11-17 | BQ40: -0.00907035697 | BR40: -0.006764400089 | BS40: -0.004201686854 | BU40: 12 | BV40: 3945298.732 | BW40: -4881.182715
V41: 2005-12-21 | W41: 4.43 | X41: =LN(Tabla615[[#This Row],[DGS3]]/W40) -> 0.004524894598 | Z41: 31 | AA41: 1.443364289e-05 | AB41: 0.03940056869 | AC41: 890535.3216 | AD41: -1.461712993 | AK41: 2005-12-21 | AL41: 4.44 | AM41: =LN(Tabla102[[#This Row],[DGS7]]/AL40) -> 0.006779686985 | AP41: 32 | AQ41: 0.01770332487 | AR41: 0.04365947264 | AS41: 1482921.838 | AT41: -7575.907795 | BA41: 2005-12-21 | BB41: 4.75 | BC41: =LN(Tabla83[[#This Row],[DGS20]]/BB40) -> 0.00210748234 | BF41: 30 | BG41: -0.01094012093 | BH41: 0.04737596821 | BI41: 1584921.999 | BJ41: 15776.61234 | BP41: 2005-11-18 | BQ41: 0.004545462372 | BR41: 0.006764400089 | BS41: 0.008385793376 | BU41: 13 | BV41: 3944674.718 | BW41: -5505.196719
V42: 2005-12-22 | W42: 4.38 | X42: =LN(Tabla615[[#This Row],[DGS3]]/W41) -> -0.01135085967 | Z42: 32 | AA42: 0.01596962199 | AB42: 0.04002920311 | AC42: 888921.4741 | AD42: -1615.309223 | AK42: 2005-12-22 | AL42: 4.39 | AM42: =LN(Tabla102[[#This Row],[DGS7]]/AL41) -> -0.01132514936 | AP42: 33 | AQ42: -0.005432989335 | AR42: 0.04266692476 | AS42: 1492831.586 | AT42: 2333.840463 | BA42: 2005-12-22 | BB42: 4.69 | BC42: =LN(Tabla83[[#This Row],[DGS20]]/BB41) -> -0.01271203559 | BF42: 31 | BG42: 0.0001506048684 | BH42: 0.04790721397 | BI42: 1568929.355 | BJ42: -216.0311968 | BP42: 2005-11-21 | BQ42: -0.004545462372 | BR42: -0.006764400089 | BS42: -0.006282743179 | BU42: 14 | BV42: 3958481.741 | BW42: 8301.82652
V43: 2005-12-23 | W43: 4.34 | X43: =LN(Tabla615[[#This Row],[DGS3]]/W42) -> -0.009174376276 | Z43: 33 | AA43: 0.0008566166058 | AB43: 0.03943375069 | AC43: 890450.0382 | AD43: -86.74509201 | AK43: 2005-12-23 | AL43: 4.33 | AM43: =LN(Tabla102[[#This Row],[DGS7]]/AL42) -> -0.01376168507 | AP43: 34 | AQ43: 0.008405709304 | AR43: 0.04326060493 | AS43: 1486895.13 | AT43: -3602.615359 | BA43: 2005-12-23 | BB43: 4.63 | BC43: =LN(Tabla83[[#This Row],[DGS20]]/BB42) -> -0.01287571436 | BF43: 32 | BG43: -0.00602331629 | BH43: 0.04761148315 | BI43: 1577811.029 | BJ43: 8665.642455 | BP43: 2005-11-22 | BQ43: -0.01376168507 | BR43: -0.01137668698 | BS43: 0 | BU43: 15 | BV43: 3947536.71 | BW43: -2643.204806
V44: 2005-12-27 | W44: 4.31 | X44: =LN(Tabla615[[#This Row],[DGS3]]/W43) -> -0.006936443997 | Z44: 34 | AA44: -0.01147219183 | AB44: 0.03894799564 | AC44: 891699.5989 | AD44: 1162.815629 | AK44: 2005-12-27 | AL44: 4.31 | AM44: =LN(Tabla102[[#This Row],[DGS7]]/AL43) -> -0.004629637899 | AP44: 35 | AQ44: -0.003169189079 | AR44: 0.04276404179 | AS44: 1491858.622 | AT44: 1360.876255 | BA44: 2005-12-27 | BB44: 4.58 | BC44: =LN(Tabla83[[#This Row],[DGS20]]/BB43) -> -0.01085786997 | BF44: 33 | BG44: -0.001333294433 | BH44: 0.0478361352 | BI44: 1571059.258 | BJ44: 1913.871922 | BP44: 2005-11-23 | BQ44: 0.006904515347 | BR44: 0.009111680351 | BS44: 0.008368249671 | BU44: 16 | BV44: 3927831.85 | BW44: -22348.06466
V45: 2005-12-28 | W45: 4.34 | X45: =LN(Tabla615[[#This Row],[DGS3]]/W44) -> 0.006936443997 | Z45: 35 | AA45: -0.001057981137 | AB45: 0.03935831554 | AC45: 890643.9351 | AD45: 107.1517791 | AK45: 2005-12-28 | AL45: 4.34 | AM45: =LN(Tabla102[[#This Row],[DGS7]]/AL44) -> 0.006936443997 | AP45: 36 | AQ45: -0.01061280735 | AR45: 0.04244471056 | AS45: 1495060.562 | AT45: 4562.816298 | BA45: 2005-12-28 | BB45: 4.62 | BC45: =LN(Tabla83[[#This Row],[DGS20]]/BB44) -> 0.008695706968 | BF45: 34 | BG45: 0.001929317012 | BH45: 0.04799241428 | BI45: 1566380.289 | BJ45: -2765.096969 | BP45: 2005-11-25 | BQ45: -0.006904515347 | BR45: -0.009111680351 | BS45: -0.008368249671 | BU45: 17 | BV45: 3949931.727 | BW45: -248.1875001
V46: 2005-12-29 | W46: 4.35 | X46: =LN(Tabla615[[#This Row],[DGS3]]/W45) -> 0.002301496988 | Z46: 36 | AA46: -0.002339020417 | AB46: 0.0393078426 | AC46: 890773.7011 | AD46: 236.9177811 | AK46: 2005-12-29 | AL46: 4.34 | AM46: =LN(Tabla102[[#This Row],[DGS7]]/AL45) -> 0 | AP46: 37 | AQ46: 0.01434627684 | AR46: 0.04351545528 | AS46: 1484355.055 | AT46: -6142.69037 | BA46: 2005-12-29 | BB46: 4.60 | BC46: =LN(Tabla83[[#This Row],[DGS20]]/BB45) -> -0.004338401599 | BF46: 35 | BG46: -0.005412463856 | BH46: 0.04764074298 | BI46: 1576929.921 | BJ46: 7784.534345 | BP46: 2005-11-28 | BQ46: -0.002312139758 | BR46: -0.004587164007 | BS46: -0.01055976022 | BU46: 18 | BV46: 3947802.811 | BW46: -2377.103643
V47: 2005-12-30 | W47: 4.37 | X47: =LN(Tabla615[[#This Row],[DGS3]]/W46) -> 0.004587164007 | Z47: 37 | AA47: -0.01311864691 | AB47: 0.03888312531 | AC47: 891866.6489 | AD47: 1329.865583 | AK47: 2005-12-30 | AL47: 4.36 | AM47: =LN(Tabla102[[#This Row],[DGS7]]/AL46) -> 0.004597709249 | AP47: 38 | AQ47: 0.007570832711 | AR47: 0.04322478872 | AS47: 1487252.506 | AT47: -3245.239847 | BA47: 2005-12-30 | BB47: 4.61 | BC47: =LN(Tabla83[[#This Row],[DGS20]]/BB46) -> 0.002171553514 | BF47: 36 | BG47: 0.002329652031 | BH47: 0.04801159033 | BI47: 1565807.17 | BJ47: -3338.215861 | BP47: 2005-11-29 | BQ47: 0.01834913867 | BR47: 0.01596385099 | BS47: 0.01475263848 | BU47: 19 | BV47: 3969438.695 | BW47: 19258.78034
V48: 2006-01-03 | W48: 4.30 | X48: =LN(Tabla615[[#This Row],[DGS3]]/W47) -> -0.01614798641 | Z48: 38 | AA48: -0.002156103395 | AB48: 0.03931504953 | AC48: 890755.1705 | AD48: 218.387212 | AK48: 2006-01-03 | AL48: 4.32 | AM48: =LN(Tabla102[[#This Row],[DGS7]]/AL47) -> -0.009216655105 | AP48: 39 | AQ48: 0.00529649638 | AR48: 0.04312721969 | AS48: 1488226.551 | AT48: -2271.194179 | BA48: 2006-01-03 | BB48: 4.62 | BC48: =LN(Tabla83[[#This Row],[DGS20]]/BB47) -> 0.002166848085 | BF48: 37 | BG48: 0.003956267683 | BH48: 0.04808950522 | BI48: 1563480.774 | BJ48: -5664.612052 | BP48: 2005-11-30 | BQ48: 0.002270148535 | BR48: 0.006764400089 | BS48: 0.006256537614 | BU48: 20 | BV48: 3957611.995 | BW48: 7432.080441
V49: 2006-01-04 | W49: 4.28 | X49: =LN(Tabla615[[#This Row],[DGS3]]/W48) -> -0.004662013106 | Z49: 39 | AA49: -0.01675125613 | AB49: 0.03874000051 | AC49: 892235.3624 | AD49: 1698.579104 | AK49: 2006-01-04 | AL49: 4.31 | AM49: =LN(Tabla102[[#This Row],[DGS7]]/AL48) -> -0.00231749814 | AP49: 40 | AQ49: -0.02058207907 | AR49: 0.04201702881 | AS49: 1499361.246 | AT49: 8863.500186 | BA49: 2006-01-04 | BB49: 4.60 | BC49: =LN(Tabla83[[#This Row],[DGS20]]/BB48) -> -0.004338401599 | BF49: 38 | BG49: -0.007761677713 | BH49: 0.04752821564 | BI49: 1580321.312 | BJ49: 11175.92631 | BP49: 2005-12-01 | BQ49: 0.006779686985 | BR49: 0.004484312447 | BS49: 0.004149383547 | BU49: 21 | BV49: 3945168.596 | BW49: -5011.319232
V50: 2006-01-05 | W50: 4.29 | X50: =LN(Tabla615[[#This Row],[DGS3]]/W49) -> 0.002333723346 | Z50: 40 | AA50: -0.003441782177 | AB50: 0.03926439378 | AC50: 890885.4282 | AD50: 348.6449179 | AK50: 2006-01-05 | AL50: 4.31 | AM50: =LN(Tabla102[[#This Row],[DGS7]]/AL49) -> 0 | AP50: 41 | AQ50: -0.008079474861 | AR50: 0.04255339053 | AS50: 1493969.945 | AT50: 3472.199482 | BA50: 2006-01-05 | BB50: 4.61 | BC50: =LN(Tabla83[[#This Row],[DGS20]]/BB49) -> 0.002171553514 | BF50: 39 | BG50: -0.002229935547 | BH50: 0.04779318609 | BI50: 1572347.716 | BJ50: 3202.329962 | BP50: 2005-12-02 | BQ50: -0.002254792387 | BR50: 0.002234637801 | BS50: -0.004149383547 | BU50: 22 | BV50: 3938759.063 | BW50: -11420.852
V51: 2006-01-06 | W51: 4.32 | X51: =LN(Tabla615[[#This Row],[DGS3]]/W50) -> 0.006968669316 | Z51: 41 | AA51: 0.005684635344 | AB51: 0.03962397463 | AC51: 889961.3406 | AD51: -575.4427158 | AK51: 2006-01-06 | AL51: 4.33 | AM51: =LN(Tabla102[[#This Row],[DGS7]]/AL50) -> 0.004629637899 | AP51: 42 | AQ51: 0.0005263528864 | AR51: 0.04292258054 | AS51: 1490271.863 | AT51: -225.8829157 | BA51: 2006-01-06 | BB51: 4.63 | BC51: =LN(Tabla83[[#This Row],[DGS20]]/BB50) -> 0.00432901109 | BF51: 40 | BG51: 0.006477699898 | BH51: 0.04821028183 | BI51: 1559881.776 | BJ51: -9263.610199 | BP51: 2005-12-05 | BQ51: 0.01122346237 | BR51: 0.01109889307 | BS51: 0.008281620832 | BU51: 23 | BV51: 3965193.95 | BW51: 15014.03529
V52: 2006-01-09 | W52: 4.32 | X52: =LN(Tabla615[[#This Row],[DGS3]]/W51) -> 0 | Z52: 42 | AA52: 0.009965569088 | AB52: 0.03979264342 | AC52: 889528.3186 | AD52: -1008.464688 | AK52: 2006-01-09 | AL52: 4.34 | AM52: =LN(Tabla102[[#This Row],[DGS7]]/AL51) -> 0.002306806098 | AP52: 43 | AQ52: -0.008255800361 | AR52: 0.04254582616 | AS52: 1494045.825 | AT52: 3548.079359 | BA52: 2006-01-09 | BB52: 4.63 | BC52: =LN(Tabla83[[#This Row],[DGS20]]/BB51) -> 0 | BF52: 41 | BG52: -0.005307695514 | BH52: 0.04764576138 | BI52: 1576778.852 | BJ52: 7633.465903 | BP52: 2005-12-06 | BQ52: -0.01574835697 | BR52: -0.02006756305 | BS52: -0.01244829353 | BU52: 24 | BV52: 3956343.753 | BW52: 6163.83761
V53: 2006-01-10 | W53: 4.36 | X53: =LN(Tabla615[[#This Row],[DGS3]]/W52) -> 0.009216655105 | Z53: 43 | AA53: -0.009838009435 | AB53: 0.03901238243 | AC53: 891533.8354 | AD53: 997.0521168 | AK53: 2006-01-10 | AL53: 4.38 | AM53: =LN(Tabla102[[#This Row],[DGS7]]/AL52) -> 0.009174376276 | AP53: 44 | AQ53: 0.003983923653 | AR53: 0.04307091032 | AS53: 1488789.028 | AT53: -1708.717839 | BA53: 2006-01-10 | BB53: 4.68 | BC53: =LN(Tabla83[[#This Row],[DGS20]]/BB52) -> 0.01074124183 | BF53: 42 | BG53: -0.006496086043 | BH53: 0.04758883748 | BI53: 1578493.318 | BJ53: 9347.931671 | BP53: 2005-12-07 | BQ53: 0.002265006631 | BR53: 0.004494389588 | BS53: 0.002085506491 | BU53: 25 | BV53: 3929488.818 | BW53: -20691.09713
V54: 2006-01-11 | W54: 4.39 | X54: =LN(Tabla615[[#This Row],[DGS3]]/W53) -> 0.006857169726 | Z54: 44 | AA54: -0.01033553571 | AB54: 0.03899277989 | AC54: 891584.2977 | AD54: 1047.514412 | AK54: 2006-01-11 | AL54: 4.41 | AM54: =LN(Tabla102[[#This Row],[DGS7]]/AL53) -> 0.00682596507 | AP54: 45 | AQ54: 0.004994781331 | AR54: 0.04311427612 | AS54: 1488355.824 | AT54: -2141.921833 | BA54: 2006-01-11 | BB54: 4.70 | BC54: =LN(Tabla83[[#This Row],[DGS20]]/BB53) -> 0.004264398786 | BF54: 43 | BG54: 0.0002441496912 | BH54: 0.04791169477 | BI54: 1568795.188 | BJ54: -350.1983873 | BP54: 2005-12-08 | BQ54: -0.01366763873 | BR54: -0.01581953894 | BS54: -0.01047129987 | BU54: 26 | BV54: 3946405.395 | BW54: -3774.519682
V55: 2006-01-12 | W55: 4.35 | X55: =LN(Tabla615[[#This Row],[DGS3]]/W54) -> -0.009153381986 | Z55: 45 | AA55: -0.01061167961 | AB55: 0.03898189982 | AC55: 891612.3076 | AD55: 1075.524334 | AK55: 2006-01-12 | AL55: 4.37 | AM55: =LN(Tabla102[[#This Row],[DGS7]]/AL54) -> -0.009111680351 | AP55: 46 | AQ55: -0.01606447993 | AR55: 0.04221083381 | AS55: 1497410.631 | AT55: 6912.885675 | BA55: 2006-01-12 | BB55: 4.66 | BC55: =LN(Tabla83[[#This Row],[DGS20]]/BB54) -> -0.008547060578 | BF55: 44 | BG55: -0.0009390373932 | BH55: 0.04785502011 | BI55: 1570493.068 | BJ55: 1347.682204 | BP55: 2005-12-09 | BQ55: 0.0159275267 | BR55: 0.01805918154 | BS55: 0.01670184962 | BU55: 27 | BV55: 3949101.825 | BW55: -1078.090417
V56: 2006-01-13 | W56: 4.29 | X56: =LN(Tabla615[[#This Row],[DGS3]]/W55) -> -0.01388911216 | Z56: 46 | AA56: 0.01119279878 | AB56: 0.03984099627 | AC56: 889404.2345 | AD56: -1132.548743 | AK56: 2006-01-13 | AL56: 4.30 | AM56: =LN(Tabla102[[#This Row],[DGS7]]/AL55) -> -0.01614798641 | AP56: 47 | AQ56: -0.001834329273 | AR56: 0.04282130727 | AS56: 1491285.249 | AT56: 787.5032861 | BA56: 2006-01-13 | BB56: 4.59 | BC56: =LN(Tabla83[[#This Row],[DGS20]]/BB55) -> -0.01513542407 | BF56: 45 | BG56: -0.001706984938 | BH56: 0.04781823542 | BI56: 1571596.11 | BJ56: 2450.724037 | BP56: 2005-12-12 | BQ56: 0.004504512121 | BR56: 0.004464293129 | BS56: -0.002072539602 | BU56: 28 | BV56: 3936062.902 | BW56: -14117.01328
V57: 2006-01-17 | W57: 4.28 | X57: =LN(Tabla615[[#This Row],[DGS3]]/W56) -> -0.002333723346 | Z57: 47 | AA57: -0.0006203562798 | AB57: 0.03937555796 | AC57: 890599.6106 | AD57: 62.82727668 | AK57: 2006-01-17 | AL57: 4.29 | AM57: =LN(Tabla102[[#This Row],[DGS7]]/AL56) -> -0.00232828976 | AP57: 48 | AQ57: -0.02023299414 | AR57: 0.04203200455 | AS57: 1499210.414 | AT57: 8712.668378 | BA57: 2006-01-17 | BB57: 4.57 | BC57: =LN(Tabla83[[#This Row],[DGS20]]/BB56) -> -0.004366819166 | BF57: 46 | BG57: 0.006567264963 | BH57: 0.04821457199 | BI57: 1559754.094 | BJ57: -9391.29193 | BP57: 2005-12-13 | BQ57: -0.004504512121 | BR57: -0.004464293129 | BS57: -0.002076843945 | BU57: 29 | BV57: 3961472.237 | BW57: 11292.32178
V58: 2006-01-18 | W58: 4.29 | X58: =LN(Tabla615[[#This Row],[DGS3]]/W57) -> 0.002333723346 | Z58: 48 | AA58: -0.0001212242662 | AB58: 0.03939522376 | AC58: 890549.0599 | AD58: 12.27665869 | AK58: 2006-01-18 | AL58: 4.30 | AM58: =LN(Tabla102[[#This Row],[DGS7]]/AL57) -> 0.00232828976 | AP58: 49 | AQ58: 0.002378365163 | AR58: 0.04300203187 | AS58: 1489477.387 | AT58: -1020.358022 | BA58: 2006-01-18 | BB58: 4.58 | BC58: =LN(Tabla83[[#This Row],[DGS20]]/BB57) -> 0.00218579322 | BF58: 47 | BG58: -0.001620774056 | BH58: 0.04782236492 | BI58: 1571472.241 | BJ58: 2326.85447 | BP58: 2005-12-14 | BQ58: -0.0159275267 | BR58: -0.02033968424 | BS58: -0.01677188161 | BU58: 30 | BV58: 3955007.142 | BW58: 4827.227038
V59: 2006-01-19 | W59: 4.32 | X59: =LN(Tabla615[[#This Row],[DGS3]]/W58) -> 0.006968669316 | Z59: 49 | AA59: -0.0007614869839 | AB59: 0.03936999741 | AC59: 890613.9046 | AD59: 77.12127191 | AK59: 2006-01-19 | AL59: 4.33 | AM59: =LN(Tabla102[[#This Row],[DGS7]]/AL58) -> 0.006952519315 | AP59: 50 | AQ59: 9.992552346e-07 | AR59: 0.04290004287 | AS59: 1490497.317 | AT59: -0.4288647473 | BA59: 2006-01-19 | BB59: 4.61 | BC59: =LN(Tabla83[[#This Row],[DGS20]]/BB58) -> 0.006528858882 | BF59: 48 | BG59: 0.01364936918 | BH59: 0.04855380478 | BI59: 1549692.681 | BJ59: -19452.70501 | BP59: 2005-12-15 | BQ59: 0.002290951747 | BR59: 0.00682596507 | BS59: 0.004219415543 | BU59: 31 | BV59: 3931218.772 | BW59: -18961.14344
V60: 2006-01-20 | W60: 4.32 | X60: =LN(Tabla615[[#This Row],[DGS3]]/W59) -> 0 | Z60: 50 | AA60: -0.007812179178 | AB60: 0.03909220014 | AC60: 891328.4021 | AD60: 791.6187828 | AK60: 2006-01-20 | AL60: 4.32 | AM60: =LN(Tabla102[[#This Row],[DGS7]]/AL59) -> -0.002312139758 | AP60: 51 | AQ60: -0.009612883042 | AR60: 0.04248760732 | AS60: 1494629.979 | AT60: 4132.233445 | BA60: 2006-01-20 | BB60: 4.59 | BC60: =LN(Tabla83[[#This Row],[DGS20]]/BB59) -> -0.004347832936 | BF60: 49 | BG60: 0.01147163349 | BH60: 0.04844949124 | BI60: 1552779.274 | BJ60: -16366.11259 | BP60: 2005-12-16 | BQ60: -0.004587164007 | BR60: -0.004545462372 | BS60: -0.006335818449 | BU60: 32 | BV60: 3954146.899 | BW60: 3966.983599
V61: 2006-01-23 | W61: 4.31 | X61: =LN(Tabla615[[#This Row],[DGS3]]/W60) -> -0.00231749814 | Z61: 51 | AA61: -0.01523210858 | AB61: 0.03879985492 | AC61: 892081.1427 | AD61: 1544.359366 | AK61: 2006-01-23 | AL61: 4.31 | AM61: =LN(Tabla102[[#This Row],[DGS7]]/AL60) -> -0.00231749814 | AP61: 52 | AQ61: -0.004754452376 | AR61: 0.04269603399 | AS61: 1492539.88 | AT61: 2042.13433 | BA61: 2006-01-23 | BB61: 4.59 | BC61: =LN(Tabla83[[#This Row],[DGS20]]/BB60) -> 0 | BF61: 50 | BG61: -0.001434304257 | BH61: 0.04783129683 | BI61: 1571204.352 | BJ61: 2058.965896 | BP61: 2005-12-19 | BQ61: 0.004587164007 | BR61: 0 | BS61: 0 | BU61: 33 | BV61: 3959742.574 | BW61: 9562.659012
V62: 2006-01-24 | W62: 4.33 | X62: =LN(Tabla615[[#This Row],[DGS3]]/W61) -> 0.004629637899 | Z62: 52 | AA62: 0.01144063935 | AB62: 0.03985076119 | AC62: 889379.1784 | AD62: -1157.604872 | AK62: 2006-01-24 | AL62: 4.34 | AM62: =LN(Tabla102[[#This Row],[DGS7]]/AL61) -> 0.006936443997 | AP62: 53 | AQ62: -0.01940716497 | AR62: 0.04206743262 | AS62: 1498853.661 | AT62: 8355.915059 | BA62: 2006-01-24 | BB62: 4.63 | BC62: =LN(Tabla83[[#This Row],[DGS20]]/BB61) -> 0.008676844026 | BF62: 51 | BG62: 0.006185526404 | BH62: 0.04819628671 | BI62: 1560298.368 | BJ62: -8847.018629 | BP62: 2005-12-20 | BQ62: 0.009111680351 | BR62: 0.004545462372 | BS62: 0.00422833611 | BU62: 34 | BV62: 3936657.49 | BW62: -13522.42525
V63: 2006-01-25 | W63: 4.41 | X63: =LN(Tabla615[[#This Row],[DGS3]]/W62) -> 0.01830714744 | Z63: 53 | AA63: -0.03088739 | AB63: 0.03818303683 | AC63: 893672.1302 | AD63: 3135.346944 | AK63: 2006-01-25 | AL63: 4.43 | AM63: =LN(Tabla102[[#This Row],[DGS7]]/AL62) -> 0.02052523594 | AP63: 54 | AQ63: -0.002955445597 | AR63: 0.04277321138 | AS63: 1491766.794 | AT63: 1269.048375 | BA63: 2006-01-25 | BB63: 4.72 | BC63: =LN(Tabla83[[#This Row],[DGS20]]/BB62) -> 0.0192519315 | BF63: 52 | BG63: 0.005716114469 | BH63: 0.04817380188 | BI63: 1560967.917 | BJ63: -8177.469428 | BP63: 2005-12-21 | BQ63: 0.004524894598 | BR63: 0.006779686985 | BS63: 0.00210748234 | BU63: 35 | BV63: 3966980.141 | BW63: 16800.22626
V64: 2006-01-26 | W64: 4.45 | X64: =LN(Tabla615[[#This Row],[DGS3]]/W63) -> 0.009029406719 | Z64: 54 | AA64: 0.0004528595064 | AB64: 0.03941784266 | AC64: 890490.9232 | AD64: -45.86012194 | AK64: 2006-01-26 | AL64: 4.46 | AM64: =LN(Tabla102[[#This Row],[DGS7]]/AL63) -> 0.006749181975 | AP64: 55 | AQ64: -0.02042529705 | AR64: 0.04202375476 | AS64: 1499293.502 | AT64: 8795.75603 | BA64: 2006-01-26 | BB64: 4.76 | BC64: =LN(Tabla83[[#This Row],[DGS20]]/BB63) -> 0.008438868646 | BF64: 53 | BG64: -0.002108999698 | BH64: 0.04779897891 | BI64: 1572173.869 | BJ64: 3028.48249 | BP64: 2005-12-22 | BQ64: -0.01135085967 | BR64: -0.01132514936 | BS64: -0.01271203559 | BU64: 36 | BV64: 3987126.862 | BW64: 36946.94656
V65: 2006-01-27 | W65: 4.46 | X65: =LN(Tabla615[[#This Row],[DGS3]]/W64) -> 0.002244669854 | Z65: 55 | AA65: -0.01048238558 | AB65: 0.03898699401 | AC65: 891599.1929 | AD65: 1062.409591 | AK65: 2006-01-27 | AL65: 4.47 | AM65: =LN(Tabla102[[#This Row],[DGS7]]/AL64) -> 0.002239642594 | AP65: 56 | AQ65: 0.01549552679 | AR65: 0.0435647581 | AS65: 1483864.23 | AT65: -6633.515356 | BA65: 2006-01-27 | BB65: 4.75 | BC65: =LN(Tabla83[[#This Row],[DGS20]]/BB64) -> -0.002103050197 | BF65: 54 | BG65: -0.005358571594 | BH65: 0.04764332442 | BI65: 1576852.21 | BJ65: 7706.823667 | BP65: 2005-12-23 | BQ65: -0.009174376276 | BR65: -0.01376168507 | BS65: -0.01287571436 | BU65: 37 | BV65: 3993588.62 | BW65: 43408.70483
V66: 2006-01-30 | W66: 4.47 | X66: =LN(Tabla615[[#This Row],[DGS3]]/W65) -> 0.002239642594 | Z66: 56 | AA66: -0.002031305659 | AB66: 0.03931996656 | AC66: 890742.528 | AD66: 205.7447629 | AK66: 2006-01-30 | AL66: 4.49 | AM66: =LN(Tabla102[[#This Row],[DGS7]]/AL65) -> 0.004464293129 | AP66: 57 | AQ66: 0.001210041359 | AR66: 0.04295191077 | AS66: 1489978.518 | AT66: -519.2275626 | BA66: 2006-01-30 | BB66: 4.77 | BC66: =LN(Tabla83[[#This Row],[DGS20]]/BB65) -> 0.004201686854 | BF66: 55 | BG66: 0.006178113849 | BH66: 0.04819593165 | BI66: 1560308.938 | BJ66: -8836.44802 | BP66: 2005-12-27 | BQ66: -0.006936443997 | BR66: -0.004629637899 | BS66: -0.01085786997 | BU66: 38 | BV66: 3961691.098 | BW66: 11511.18276
V67: 2006-01-31 | W67: 4.49 | X67: =LN(Tabla615[[#This Row],[DGS3]]/W66) -> 0.004464293129 | Z67: 57 | AA67: 0.00115775075 | AB67: 0.03944561538 | AC67: 890419.5466 | AD67: -117.2366985 | AK67: 2006-01-31 | AL67: 4.49 | AM67: =LN(Tabla102[[#This Row],[DGS7]]/AL66) -> 0 | AP67: 58 | AQ67: -0.006480328887 | AR67: 0.04262199389 | AS67: 1493281.97 | AT67: 2784.224426 | BA67: 2006-01-31 | BB67: 4.74 | BC67: =LN(Tabla83[[#This Row],[DGS20]]/BB66) -> -0.006309169193 | BF67: 56 | BG67: -0.004660075446 | BH67: 0.04767678239 | BI67: 1575845.368 | BJ67: 6699.981392 | BP67: 2005-12-28 | BQ67: 0.006936443997 | BR67: 0.006936443997 | BS67: 0.008695706968 | BU67: 39 | BV67: 3934031.004 | BW67: -16148.91063
V68: 2006-02-01 | W68: 4.54 | X68: =LN(Tabla615[[#This Row],[DGS3]]/W67) -> 0.0110743103 | Z68: 58 | AA68: 0.007194855872 | AB68: 0.03968347732 | AC68: 889808.5477 | AD68: -728.235551 | AK68: 2006-02-01 | AL68: 4.52 | AM68: =LN(Tabla102[[#This Row],[DGS7]]/AL67) -> 0.00665929209 | AP68: 59 | AQ68: -0.006210983758 | AR68: 0.0426335488 | AS68: 1493166.129 | AT68: 2668.384 | BA68: 2006-02-01 | BB68: 4.77 | BC68: =LN(Tabla83[[#This Row],[DGS20]]/BB67) -> 0.006309169193 | BF68: 57 | BG68: 0.009499073434 | BH68: 0.04835500562 | BI68: 1555580.634 | BJ68: -13564.75219 | BP68: 2005-12-29 | BQ68: 0.002301496988 | BR68: 0 | BS68: -0.004338401599 | BU68: 40 | BV68: 3932816.94 | BW68: -17362.97511
V69: 2006-02-02 | W69: 4.54 | X69: =LN(Tabla615[[#This Row],[DGS3]]/W68) -> 0 | Z69: 59 | AA69: -0.01444262038 | AB69: 0.03883096076 | AC69: 892001.01 | AD69: 1464.2267 | AK69: 2006-02-02 | AL69: 4.53 | AM69: =LN(Tabla102[[#This Row],[DGS7]]/AL68) -> 0.002209945651 | AP69: 60 | AQ69: 0.006555620062 | AR69: 0.0431812361 | AS69: 1487687.208 | AT69: -2810.537795 | BA69: 2006-02-02 | BB69: 4.76 | BC69: =LN(Tabla83[[#This Row],[DGS20]]/BB68) -> -0.002098636657 | BF69: 58 | BG69: 0.01435738664 | BH69: 0.04858771882 | BI69: 1548690.568 | BJ69: -20454.81839 | BP69: 2005-12-30 | BQ69: 0.004587164007 | BR69: 0.004597709249 | BS69: 0.002171553514 | BU69: 41 | BV69: 3933601.929 | BW69: -16577.98636
V70: 2006-02-03 | W70: 4.54 | X70: =LN(Tabla615[[#This Row],[DGS3]]/W69) -> 0 | Z70: 60 | AA70: -0.0005948567808 | AB70: 0.03937656264 | AC70: 890597.028 | AD70: 60.24466991 | AK70: 2006-02-03 | AL70: 4.51 | AM70: =LN(Tabla102[[#This Row],[DGS7]]/AL69) -> -0.00442478598 | AP70: 61 | AQ70: 0.003708647107 | AR70: 0.04305910096 | AS70: 1488907.023 | AT70: -1590.722857 | BA70: 2006-02-03 | BB70: 4.70 | BC70: =LN(Tabla83[[#This Row],[DGS20]]/BB69) -> -0.01268515953 | BF70: 59 | BG70: 0.004161255207 | BH70: 0.04809932412 | BI70: 1563187.857 | BJ70: -5957.528927 | BP70: 2006-01-03 | BQ70: -0.01614798641 | BR70: -0.009216655105 | BS70: 0.002166848085 | BU70: 42 | BV70: 3935635.937 | BW70: -14543.97775
V71: 2006-02-06 | W71: 4.57 | X71: =LN(Tabla615[[#This Row],[DGS3]]/W70) -> 0.006586192853 | Z71: 61 | AA71: -0.00729851824 | AB71: 0.03911243838 | AC71: 891276.3233 | AD71: 739.5400077 | AK71: 2006-02-06 | AL71: 4.52 | AM71: =LN(Tabla102[[#This Row],[DGS7]]/AL70) -> 0.00221484033 | AP71: 62 | AQ71: -0.003393020694 | AR71: 0.04275443941 | AS71: 1491954.791 | AT71: 1457.045096 | BA71: 2006-02-06 | BB71: 4.69 | BC71: =LN(Tabla83[[#This Row],[DGS20]]/BB70) -> -0.002129926258 | BF71: 60 | BG71: 0.0003440572589 | BH71: 0.04791648034 | BI71: 1568651.908 | BJ71: -493.4780769 | BP71: 2006-01-04 | BQ71: -0.004662013106 | BR71: -0.00231749814 | BS71: -0.004338401599 | BU71: 43 | BV71: 3919419.515 | BW71: -30760.40015
V72: 2006-02-07 | W72: 4.57 | X72: =LN(Tabla615[[#This Row],[DGS3]]/W71) -> 0 | Z72: 62 | AA72: 0.00593277267 | AB72: 0.03963375124 | AC72: 889936.2335 | AD72: -600.549799 | AK72: 2006-02-07 | AL72: 4.54 | AM72: =LN(Tabla102[[#This Row],[DGS7]]/AL71) -> 0.004415018209 | AP72: 63 | AQ72: -0.01042134072 | AR72: 0.04245292448 | AS72: 1494978.102 | AT72: 4480.356838 | BA72: 2006-02-07 | BB72: 4.73 | BC72: =LN(Tabla83[[#This Row],[DGS20]]/BB71) -> 0.008492620046 | BF72: 61 | BG72: 0.003447655267 | BH72: 0.04806514269 | BI72: 1564207.805 | BJ72: -4937.581531 | BP72: 2006-01-05 | BQ72: 0.002333723346 | BR72: 0 | BS72: 0.002171553514 | BU72: 44 | BV72: 3948983.579 | BW72: -1196.335877
V73: 2006-02-08 | W73: 4.61 | X73: =LN(Tabla615[[#This Row],[DGS3]]/W72) -> 0.008714652102 | Z73: 63 | AA73: -0.0046296888 | AB73: 0.03921759026 | AC73: 891005.8028 | AD73: 469.019476 | AK73: 2006-02-08 | AL73: 4.55 | AM73: =LN(Tabla102[[#This Row],[DGS7]]/AL72) -> 0.00220022091 | AP73: 64 | AQ73: 0.02757478838 | AR73: 0.04408295842 | AS73: 1478716.589 | AT73: -11781.15673 | BA73: 2006-02-08 | BB73: 4.75 | BC73: =LN(Tabla83[[#This Row],[DGS20]]/BB72) -> 0.004219415543 | BF73: 62 | BG73: 0.007953769961 | BH73: 0.04828098558 | BI73: 1557778.926 | BJ73: -11366.45977 | BP73: 2006-01-06 | BQ73: 0.006968669316 | BR73: 0.004629637899 | BS73: 0.00432901109 | BU73: 45 | BV73: 3959938.791 | BW73: 9758.875975
V74: 2006-02-09 | W74: 4.62 | X74: =LN(Tabla615[[#This Row],[DGS3]]/W73) -> 0.002166848085 | Z74: 64 | AA74: -0.00657565524 | AB74: 0.03914091918 | AC74: 891203.0409 | AD74: 666.2576401 | AK74: 2006-02-09 | AL74: 4.55 | AM74: =LN(Tabla102[[#This Row],[DGS7]]/AL73) -> 0 | AP74: 65 | AQ74: -0.00526050617 | AR74: 0.04267432429 | AS74: 1492757.428 | AT74: 2259.682988 | BA74: 2006-02-09 | BB74: 4.72 | BC74: =LN(Tabla83[[#This Row],[DGS20]]/BB73) -> -0.006335818449 | BF74: 63 | BG74: -0.03203430051 | BH74: 0.04636555701 | BI74: 1615813.672 | BJ74: 46668.2861 | BP74: 2006-01-09 | BQ74: 0 | BR74: 0.002306806098 | BS74: 0 | BU74: 46 | BV74: 3922529.473 | BW74: -27650.44155
V75: 2006-02-10 | W75: 4.67 | X75: =LN(Tabla615[[#This Row],[DGS3]]/W74) -> 0.01076436659 | Z75: 65 | AA75: 0.006858744489 | AB75: 0.03967023453 | AC75: 889842.5499 | AD75: -694.2333372 | AK75: 2006-02-10 | AL75: 4.59 | AM75: =LN(Tabla102[[#This Row],[DGS7]]/AL74) -> 0.00875279111 | AP75: 66 | AQ75: =NORMINV(RAND(),$AQ$5,$AQ$6) -> 0.0009977380687 | AR75: =$AQ$7*(1+AQ75) -> 0.04294280296 | AS75: =$J$16/(1+AR75)^$I$16 + $J$17/(1+AR75)^$I$17 + $J$18/(1+AR75)^$I$18 + $J$19/(1+AR75)^$I$19 + $J$20/(1+AR75)^$I$20 + $J$21/(1+AR75)^$I$21 + $J$22/(1+AR75)^$I$22 -> 1490069.602 | AT75: =AS75-$AQ$3 -> -428.1433831 | BA75: 2006-02-10 | BB75: 4.76 | BC75: =LN(Tabla83[[#This Row],[DGS20]]/BB74) -> 0.008438868646 | BF75: 64 | BG75: -0.002381421724 | BH75: 0.0477859299 | BI75: 1572565.509 | BJ75: 3420.122561 | BP75: 2006-01-10 | BQ75: 0.009216655105 | BR75: 0.009174376276 | BS75: 0.01074124183 | BU75: 47 | BV75: 3968366.593 | BW75: 18186.67834
V76: 2006-02-13 | W76: 4.66 | X76: =LN(Tabla615[[#This Row],[DGS3]]/W75) -> -0.002143623543 | Z76: 66 | AA76: =NORMINV(RAND(),$AA$4,$AA$5) -> 0.003029239635 | AB76: =(1+AA76)*$E$12 -> 0.03951935204 | AC76: =$D$16/(1+AB76)^$C$16 + $D$17/(1+AB76)^$C$17 + $D$18/(1+AB76)^$C$18 -> 890230.0785 | AD76: =AC76-$AA$3 -> -306.7047673 | AK76: 2006-02-13 | AL76: 4.58 | AM76: =LN(Tabla102[[#This Row],[DGS7]]/AL75) -> -0.002181025946 | AP76: 67 | AQ76: 0.007742358136 | AR76: 0.04323214716 | AS76: 1487179.075 | AT76: -3318.67067 | BA76: 2006-02-13 | BB76: 4.76 | BC76: =LN(Tabla83[[#This Row],[DGS20]]/BB75) -> 0 | BF76: 65 | BG76: 0.009345641258 | BH76: 0.04834765622 | BI76: 1555798.755 | BJ76: -13346.63089 | BP76: 2006-01-11 | BQ76: 0.006857169726 | BR76: 0.00682596507 | BS76: 0.004264398786 | BU76: 48 | BV76: 3965146.498 | BW76: 14966.58264
V77: 2006-02-14 | W77: 4.68 | X77: =LN(Tabla615[[#This Row],[DGS3]]/W76) -> 0.004282661792 | Z77: 67 | AA77: 0.01086759114 | AB77: 0.03982818309 | AC77: 889437.1137 | AD77: -1099.669548 | AK77: 2006-02-14 | AL77: 4.61 | AM77: =LN(Tabla102[[#This Row],[DGS7]]/AL76) -> 0.006528858882 | AP77: 68 | AQ77: -0.001336406019 | AR77: 0.04284266818 | AS77: 1491071.436 | AT77: 573.6908392 | BA77: 2006-02-14 | BB77: 4.80 | BC77: =LN(Tabla83[[#This Row],[DGS20]]/BB76) -> 0.008368249671 | BF77: 66 | BG77: =NORMINV(RAND(),$BG$5,$BG$7) -> 0.002460935482 | BH77: =$BG$8*(1+BG77) -> 0.04801787881 | BI77: =$P$35/(1+BH77)^$O$35 -> 1565619.273 | BJ77: =BI77-$BG$3 -> -3526.113067 | BP77: 2006-01-12 | BQ77: -0.009153381986 | BR77: -0.009111680351 | BS77: -0.008547060578 | BU77: 49 | BV77: 3932209.588 | BW77: -17970.32729
V78: 2006-02-15 | W78: 4.68 | X78: =LN(Tabla615[[#This Row],[DGS3]]/W77) -> 0 | Z78: 68 | AA78: -0.01846110995 | AB78: 0.03867263227 | AC78: 892408.9846 | AD78: 1872.20135 | AK78: 2006-02-15 | AL78: 4.60 | AM78: =LN(Tabla102[[#This Row],[DGS7]]/AL77) -> -0.002171553514 | AP78: 69 | AQ78: 0.006120214331 | AR78: 0.04316255719 | AS78: 1487873.688 | AT78: -2624.057717 | BA78: 2006-02-15 | BB78: 4.78 | BC78: =LN(Tabla83[[#This Row],[DGS20]]/BB77) -> -0.00417537141 | BF78: 67 | BG78: -0.003701130989 | BH78: 0.04772271583 | BI78: 1574464.203 | BJ78: 5318.817132 | BP78: 2006-01-13 | BQ78: -0.01388911216 | BR78: -0.01614798641 | BS78: -0.01513542407 | BU78: 50 | BV78: 3914125.777 | BW78: -36054.13795
V79: 2006-02-16 | W79: 4.67 | X79: =LN(Tabla615[[#This Row],[DGS3]]/W78) -> -0.002139038249 | Z79: 69 | AA79: 0.01025558358 | AB79: 0.03980406999 | AC79: 889498.9934 | AD79: -1037.789866 | AK79: 2006-02-16 | AL79: 4.59 | AM79: =LN(Tabla102[[#This Row],[DGS7]]/AL78) -> -0.002176279423 | AP79: 70 | AQ79: 0.01893295248 | AR79: 0.04371222366 | AS79: 1482397.271 | AT79: -8100.474326 | BA79: 2006-02-16 | BB79: 4.77 | BC79: =LN(Tabla83[[#This Row],[DGS20]]/BB78) -> -0.002094241603 | BF79: 68 | BG79: -0.00752826368 | BH79: 0.04753939617 | BI79: 1579984.007 | BJ79: 10838.62077 | BP79: 2006-01-17 | BQ79: -0.002333723346 | BR79: -0.00232828976 | BS79: -0.004366819166 | BU79: 51 | BV79: 3972898.038 | BW79: 22718.12302
V80: 2006-02-17 | W80: 4.64 | X80: =LN(Tabla615[[#This Row],[DGS3]]/W79) -> -0.006444705443 | Z80: 70 | AA80: -0.003921770268 | AB80: 0.03924548225 | AC80: 890934.0644 | AD80: 397.2811085 | AK80: 2006-02-17 | AL80: 4.54 | AM80: =LN(Tabla102[[#This Row],[DGS7]]/AL79) -> -0.01095301202 | AP80: 71 | AQ80: 0.01157281812 | AR80: 0.0433964739 | AS80: 1485540.316 | AT80: -4957.429237 | BA80: 2006-02-17 | BB80: 4.71 | BC80: =LN(Tabla83[[#This Row],[DGS20]]/BB79) -> -0.01265839687 | BF80: 69 | BG80: -0.003949287743 | BH80: 0.04771082912 | BI80: 1574821.501 | BJ80: 5676.114467 | BP80: 2006-01-18 | BQ80: 0.002333723346 | BR80: 0.00232828976 | BS80: 0.00218579322 | BU80: 52 | BV80: 3975781.32 | BW80: 25601.40515
V81: 2006-02-21 | W81: 4.68 | X81: =LN(Tabla615[[#This Row],[DGS3]]/W80) -> 0.008583743691 | Z81: 71 | AA81: 0.00700840429 | AB81: 0.03967613113 | AC81: 889827.4096 | AD81: -709.3736648 | AK81: 2006-02-21 | AL81: 4.58 | AM81: =LN(Tabla102[[#This Row],[DGS7]]/AL80) -> 0.008771986073 | AP81: 72 | AQ81: 0.006378769202 | AR81: 0.0431736492 | AS81: 1487762.948 | AT81: -2734.797498 | BA81: 2006-02-21 | BB81: 4.72 | BC81: =LN(Tabla83[[#This Row],[DGS20]]/BB80) -> 0.002120891569 | BF81: 70 | BG81: -0.00405892117 | BH81: 0.04770557768 | BI81: 1574979.379 | BJ81: 5833.992337 | BP81: 2006-01-19 | BQ81: 0.006968669316 | BR81: 0.006952519315 | BS81: 0.006528858882 | BU81: 53 | BV81: 3950477.704 | BW81: 297.7888658
V82: 2006-02-22 | W82: 4.66 | X82: =LN(Tabla615[[#This Row],[DGS3]]/W81) -> -0.004282661792 | Z82: 72 | AA82: -0.005921702725 | AB82: 0.03916668491 | AC82: 891136.7515 | AD82: 599.9681975 | AK82: 2006-02-22 | AL82: 4.55 | AM82: =LN(Tabla102[[#This Row],[DGS7]]/AL81) -> -0.006571765163 | AP82: 73 | AQ82: 0.003415387169 | AR82: 0.04304652011 | AS82: 1489032.738 | AT82: -1465.007688 | BA82: 2006-02-22 | BB82: 4.68 | BC82: =LN(Tabla83[[#This Row],[DGS20]]/BB81) -> -0.008510689668 | BF82: 71 | BG82: -0.0009050114508 | BH82: 0.04785664995 | BI82: 1570444.214 | BJ82: 1298.827836 | BP82: 2006-01-20 | BQ82: 0 | BR82: -0.002312139758 | BS82: -0.004347832936 | BU82: 54 | BV82: 3940200.45 | BW82: -9979.465093
V83: 2006-02-23 | W83: 4.70 | X83: =LN(Tabla615[[#This Row],[DGS3]]/W82) -> 0.008547060578 | Z83: 73 | AA83: -0.01809870492 | AB83: 0.03868691103 | AC83: 892372.1815 | AD83: 1835.398199 | AK83: 2006-02-23 | AL83: 4.58 | AM83: =LN(Tabla102[[#This Row],[DGS7]]/AL82) -> 0.006571765163 | AP83: 74 | AQ83: -0.001613692295 | AR83: 0.0428307726 | AS83: 1491190.501 | AT83: 692.7555831 | BA83: 2006-02-23 | BB83: 4.70 | BC83: =LN(Tabla83[[#This Row],[DGS20]]/BB82) -> 0.004264398786 | BF83: 72 | BG83: -0.01567053471 | BH83: 0.04714938139 | BI83: 1591795.165 | BJ83: 22649.77929 | BP83: 2006-01-23 | BQ83: -0.00231749814 | BR83: -0.00231749814 | BS83: 0 | BU83: 55 | BV83: 3975675.111 | BW83: 25495.19629
V84: 2006-02-24 | W84: 4.70 | X84: =LN(Tabla615[[#This Row],[DGS3]]/W83) -> 0 | Z84: 74 | AA84: 0.003984885754 | AB84: 0.0395570045 | AC84: 890133.3504 | AD84: -403.4328996 | AK84: 2006-02-24 | AL84: 4.60 | AM84: =LN(Tabla102[[#This Row],[DGS7]]/AL83) -> 0.004357305369 | AP84: 75 | AQ84: 0.007093813121 | AR84: 0.04320432458 | AS84: 1487456.742 | AT84: -3041.003782 | BA84: 2006-02-24 | BB84: 4.71 | BC84: =LN(Tabla83[[#This Row],[DGS20]]/BB83) -> 0.002125399312 | BF84: 73 | BG84: 0.005151267951 | BH84: 0.04814674573 | BI84: 1561773.99 | BJ84: -7371.396463 | BP84: 2006-01-24 | BQ84: 0.004629637899 | BR84: 0.006936443997 | BS84: 0.008676844026 | BU84: 56 | BV84: 3977654.406 | BW84: 27474.49092
V85: 2006-02-27 | W85: 4.71 | X85: =LN(Tabla615[[#This Row],[DGS3]]/W84) -> 0.002125399312 | Z85: 75 | AA85: 0.01107586276 | AB85: 0.03983638899 | AC85: 889416.0568 | AD85: -1120.726446 | AK85: 2006-02-27 | AL85: 4.61 | AM85: =LN(Tabla102[[#This Row],[DGS7]]/AL84) -> 0.002171553514 | AP85: 76 | AQ85: 0.006713287621 | AR85: 0.04318800004 | AS85: 1487619.687 | AT85: -2878.058703 | BA85: 2006-02-27 | BB85: 4.74 | BC85: =LN(Tabla83[[#This Row],[DGS20]]/BB84) -> 0.006349227679 | BF85: 74 | BG85: 0.01246630752 | BH85: 0.04849713613 | BI85: 1551368.682 | BJ85: -17776.70419 | BP85: 2006-01-25 | BQ85: 0.01830714744 | BR85: 0.02052523594 | BS85: 0.0192519315 | BU85: 57 | BV85: 3944668.709 | BW85: -5511.206125
V86: 2006-02-28 | W86: 4.67 | X86: =LN(Tabla615[[#This Row],[DGS3]]/W85) -> -0.008528836348 | Z86: 76 | AA86: 0.0003920828819 | AB86: 0.03941544807 | AC86: 890497.0777 | AD86: -39.705585 | AK86: 2006-02-28 | AL86: 4.57 | AM86: =LN(Tabla102[[#This Row],[DGS7]]/AL85) -> -0.008714652102 | AP86: 77 | AQ86: -0.01439227579 | AR86: 0.04228257137 | AS86: 1496689.34 | AT86: 6191.594878 | BA86: 2006-02-28 | BB86: 4.70 | BC86: =LN(Tabla83[[#This Row],[DGS20]]/BB85) -> -0.008474626991 | BF86: 75 | BG86: 0.005495117993 | BH86: 0.04816321615 | BI86: 1561283.241 | BJ86: -7862.14502 | BP86: 2006-01-26 | BQ86: 0.009029406719 | BR86: 0.006749181975 | BS86: 0.008438868646 | BU86: 58 | BV86: 3951891.183 | BW86: 1711.267843
V87: 2006-03-01 | W87: 4.68 | X87: =LN(Tabla615[[#This Row],[DGS3]]/W86) -> 0.002139038249 | Z87: 77 | AA87: 0.001464730381 | AB87: 0.03945771038 | AC87: 890388.4645 | AD87: -148.3187619 | AK87: 2006-03-01 | AL87: 4.60 | AM87: =LN(Tabla102[[#This Row],[DGS7]]/AL86) -> 0.006543098589 | AP87: 78 | AQ87: 0.004118198085 | AR87: 0.0430766707 | AS87: 1488731.476 | AT87: -1766.26957 | BA87: 2006-03-01 | BB87: 4.74 | BC87: =LN(Tabla83[[#This Row],[DGS20]]/BB86) -> 0.008474626991 | BF87: 76 | BG87: 0.00583844327 | BH87: 0.04817966143 | BI87: 1560793.403 | BJ87: -8351.983082 | BP87: 2006-01-27 | BQ87: 0.002244669854 | BR87: 0.002239642594 | BS87: -0.002103050197 | BU87: 59 | BV87: 3960580.109 | BW87: 10400.19414
V88: 2006-03-02 | W88: 4.72 | X88: =LN(Tabla615[[#This Row],[DGS3]]/W87) -> 0.008510689668 | Z88: 78 | AA88: -0.01267584052 | AB88: 0.03890057188 | AC88: 891821.7175 | AD88: 1284.934177 | AK88: 2006-03-02 | AL88: 4.66 | AM88: =LN(Tabla102[[#This Row],[DGS7]]/AL87) -> 0.01295914464 | AP88: 79 | AQ88: -0.002157063376 | AR88: 0.04280746198 | AS88: 1491423.852 | AT88: 926.1067493 | BA88: 2006-03-02 | BB88: 4.80 | BC88: =LN(Tabla83[[#This Row],[DGS20]]/BB87) -> 0.01257878221 | BF88: 77 | BG88: -0.00814150202 | BH88: 0.04751002205 | BI88: 1580870.356 | BJ88: 11724.97029 | BP88: 2006-01-30 | BQ88: 0.002239642594 | BR88: 0.004464293129 | BS88: 0.004201686854 | BU88: 60 | BV88: 3963751.601 | BW88: 13571.68611
V89: 2006-03-03 | W89: 4.75 | X89: =LN(Tabla615[[#This Row],[DGS3]]/W88) -> 0.006335818449 | Z89: 79 | AA89: 0.01836737111 | AB89: 0.04012367442 | AC89: 888679.2818 | AD89: -1857.501442 | AK89: 2006-03-03 | AL89: 4.69 | AM89: =LN(Tabla102[[#This Row],[DGS7]]/AL88) -> 0.006417134321 | AP89: 80 | AQ89: 0.01817742674 | AR89: 0.04367981161 | AS89: 1482719.558 | AT89: -7778.187628 | BA89: 2006-03-03 | BB89: 4.84 | BC89: =LN(Tabla83[[#This Row],[DGS20]]/BB88) -> 0.008298802815 | BF89: 78 | BG89: 0.002864790209 | BH89: 0.04803722345 | BI89: 1565041.411 | BJ89: -4103.974857 | BP89: 2006-01-31 | BQ89: 0.004464293129 | BR89: 0 | BS89: -0.006309169193 | BU89: 61 | BV89: 3959606.093 | BW89: 9426.177555
V90: 2006-03-06 | W90: 4.77 | X90: =LN(Tabla615[[#This Row],[DGS3]]/W89) -> 0.004201686854 | Z90: 80 | AA90: 0.01503246161 | AB90: 0.03999227899 | AC90: 889016.1588 | AD90: -1520.624459 | AK90: 2006-03-06 | AL90: 4.74 | AM90: =LN(Tabla102[[#This Row],[DGS7]]/AL89) -> 0.01060455325 | AP90: 81 | AQ90: -0.01342534992 | AR90: 0.04232405249 | AS90: 1496272.446 | AT90: 5774.700949 | BA90: 2006-03-06 | BB90: 4.91 | BC90: =LN(Tabla83[[#This Row],[DGS20]]/BB89) -> 0.01435922108 | BF90: 79 | BG90: -0.01005863019 | BH90: 0.04741819161 | BI90: 1583644.664 | BJ90: 14499.27758 | BP90: 2006-02-01 | BQ90: 0.0110743103 | BR90: 0.00665929209 | BS90: 0.006309169193 | BU90: 62 | BV90: 3959031.699 | BW90: 8851.783913
V91: 2006-03-07 | W91: 4.79 | X91: =LN(Tabla615[[#This Row],[DGS3]]/W90) -> 0.004184106523 | Z91: 81 | AA91: -0.0007901617433 | AB91: 0.03936886763 | AC91: 890616.8088 | AD91: 80.02554532 | AK91: 2006-03-07 | AL91: 4.75 | AM91: =LN(Tabla102[[#This Row],[DGS7]]/AL90) -> 0.00210748234 | AP91: 82 | AQ91: 0.001638265086 | AR91: 0.04297028157 | AS91: 1489794.817 | AT91: -702.9284202 | BA91: 2006-03-07 | BB91: 4.91 | BC91: =LN(Tabla83[[#This Row],[DGS20]]/BB90) -> 0 | BF91: 80 | BG91: -0.001795382628 | BH91: 0.04781400117 | BI91: 1571723.132 | BJ91: 2577.7463 | BP91: 2006-02-02 | BQ91: 0 | BR91: 0.002209945651 | BS91: -0.002098636657 | BU91: 63 | BV91: 3977085.853 | BW91: 26905.93806
V92: 2006-03-08 | W92: 4.77 | X92: =LN(Tabla615[[#This Row],[DGS3]]/W91) -> -0.004184106523 | Z92: 82 | AA92: -0.007655566823 | AB92: 0.03909837067 | AC92: 891312.5231 | AD92: 775.7398248 | AK92: 2006-03-08 | AL92: 4.74 | AM92: =LN(Tabla102[[#This Row],[DGS7]]/AL91) -> -0.00210748234 | AP92: 83 | AQ92: -0.000711477834 | AR92: 0.0428694776 | AS92: 1490803.136 | AT92: 305.39098 | BA92: 2006-03-08 | BB92: 4.91 | BC92: =LN(Tabla83[[#This Row],[DGS20]]/BB91) -> 0 | BF92: 81 | BG92: -0.0001558902539 | BH92: 0.04789253286 | BI92: 1569369.032 | BJ92: 223.6455762 | BP92: 2006-02-03 | BQ92: 0 | BR92: -0.00442478598 | BS92: -0.01268515953 | BU92: 64 | BV92: 3969255.508 | BW92: 19075.59295
V93: 2006-03-09 | W93: 4.77 | X93: =LN(Tabla615[[#This Row],[DGS3]]/W92) -> 0 | Z93: 83 | AA93: 0.005799102741 | AB93: 0.03962848465 | AC93: 889949.7584 | AD93: -587.0248974 | AK93: 2006-03-09 | AL93: 4.74 | AM93: =LN(Tabla102[[#This Row],[DGS7]]/AL92) -> 0 | AP93: 84 | AQ93: -0.01426371971 | AR93: 0.04228808642 | AS93: 1496633.905 | AT93: 6136.159761 | BA93: 2006-03-09 | BB93: 4.91 | BC93: =LN(Tabla83[[#This Row],[DGS20]]/BB92) -> 0 | BF93: 82 | BG93: -0.003546174651 | BH93: 0.04773013823 | BI93: 1574241.14 | BJ93: 5095.753391 | BP93: 2006-02-06 | BQ93: 0.006586192853 | BR93: 0.00221484033 | BS93: -0.002129926258 | BU93: 65 | BV93: 3958657.721 | BW93: 8477.806169
V94: 2006-03-10 | W94: 4.80 | X94: =LN(Tabla615[[#This Row],[DGS3]]/W93) -> 0.006269613014 | Z94: 84 | AA94: 0.005305944607 | AB94: 0.03960905422 | AC94: 889999.6592 | AD94: -537.1241293 | AK94: 2006-03-10 | AL94: 4.76 | AM94: =LN(Tabla102[[#This Row],[DGS7]]/AL93) -> 0.004210532536 | AP94: 85 | AQ94: -0.001207238824 | AR94: 0.04284820945 | AS94: 1491015.977 | AT94: 518.2310791 | BA94: 2006-03-10 | BB94: 4.93 | BC94: =LN(Tabla83[[#This Row],[DGS20]]/BB93) -> 0.004065046248 | BF94: 83 | BG94: 0.0001103295042 | BH94: 0.04790528478 | BI94: 1568987.124 | BJ94: -158.2623179 | BP94: 2006-02-07 | BQ94: 0 | BR94: 0.004415018209 | BS94: 0.008492620046 | BU94: 66 | BV94: 3972432.949 | BW94: =BV94-$BU$21 -> 22253.0343
V95: 2006-03-13 | W95: 4.81 | X95: =LN(Tabla615[[#This Row],[DGS3]]/W94) -> 0.002081166204 | Z95: 85 | AA95: 0.004333836409 | AB95: 0.03957075315 | AC95: 890098.034 | AD95: -438.7493275 | AK95: 2006-03-13 | AL95: 4.78 | AM95: =LN(Tabla102[[#This Row],[DGS7]]/AL94) -> 0.00419287826 | AP95: 86 | AQ95: 0.002794940564 | AR95: 0.04301990295 | AS95: 1489298.752 | AT95: -1198.993596 | BA95: 2006-03-13 | BB95: 4.95 | BC95: =LN(Tabla83[[#This Row],[DGS20]]/BB94) -> 0.004048588526 | BF95: 84 | BG95: -0.009452641077 | BH95: 0.04744721849 | BI95: 1582767.175 | BJ95: 13621.78875 | BP95: 2006-02-08 | BQ95: 0.008714652102 | BR95: 0.00220022091 | BS95: 0.004219415543 | BU95: 67 | BV95: 3964384.12 | BW95: 14204.20507
V96: 2006-03-14 | W96: 4.72 | X96: =LN(Tabla615[[#This Row],[DGS3]]/W95) -> -0.01888828452 | Z96: 86 | AA96: 0.01271462327 | AB96: 0.03990095616 | AC96: 889250.3963 | AD96: -1286.386954 | AK96: 2006-03-14 | AL96: 4.69 | AM96: =LN(Tabla102[[#This Row],[DGS7]]/AL95) -> -0.01900796405 | AP96: 87 | AQ96: -0.0008067088892 | AR96: 0.04286539219 | AS96: 1490844.018 | AT96: 346.2728803 | BA96: 2006-03-14 | BB96: 4.89 | BC96: =LN(Tabla83[[#This Row],[DGS20]]/BB95) -> -0.01219527309 | BF96: 85 | BG96: -0.004884729337 | BH96: 0.04766602146 | BI96: 1576169.12 | BJ96: 7023.733475 | BP96: 2006-02-09 | BQ96: 0.002166848085 | BR96: 0 | BS96: -0.006335818449 | BU96: 68 | BV96: 3939257.449 | BW96: -10922.46548
V97: 2006-03-15 | W97: 4.72 | X97: =LN(Tabla615[[#This Row],[DGS3]]/W96) -> 0 | Z97: 87 | AA97: 0.003876211287 | AB97: 0.03955272272 | AC97: 890144.3494 | AD97: -392.4338455 | AK97: 2006-03-15 | AL97: 4.70 | AM97: =LN(Tabla102[[#This Row],[DGS7]]/AL96) -> 0.002129926258 | AP97: 88 | AQ97: -0.002859610477 | AR97: 0.04277732271 | AS97: 1491725.624 | AT97: 1227.878055 | BA97: 2006-03-15 | BB97: 4.93 | BC97: =LN(Tabla83[[#This Row],[DGS20]]/BB96) -> 0.008146684568 | BF97: 86 | BG97: -0.01107862204 | BH97: 0.047369334 | BI97: 1585122.794 | BJ97: 15977.40737 | BP97: 2006-02-10 | BQ97: 0.01076436659 | BR97: 0.00875279111 | BS97: 0.008438868646 | BU97: 69 | BV97: 3955592.956 | BW97: 5413.04117
V98: 2006-03-16 | W98: 4.62 | X98: =LN(Tabla615[[#This Row],[DGS3]]/W97) -> -0.0214140945 | Z98: 88 | AA98: -0.02940971063 | AB98: 0.0382412574 | AC98: 893521.7976 | AD98: 2985.01431 | AK98: 2006-03-16 | AL98: 4.61 | AM98: =LN(Tabla102[[#This Row],[DGS7]]/AL97) -> -0.01933465171 | AP98: 89 | AQ98: -0.003555131764 | AR98: 0.04274748485 | AS98: 1492024.446 | AT98: 1526.700242 | BA98: 2006-03-16 | BB98: 4.86 | BC98: =LN(Tabla83[[#This Row],[DGS20]]/BB97) -> -0.01430055014 | BF98: 87 | BG98: 0.0001631033781 | BH98: 0.04790781265 | BI98: 1568911.428 | BJ98: -233.9579523 | BP98: 2006-02-13 | BQ98: -0.002143623543 | BR98: -0.002181025946 | BS98: 0 | BU98: 70 | BV98: 3928409.713 | BW98: -21770.20244
V99: 2006-03-17 | W99: 4.64 | X99: =LN(Tabla615[[#This Row],[DGS3]]/W98) -> 0.004319661145 | Z99: 89 | AA99: -0.002704716168 | AB99: 0.03929343418 | AC99: 890810.7497 | AD99: 273.9664505 | AK99: 2006-03-17 | AL99: 4.63 | AM99: =LN(Tabla102[[#This Row],[DGS7]]/AL98) -> 0.00432901109 | AP99: 90 | AQ99: -0.007146153061 | AR99: 0.04259343003 | AS99: 1493568.373 | AT99: 3070.627334 | BA99: 2006-03-17 | BB99: 4.89 | BC99: =LN(Tabla83[[#This Row],[DGS20]]/BB98) -> 0.006153865574 | BF99: 88 | BG99: 0.003711847653 | BH99: 0.0480777975 | BI99: 1563830.113 | BJ99: -5315.272776 | BP99: 2006-02-14 | BQ99: 0.004282661792 | BR99: 0.006528858882 | BS99: 0.008368249671 | BU99: 71 | BV99: 3919217.691 | BW99: -30962.22358
V100: 2006-03-20 | W100: 4.62 | X100: =LN(Tabla615[[#This Row],[DGS3]]/W99) -> -0.004319661145 | Z100: 90 | AA100: 0.02130287245 | AB100: 0.04023933317 | AC100: 888382.892 | AD100: -2153.891243 | AK100: 2006-03-20 | AL100: 4.62 | AM100: =LN(Tabla102[[#This Row],[DGS7]]/AL99) -> -0.002162163004 | AP100: 91 | AQ100: -0.008490533144 | AR100: 0.04253575613 | AS100: 1494146.847 | AT100: 3649.101047 | BA100: 2006-03-20 | BB100: 4.87 | BC100: =LN(Tabla83[[#This Row],[DGS20]]/BB99) -> -0.004098366392 | BF100: 89 | BG100: -0.02030475614 | BH100: 0.04692740218 | BI100: 1598558.921 | BJ100: 29413.5352 | BP100: 2006-02-15 | BQ100: 0 | BR100: -0.002171553514 | BS100: -0.00417537141 | BU100: 72 | BV100: 3972611.021 | BW100: 22431.10644
V101: 2006-03-21 | W101: 4.71 | X101: =LN(Tabla615[[#This Row],[DGS3]]/W100) -> 0.01929320293 | Z101: 91 | AA101: 0.002557603431 | AB101: 0.03950076958 | AC101: 890277.8215 | AD101: -258.9617542 | AK101: 2006-03-21 | AL101: 4.69 | AM101: =LN(Tabla102[[#This Row],[DGS7]]/AL100) -> 0.01503787736 | AP101: 92 | AQ101: 0.01388353864 | AR101: 0.04349560381 | AS101: 1484552.735 | AT101: -5945.010411 | BA101: 2006-03-21 | BB101: 4.91 | BC101: =LN(Tabla83[[#This Row],[DGS20]]/BB100) -> 0.008180004712 | BF101: 90 | BG101: 0.007687202015 | BH101: 0.04826821698 | BI101: 1558158.466 | BJ101: -10986.92017 | BP101: 2006-02-16 | BQ101: -0.002139038249 | BR101: -0.002176279423 | BS101: -0.002094241603 | BU101: 73 | BV101: 3936490.178 | BW101: -13689.7374
V102: 2006-03-22 | W102: 4.72 | X102: =LN(Tabla615[[#This Row],[DGS3]]/W101) -> 0.002120891569 | Z102: 92 | AA102: 0.006948602498 | AB102: 0.03967377494 | AC102: 889833.4594 | AD102: -703.3238602 | AK102: 2006-03-22 | AL102: 4.70 | AM102: =LN(Tabla102[[#This Row],[DGS7]]/AL101) -> 0.002129926258 | AP102: 93 | AQ102: 9.159966909e-05 | AR102: 0.04290392963 | AS102: 1490458.433 | AT102: -39.31256196 | BA102: 2006-03-22 | BB102: 4.91 | BC102: =LN(Tabla83[[#This Row],[DGS20]]/BB101) -> 0 | BF102: 91 | BG102: 0.002949753923 | BH102: 0.04804129321 | BI102: 1564919.868 | BJ102: -4225.517987 | BP102: 2006-02-17 | BQ102: -0.006444705443 | BR102: -0.01095301202 | BS102: -0.01265839687 | BU102: 74 | BV102: 3914927.615 | BW102: -35252.29952
V103: 2006-03-23 | W103: 4.74 | X103: =LN(Tabla615[[#This Row],[DGS3]]/W102) -> 0.00422833611 | Z103: 93 | AA103: -0.0124521259 | AB103: 0.03890938624 | AC103: 891799.0184 | AD103: 1262.235083 | AK103: 2006-03-23 | AL103: 4.73 | AM103: =LN(Tabla102[[#This Row],[DGS7]]/AL102) -> 0.006362693788 | AP103: 94 | AQ103: -0.01513121083 | AR103: 0.04225087106 | AS103: 1497008.025 | AT103: 6510.279143 | BA103: 2006-03-23 | BB103: 4.93 | BC103: =LN(Tabla83[[#This Row],[DGS20]]/BB102) -> 0.004065046248 | BF103: 92 | BG103: 0.004144174901 | BH103: 0.04809850598 | BI103: 1563212.262 | BJ103: -5933.124228 | BP103: 2006-02-21 | BQ103: 0.008583743691 | BR103: 0.008771986073 | BS103: 0.002120891569 | BU103: 75 | BV103: 3965578.57 | BW103: 15398.65519
V104: 2006-03-24 | W104: 4.67 | X104: =LN(Tabla615[[#This Row],[DGS3]]/W103) -> -0.01487806403 | Z104: 94 | AA104: -0.009655923551 | AB104: 0.03901955661 | AC104: 891515.368 | AD104: 978.5847546 | AK104: 2006-03-24 | AL104: 4.66 | AM104: =LN(Tabla102[[#This Row],[DGS7]]/AL103) -> -0.01490975437 | AP104: 95 | AQ104: -0.009080033292 | AR104: 0.04251046657 | AS104: 1494400.583 | AT104: 3902.837998 | BA104: 2006-03-24 | BB104: 4.87 | BC104: =LN(Tabla83[[#This Row],[DGS20]]/BB103) -> -0.01224505096 | BF104: 93 | BG104: -0.004049591634 | BH104: 0.04770602456 | BI104: 1574965.943 | BJ104: 5820.55667 | BP104: 2006-02-22 | BQ104: -0.004282661792 | BR104: -0.006571765163 | BS104: -0.008510689668 | BU104: 76 | BV104: 3958163.747 | BW104: 7983.831847
V105: 2006-03-27 | W105: 4.69 | X105: =LN(Tabla615[[#This Row],[DGS3]]/W104) -> 0.004273510777 | Z105: 95 | AA105: -0.003415852245 | AB105: 0.03926541542 | AC105: 890882.8009 | AD105: 346.0175928 | AK105: 2006-03-27 | AL105: 4.69 | AM105: =LN(Tabla102[[#This Row],[DGS7]]/AL104) -> 0.006417134321 | AP105: 96 | AQ105: -0.0003616732556 | AR105: 0.04288448422 | AS105: 1490652.979 | AT105: 155.2337786 | BA105: 2006-03-27 | BB105: 4.91 | BC105: =LN(Tabla83[[#This Row],[DGS20]]/BB104) -> 0.008180004712 | BF105: 94 | BG105: 0.001385927975 | BH105: 0.04796638595 | BI105: 1567158.556 | BJ105: -1986.829794 | BP105: 2006-02-23 | BQ105: 0.008547060578 | BR105: 0.006571765163 | BS105: 0.004264398786 | BU105: 77 | BV105: 3954846.118 | BW105: 4666.203194
V106: 2006-03-28 | W106: 4.79 | X106: =LN(Tabla615[[#This Row],[DGS3]]/W105) -> 0.02109782896 | Z106: 96 | AA106: -0.001702758985 | AB106: 0.0393329113 | AC106: 890709.2463 | AD106: 172.4629749 | AK106: 2006-03-28 | AL106: 4.79 | AM106: =LN(Tabla102[[#This Row],[DGS7]]/AL105) -> 0.02109782896 | AP106: 97 | AQ106: -0.005113597386 | AR106: 0.04268062667 | AS106: 1492694.27 | AT106: 2196.524292 | BA106: 2006-03-28 | BB106: 4.98 | BC106: =LN(Tabla83[[#This Row],[DGS20]]/BB105) -> 0.01415594923 | BF106: 95 | BG106: 0.005495247084 | BH106: 0.04816322234 | BI106: 1561283.057 | BJ106: -7862.32923 | BP106: 2006-02-24 | BQ106: 0 | BR106: 0.004357305369 | BS106: 0.002125399312 | BU106: 78 | BV106: 3944647.883 | BW106: -5532.031726
V107: 2006-03-29 | W107: 4.81 | X107: =LN(Tabla615[[#This Row],[DGS3]]/W106) -> 0.004166672695 | Z107: 97 | AA107: 0.01519342008 | AB107: 0.03999862075 | AC107: 888999.8956 | AD107: -1536.887643 | AK107: 2006-03-29 | AL107: 4.79 | AM107: =LN(Tabla102[[#This Row],[DGS7]]/AL106) -> 0 | AP107: 98 | AQ107: 0.01000201536 | AR107: 0.04332908646 | AS107: 1486212.092 | AT107: -4285.653572 | BA107: 2006-03-29 | BB107: 5.02 | BC107: =LN(Tabla83[[#This Row],[DGS20]]/BB106) -> 0.008000042667 | BF107: 96 | BG107: -0.004654243513 | BH107: 0.04767706174 | BI107: 1575836.964 | BJ107: 6691.577835 | BP107: 2006-02-27 | BQ107: 0.002125399312 | BR107: 0.002171553514 | BS107: 0.006349227679 | BU107: 79 | BV107: 3940662.585 | BW107: -9517.329843
V108: 2006-03-30 | W108: 4.84 | X108: =LN(Tabla615[[#This Row],[DGS3]]/W107) -> 0.006217636611 | Z108: 98 | AA108: 0.00667195051 | AB108: 0.03966287485 | AC108: 889861.4474 | AD108: -675.3358502 | AK108: 2006-03-30 | AL108: 4.83 | AM108: =LN(Tabla102[[#This Row],[DGS7]]/AL107) -> 0.008316056242 | AP108: 99 | AQ108: 0.003916966547 | AR108: 0.04306803786 | AS108: 1488817.727 | AT108: -1680.018221 | BA108: 2006-03-30 | BB108: 5.07 | BC108: =LN(Tabla83[[#This Row],[DGS20]]/BB107) -> 0.009910883899 | BF108: 97 | BG108: 0.002856797672 | BH108: 0.04803684061 | BI108: 1565052.845 | BJ108: -4092.540784 | BP108: 2006-02-28 | BQ108: -0.008528836348 | BR108: -0.008714652102 | BS108: -0.008474626991 | BU108: 80 | BV108: 3976978.785 | BW108: 26798.8698
V109: 2006-03-31 | W109: 4.83 | X109: =LN(Tabla615[[#This Row],[DGS3]]/W108) -> -0.002068253064 | Z109: 99 | AA109: -0.003951692789 | AB109: 0.0392443033 | AC109: 890937.0965 | AD109: 400.3132123 | AK109: 2006-03-31 | AL109: 4.83 | AM109: =LN(Tabla102[[#This Row],[DGS7]]/AL108) -> 0 | AP109: 100 | AQ109: -0.00963648175 | AR109: 0.04248659493 | AS109: 1494640.139 | AT109: 4142.39378 | BA109: 2006-03-31 | BB109: 5.07 | BC109: =LN(Tabla83[[#This Row],[DGS20]]/BB108) -> 0 | BF109: 98 | BG109: -0.0003738552087 | BH109: 0.04788209234 | BI109: 1569681.788 | BJ109: 536.4017911 | BP109: 2006-03-01 | BQ109: 0.002139038249 | BR109: 0.006543098589 | BS109: 0.008474626991 | BU109: 81 | BV109: 3962470.071 | BW109: 12290.1564
V110: 2006-04-03 | W110: 4.85 | X110: =LN(Tabla615[[#This Row],[DGS3]]/W109) -> 0.004132237285 | Z110: 100 | AA110: -0.008233959335 | AB110: 0.039075582 | AC110: 891371.1683 | AD110: 834.385033 | AK110: 2006-04-03 | AL110: 4.86 | AM110: =LN(Tabla102[[#This Row],[DGS7]]/AL109) -> 0.006191970248 | AP110: 101 | AQ110: -0.001702123084 | AR110: 0.04282697892 | AS110: 1491228.475 | AT110: 730.7294167 | BA110: 2006-04-03 | BB110: 5.08 | BC110: =LN(Tabla83[[#This Row],[DGS20]]/BB109) -> 0.001970443987 | BF110: 99 | BG110: -0.003251741473 | BH110: 0.04774424158 | BI110: 1573817.387 | BJ110: 4672.000479 | BP110: 2006-03-02 | BQ110: 0.008510689668 | BR110: 0.01295914464 | BS110: 0.01257878221 | BU110: 82 | BV110: 3956850.073 | BW110: 6670.158493
V111: 2006-04-04 | W111: 4.83 | X111: =LN(Tabla615[[#This Row],[DGS3]]/W110) -> -0.004132237285 | Z111: 101 | AA111: 0.007778602236 | AB111: 0.03970647693 | AC111: 889749.498 | AD111: -787.2852763 | AK111: 2006-04-04 | AL111: 4.84 | AM111: =LN(Tabla102[[#This Row],[DGS7]]/AL110) -> -0.004123717184 | AP111: 102 | AQ111: 0.0001703431159 | AR111: 0.04290730772 | AS111: 1490424.639 | AT111: -73.10656906 | BA111: 2006-04-04 | BB111: 5.09 | BC111: =LN(Tabla83[[#This Row],[DGS20]]/BB110) -> 0.001966568972 | BF111: 100 | BG111: -0.002512165311 | BH111: 0.04777966728 | BI111: 1572753.505 | BJ111: 3608.118881 | BP111: 2006-03-03 | BQ111: 0.006335818449 | BR111: 0.006417134321 | BS111: 0.008298802815 | BU111: 83 | BV111: 3956012.098 | BW111: 5832.182969
V112: 2006-04-05 | W112: 4.79 | X112: =LN(Tabla615[[#This Row],[DGS3]]/W111) -> -0.008316056242 | Z112: 102 | AA112: -0.006533425607 | AB112: 0.03914258303 | AC112: 891198.76 | AD112: 661.976735 | AK112: 2006-04-05 | AL112: 4.80 | AM112: =LN(Tabla102[[#This Row],[DGS7]]/AL111) -> -0.008298802815 | AP112: 103 | AQ112: -0.01401012245 | AR112: 0.04229896575 | AS112: 1496524.558 | AT112: 6026.812084 | BA112: 2006-04-05 | BB112: 5.07 | BC112: =LN(Tabla83[[#This Row],[DGS20]]/BB111) -> -0.003937012959 | BF112: 101 | BG112: -0.002602730548 | BH112: 0.04777532921 | BI112: 1572883.743 | BJ112: 3738.356549 | BP112: 2006-03-06 | BQ112: 0.004201686854 | BR112: 0.01060455325 | BS112: 0.01435922108 | BU112: 84 | BV112: 3968136.294 | BW112: 17956.37911
V113: 2006-04-06 | W113: 4.83 | X113: =LN(Tabla615[[#This Row],[DGS3]]/W112) -> 0.008316056242 | Z113: 103 | AA113: -6.031728024e-05 | AB113: 0.0393976235 | AC113: 890542.8917 | AD113: 6.108440714 | AK113: 2006-04-06 | AL113: 4.86 | AM113: =LN(Tabla102[[#This Row],[DGS7]]/AL112) -> 0.01242252 | AP113: 104 | AQ113: 3.842711102e-05 | AR113: 0.04290164852 | AS113: 1490481.253 | AT113: -16.4922146 | BA113: 2006-04-06 | BB113: 5.13 | BC113: =LN(Tabla83[[#This Row],[DGS20]]/BB112) -> 0.01176484158 | BF113: 102 | BG113: 0.01333508893 | BH113: 0.04853875076 | BI113: 1550137.725 | BJ113: -19007.66103 | BP113: 2006-03-07 | BQ113: 0.004184106523 | BR113: 0.00210748234 | BS113: 0 | BU113: 85 | BV113: 3944632.501 | BW113: -5547.414242
V114: 2006-04-07 | W114: 4.89 | X114: =LN(Tabla615[[#This Row],[DGS3]]/W113) -> 0.01234583582 | Z114: 104 | AA114: -0.003314948932 | AB114: 0.03926939101 | AC114: 890872.577 | AD114: 335.7937614 | AK114: 2006-04-07 | AL114: 4.92 | AM114: =LN(Tabla102[[#This Row],[DGS7]]/AL113) -> 0.01227009259 | AP114: 105 | AQ114: 0.006076115679 | AR114: 0.04316066536 | AS114: 1487892.576 | AT114: -2605.1692 | BA114: 2006-04-07 | BB114: 5.20 | BC114: =LN(Tabla83[[#This Row],[DGS20]]/BB113) -> 0.0135529664 | BF114: 103 | BG114: 0.005007171907 | BH114: 0.04813984353 | BI114: 1561979.694 | BJ114: -7165.692009 | BP114: 2006-03-08 | BQ114: -0.004184106523 | BR114: -0.00210748234 | BS114: 0 | BU114: 86 | BV114: 3972902.154 | BW114: 22722.23925
V115: 2006-04-10 | W115: 4.89 | X115: =LN(Tabla615[[#This Row],[DGS3]]/W114) -> 0 | Z115: 105 | AA115: -0.0001432144576 | AB115: 0.03939435735 | AC115: 890551.287 | AD115: 14.50367985 | AK115: 2006-04-10 | AL115: 4.92 | AM115: =LN(Tabla102[[#This Row],[DGS7]]/AL114) -> 0 | AP115: 106 | AQ115: 0.002072468974 | AR115: 0.04298890892 | AS115: 1489608.577 | AT115: -889.1682389 | BA115: 2006-04-10 | BB115: 5.21 | BC115: =LN(Tabla83[[#This Row],[DGS20]]/BB114) -> 0.001921230178 | BF115: 104 | BG115: 0.004475541217 | BH115: 0.04811437842 | BI115: 1562738.87 | BJ115: -6406.515954 | BP115: 2006-03-09 | BQ115: 0 | BR115: 0 | BS115: 0 | BU115: 87 | BV115: 3946448.106 | BW115: -3731.808658
V116: 2006-04-11 | W116: 4.86 | X116: =LN(Tabla615[[#This Row],[DGS3]]/W115) -> -0.006153865574 | Z116: 106 | AA116: -0.01263966589 | AB116: 0.03890199716 | AC116: 891818.047 | AD116: 1281.263684 | AK116: 2006-04-11 | AL116: 4.88 | AM116: =LN(Tabla102[[#This Row],[DGS7]]/AL115) -> -0.008163310639 | AP116: 107 | AQ116: 0.006614727518 | AR116: 0.04318377181 | AS116: 1487661.895 | AT116: -2835.85089 | BA116: 2006-04-11 | BB116: 5.17 | BC116: =LN(Tabla83[[#This Row],[DGS20]]/BB115) -> -0.007707167245 | BF116: 105 | BG116: -0.008665802996 | BH116: 0.04748490804 | BI116: 1581628.574 | BJ116: 12483.18739 | BP116: 2006-03-10 | BQ116: 0.006269613014 | BR116: 0.004210532536 | BS116: 0.004065046248 | BU116: 88 | BV116: 3967181.063 | BW116: 17001.1477
V117: 2006-04-12 | W117: 4.90 | X117: =LN(Tabla615[[#This Row],[DGS3]]/W116) -> 0.008196767204 | Z117: 107 | AA117: -0.01397346522 | AB117: 0.03884944547 | AC117: 891953.3955 | AD117: 1416.612227 | AK117: 2006-04-12 | AL117: 4.93 | AM117: =LN(Tabla102[[#This Row],[DGS7]]/AL116) -> 0.01019376819 | AP117: 108 | AQ117: -0.003598315883 | AR117: 0.04274563225 | AS117: 1492043.002 | AT117: 1545.256024 | BA117: 2006-04-12 | BB117: 5.22 | BC117: =LN(Tabla83[[#This Row],[DGS20]]/BB116) -> 0.009624713374 | BF117: 106 | BG117: -0.004245421241 | BH117: 0.04769664432 | BI117: 1575247.987 | BJ117: 6102.600377 | BP117: 2006-03-13 | BQ117: 0.002081166204 | BR117: 0.00419287826 | BS117: 0.004048588526 | BU117: 89 | BV117: 3950858.927 | BW117: 679.0116163
V118: 2006-04-13 | W118: 4.96 | X118: =LN(Tabla615[[#This Row],[DGS3]]/W117) -> 0.01217053562 | Z118: 108 | AA118: 0.01636221449 | AB118: 0.04004467125 | AC118: 888881.813 | AD118: -1654.970292 | AK118: 2006-04-13 | AL118: 5.00 | AM118: =LN(Tabla102[[#This Row],[DGS7]]/AL117) -> 0.01409892438 | AP118: 109 | AQ118: 0.0234848727 | AR118: 0.04390750104 | AS118: 1480457.239 | AT118: -10040.50612 | BA118: 2006-04-13 | BB118: 5.28 | BC118: =LN(Tabla83[[#This Row],[DGS20]]/BB117) -> 0.01142869582 | BF118: 107 | BG118: -0.001990490595 | BH118: 0.0478046555 | BI118: 1572003.529 | BJ118: 2858.143088 | BP118: 2006-03-14 | BQ118: -0.01888828452 | BR118: -0.01900796405 | BS118: -0.01219527309 | BU118: 90 | BV118: 3919849.759 | BW118: -30330.15588
V119: 2006-04-17 | W119: 4.91 | X119: =LN(Tabla615[[#This Row],[DGS3]]/W118) -> -0.01013179893 | Z119: 109 | AA119: 0.01358012227 | AB119: 0.03993505682 | AC119: 889162.9206 | AD119: -1373.8627 | AK119: 2006-04-17 | AL119: 4.96 | AM119: =LN(Tabla102[[#This Row],[DGS7]]/AL118) -> -0.008032171697 | AP119: 110 | AQ119: 0.01085655953 | AR119: 0.0433657464 | AS119: 1485846.591 | AT119: -4651.154333 | BA119: 2006-04-17 | BB119: 5.25 | BC119: =LN(Tabla83[[#This Row],[DGS20]]/BB118) -> -0.005698021115 | BF119: 108 | BG119: -0.004971079525 | BH119: 0.04766188529 | BI119: 1576293.579 | BJ119: 7148.192603 | BP119: 2006-03-15 | BQ119: 0 | BR119: 0.002129926258 | BS119: 0.008146684568 | BU119: 91 | BV119: 3924895.732 | BW119: -25284.18265
V120: 2006-04-18 | W120: 4.86 | X120: =LN(Tabla615[[#This Row],[DGS3]]/W119) -> -0.01023550389 | Z120: 110 | AA120: -0.006922201379 | AB120: 0.03912726527 | AC120: 891238.1721 | AD120: 701.388774 | AK120: 2006-04-18 | AL120: 4.92 | AM120: =LN(Tabla102[[#This Row],[DGS7]]/AL119) -> -0.008097210233 | AP120: 111 | AQ120: 0.008516854874 | AR120: 0.04326537307 | AS120: 1486847.561 | AT120: -3650.184694 | BA120: 2006-04-18 | BB120: 5.23 | BC120: =LN(Tabla83[[#This Row],[DGS20]]/BB119) -> -0.003816798527 | BF120: 109 | BG120: 0.001070502353 | BH120: 0.04795127706 | BI120: 1567610.51 | BJ120: -1534.876236 | BP120: 2006-03-16 | BQ120: -0.0214140945 | BR120: -0.01933465171 | BS120: -0.01430055014 | BU120: 92 | BV120: 3974251.997 | BW120: 24072.08203
V121: 2006-04-19 | W121: 4.87 | X121: =LN(Tabla615[[#This Row],[DGS3]]/W120) -> 0.002055499182 | Z121: 111 | AA121: -0.003277999691 | AB121: 0.03927084681 | AC121: 890868.8333 | AD121: 332.0499907 | AK121: 2006-04-19 | AL121: 4.96 | AM121: =LN(Tabla102[[#This Row],[DGS7]]/AL120) -> 0.008097210233 | AP121: 112 | AQ121: 0.0009783306719 | AR121: 0.04294197039 | AS121: 1490077.929 | AT121: -419.8167378 | BA121: 2006-04-19 | BB121: 5.29 | BC121: =LN(Tabla83[[#This Row],[DGS20]]/BB120) -> 0.01140696779 | BF121: 110 | BG121: -0.00144775133 | BH121: 0.04783065271 | BI121: 1571223.669 | BJ121: 2078.282793 | BP121: 2006-03-17 | BQ121: 0.004319661145 | BR121: 0.00432901109 | BS121: 0.006153865574 | BU121: 93 | BV121: 3955334.193 | BW121: 5154.278424
V122: 2006-04-20 | W122: 4.89 | X122: =LN(Tabla615[[#This Row],[DGS3]]/W121) -> 0.004098366392 | Z122: 112 | AA122: -0.004826267335 | AB122: 0.03920984507 | AC122: 891025.7248 | AD122: 488.9415288 | AK122: 2006-04-20 | AL122: 4.97 | AM122: =LN(Tabla102[[#This Row],[DGS7]]/AL121) -> 0.002014099372 | AP122: 113 | AQ122: -0.004965023317 | AR122: 0.0426870005 | AS122: 1492630.398 | AT122: 2132.652766 | BA122: 2006-04-20 | BB122: 5.29 | BC122: =LN(Tabla83[[#This Row],[DGS20]]/BB121) -> 0 | BF122: 111 | BG122: 0.0007941371059 | BH122: 0.04793803917 | BI122: 1568006.609 | BJ122: -1138.777352 | BP122: 2006-03-20 | BQ122: -0.004319661145 | BR122: -0.002162163004 | BS122: -0.004098366392 | BU122: 94 | BV122: 3960522.289 | BW122: 10342.37419
V123: 2006-04-21 | W123: 4.89 | X123: =LN(Tabla615[[#This Row],[DGS3]]/W122) -> 0 | Z123: 113 | AA123: 0.003557419168 | AB123: 0.03954016232 | AC123: 890176.6158 | AD123: -360.1675232 | AK123: 2006-04-21 | AL123: 4.95 | AM123: =LN(Tabla102[[#This Row],[DGS7]]/AL122) -> -0.004032263528 | AP123: 114 | AQ123: -0.01069383227 | AR123: 0.0424412346 | AS123: 1495095.459 | AT123: 4597.713088 | BA123: 2006-04-21 | BB123: 5.25 | BC123: =LN(Tabla83[[#This Row],[DGS20]]/BB122) -> -0.007590169267 | BF123: 112 | BG123: -0.008172816649 | BH123: 0.04750852208 | BI123: 1580915.631 | BJ123: 11770.24518 | BP123: 2006-03-21 | BQ123: 0.01929320293 | BR123: 0.01503787736 | BS123: 0.008180004712 | BU123: 95 | BV123: 3932246.121 | BW123: -17933.79378
V124: 2006-04-24 | W124: 4.88 | X124: =LN(Tabla615[[#This Row],[DGS3]]/W123) -> -0.002047083622 | Z124: 114 | AA124: -0.002372901905 | AB124: 0.03930650766 | AC124: 890777.1335 | AD124: 240.3502313 | AK124: 2006-04-24 | AL124: 4.94 | AM124: =LN(Tabla102[[#This Row],[DGS7]]/AL123) -> -0.002022245381 | AP124: 115 | AQ124: 0.006664751453 | AR124: 0.04318591784 | AS124: 1487640.472 | AT124: -2857.273531 | BA124: 2006-04-24 | BB124: 5.22 | BC124: =LN(Tabla83[[#This Row],[DGS20]]/BB123) -> -0.005730674709 | BF124: 113 | BG124: 0.007926041228 | BH124: 0.04827965737 | BI124: 1557818.402 | BJ124: -11326.98411 | BP124: 2006-03-22 | BQ124: 0.002120891569 | BR124: 0.002129926258 | BS124: 0 | BU124: 96 | BV124: 3934840.823 | BW124: -15339.09183
V125: 2006-04-25 | W125: 4.94 | X125: =LN(Tabla615[[#This Row],[DGS3]]/W124) -> 0.01222011133 | Z125: 115 | AA125: 0.005550924124 | AB125: 0.03961870641 | AC125: 889974.8702 | AD125: -561.9131274 | AK125: 2006-04-25 | AL125: 5.02 | AM125: =LN(Tabla102[[#This Row],[DGS7]]/AL124) -> 0.0160646025 | AP125: 116 | AQ125: 0.02468061791 | AR125: 0.04395879851 | AS125: 1479948.093 | AT125: -10549.65228 | BA125: 2006-04-25 | BB125: 5.31 | BC125: =LN(Tabla83[[#This Row],[DGS20]]/BB124) -> 0.01709443336 | BF125: 114 | BG125: 0.01111313807 | BH125: 0.04843231931 | BI125: 1553288.002 | BJ125: -15857.38415 | BP125: 2006-03-23 | BQ125: 0.00422833611 | BR125: 0.006362693788 | BS125: 0.004065046248 | BU125: 97 | BV125: 3965062.078 | BW125: 14882.16265
V126: 2006-04-26 | W126: 4.99 | X126: =LN(Tabla615[[#This Row],[DGS3]]/W125) -> 0.01007057856 | Z126: 116 | AA126: 0.0002442981899 | AB126: 0.03940962535 | AC126: 890512.0433 | AD126: -24.73995084 | AK126: 2006-04-26 | AL126: 5.06 | AM126: =LN(Tabla102[[#This Row],[DGS7]]/AL125) -> 0.007936549596 | AP126: 117 | AQ126: -0.001065834018 | AR126: 0.04285427572 | AS126: 1490955.265 | AT126: 457.5196304 | BA126: 2006-04-26 | BB126: 5.34 | BC126: =LN(Tabla83[[#This Row],[DGS20]]/BB125) -> 0.005633817718 | BF126: 115 | BG126: 0.00142978245 | BH126: 0.04796848658 | BI126: 1567095.731 | BJ126: -2049.655282 | BP126: 2006-03-24 | BQ126: -0.01487806403 | BR126: -0.01490975437 | BS126: -0.01224505096 | BU126: 98 | BV126: 3937652.779 | BW126: -12527.13593
V127: 2006-04-27 | W127: 4.92 | X127: =LN(Tabla615[[#This Row],[DGS3]]/W126) -> -0.01412737926 | Z127: 117 | AA127: 0.00638295294 | AB127: 0.03965148835 | AC127: 889890.6857 | AD127: -646.0976231 | AK127: 2006-04-27 | AL127: 5.00 | AM127: =LN(Tabla102[[#This Row],[DGS7]]/AL126) -> -0.01192857087 | AP127: 118 | AQ127: -0.009067886191 | AR127: 0.04251098768 | AS127: 1494395.355 | AT127: 3897.609057 | BA127: 2006-04-27 | BB127: 5.32 | BC127: =LN(Tabla83[[#This Row],[DGS20]]/BB126) -> -0.003752349619 | BF127: 116 | BG127: 0.003728557965 | BH127: 0.04807859793 | BI127: 1563806.227 | BJ127: -5339.158732 | BP127: 2006-03-27 | BQ127: 0.004273510777 | BR127: 0.006417134321 | BS127: 0.008180004712 | BU127: 99 | BV127: 3938640.879 | BW127: -11539.03579
V128: 2006-04-28 | W128: 4.87 | X128: =LN(Tabla615[[#This Row],[DGS3]]/W127) -> -0.01021459341 | Z128: 118 | AA128: -0.0136585123 | AB128: 0.03886185462 | AC128: 891921.4329 | AD128: 1384.649613 | AK128: 2006-04-28 | AL128: 4.98 | AM128: =LN(Tabla102[[#This Row],[DGS7]]/AL127) -> -0.004008021398 | AP128: 119 | AQ128: -0.004728266598 | AR128: 0.04269715736 | AS128: 1492528.624 | AT128: 2030.87825 | BA128: 2006-04-28 | BB128: 5.31 | BC128: =LN(Tabla83[[#This Row],[DGS20]]/BB127) -> -0.0018814681 | BF128: 117 | BG128: -0.005273588083 | BH128: 0.04764739513 | BI128: 1576729.675 | BJ128: 7584.28871 | BP128: 2006-03-28 | BQ128: 0.02109782896 | BR128: 0.02109782896 | BS128: 0.01415594923 | BU128: 100 | BV128: 3950421.312 | BW128: 241.3969412
V129: 2006-05-01 | W129: 4.95 | X129: =LN(Tabla615[[#This Row],[DGS3]]/W128) -> 0.01629363949 | Z129: 119 | AA129: -0.002127286091 | AB129: 0.03931618493 | AC129: 890752.2512 | AD129: 215.4678966 | AK129: 2006-05-01 | AL129: 5.04 | AM129: =LN(Tabla102[[#This Row],[DGS7]]/AL128) -> 0.01197619105 | AP129: 120 | AQ129: 0.002638153398 | AR129: 0.04301317678 | AS129: 1489365.982 | AT129: -1131.763106 | BA129: 2006-05-01 | BB129: 5.38 | BC129: =LN(Tabla83[[#This Row],[DGS20]]/BB128) -> 0.01309653892 | BF129: 118 | BG129: 0.003819190133 | BH129: 0.04808293921 | BI129: 1563676.683 | BJ129: -5468.702963 | BP129: 2006-03-29 | BQ129: 0.004166672695 | BR129: 0 | BS129: 0.008000042667 | BU129: 101 | BV129: 3935093.44 | BW129: -15086.47493
V130: 2006-05-02 | W130: 4.94 | X130: =LN(Tabla615[[#This Row],[DGS3]]/W129) -> -0.002022245381 | Z130: 120 | AA130: 0.0002262528733 | AB130: 0.03940891436 | AC130: 890513.8707 | AD130: -22.91254234 | AK130: 2006-05-02 | AL130: 5.03 | AM130: =LN(Tabla102[[#This Row],[DGS7]]/AL129) -> -0.001986097972 | AP130: 121 | AQ130: 0.01060604092 | AR130: 0.04335499916 | AS130: 1485953.731 | AT130: -4544.014583 | BA130: 2006-05-02 | BB130: 5.35 | BC130: =LN(Tabla83[[#This Row],[DGS20]]/BB129) -> -0.005591813266 | BF130: 119 | BG130: 0.0009297718152 | BH130: 0.04794453607 | BI130: 1567812.198 | BJ130: -1333.188141 | BP130: 2006-03-30 | BQ130: 0.006217636611 | BR130: 0.008316056242 | BS130: 0.009910883899 | BU130: 102 | BV130: 3947279.648 | BW130: -2900.267207
V131: 2006-05-03 | W131: 4.96 | X131: =LN(Tabla615[[#This Row],[DGS3]]/W130) -> 0.004040409537 | Z131: 121 | AA131: 0.005504098894 | AB131: 0.0396168615 | AC131: 889979.6082 | AD131: -557.1750451 | AK131: 2006-05-03 | AL131: 5.06 | AM131: =LN(Tabla102[[#This Row],[DGS7]]/AL130) -> 0.005946499188 | AP131: 122 | AQ131: 0.006357835301 | AR131: 0.04317275113 | AS131: 1487771.914 | AT131: -2725.8318 | BA131: 2006-05-03 | BB131: 5.38 | BC131: =LN(Tabla83[[#This Row],[DGS20]]/BB130) -> 0.005591813266 | BF131: 120 | BG131: 0.01049926844 | BH131: 0.04840291496 | BI131: 1554159.53 | BJ131: -14985.85654 | BP131: 2006-03-31 | BQ131: -0.002068253064 | BR131: 0 | BS131: 0 | BU131: 103 | BV131: 3971555.023 | BW131: 21375.10833
V132: 2006-05-04 | W132: 4.99 | X132: =LN(Tabla615[[#This Row],[DGS3]]/W131) -> 0.006030169027 | Z132: 122 | AA132: 0.001661987572 | AB132: 0.03946548231 | AC132: 890368.4928 | AD132: -168.2905306 | AK132: 2006-05-04 | AL132: 5.08 | AM132: =LN(Tabla102[[#This Row],[DGS7]]/AL131) -> 0.003944778291 | AP132: 123 | AQ132: -0.01010346311 | AR132: 0.04246656143 | AS132: 1494841.213 | AT132: 4343.467089 | BA132: 2006-05-04 | BB132: 5.38 | BC132: =LN(Tabla83[[#This Row],[DGS20]]/BB131) -> 0 | BF132: 121 | BG132: -0.005098387779 | BH132: 0.04765578723 | BI132: 1576477.091 | BJ132: 7331.704649 | BP132: 2006-04-03 | BQ132: 0.004132237285 | BR132: 0.006191970248 | BS132: 0.001970443987 | BU132: 104 | BV132: 3955444.842 | BW132: 5264.927461
V133: 2006-05-05 | W133: 4.96 | X133: =LN(Tabla615[[#This Row],[DGS3]]/W132) -> -0.006030169027 | Z133: 123 | AA133: -0.004069510591 | AB133: 0.03923966128 | AC133: 890949.0353 | AD133: 412.2520394 | AK133: 2006-05-05 | AL133: 5.03 | AM133: =LN(Tabla102[[#This Row],[DGS7]]/AL132) -> -0.009891277479 | AP133: 124 | AQ133: -0.01344517939 | AR133: 0.0423232018 | AS133: 1496280.995 | AT133: 5783.249174 | BA133: 2006-05-05 | BB133: 5.35 | BC133: =LN(Tabla83[[#This Row],[DGS20]]/BB132) -> -0.005591813266 | BF133: 122 | BG133: 0.003510559637 | BH133: 0.04806815581 | BI133: 1564117.867 | BJ133: -5027.518737 | BP133: 2006-04-04 | BQ133: -0.004132237285 | BR133: -0.004123717184 | BS133: 0.001966568972 | BU133: 105 | BV133: 3959555.794 | BW133: 9375.878628
V134: 2006-05-08 | W134: 4.99 | X134: =LN(Tabla615[[#This Row],[DGS3]]/W133) -> 0.006030169027 | Z134: 124 | AA134: 0.0003029210643 | AB134: 0.03941193509 | AC134: 890506.1068 | AD134: -30.67652255 | AK134: 2006-05-08 | AL134: 5.05 | AM134: =LN(Tabla102[[#This Row],[DGS7]]/AL133) -> 0.003968259176 | AP134: 125 | AQ134: 0.003962732283 | AR134: 0.04307000121 | AS134: 1488798.111 | AT134: -1699.634716 | BA134: 2006-05-08 | BB134: 5.34 | BC134: =LN(Tabla83[[#This Row],[DGS20]]/BB133) -> -0.001870907936 | BF134: 123 | BG134: 0.0003148032564 | BH134: 0.04791507908 | BI134: 1568693.861 | BJ134: -451.5256767 | BP134: 2006-04-05 | BQ134: -0.008316056242 | BR134: -0.008298802815 | BS134: -0.003937012959 | BU134: 106 | BV134: 3950614.578 | BW134: 434.6626987
V135: 2006-05-09 | W135: 4.98 | X135: =LN(Tabla615[[#This Row],[DGS3]]/W134) -> -0.002006018727 | Z135: 125 | AA135: -0.003955998937 | AB135: 0.03924413364 | AC135: 890937.5328 | AD135: 400.7495633 | AK135: 2006-05-09 | AL135: 5.05 | AM135: =LN(Tabla102[[#This Row],[DGS7]]/AL134) -> 0 | AP135: 126 | AQ135: -0.0004625616431 | AR135: 0.04288015611 | AS135: 1490696.285 | AT135: 198.5393795 | BA135: 2006-05-09 | BB135: 5.35 | BC135: =LN(Tabla83[[#This Row],[DGS20]]/BB134) -> 0.001870907936 | BF135: 124 | BG135: -0.0009645960316 | BH135: 0.04785379585 | BI135: 1570529.766 | BJ135: 1384.380287 | BP135: 2006-04-06 | BQ135: 0.008316056242 | BR135: 0.01242252 | BS135: 0.01176484158 | BU135: 107 | BV135: 3939530.601 | BW135: -10649.31361
V136: 2006-05-10 | W136: 5.00 | X136: =LN(Tabla615[[#This Row],[DGS3]]/W135) -> 0.004008021398 | Z136: 126 | AA136: -0.002195088936 | AB136: 0.0393135135 | AC136: 890759.1199 | AD136: 222.3366333 | AK136: 2006-05-10 | AL136: 5.06 | AM136: =LN(Tabla102[[#This Row],[DGS7]]/AL135) -> 0.001978240012 | AP136: 127 | AQ136: -0.002277713124 | AR136: 0.04280228611 | AS136: 1491475.671 | AT136: 977.9255467 | BA136: 2006-05-10 | BB136: 5.34 | BC136: =LN(Tabla83[[#This Row],[DGS20]]/BB135) -> -0.001870907936 | BF136: 125 | BG136: 0.009374419745 | BH136: 0.04834903471 | BI136: 1555757.841 | BJ136: -13387.54523 | BP136: 2006-04-07 | BQ136: 0.01234583582 | BR136: 0.01227009259 | BS136: 0.0135529664 | BU136: 108 | BV136: 3948429.021 | BW136: -1750.894054
V137: 2006-05-11 | W137: 5.01 | X137: =LN(Tabla615[[#This Row],[DGS3]]/W136) -> 0.001998002663 | Z137: 127 | AA137: 0.006647828002 | AB137: 0.03966192442 | AC137: 889863.8879 | AD137: -672.8953964 | AK137: 2006-05-11 | AL137: 5.07 | AM137: =LN(Tabla102[[#This Row],[DGS7]]/AL136) -> 0.001974334304 | AP137: 128 | AQ137: 0.01070767633 | AR137: 0.04335935931 | AS137: 1485910.263 | AT137: -4587.482246 | BA137: 2006-05-11 | BB137: 5.38 | BC137: =LN(Tabla83[[#This Row],[DGS20]]/BB136) -> 0.007462721202 | BF137: 126 | BG137: 0.007693312099 | BH137: 0.04826850965 | BI137: 1558149.765 | BJ137: -10995.6208 | BP137: 2006-04-10 | BQ137: 0 | BR137: 0 | BS137: 0.001921230178 | BU137: 109 | BV137: 3940724.89 | BW137: -9455.025445
V138: 2006-05-12 | W138: 5.03 | X138: =LN(Tabla615[[#This Row],[DGS3]]/W137) -> 0.003984069015 | Z138: 128 | AA138: 0.007314929355 | AB138: 0.03968820822 | AC138: 889796.4011 | AD138: -740.3821882 | AK138: 2006-05-12 | AL138: 5.12 | AM138: =LN(Tabla102[[#This Row],[DGS7]]/AL137) -> 0.009813621448 | AP138: 129 | AQ138: -0.00909392406 | AR138: 0.04250987066 | AS138: 1494406.563 | AT138: 3908.817557 | BA138: 2006-05-12 | BB138: 5.44 | BC138: =LN(Tabla83[[#This Row],[DGS20]]/BB137) -> 0.01109068669 | BF138: 127 | BG138: -0.002915508012 | BH138: 0.04776034717 | BI138: 1573333.621 | BJ138: 4188.234412 | BP138: 2006-04-11 | BQ138: -0.006153865574 | BR138: -0.008163310639 | BS138: -0.007707167245 | BU138: 110 | BV138: 3961505.478 | BW138: 11325.56327
V139: 2006-05-15 | W139: 5.01 | X139: =LN(Tabla615[[#This Row],[DGS3]]/W138) -> -0.003984069015 | Z139: 129 | AA139: -0.0006800785797 | AB139: 0.0393732049 | AC139: 890605.6593 | AD139: 68.87603132 | AK139: 2006-05-15 | AL139: 5.08 | AM139: =LN(Tabla102[[#This Row],[DGS7]]/AL138) -> -0.007843177461 | AP139: 130 | AQ139: =NORMINV(RAND(),$AQ$5,$AQ$6) -> -0.008272633772 | AR139: =$AQ$7*(1+AQ139) -> 0.04254510401 | AS139: =$J$16/(1+AR139)^$I$16 + $J$17/(1+AR139)^$I$17 + $J$18/(1+AR139)^$I$18 + $J$19/(1+AR139)^$I$19 + $J$20/(1+AR139)^$I$20 + $J$21/(1+AR139)^$I$21 + $J$22/(1+AR139)^$I$22 -> 1494053.069 | AT139: =AS139-$AQ$3 -> 3555.323675 | BA139: 2006-05-15 | BB139: 5.41 | BC139: =LN(Tabla83[[#This Row],[DGS20]]/BB138) -> -0.005529968009 | BF139: 128 | BG139: 0.00562164391 | BH139: 0.04816927674 | BI139: 1561102.702 | BJ139: -8042.684181 | BP139: 2006-04-12 | BQ139: 0.008196767204 | BR139: 0.01019376819 | BS139: 0.009624713374 | BU139: 111 | BV139: 3946544.475 | BW139: -3635.440197
V140: 2006-05-16 | W140: 4.97 | X140: =LN(Tabla615[[#This Row],[DGS3]]/W139) -> -0.008016074988 | Z140: 130 | AA140: =NORMINV(RAND(),$AA$4,$AA$5) -> 0.01777119096 | AB140: =(1+AA140)*$E$12 -> 0.04010018492 | AC140: =$D$16/(1+AB140)^$C$16 + $D$17/(1+AB140)^$C$17 + $D$18/(1+AB140)^$C$18 -> 888739.4927 | AD140: =AC140-$AA$3 -> -1797.290603 | AK140: 2006-05-16 | AL140: 5.03 | AM140: =LN(Tabla102[[#This Row],[DGS7]]/AL139) -> -0.009891277479 | AP140: 131 | AQ140: 0.01779097065 | AR140: 0.04366323264 | AS140: 1482884.44 | AT140: -7613.305031 | BA140: 2006-05-16 | BB140: 5.36 | BC140: =LN(Tabla83[[#This Row],[DGS20]]/BB139) -> -0.009285117776 | BF140: 129 | BG140: 0.0001707130235 | BH140: 0.04790817715 | BI140: 1568900.514 | BJ140: -244.8724484 | BP140: 2006-04-13 | BQ140: 0.01217053562 | BR140: 0.01409892438 | BS140: 0.01142869582 | BU140: 112 | BV140: 3940021.358 | BW140: -10158.55663
V141: 2006-05-17 | W141: 5.00 | X141: =LN(Tabla615[[#This Row],[DGS3]]/W140) -> 0.006018072326 | Z141: 131 | AA141: -0.01053134542 | AB141: 0.03898506499 | AC141: 891604.159 | AD141: 1067.375728 | AK141: 2006-05-17 | AL141: 5.08 | AM141: =LN(Tabla102[[#This Row],[DGS7]]/AL140) -> 0.009891277479 | AP141: 132 | AQ141: 0.002593630975 | AR141: 0.04301126677 | AS141: 1489385.074 | AT141: -1112.671215 | BA141: 2006-05-17 | BB141: 5.42 | BC141: =LN(Tabla83[[#This Row],[DGS20]]/BB140) -> 0.01113184037 | BF141: 130 | BG141: =NORMINV(RAND(),$BG$5,$BG$7) -> -0.002293364016 | BH141: =$BG$8*(1+BG141) -> 0.04779014786 | BI141: =$P$35/(1+BH141)^$O$35 -> 1572438.904 | BJ141: =BI141-$BG$3 -> 3293.517604 | BP141: 2006-04-17 | BQ141: -0.01013179893 | BR141: -0.008032171697 | BS141: -0.005698021115 | BU141: 113 | BV141: 3950805.097 | BW141: 625.1822067
V142: 2006-05-18 | W142: 4.94 | X142: =LN(Tabla615[[#This Row],[DGS3]]/W141) -> -0.01207258123 | Z142: 132 | AA142: 0.009777385095 | AB142: 0.03978522897 | AC142: 889547.3477 | AD142: -989.4355379 | AK142: 2006-05-18 | AL142: 5.00 | AM142: =LN(Tabla102[[#This Row],[DGS7]]/AL141) -> -0.01587334916 | AP142: 133 | AQ142: -0.0154273722 | AR142: 0.04223816573 | AS142: 1497135.773 | AT142: 6638.027926 | BA142: 2006-05-18 | BB142: 5.32 | BC142: =LN(Tabla83[[#This Row],[DGS20]]/BB141) -> -0.0186225121 | BF142: 131 | BG142: 0.001856914916 | BH142: 0.04798894622 | BI142: 1566483.963 | BJ142: -2661.42274 | BP142: 2006-04-18 | BQ142: -0.01023550389 | BR142: -0.008097210233 | BS142: -0.003816798527 | BU142: 114 | BV142: 3954478.04 | BW142: 4298.125389
V143: 2006-05-19 | W143: 4.95 | X143: =LN(Tabla615[[#This Row],[DGS3]]/W142) -> 0.002022245381 | Z143: 133 | AA143: -0.02506444701 | AB143: 0.03841246079 | AC143: 893079.9248 | AD143: 2543.141517 | AK143: 2006-05-19 | AL143: 4.98 | AM143: =LN(Tabla102[[#This Row],[DGS7]]/AL142) -> -0.004008021398 | AP143: 134 | AQ143: -0.004506049443 | AR143: 0.04270669048 | AS143: 1492433.107 | AT143: 1935.361066 | BA143: 2006-05-19 | BB143: 5.28 | BC143: =LN(Tabla83[[#This Row],[DGS20]]/BB142) -> -0.007547205635 | BF143: 132 | BG143: -0.002754836257 | BH143: 0.04776804334 | BI143: 1573102.504 | BJ143: 3957.118198 | BP143: 2006-04-19 | BQ143: 0.002055499182 | BR143: 0.008097210233 | BS143: 0.01140696779 | BU143: 115 | BV143: 3935496.909 | BW143: -14683.00635
V144: 2006-05-22 | W144: 4.94 | X144: =LN(Tabla615[[#This Row],[DGS3]]/W143) -> -0.002022245381 | Z144: 134 | AA144: 0.02177888139 | AB144: 0.04025808793 | AC144: 888334.8431 | AD144: -2201.940187 | AK144: 2006-05-22 | AL144: 4.96 | AM144: =LN(Tabla102[[#This Row],[DGS7]]/AL143) -> -0.0040241503 | AP144: 135 | AQ144: -0.0003246893111 | AR144: 0.04288607083 | AS144: 1490637.105 | AT144: 139.3590517 | BA144: 2006-05-22 | BB144: 5.28 | BC144: =LN(Tabla83[[#This Row],[DGS20]]/BB143) -> 0 | BF144: 133 | BG144: -0.00919720177 | BH144: 0.04745945404 | BI144: 1582397.445 | BJ144: 13252.05861 | BP144: 2006-04-20 | BQ144: 0.004098366392 | BR144: 0.002014099372 | BS144: 0 | BU144: 116 | BV144: 3919336.252 | BW144: -30843.66324
V145: 2006-05-23 | W145: 4.97 | X145: =LN(Tabla615[[#This Row],[DGS3]]/W144) -> 0.006054508909 | Z145: 135 | AA145: -0.01236191512 | AB145: 0.03891294054 | AC145: 891789.8654 | AD145: 1253.082108 | AK145: 2006-05-23 | AL145: 5.00 | AM145: =LN(Tabla102[[#This Row],[DGS7]]/AL144) -> 0.008032171697 | AP145: 136 | AQ145: 0.002525979051 | AR145: 0.0430083645 | AS145: 1489414.085 | AT145: -1083.660508 | BA145: 2006-05-23 | BB145: 5.30 | BC145: =LN(Tabla83[[#This Row],[DGS20]]/BB144) -> 0.00378072284 | BF145: 134 | BG145: 0.007986113556 | BH145: 0.04828253484 | BI145: 1557732.882 | BJ145: -11412.504 | BP145: 2006-04-21 | BQ145: 0 | BR145: -0.004032263528 | BS145: -0.007590169267 | BU145: 117 | BV145: 3951025.484 | BW145: 845.5692
V146: 2006-05-24 | W146: 4.92 | X146: =LN(Tabla615[[#This Row],[DGS3]]/W145) -> -0.0101113096 | Z146: 136 | AA146: -0.004683879673 | AB146: 0.03921545514 | AC146: 891011.2946 | AD146: 474.5113359 | AK146: 2006-05-24 | AL146: 4.96 | AM146: =LN(Tabla102[[#This Row],[DGS7]]/AL145) -> -0.008032171697 | AP146: 137 | AQ146: 0.01028583228 | AR146: 0.0433412622 | AS146: 1486090.688 | AT146: -4407.057521 | BA146: 2006-05-24 | BB146: 5.27 | BC146: =LN(Tabla83[[#This Row],[DGS20]]/BB145) -> -0.005676458005 | BF146: 135 | BG146: -0.007223314013 | BH146: 0.04755400326 | BI146: 1579543.44 | BJ146: 10398.05332 | BP146: 2006-04-24 | BQ146: -0.002047083622 | BR146: -0.002022245381 | BS146: -0.005730674709 | BU146: 118 | BV146: 3962860.028 | BW146: 12680.11339
V147: 2006-05-25 | W147: 4.97 | X147: =LN(Tabla615[[#This Row],[DGS3]]/W146) -> 0.0101113096 | Z147: 137 | AA147: -0.001717311361 | AB147: 0.03933233793 | AC147: 890710.7204 | AD147: 173.9370959 | AK147: 2006-05-25 | AL147: 4.99 | AM147: =LN(Tabla102[[#This Row],[DGS7]]/AL146) -> 0.006030169027 | AP147: 138 | AQ147: -0.01032556443 | AR147: 0.04245703329 | AS147: 1494936.856 | AT147: 4439.110551 | BA147: 2006-05-25 | BB147: 5.31 | BC147: =LN(Tabla83[[#This Row],[DGS20]]/BB146) -> 0.007561472701 | BF147: 136 | BG147: -0.01602876334 | BH147: 0.04713222224 | BI147: 1592316.935 | BJ147: 23171.54924 | BP147: 2006-04-25 | BQ147: 0.01222011133 | BR147: 0.0160646025 | BS147: 0.01709443336 | BU147: 119 | BV147: 3966724.896 | BW147: 16544.98147
V148: 2006-05-26 | W148: 4.94 | X148: =LN(Tabla615[[#This Row],[DGS3]]/W147) -> -0.006054508909 | Z148: 138 | AA148: -0.00104321742 | AB148: 0.03935889723 | AC148: 890642.4397 | AD148: 105.6563993 | AK148: 2006-05-26 | AL148: 4.97 | AM148: =LN(Tabla102[[#This Row],[DGS7]]/AL147) -> -0.004016069655 | AP148: 139 | AQ148: -0.004119108713 | AR148: 0.04272329024 | AS148: 1492266.802 | AT148: 1769.056245 | BA148: 2006-05-26 | BB148: 5.30 | BC148: =LN(Tabla83[[#This Row],[DGS20]]/BB147) -> -0.001885014696 | BF148: 137 | BG148: 0.007564575384 | BH148: 0.04826234316 | BI148: 1558333.094 | BJ148: -10812.2917 | BP148: 2006-04-26 | BQ148: 0.01007057856 | BR148: 0.007936549596 | BS148: 0.005633817718 | BU148: 120 | BV148: 3939857.802 | BW148: -10322.11248
V149: 2006-05-30 | W149: 4.99 | X149: =LN(Tabla615[[#This Row],[DGS3]]/W148) -> 0.01007057856 | Z149: 139 | AA149: -8.757470523e-05 | AB149: 0.03939654956 | AC149: 890545.6522 | AD149: 8.868868063 | AK149: 2006-05-30 | AL149: 5.01 | AM149: =LN(Tabla102[[#This Row],[DGS7]]/AL148) -> 0.008016074988 | AP149: 140 | AQ149: -0.0127122005 | AR149: 0.0423546466 | AS149: 1495965.054 | AT149: 5467.308783 | BA149: 2006-05-30 | BB149: 5.33 | BC149: =LN(Tabla83[[#This Row],[DGS20]]/BB148) -> 0.00564441762 | BF149: 138 | BG149: -0.01303123962 | BH149: 0.04727580362 | BI149: 1587956.488 | BJ149: 18811.10204 | BP149: 2006-04-27 | BQ149: -0.01412737926 | BR149: -0.01192857087 | BS149: -0.003752349619 | BU149: 121 | BV149: 3925499.783 | BW149: -24680.13236
V150: 2006-05-31 | W150: 5.03 | X150: =LN(Tabla615[[#This Row],[DGS3]]/W149) -> 0.007984074348 | Z150: 140 | AA150: 0.01060618556 | AB150: 0.03981788371 | AC150: 889463.5436 | AD150: -1073.239704 | AK150: 2006-05-31 | AL150: 5.06 | AM150: =LN(Tabla102[[#This Row],[DGS7]]/AL149) -> 0.009930568203 | AP150: 141 | AQ150: 0.0003628403483 | AR150: 0.04291556585 | AS150: 1490342.029 | AT150: -155.7161421 | BA150: 2006-05-31 | BB150: 5.35 | BC150: =LN(Tabla83[[#This Row],[DGS20]]/BB149) -> 0.00374532273 | BF150: 139 | BG150: 0.004127275435 | BH150: 0.04809769649 | BI150: 1563236.409 | BJ150: -5908.977523 | BP150: 2006-04-28 | BQ150: -0.01021459341 | BR150: -0.004008021398 | BS150: -0.0018814681 | BU150: 122 | BV150: 3951355.506 | BW150: 1175.591456
V151: 2006-06-01 | W151: 5.02 | X151: =LN(Tabla615[[#This Row],[DGS3]]/W150) -> -0.001990050408 | Z151: 141 | AA151: 0.002622977917 | AB151: 0.03950334533 | AC151: 890271.2036 | AD151: -265.5797175 | AK151: 2006-06-01 | AL151: 5.05 | AM151: =LN(Tabla102[[#This Row],[DGS7]]/AL150) -> -0.001978240012 | AP151: 142 | AQ151: 0.004615227216 | AR151: 0.04309799325 | AS151: 1488518.465 | AT151: -1979.280458 | BA151: 2006-06-01 | BB151: 5.34 | BC151: =LN(Tabla83[[#This Row],[DGS20]]/BB150) -> -0.001870907936 | BF151: 140 | BG151: 0.004828372891 | BH151: 0.04813127906 | BI151: 1562234.978 | BJ151: -6910.407745 | BP151: 2006-05-01 | BQ151: 0.01629363949 | BR151: 0.01197619105 | BS151: 0.01309653892 | BU151: 123 | BV151: 3935043.631 | BW151: -15136.28424
V152: 2006-06-02 | W152: 4.91 | X152: =LN(Tabla615[[#This Row],[DGS3]]/W151) -> -0.0221559919 | Z152: 142 | AA152: -0.008225130976 | AB152: 0.03907592984 | AC152: 891370.2731 | AD152: 833.4898566 | AK152: 2006-06-02 | AL152: 4.92 | AM152: =LN(Tabla102[[#This Row],[DGS7]]/AL151) -> -0.02607971278 | AP152: 143 | AQ152: 0.003482698155 | AR152: 0.04304940775 | AS152: 1489003.882 | AT152: -1493.863748 | BA152: 2006-06-02 | BB152: 5.24 | BC152: =LN(Tabla83[[#This Row],[DGS20]]/BB151) -> -0.01890415464 | BF152: 141 | BG152: 0.002097154101 | BH152: 0.04800045368 | BI152: 1566139.987 | BJ152: -3005.399053 | BP152: 2006-05-02 | BQ152: -0.002022245381 | BR152: -0.001986097972 | BS152: -0.005591813266 | BU152: 124 | BV152: 3944047.425 | BW152: -6132.490423
V153: 2006-06-05 | W153: 4.95 | X153: =LN(Tabla615[[#This Row],[DGS3]]/W152) -> 0.008113634774 | Z153: 143 | AA153: -0.007941164476 | AB153: 0.03908711812 | AC153: 891341.4802 | AD153: 804.6969112 | AK153: 2006-06-05 | AL153: 4.97 | AM153: =LN(Tabla102[[#This Row],[DGS7]]/AL152) -> 0.0101113096 | AP153: 144 | AQ153: 0.002372425821 | AR153: 0.04300177707 | AS153: 1489479.935 | AT153: -1017.810941 | BA153: 2006-06-05 | BB153: 5.24 | BC153: =LN(Tabla83[[#This Row],[DGS20]]/BB152) -> 0 | BF153: 142 | BG153: 0.0029944512 | BH153: 0.04804343421 | BI153: 1564855.931 | BJ153: -4289.454797 | BP153: 2006-05-03 | BQ153: 0.004040409537 | BR153: 0.005946499188 | BS153: 0.005591813266 | BU153: 125 | BV153: 3980154.884 | BW153: 29974.96872
V154: 2006-06-06 | W154: 4.96 | X154: =LN(Tabla615[[#This Row],[DGS3]]/W153) -> 0.002018164156 | Z154: 144 | AA154: -0.005215992736 | AB154: 0.03919448989 | AC154: 891065.2229 | AD154: 528.4396114 | AK154: 2006-06-06 | AL154: 4.96 | AM154: =LN(Tabla102[[#This Row],[DGS7]]/AL153) -> -0.002014099372 | AP154: 145 | AQ154: -0.01004713036 | AR154: 0.04246897811 | AS154: 1494816.955 | AT154: 4319.209636 | BA154: 2006-06-06 | BB154: 5.22 | BC154: =LN(Tabla83[[#This Row],[DGS20]]/BB153) -> -0.003824096438 | BF154: 143 | BG154: -0.006515527051 | BH154: 0.04758790625 | BI154: 1578521.381 | BJ154: 9375.995068 | BP154: 2006-05-04 | BQ154: 0.006030169027 | BR154: 0.003944778291 | BS154: 0 | BU154: 126 | BV154: 3943928.998 | BW154: -6250.916786
V155: 2006-06-07 | W155: 4.99 | X155: =LN(Tabla615[[#This Row],[DGS3]]/W154) -> 0.006030169027 | Z155: 145 | AA155: 0.01109526939 | AB155: 0.03983715361 | AC155: 889414.0948 | AD155: -1122.688481 | AK155: 2006-06-07 | AL155: 4.98 | AM155: =LN(Tabla102[[#This Row],[DGS7]]/AL154) -> 0.0040241503 | AP155: 146 | AQ155: 0.003009874271 | AR155: 0.04302912361 | AS155: 1489206.594 | AT155: -1291.151743 | BA155: 2006-06-07 | BB155: 5.23 | BC155: =LN(Tabla83[[#This Row],[DGS20]]/BB154) -> 0.001913876182 | BF155: 144 | BG155: -0.004092628588 | BH155: 0.04770396309 | BI155: 1575027.922 | BJ155: 5882.536122 | BP155: 2006-05-05 | BQ155: -0.006030169027 | BR155: -0.009891277479 | BS155: -0.005591813266 | BU155: 127 | BV155: 3956649.959 | BW155: 6470.044314
V156: 2006-06-08 | W156: 4.97 | X156: =LN(Tabla615[[#This Row],[DGS3]]/W155) -> -0.004016069655 | Z156: 146 | AA156: -0.01144403432 | AB156: 0.03894910505 | AC156: 891696.7424 | AD156: 1159.95912 | AK156: 2006-06-08 | AL156: 4.96 | AM156: =LN(Tabla102[[#This Row],[DGS7]]/AL155) -> -0.0040241503 | AP156: 147 | AQ156: 0.007772022842 | AR156: 0.04323341978 | AS156: 1487166.376 | AT156: -3331.369847 | BA156: 2006-06-08 | BB156: 5.20 | BC156: =LN(Tabla83[[#This Row],[DGS20]]/BB155) -> -0.005752652489 | BF156: 145 | BG156: -0.002783028385 | BH156: 0.04776669294 | BI156: 1573143.054 | BJ156: 3997.668222 | BP156: 2006-05-08 | BQ156: 0.006030169027 | BR156: 0.003968259176 | BS156: -0.001870907936 | BU156: 128 | BV156: 3941838.154 | BW156: -8341.760627
V157: 2006-06-09 | W157: 4.96 | X157: =LN(Tabla615[[#This Row],[DGS3]]/W156) -> -0.002014099372 | Z157: 147 | AA157: -0.0002992746472 | AB157: 0.03938820858 | AC157: 890567.0919 | AD157: 30.30863711 | AK157: 2006-06-09 | AL157: 4.95 | AM157: =LN(Tabla102[[#This Row],[DGS7]]/AL156) -> -0.002018164156 | AP157: 148 | AQ157: -0.006289425773 | AR157: 0.04263018363 | AS157: 1493199.865 | AT157: 2702.119419 | BA157: 2006-06-09 | BB157: 5.17 | BC157: =LN(Tabla83[[#This Row],[DGS20]]/BB156) -> -0.005785937067 | BF157: 146 | BG157: 0.002830113084 | BH157: 0.04803556242 | BI157: 1565091.021 | BJ157: -4054.365346 | BP157: 2006-05-09 | BQ157: -0.002006018727 | BR157: 0 | BS157: 0.001870907936 | BU157: 129 | BV157: 3960966.295 | BW157: 10786.3797
V158: 2006-06-12 | W158: 4.97 | X158: =LN(Tabla615[[#This Row],[DGS3]]/W157) -> 0.002014099372 | Z158: 148 | AA158: -0.01238863309 | AB158: 0.03891188786 | AC158: 891792.5762 | AD158: 1255.792956 | AK158: 2006-06-12 | AL158: 4.96 | AM158: =LN(Tabla102[[#This Row],[DGS7]]/AL157) -> 0.002018164156 | AP158: 149 | AQ158: 0.01737624113 | AR158: 0.04364544074 | AS158: 1483061.409 | AT158: -7436.336184 | BA158: 2006-06-12 | BB158: 5.17 | BC158: =LN(Tabla83[[#This Row],[DGS20]]/BB157) -> 0 | BF158: 147 | BG158: -0.004674983096 | BH158: 0.04767606831 | BI158: 1575866.849 | BJ158: 6721.462865 | BP158: 2006-05-10 | BQ158: 0.004008021398 | BR158: 0.001978240012 | BS158: -0.001870907936 | BU158: 130 | BV158: 3968638.784 | BW158: =BV158-$BU$21 -> 18458.86892
V159: 2006-06-13 | W159: 4.96 | X159: =LN(Tabla615[[#This Row],[DGS3]]/W158) -> -0.002014099372 | Z159: 149 | AA159: 0.001402089436 | AB159: 0.03945524232 | AC159: 890394.8069 | AD159: -141.976407 | AK159: 2006-06-13 | AL159: 4.94 | AM159: =LN(Tabla102[[#This Row],[DGS7]]/AL158) -> -0.004040409537 | AP159: 150 | AQ159: -0.009881194074 | AR159: 0.04247609677 | AS159: 1494745.504 | AT159: 4247.758406 | BA159: 2006-06-13 | BB159: 5.15 | BC159: =LN(Tabla83[[#This Row],[DGS20]]/BB158) -> -0.003875973845 | BF159: 148 | BG159: 0.001051120908 | BH159: 0.04795034869 | BI159: 1567638.285 | BJ159: -1507.101319 | BP159: 2006-05-11 | BQ159: 0.001998002663 | BR159: 0.001974334304 | BS159: 0.007462721202 | BU159: 131 | BV159: 3961294.097 | BW159: 11114.1823
V160: 2006-06-14 | W160: 5.06 | X160: =LN(Tabla615[[#This Row],[DGS3]]/W159) -> 0.01996074256 | Z160: 150 | AA160: -0.02721125982 | AB160: 0.03832787636 | AC160: 893298.1992 | AD160: 2761.415938 | AK160: 2006-06-14 | AL160: 5.04 | AM160: =LN(Tabla102[[#This Row],[DGS7]]/AL159) -> 0.02004075088 | AP160: 151 | AQ160: 0.0213734425 | AR160: 0.04381692068 | AS160: 1481356.771 | AT160: -9140.974034 | BA160: 2006-06-14 | BB160: 5.23 | BC160: =LN(Tabla83[[#This Row],[DGS20]]/BB159) -> 0.0154145634 | BF160: 149 | BG160: 0.004549360763 | BH160: 0.04811791438 | BI160: 1562633.432 | BJ160: -6511.954457 | BP160: 2006-05-12 | BQ160: 0.003984069015 | BR160: 0.009813621448 | BS160: 0.01109068669 | BU160: 132 | BV160: 3982204.058 | BW160: 32024.14333
V161: 2006-06-15 | W161: 5.10 | X161: =LN(Tabla615[[#This Row],[DGS3]]/W160) -> 0.007874056431 | Z161: 151 | AA161: 0.0002481345239 | AB161: 0.0394097765 | AC161: 890511.6548 | AD161: -25.12844708 | AK161: 2006-06-15 | AL161: 5.08 | AM161: =LN(Tabla102[[#This Row],[DGS7]]/AL160) -> 0.007905179507 | AP161: 152 | AQ161: 0.01334892372 | AR161: 0.04347266883 | AS161: 1484781.158 | AT161: -5716.587535 | BA161: 2006-06-15 | BB161: 5.27 | BC161: =LN(Tabla83[[#This Row],[DGS20]]/BB160) -> 0.007619084476 | BF161: 150 | BG161: -0.003052576859 | BH161: 0.04775378157 | BI161: 1573530.814 | BJ161: 4385.427511 | BP161: 2006-05-15 | BQ161: -0.003984069015 | BR161: -0.007843177461 | BS161: -0.005529968009 | BU161: 133 | BV161: 3973794.444 | BW161: 23614.52889
V162: 2006-06-16 | W162: 5.13 | X162: =LN(Tabla615[[#This Row],[DGS3]]/W161) -> 0.005865119452 | Z162: 152 | AA162: 0.0009595194535 | AB162: 0.03943780507 | AC162: 890439.6185 | AD162: -97.16476825 | AK162: 2006-06-16 | AL162: 5.10 | AM162: =LN(Tabla102[[#This Row],[DGS7]]/AL161) -> 0.00392927814 | AP162: 153 | AQ162: -0.006936541097 | AR162: 0.04260242239 | AS162: 1493478.202 | AT162: 2980.456406 | BA162: 2006-06-16 | BB162: 5.31 | BC162: =LN(Tabla83[[#This Row],[DGS20]]/BB161) -> 0.007561472701 | BF162: 151 | BG162: 0.02410320351 | BH162: 0.04905454345 | BI162: 1534965.472 | BJ162: -34179.91467 | BP162: 2006-05-16 | BQ162: -0.008016074988 | BR162: -0.009891277479 | BS162: -0.009285117776 | BU162: 134 | BV162: 3950718.305 | BW162: 538.3898395
V163: 2006-06-19 | W163: 5.15 | X163: =LN(Tabla615[[#This Row],[DGS3]]/W162) -> 0.003891055493 | Z163: 153 | AA163: 0.01364433232 | AB163: 0.03993758669 | AC163: 889156.4314 | AD163: -1380.351934 | AK163: 2006-06-19 | AL163: 5.13 | AM163: =LN(Tabla102[[#This Row],[DGS7]]/AL162) -> 0.005865119452 | AP163: 154 | AQ163: 0.0001546310203 | AR163: 0.04290663367 | AS163: 1490431.382 | AT163: -66.36354237 | BA163: 2006-06-19 | BB163: 5.32 | BC163: =LN(Tabla83[[#This Row],[DGS20]]/BB162) -> 0.0018814681 | BF163: 152 | BG163: 0.00266464835 | BH163: 0.04802763666 | BI163: 1565327.759 | BJ163: -3817.626775 | BP163: 2006-05-17 | BQ163: 0.006018072326 | BR163: 0.009891277479 | BS163: 0.01113184037 | BU163: 135 | BV163: 3979682.601 | BW163: 29502.68559
V164: 2006-06-20 | W164: 5.16 | X164: =LN(Tabla615[[#This Row],[DGS3]]/W163) -> 0.001939864818 | Z164: 154 | AA164: 0.008196416384 | AB164: 0.03972293881 | AC164: 889707.2366 | AD164: -829.5466751 | AK164: 2006-06-20 | AL164: 5.14 | AM164: =LN(Tabla102[[#This Row],[DGS7]]/AL163) -> 0.001947420284 | AP164: 155 | AQ164: 0.003919634176 | AR164: 0.04306815231 | AS164: 1488816.584 | AT164: -1681.161651 | BA164: 2006-06-20 | BB164: 5.33 | BC164: =LN(Tabla83[[#This Row],[DGS20]]/BB163) -> 0.001877934824 | BF164: 153 | BG164: 0.002246212264 | BH164: 0.04800759357 | BI164: 1565926.604 | BJ164: -3218.781806 | BP164: 2006-05-18 | BQ164: -0.01207258123 | BR164: -0.01587334916 | BS164: -0.0186225121 | BU164: 136 | BV164: 3934331.773 | BW164: -15848.1423
V165: 2006-06-21 | W165: 5.16 | X165: =LN(Tabla615[[#This Row],[DGS3]]/W164) -> 0 | Z165: 155 | AA165: 0.003689033536 | AB165: 0.03954534792 | AC165: 890163.2943 | AD165: -373.4889688 | AK165: 2006-06-21 | AL165: 5.14 | AM165: =LN(Tabla102[[#This Row],[DGS7]]/AL164) -> 0 | AP165: 156 | AQ165: -0.002998963493 | AR165: 0.04277134447 | AS165: 1491785.489 | AT165: 1287.743889 | BA165: 2006-06-21 | BB165: 5.32 | BC165: =LN(Tabla83[[#This Row],[DGS20]]/BB164) -> -0.001877934824 | BF165: 154 | BG165: 0.0003927101581 | BH165: 0.04791881082 | BI165: 1568582.139 | BJ165: -563.2473189 | BP165: 2006-05-19 | BQ165: 0.002022245381 | BR165: -0.004008021398 | BS165: -0.007547205635 | BU165: 137 | BV165: 3926794.927 | BW165: -23384.98799
V166: 2006-06-22 | W166: 5.21 | X166: =LN(Tabla615[[#This Row],[DGS3]]/W165) -> 0.009643276272 | Z166: 156 | AA166: -0.006648664117 | AB166: 0.03913804263 | AC166: 891210.4421 | AD166: 673.6587655 | AK166: 2006-06-22 | AL166: 5.18 | AM166: =LN(Tabla102[[#This Row],[DGS7]]/AL165) -> 0.007751976804 | AP166: 157 | AQ166: -0.001561631667 | AR166: 0.042833006 | AS166: 1491168.146 | AT166: 670.4002932 | BA166: 2006-06-22 | BB166: 5.37 | BC166: =LN(Tabla83[[#This Row],[DGS20]]/BB165) -> 0.009354605167 | BF166: 155 | BG166: 0.01053936718 | BH166: 0.04840483569 | BI166: 1554102.585 | BJ166: -15042.8015 | BP166: 2006-05-22 | BQ166: -0.002022245381 | BR166: -0.0040241503 | BS166: 0 | BU166: 138 | BV166: 3917662.262 | BW166: -32517.65259
V167: 2006-06-23 | W167: 5.23 | X167: =LN(Tabla615[[#This Row],[DGS3]]/W166) -> 0.003831422312 | Z167: 157 | AA167: 0.01843559162 | AB167: 0.04012636231 | AC167: 888672.3923 | AD167: -1864.390982 | AK167: 2006-06-23 | AL167: 5.21 | AM167: =LN(Tabla102[[#This Row],[DGS7]]/AL166) -> 0.005774799494 | AP167: 158 | AQ167: -0.01343845026 | AR167: 0.04232349048 | AS167: 1496278.094 | AT167: 5780.348329 | BA167: 2006-06-23 | BB167: 5.40 | BC167: =LN(Tabla83[[#This Row],[DGS20]]/BB166) -> 0.005571045049 | BF167: 156 | BG167: -5.353226654e-05 | BH167: 0.0478974358 | BI167: 1569222.182 | BJ167: 76.79547714 | BP167: 2006-05-23 | BQ167: 0.006054508909 | BR167: 0.008032171697 | BS167: 0.00378072284 | BU167: 139 | BV167: 3946645.98 | BW167: -3533.934805
V168: 2006-06-26 | W168: 5.25 | X168: =LN(Tabla615[[#This Row],[DGS3]]/W167) -> 0.003816798527 | Z168: 158 | AA168: -0.01330742905 | AB168: 0.0388756873 | AC168: 891885.8054 | AD168: 1349.022156 | AK168: 2006-06-26 | AL168: 5.23 | AM168: =LN(Tabla102[[#This Row],[DGS7]]/AL167) -> 0.003831422312 | AP168: 159 | AQ168: 0.009125144222 | AR168: 0.04329146869 | AS168: 1486587.249 | AT168: -3910.496427 | BA168: 2006-06-26 | BB168: 5.42 | BC168: =LN(Tabla83[[#This Row],[DGS20]]/BB167) -> 0.003696861881 | BF168: 157 | BG168: -0.005858451972 | BH168: 0.04761938015 | BI168: 1577573.173 | BJ168: 8427.787313 | BP168: 2006-05-24 | BQ168: -0.0101113096 | BR168: -0.008032171697 | BS168: -0.005676458005 | BU168: 140 | BV168: 3967111.2 | BW168: 16931.28541
V169: 2006-06-27 | W169: 5.22 | X169: =LN(Tabla615[[#This Row],[DGS3]]/W168) -> -0.005730674709 | Z169: 159 | AA169: 0.02372862272 | AB169: 0.04033490774 | AC169: 888138.0699 | AD169: -2398.713379 | AK169: 2006-06-27 | AL169: 5.20 | AM169: =LN(Tabla102[[#This Row],[DGS7]]/AL168) -> -0.005752652489 | AP169: 160 | AQ169: 0.01648915736 | AR169: 0.04360738485 | AS169: 1483440.017 | AT169: -7057.728464 | BA169: 2006-06-27 | BB169: 5.38 | BC169: =LN(Tabla83[[#This Row],[DGS20]]/BB168) -> -0.007407441278 | BF169: 158 | BG169: 0.0102595051 | BH169: 0.04839143029 | BI169: 1554500.068 | BJ169: -14645.31851 | BP169: 2006-05-25 | BQ169: 0.0101113096 | BR169: 0.006030169027 | BS169: 0.007561472701 | BU169: 141 | BV169: 3955498.454 | BW169: 5318.539153
V170: 2006-06-28 | W170: 5.26 | X170: =LN(Tabla615[[#This Row],[DGS3]]/W169) -> 0.007633624855 | Z170: 160 | AA170: 0.003248383328 | AB170: 0.0395279863 | AC170: 890207.8961 | AD170: -328.8871873 | AK170: 2006-06-28 | AL170: 5.23 | AM170: =LN(Tabla102[[#This Row],[DGS7]]/AL169) -> 0.005752652489 | AP170: 161 | AQ170: -0.01120478389 | AR170: 0.04241931477 | AS170: 1495315.543 | AT170: 4817.79735 | BA170: 2006-06-28 | BB170: 5.42 | BC170: =LN(Tabla83[[#This Row],[DGS20]]/BB169) -> 0.007407441278 | BF170: 159 | BG170: 0.001146001292 | BH170: 0.04795489346 | BI170: 1567502.32 | BJ170: -1643.066379 | BP170: 2006-05-26 | BQ170: -0.006054508909 | BR170: -0.004016069655 | BS170: -0.001885014696 | BU170: 142 | BV170: 3977546.921 | BW170: 27367.00563
V171: 2006-06-29 | W171: 5.19 | X171: =LN(Tabla615[[#This Row],[DGS3]]/W170) -> -0.01339732957 | Z171: 161 | AA171: -0.005506167269 | AB171: 0.03918305701 | AC171: 891094.6332 | AD171: 557.8498796 | AK171: 2006-06-29 | AL171: 5.18 | AM171: =LN(Tabla102[[#This Row],[DGS7]]/AL170) -> -0.009606221805 | AP171: 162 | AQ171: 0.003537684213 | AR171: 0.04305176665 | AS171: 1488980.31 | AT171: -1517.435667 | BA171: 2006-06-29 | BB171: 5.39 | BC171: =LN(Tabla83[[#This Row],[DGS20]]/BB170) -> -0.005550430531 | BF171: 160 | BG171: 0.006669375205 | BH171: 0.04821946307 | BI171: 1559608.542 | BJ171: -9536.844366 | BP171: 2006-05-30 | BQ171: 0.01007057856 | BR171: 0.008016074988 | BS171: 0.00564441762 | BU171: 143 | BV171: 3956420.09 | BW171: 6240.175301
V172: 2006-06-30 | W172: 5.13 | X172: =LN(Tabla615[[#This Row],[DGS3]]/W171) -> -0.011628038 | Z172: 162 | AA172: 0.01513272207 | AB172: 0.03999622925 | AC172: 889006.0285 | AD172: -1530.754785 | AK172: 2006-06-30 | AL172: 5.11 | AM172: =LN(Tabla102[[#This Row],[DGS7]]/AL171) -> -0.01360565206 | AP172: 163 | AQ172: 0.009671179081 | AR172: 0.04331489358 | AS172: 1486353.623 | AT172: -4144.122573 | BA172: 2006-06-30 | BB172: 5.31 | BC172: =LN(Tabla83[[#This Row],[DGS20]]/BB171) -> -0.01495354967 | BF172: 161 | BG172: -0.003161296177 | BH172: 0.04774857391 | BI172: 1573687.24 | BJ172: 4541.854219 | BP172: 2006-05-31 | BQ172: 0.007984074348 | BR172: 0.009930568203 | BS172: 0.00374532273 | BU172: 144 | BV172: 3936092.982 | BW172: -14086.93262
